Workbook

Sheet PI vs gap
A1: Measurement | B1: Hall
A2: Type | B2: Gap dependence
A4: PS type | B4: HXR
A5: PS serial no | B5: 16333
A7: Measurement date | B7: ='DF raw data'!B2 -> 11. okt 2017
C11: Nominal gap [mm] | D11: Encoder [counts] | E11: Encoder [mm] | F11: PI [T^2mm^3] | H11: Encoder offset
C12: 10 | D12: =' 10 mm'!B3 -> 17939679 | E12: =(D12-$H$12)*-0.00025+10 -> 10.013 | F12: =' 10 mm'!Q3 -> 710.7741911 | H12: 17939731
C13: 12 | D13: =' 12 mm'!B3 -> 17931645 | E13: =(D13-$H$12)*-0.00025+10 -> 12.0215 | F13: =' 12 mm'!Q3 -> 545.4457139
C14: 15 | D14: =' 15 mm'!B3 -> 17919629 | E14: 15.0255 | F14: =' 15 mm'!Q3 -> 372.2915259
C15: 20 | D15: =' 20 mm'!B3 -> 17899628 | E15: 20.02575 | F15: =' 20 mm'!Q3 -> 204.5378989
C16: 30 | D16: =' 30 mm'!B3 -> 17859593 | E16: 30.0345 | F16: =' 30 mm'!Q3 -> 69.25627813
C17: 100 | D17: =' 100 mm'!B3 -> 17579611 | E17: 100.03 | F17: =' 100 mm'!Q3 -> 0.416213442
A41: Measuring series at 10 mm gap:
A42: Reference magnet
A43: Tref | B43: 20.82 | C43: degC
A44: Hall ref field | B44: 0.505455 | C44: T
A45: NMR ref field | B45: 0.5065525 | C45: T
A47: Measuring series at larger gaps:
A48: Reference magnet
A49: Tref | B49: 20.91 | C49: degC
A50: Hall ref field | B50: 0.505375 | C50: T
A51: NMR ref field | B51: 0.506502 | C51: T
A53: Offset from Faro | B53: 0.5223333333

Sheet 10 mm
A1: dz | B1: ='DF raw data'!B7 -> 0.50013 | C1: mm | F1: T_coeff | G1: -0.0008 | H1: /degC | L1: Hallref | M1: ='PI vs gap'!B44 -> 0.505455 | N1: T | P1: IBy total | Q1: =L1203*1000 -> 5.994085762 | R1: muTm | X1: DF ref | Y1: 18
A2: Tref | B2: ='DF raw data'!B8 -> 21.64 | C2: degC | F2: Tcorr | G2: 20 | H2: degC | L2: NMRref | M2: ='PI vs gap'!B45 -> 0.5065525 | N2: T | P2: JBy total | Q2: =M1203 -> -0.3059371645 | R2: muTm^2
A3: Encoder | B3: ='DF raw data'!B9 -> 17939679 | P3: PI total | Q3: =N1203 -> 710.7741911 | R3: T^2mm^3
A5: z [mm] | B5: Bx | C5: By | D5: Bz | F5: Bx_corr | G5: By_corr | H5: Bz_corr | J5: Ix | K5: Jx | L5: Iy | M5: Jy | N5: PI
A6: -0.068 | B6: ='DF raw data'!A11 -> 1.9323365e-06 | C6: ='DF raw data'!B11 -> -8.6616683e-06 | D6: ='DF raw data'!C11 -> -5.1031743e-06 | F6: =(1-$G$1*($B$2-$G$2))*B6 -> 1.934871725e-06 | G6: =(1-$G$1*($B$2-$G$2))*C6*$M$2/$M$1 -> -8.691864259e-06 | H6: =(1-$G$1*($B$2-$G$2))*D6 -> -5.109869665e-06 | J6: =F6*$B$1 -> 9.676873961e-07 | K6: =J6*$B$1 -> 4.839694974e-07 | L6: =G6*$B$1 -> -4.347062072e-06 | M6: =L6*$B$1 -> -2.174096154e-06 | N6: =(J6^2+L6)^2*$B$1 -> 9.450926861e-12
A7: =A6+$B$1 -> 0.43213 | B7: ='DF raw data'!A12 -> 1.6125437e-06 | C7: ='DF raw data'!B12 -> 1.8535417e-07 | D7: ='DF raw data'!C12 -> -3.95692e-06 | F7: =(1-$G$1*($B$2-$G$2))*B7 -> 1.614659357e-06 | G7: =(1-$G$1*($B$2-$G$2))*C7*$M$2/$M$1 -> 1.860003442e-07 | H7: =(1-$G$1*($B$2-$G$2))*D7 -> -3.962111479e-06 | J7: =F7*$B$1+J6 -> 1.77522698e-06 | K7: =J7*$B$1+K6 -> 1.371813767e-06 | L7: =G7*$B$1+L6 -> -4.25403772e-06 | M7: =L7*$B$1+M6 -> -4.301668039e-06 | N7: =(J7^2+L7^2)*$B$1+N6 -> 2.007782301e-11
A8: =A7+$B$1 -> 0.93226 | B8: ='DF raw data'!A13 -> 1.4051498e-06 | C8: ='DF raw data'!B13 -> 5.6741474e-06 | D8: ='DF raw data'!C13 -> -4.099878e-06 | F8: 1.406993357e-06 | G8: 5.693928384e-06 | H8: -4.10525704e-06 | J8: =F8*$B$1+J7 -> 2.478906568e-06 | K8: =J8*$B$1+K7 -> 2.611589309e-06 | L8: =G8*$B$1+L7 -> -1.406333317e-06 | M8: =L8*$B$1+M7 -> -5.005017521e-06 | N8: =(J8^2+L8^2)*$B$1+N7 -> 2.414025456e-11
A9: 1.43239 | B9: ='DF raw data'!A14 -> 1.5316496e-06 | C9: ='DF raw data'!B14 -> 1.2214159e-06 | D9: ='DF raw data'!C14 -> -9.6420918e-06 | F9: 1.533659124e-06 | G9: 1.225673951e-06 | H9: -9.654742224e-06 | J9: 3.245935506e-06 | K9: 4.234979033e-06 | L9: -7.93337004e-07 | M9: -5.401789157e-06 | N9: 2.972444652e-11
A10: 1.93252 | B10: ='DF raw data'!A15 -> 1.841227e-06 | C10: ='DF raw data'!B15 -> -5.7114603e-06 | D10: ='DF raw data'!C15 -> -9.0841013e-07 | F10: 1.84364269e-06 | G10: -5.731371363e-06 | H10: -9.096019641e-07 | J10: 4.167996524e-06 | K10: 6.319519135e-06 | L10: -3.659767764e-06 | M10: -7.232148808e-06 | N10: 4.511149367e-11
A11: 2.43265 | B11: ='DF raw data'!A16 -> 1.5833089e-06 | C11: ='DF raw data'!B16 -> 3.3609203e-06 | D11: ='DF raw data'!C16 -> 1.1029195e-05 | F11: =(1-$G$1*($B$2-$G$2))*B11 -> 1.585386201e-06 | G11: 3.372637005e-06 | H11: =(1-$G$1*($B$2-$G$2))*D11 -> 1.10436653e-05 | J11: 4.960895725e-06 | K11: 8.800611914e-06 | L11: -1.973010818e-06 | M11: -8.218910709e-06 | N11: 5.936682814e-11
A12: 2.93278 | B12: ='DF raw data'!A17 -> 1.407027e-06 | C12: ='DF raw data'!B17 -> 8.1997905e-06 | D12: ='DF raw data'!C17 -> 1.1557109e-05 | F12: 1.408873019e-06 | G12: 8.22837628e-06 | H12: 1.157227193e-05 | J12: 5.665515388e-06 | K12: 1.163410613e-05 | L12: 2.14224701e-06 | M12: -7.147508712e-06 | N12: 7.771524092e-11
A13: 3.43291 | B13: ='DF raw data'!A18 -> 1.7312291e-06 | C13: ='DF raw data'!B18 -> -1.9243953e-06 | D13: ='DF raw data'!C18 -> 4.1491662e-06 | F13: 1.733500473e-06 | G13: -1.931104049e-06 | H13: 4.154609906e-06 | J13: 6.53249098e-06 | K13: 1.490120084e-05 | L13: 1.176443942e-06 | M13: -6.559133803e-06 | N13: 9.974969776e-11
A14: 3.93304 | B14: ='DF raw data'!A19 -> 1.6772269e-06 | C14: ='DF raw data'!B19 -> -7.9765364e-08 | D14: ='DF raw data'!C19 -> 6.4147393e-06 | F14: 1.679427422e-06 | G14: -8.00434388e-08 | H14: 6.423155438e-06 | J14: 7.372423016e-06 | K14: 1.858837076e-05 | L14: 1.136411817e-06 | M14: -5.990780161e-06 | N14: 1.27578958e-10
A15: 4.43317 | B15: ='DF raw data'!A20 -> 1.4650891e-06 | C15: ='DF raw data'!B20 -> 4.9860637e-06 | D15: ='DF raw data'!C20 -> 2.4912374e-06 | F15: 1.467011297e-06 | G15: 5.003445915e-06 | H15: 2.494505903e-06 | J15: 8.106119376e-06 | K15: 2.264248425e-05 | L15: 3.638785222e-06 | M15: -4.170914508e-06 | N15: 1.670641861e-10
A16: 4.9333 | B16: ='DF raw data'!A21 -> 1.8669257e-06 | C16: ='DF raw data'!B21 -> -6.5460472e-06 | D16: ='DF raw data'!C21 -> -8.3799341e-07 | F16: 1.869375107e-06 | G16: -6.568867766e-06 | H16: -8.390928574e-07 | J16: 9.041049948e-06 | K16: 2.716418456e-05 | L16: 3.534973863e-07 | M16: -3.99411986e-06 | N16: 2.080076009e-10
A17: 5.43343 | B17: ='DF raw data'!A22 -> 2.1831243e-06 | C17: ='DF raw data'!B22 -> -1.5936515e-05 | D17: ='DF raw data'!C22 -> -6.1794922e-06 | F17: 2.185988559e-06 | G17: -1.599207224e-05 | H17: -6.187599694e-06 | J17: 1.013432841e-05 | K17: 3.223266622e-05 | L17: -7.644617702e-06 | M17: -7.817422511e-06 | N17: 2.886009457e-10
A18: 5.93356 | B18: ='DF raw data'!A23 -> 1.7168663e-06 | C18: ='DF raw data'!B23 -> -2.7368342e-06 | D18: ='DF raw data'!C23 -> -3.8236681e-06 | F18: 1.719118829e-06 | G18: -2.746375241e-06 | H18: -3.828684753e-06 | J18: 1.099411131e-05 | K18: 3.773115111e-05 | L18: -9.018162351e-06 | M18: -1.232767605e-05 | N18: 3.897260992e-10
A19: 6.43369 | B19: ='DF raw data'!A24 -> 1.4982675e-06 | C19: ='DF raw data'!B24 -> 3.2593825e-06 | D19: ='DF raw data'!C24 -> -3.4588952e-06 | F19: 1.500233227e-06 | G19: 3.270745228e-06 | H19: -3.463433271e-06 | J19: 1.174442295e-05 | K19: 4.360488936e-05 | L19: -7.38236454e-06 | M19: -1.601981803e-05 | N19: 4.859665035e-10
A20: 6.93382 | B20: ='DF raw data'!A25 -> 2.0060274e-06 | C20: ='DF raw data'!B25 -> -1.0545927e-05 | D20: ='DF raw data'!C25 -> -3.2984312e-06 | F20: 2.008659308e-06 | G20: -1.058269179e-05 | H20: -3.302758742e-06 | J20: 1.274901373e-05 | K20: 4.998105359e-05 | L20: -1.267508618e-05 | M20: -2.235900888e-05 | N20: 6.476060993e-10
A21: 7.43395 | B21: ='DF raw data'!A26 -> 1.5595456e-06 | C21: ='DF raw data'!B26 -> 2.5415438e-06 | D21: ='DF raw data'!C26 -> 1.8700889e-06 | F21: 1.561591724e-06 | G21: 2.550404028e-06 | H21: 1.872542457e-06 | J21: 1.35300126e-05 | K21: 5.67478188e-05 | L21: -1.139955262e-05 | M21: -2.806026713e-05 | N21: 8.041523111e-10
A22: 7.93408 | B22: ='DF raw data'!A27 -> 2.4891656e-06 | C22: ='DF raw data'!B27 -> 1.1645548e-05 | D22: ='DF raw data'!C27 -> 1.0597364e-06 | F22: 2.492431385e-06 | G22: 1.168614624e-05 | H22: 1.061126774e-06 | J22: 1.477655231e-05 | K22: 6.41380159e-05 | L22: -5.554960297e-06 | M22: -3.083846942e-05 | N22: 9.287867486e-10
A23: 8.43421 | B23: ='DF raw data'!A28 -> 3.8643361e-06 | C23: ='DF raw data'!B28 -> 3.9737012e-07 | D23: ='DF raw data'!C28 -> 5.2479813e-06 | F23: 3.869406109e-06 | G23: 3.987554157e-07 | H23: 5.254866651e-06 | J23: 1.671175838e-05 | K23: 7.249606762e-05 | L23: -5.355530751e-06 | M23: -3.351693102e-05 | N23: 1.082809073e-09
A24: 8.93434 | B24: ='DF raw data'!A29 -> -1.0706549e-06 | C24: ='DF raw data'!B29 -> 5.9168515e-06 | D24: ='DF raw data'!C29 -> 5.6183567e-06 | F24: -1.072059599e-06 | G24: 5.93747859e-06 | H24: 5.625727984e-06 | J24: 1.617558922e-05 | K24: 8.058596506e-05 | L24: -2.386019584e-06 | M24: -3.471025099e-05 | N24: 1.216515216e-09
A25: 9.43447 | B25: ='DF raw data'!A30 -> -2.7360488e-06 | C25: ='DF raw data'!B30 -> -1.2205227e-05 | D25: ='DF raw data'!C30 -> 1.734596e-06 | F25: -2.739638496e-06 | G25: -1.224777637e-05 | H25: 1.73687179e-06 | J25: 1.480541382e-05 | K25: 8.799059667e-05 | L25: -8.511499981e-06 | M25: -3.896710748e-05 | N25: 1.362376085e-09
A26: 9.9346 | B26: ='DF raw data'!A31 -> 2.0738539e-06 | C26: ='DF raw data'!B31 -> -6.6003935e-07 | D26: ='DF raw data'!C31 -> -2.3801181e-06 | F26: 2.076574796e-06 | G26: -6.623403526e-07 | H26: -2.383240815e-06 | J26: 1.584397117e-05 | K26: 9.591464197e-05 | L26: -8.842756261e-06 | M26: -4.338963517e-05 | N26: 1.527031764e-09
A27: 10.43473 | B27: ='DF raw data'!A32 -> 2.0023604e-06 | C27: ='DF raw data'!B32 -> -3.7023137e-06 | D27: ='DF raw data'!C32 -> 3.2787143e-06 | F27: 2.004987497e-06 | G27: -3.715220557e-06 | H27: 3.283015973e-06 | J27: 1.684672557e-05 | K27: 0.0001043401948 | L27: -1.070084952e-05 | M27: -4.874145104e-05 | N27: 1.726243717e-09
A28: 10.93486 | B28: ='DF raw data'!A33 -> -4.4966414e-06 | C28: ='DF raw data'!B33 -> -1.6317908e-06 | D28: ='DF raw data'!C33 -> 4.7662693e-06 | F28: -4.502540994e-06 | G28: -1.637479483e-06 | H28: 4.772522645e-06 | J28: 1.459486974e-05 | K28: 0.000111639527 | L28: -1.151980213e-05 | M28: -5.450284968e-05 | N28: 1.899146692e-09
A29: 11.43499 | B29: ='DF raw data'!A34 -> -5.3700473e-06 | C29: ='DF raw data'!B34 -> 5.6362029e-07 | D29: ='DF raw data'!C34 -> 5.4350608e-06 | F29: -5.377092802e-06 | G29: 5.655851604e-07 | H29: 5.4421916e-06 | J29: 1.190562432e-05 | K29: 0.0001175938869 | L29: -1.123693603e-05 | M29: -6.012277849e-05 | N29: 2.033187845e-09
A30: 11.93512 | B30: ='DF raw data'!A35 -> -1.5495148e-06 | C30: ='DF raw data'!B35 -> -7.7711748e-06 | D30: ='DF raw data'!C35 -> 3.728223e-06 | F30: -1.551547763e-06 | G30: -7.798266357e-06 | H30: 3.733114429e-06 | J30: 1.112964873e-05 | K30: 0.0001231601581 | L30: -1.513708298e-05 | M30: -6.76932878e-05 | N30: 2.209733916e-09
A31: 12.43525 | B31: ='DF raw data'!A36 -> 2.333714e-07 | C31: ='DF raw data'!B36 -> 9.1239878e-07 | D31: ='DF raw data'!C36 -> 3.0750602e-06 | F31: 2.336775833e-07 | G31: 9.155795479e-07 | H31: 3.079094679e-06 | J31: 1.12465179e-05 | K31: 0.0001287848791 | L31: -1.467917418e-05 | M31: -7.503478318e-05 | N31: 2.380759531e-09
A32: 12.93538 | B32: ='DF raw data'!A37 -> 1.368508e-06 | C32: ='DF raw data'!B37 -> -2.2774448e-06 | D32: ='DF raw data'!C37 -> 1.3119793e-06 | F32: 1.370303482e-06 | G32: -2.285384336e-06 | H32: 1.313700617e-06 | J32: 1.193184778e-05 | K32: 0.0001347523542 | L32: -1.582216345e-05 | M32: -8.294792179e-05 | N32: 2.577165507e-09
A33: 13.43551 | B33: ='DF raw data'!A38 -> 4.4065405e-06 | C33: ='DF raw data'!B38 -> -8.5395814e-06 | D33: ='DF raw data'!C38 -> 2.2427926e-06 | F33: 4.412321881e-06 | G33: -8.569351745e-06 | H33: 2.245735144e-06 | J33: 1.413858233e-05 | K33: 0.0001418234833 | L33: -2.010795334e-05 | M33: -9.300451249e-05 | N33: 2.879358705e-09
A34: 13.93564 | B34: ='DF raw data'!A39 -> 4.2814522e-06 | C34: ='DF raw data'!B39 -> 2.7702381e-06 | D34: ='DF raw data'!C39 -> 3.2676694e-06 | F34: 4.287069465e-06 | G34: 2.779895593e-06 | H34: 3.271956582e-06 | J34: 1.628267438e-05 | K34: 0.0001499669373 | L34: -1.871764415e-05 | M34: -0.0001023657679 | N34: 3.187176561e-09
A35: 14.43577 | B35: ='DF raw data'!A40 -> -2.2422173e-08 | C35: ='DF raw data'!B40 -> 1.7635311e-06 | D35: ='DF raw data'!C40 -> 2.8347936e-06 | F35: -2.245159089e-08 | G35: 1.769679051e-06 | H35: 2.838512849e-06 | J35: 1.627144566e-05 | K35: 0.0001581047754 | L35: -1.783257457e-05 | M35: -0.0001112843734 | N35: 3.47863265e-09
A36: 14.9359 | B36: ='DF raw data'!A41 -> 3.6672515e-07 | C36: ='DF raw data'!B41 -> -8.870481e-06 | D36: ='DF raw data'!C41 -> -2.7102172e-07 | F36: 3.672062934e-07 | G36: -8.901404914e-06 | H36: -2.713773005e-07 | J36: 1.645509655e-05 | K36: 0.0001663344628 | L36: -2.228443421e-05 | M36: -0.0001224294875 | N36: 3.862415513e-09
A37: 15.43603 | B37: ='DF raw data'!A42 -> 9.2261473e-08 | C37: ='DF raw data'!B42 -> -1.2363116e-06 | D37: ='DF raw data'!C42 -> 7.1166801e-06 | F37: 9.238252005e-08 | G37: -1.24062158e-06 | H37: 7.126017184e-06 | J37: 1.650129982e-05 | K37: 0.0001745872579 | L37: -2.290490628e-05 | M37: -0.0001338849182 | N37: 4.260982927e-09
A38: 15.93616 | B38: ='DF raw data'!A43 -> -7.6541386e-07 | C38: ='DF raw data'!B43 -> 9.1156353e-06 | D38: ='DF raw data'!C43 -> 9.2520713e-06 | F38: -7.66418083e-07 | G38: 9.147413861e-06 | H38: 9.264210018e-06 | J38: 1.611799114e-05 | K38: 0.0001826483488 | L38: -1.833001019e-05 | M38: -0.0001430523062 | N38: 4.558949834e-09
A39: 16.43629 | B39: ='DF raw data'!A44 -> 1.2234545e-06 | C39: ='DF raw data'!B44 -> -1.4922252e-06 | D39: ='DF raw data'!C44 -> 6.5450517e-06 | F39: 1.225059672e-06 | G39: -1.497427335e-06 | H39: 6.553638808e-06 | J39: 1.673068023e-05 | K39: 0.0001910158639 | L39: -1.907891852e-05 | M39: -0.0001525942458 | N39: 4.88099394e-09
A40: 16.93642 | B40: ='DF raw data'!A45 -> -8.2068203e-07 | C40: ='DF raw data'!B45 -> -3.7435429e-06 | D40: ='DF raw data'!C45 -> 4.8585721e-06 | F40: -8.217587648e-07 | G40: -3.756593489e-06 | H40: 4.864946547e-06 | J40: 1.631969402e-05 | K40: 0.0001991778325 | L40: -2.095770362e-05 | M40: -0.0001630758221 | N40: 5.23386454e-09
A41: 17.43655 | B41: ='DF raw data'!A46 -> -6.7400811e-06 | C41: ='DF raw data'!B46 -> -7.2476059e-06 | D41: ='DF raw data'!C46 -> 1.9151562e-06 | F41: -6.748924086e-06 | G41: -7.272872212e-06 | H41: 1.917668885e-06 | J41: 1.294435462e-05 | K41: 0.0002056516926 | L41: -2.45950852e-05 | M41: -0.000175376562 | N41: 5.620202228e-09
A42: 17.93668 | B42: ='DF raw data'!A47 -> -6.6020416e-06 | C42: ='DF raw data'!B47 -> -7.4991176e-06 | D42: ='DF raw data'!C47 -> -3.5657063e-06 | F42: -6.610703479e-06 | G42: -7.525260722e-06 | H42: -3.570384507e-06 | J42: 9.638143489e-06 | K42: 0.0002104720173 | L42: -2.835869385e-05 | M42: -0.0001895595956 | N42: 6.068873515e-09
A43: 18.43681 | B43: ='DF raw data'!A48 -> -2.2131403e-06 | C43: ='DF raw data'!B48 -> -5.6020499e-06 | D43: ='DF raw data'!C48 -> -6.2827121e-07 | F43: -2.21604394e-06 | G43: -5.621579541e-06 | H43: -6.290955018e-07 | J43: 8.529833433e-06 | K43: 0.0002147380429 | L43: -3.117021442e-05 | M43: -0.0002051487549 | N43: 6.591179442e-09
A44: 18.93694 | B44: ='DF raw data'!A49 -> 2.8135714e-06 | C44: ='DF raw data'!B49 -> -8.4621943e-06 | D44: ='DF raw data'!C49 -> 1.8167852e-06 | F44: 2.817262806e-06 | G44: -8.491694861e-06 | H44: 1.819168822e-06 | J44: 9.93883108e-06 | K44: 0.0002197087505 | L44: -3.541716577e-05 | M44: -0.000222861942 | N44: 7.26793335e-09
A45: 19.43707 | B45: ='DF raw data'!A50 -> -3.0583527e-07 | C45: ='DF raw data'!B50 -> -5.779907e-06 | D45: ='DF raw data'!C50 -> 6.8349664e-07 | F45: -3.062365259e-07 | G45: -5.800056679e-06 | H45: 6.843933876e-07 | J45: 9.785673006e-06 | K45: 0.0002246028591 | L45: -3.831794812e-05 | M45: -0.0002420258974 | N45: 8.050148945e-09
A46: 19.9372 | B46: ='DF raw data'!A51 -> 2.0673056e-06 | C46: ='DF raw data'!B51 -> -7.0333217e-06 | D46: ='DF raw data'!C51 -> -9.1066568e-07 | F46: 2.070017905e-06 | G46: -7.057840983e-06 | H46: -9.118604734e-07 | J46: 1.082095106e-05 | K46: 0.0002300147414 | L46: -4.184778613e-05 | M46: -0.0002629552307 | N46: 8.984556921e-09
A47: 20.43733 | B47: ='DF raw data'!A52 -> 8.2547804e-06 | C47: ='DF raw data'!B52 -> 1.6262338e-06 | D47: ='DF raw data'!C52 -> 3.705391e-06 | F47: 8.265610672e-06 | G47: 1.631903111e-06 | H47: 3.710252473e-06 | J47: 1.495483093e-05 | K47: 0.0002374941009 | L47: -4.103162243e-05 | M47: -0.000283476376 | N47: 9.938425366e-09
A48: 20.93746 | B48: ='DF raw data'!A53 -> 6.1414344e-06 | C48: ='DF raw data'!B53 -> 1.1100046e-06 | D48: ='DF raw data'!C53 -> 1.525616e-06 | F48: 6.149491962e-06 | G48: 1.113874253e-06 | H48: 1.527617608e-06 | J48: 1.803037634e-05 | K48: 0.0002465116331 | L48: -4.04745405e-05 | M48: -0.000303718908 | N48: 1.092032204e-08
A49: 21.43759 | B49: ='DF raw data'!A54 -> -1.3242948e-06 | C49: ='DF raw data'!B54 -> 1.6088879e-06 | D49: ='DF raw data'!C54 -> 4.1070384e-06 | F49: -1.326032275e-06 | G49: 1.61449674e-06 | H49: 4.112426834e-06 | J49: 1.736718782e-05 | K49: 0.0002551974847 | L49: -3.966708224e-05 | M49: -0.0003235576058 | N49: 1.185811412e-08
A50: 21.93772 | B50: ='DF raw data'!A55 -> 3.047922e-07 | C50: ='DF raw data'!B55 -> 7.6727538e-06 | D50: ='DF raw data'!C55 -> -2.7749843e-06 | F50: 3.051920874e-07 | G50: 7.699502246e-06 | H50: -2.778625079e-06 | J50: 1.751982354e-05 | K50: 0.0002639596741 | L50: -3.581633018e-05 | M50: -0.000341470427 | N50: 1.265319765e-08
A51: 22.43785 | B51: ='DF raw data'!A56 -> 7.4240256e-06 | C51: ='DF raw data'!B56 -> 8.4723824e-06 | D51: ='DF raw data'!C56 -> -2.453387e-06 | F51: 7.433765922e-06 | G51: 8.501918479e-06 | H51: -2.456605844e-06 | J51: 2.123767289e-05 | K51: 0.0002745812714 | L51: -3.15642657e-05 | M51: -0.0003572566632 | N51: 1.337705661e-08
A52: 22.93798 | B52: ='DF raw data'!A57 -> 9.1001593e-06 | C52: ='DF raw data'!B57 -> 1.1509986e-05 | D52: ='DF raw data'!C57 -> 4.583439e-06 | F52: 9.112098709e-06 | G52: 1.155011165e-05 | H52: 4.589452472e-06 | J52: 2.579490682e-05 | K52: 0.0002874820781 | L52: -2.578770836e-05 | M52: -0.0003701538698 | N52: 1.404242112e-08
A53: 23.43811 | B53: ='DF raw data'!A58 -> 8.4863304e-06 | C53: ='DF raw data'!B58 -> 1.0435588e-06 | D53: ='DF raw data'!C58 -> 2.4110418e-06 | F53: 8.497464465e-06 | G53: 1.047196813e-06 | H53: 2.414205087e-06 | J53: 3.004474372e-05 | K53: 0.0003025083558 | L53: -2.526397381e-05 | M53: -0.000382789141 | N53: 1.481309894e-08
A54: 23.93824 | B54: ='DF raw data'!A59 -> 1.0063758e-05 | C54: ='DF raw data'!B59 -> 3.1446352e-06 | D54: ='DF raw data'!C59 -> 4.3731347e-06 | F54: 1.007696165e-05 | G54: 3.155597901e-06 | H54: 4.378872253e-06 | J54: 3.508453455e-05 | K54: 0.0003200551841 | L54: -2.368576464e-05 | M54: -0.0003946351025 | N54: 1.57093019e-08
A55: 24.43837 | B55: ='DF raw data'!A60 -> 8.9105915e-06 | C55: ='DF raw data'!B60 -> -2.9958164e-06 | D55: ='DF raw data'!C60 -> 1.1119242e-05 | F55: 8.922282196e-06 | G55: -3.006260295e-06 | H55: 1.113383045e-05 | J55: 3.954683554e-05 | K55: 0.0003398337429 | L55: -2.51892856e-05 | M55: -0.0004072330199 | N55: 1.680881386e-08
A56: 24.9385 | B56: ='DF raw data'!A61 -> 4.8360112e-06 | C56: ='DF raw data'!B61 -> -6.4822366e-08 | D56: ='DF raw data'!C61 -> 1.1572345e-05 | F56: 4.842356047e-06 | G56: -6.504834712e-08 | H56: 1.158752792e-05 | J56: 4.196864307e-05 | K56: 0.0003608235204 | L56: -2.522181823e-05 | M56: -0.0004198472079 | N56: 1.800787909e-08
A57: 25.43863 | B57: ='DF raw data'!A62 -> -1.8398691e-06 | C57: ='DF raw data'!B62 -> -6.196201e-06 | D57: ='DF raw data'!C62 -> 6.2933473e-06 | F57: -1.842283008e-06 | G57: -6.217801947e-06 | H57: 6.301604172e-06 | J57: 4.104726207e-05 | K57: 0.0003813524876 | L57: -2.833152751e-05 | M57: -0.0004340166547 | N57: 1.925197906e-08
A58: 25.93876 | B58: ='DF raw data'!A63 -> -5.7398406e-06 | C58: ='DF raw data'!B63 -> -9.933764e-06 | D58: ='DF raw data'!C63 -> 4.3417172e-06 | F58: -5.747371271e-06 | G58: -9.968394688e-06 | H58: 4.347413533e-06 | J58: 3.817282928e-05 | K58: 0.0004004438647 | L58: -3.331702075e-05 | M58: -0.0004506794963 | N58: 2.053590718e-08
A59: 26.43889 | B59: ='DF raw data'!A64 -> -4.0171121e-06 | C59: ='DF raw data'!B64 -> 5.4921538e-06 | D59: ='DF raw data'!C64 -> -5.3692561e-06 | F59: -4.022382551e-06 | G59: 5.511300326e-06 | H59: -5.376300564e-06 | J59: 3.616111509e-05 | K59: 0.0004185291232 | L59: -3.056065412e-05 | M59: -0.0004659637962 | N59: 2.16569885e-08
A60: 26.93902 | B60: ='DF raw data'!A65 -> -1.0920171e-06 | C60: ='DF raw data'!B65 -> 4.7268159e-06 | D60: ='DF raw data'!C65 -> -9.3385388e-06 | F60: -1.093449826e-06 | G60: 4.743294335e-06 | H60: -9.350790963e-06 | J60: 3.561424803e-05 | K60: 0.0004363408771 | L60: -2.818839032e-05 | M60: -0.0004800616559 | N60: 2.268873669e-08
A61: 27.43915 | B61: ='DF raw data'!A66 -> 3.3382844e-06 | C61: ='DF raw data'!B66 -> -3.3674672e-07 | D61: ='DF raw data'!C66 -> 1.4700422e-06 | F61: 3.342664229e-06 | G61: -3.379206729e-07 | H61: 1.471970895e-06 | J61: 3.728601469e-05 | K61: 0.0004549887316 | L61: -2.835739459e-05 | M61: -0.0004942440396 | N61: 2.378621632e-08
A62: 27.93928 | B62: ='DF raw data'!A67 -> -2.0499988e-06 | C62: ='DF raw data'!B67 -> -5.1897596e-06 | D62: ='DF raw data'!C67 -> 1.1168963e-06 | F62: -2.052688398e-06 | G62: -5.207851931e-06 | H62: 1.118361668e-06 | J62: 3.625940364e-05 | K62: 0.0004731231471 | L62: -3.096199757e-05 | M62: -0.0005097290635 | N62: 2.492320668e-08
A63: 28.43941 | B63: ='DF raw data'!A68 -> -5.3047092e-06 | C63: ='DF raw data'!B68 -> -9.0484727e-06 | D63: ='DF raw data'!C68 -> 2.8964937e-06 | F63: -5.311668978e-06 | G63: -9.080017121e-06 | H63: 2.9002939e-06 | J63: 3.360287864e-05 | K63: 0.0004899289548 | L63: -3.550318654e-05 | M63: -0.0005274852722 | N63: 2.611833219e-08
A64: 28.93954 | B64: ='DF raw data'!A69 -> -5.2177114e-07 | C64: ='DF raw data'!B69 -> -2.5150775e-06 | D64: ='DF raw data'!C69 -> 6.0439711e-06 | F64: -5.224557037e-07 | G64: -2.523845462e-06 | H64: 6.05190079e-06 | J64: 3.334158287e-05 | K64: 0.0005066040807 | L64: -3.676543737e-05 | M64: -0.0005458727704 | N64: 2.735033169e-08
A65: 29.43967 | B65: ='DF raw data'!A70 -> 1.5941937e-06 | C65: ='DF raw data'!B70 -> -4.7363746e-06 | D65: ='DF raw data'!C70 -> 7.503892e-06 | F65: 1.596285282e-06 | G65: -4.752886359e-06 | H65: 7.513737106e-06 | J65: 3.413993303e-05 | K65: 0.0005236784854 | L65: -3.914249842e-05 | M65: -0.0005654491081 | N65: 2.869951749e-08
A66: 29.9398 | B66: ='DF raw data'!A71 -> -3.6117621e-07 | C66: ='DF raw data'!B71 -> -1.4796833e-06 | D66: ='DF raw data'!C71 -> 2.0891971e-06 | F66: -3.616500732e-07 | G66: -1.484841712e-06 | H66: 2.091938127e-06 | J66: 3.395906097e-05 | K66: 0.0005406624305 | L66: -3.988511231e-05 | M66: -0.0005853968493 | N66: 3.007189422e-08
A67: 30.43993 | B67: ='DF raw data'!A72 -> -2.9957132e-06 | C67: ='DF raw data'!B72 -> 8.6705222e-06 | D67: ='DF raw data'!C72 -> -1.7500493e-06 | F67: -2.999643576e-06 | G67: 8.700749026e-06 | H67: -1.752345365e-06 | J67: 3.245884923e-05 | K67: 0.0005568960748 | L67: -3.55336067e-05 | M67: -0.000603168272 | N67: 3.123030238e-08
A68: 30.94006 | B68: ='DF raw data'!A73 -> -7.2019297e-06 | C68: ='DF raw data'!B73 -> 7.4307997e-07 | D68: ='DF raw data'!C73 -> 1.9185468e-06 | F68: -7.211378632e-06 | G68: 7.456704655e-07 | H68: 1.921063933e-06 | J68: 2.885222244e-05 | K68: 0.0005713259368 | L68: -3.516067453e-05 | M68: -0.0006207531802 | N68: 3.22649332e-08
A69: 31.44019 | B69: ='DF raw data'!A74 -> -5.3167146e-06 | C69: ='DF raw data'!B74 -> -2.5015191e-07 | D69: ='DF raw data'!C74 -> 2.5190607e-06 | F69: -5.32369013e-06 | G69: -2.510239795e-07 | H69: 2.522365708e-06 | J69: 2.618968529e-05 | K69: 0.0005844241841 | L69: -3.528621915e-05 | M69: -0.000638400877 | N69: 3.323069267e-08
A70: 31.94032 | B70: ='DF raw data'!A75 -> -7.7640261e-06 | C70: ='DF raw data'!B75 -> 3.536511e-06 | D70: ='DF raw data'!C75 -> -3.863602e-07 | F70: -7.774212502e-06 | G70: 3.548839842e-06 | H70: -3.868671046e-07 | J70: 2.230156839e-05 | K70: 0.0005955778675 | L70: -3.351133788e-05 | M70: -0.0006551609024 | N70: 3.404108818e-08
A71: 32.44045 | B71: ='DF raw data'!A76 -> -7.528402e-06 | C71: ='DF raw data'!B76 -> 4.5113293e-06 | D71: ='DF raw data'!C76 -> -7.3634797e-06 | F71: -7.538279263e-06 | G71: =(1-$G$1*($B$2-$G$2))*C71*$M$2/$M$1 -> 4.527056515e-06 | H71: -7.373140585e-06 | J71: 1.853144879e-05 | K71: 0.000604846001 | L71: -3.124722111e-05 | M71: -0.0006707885751 | N71: 3.470116146e-08
A72: =A71+$B$1 -> 32.94058 | B72: ='DF raw data'!A77 -> -8.9349982e-07 | C72: ='DF raw data'!B77 -> -5.422723e-06 | D72: ='DF raw data'!C77 -> -6.6948774e-06 | F72: -8.946720918e-07 | G72: -5.441627479e-06 | H72: -6.703661079e-06 | J72: =F72*$B$1+J71 -> 1.808399643e-05 | K72: =J72*$B$1+K71 -> 0.0006138903501 | L72: =G72*$B$1+L71 -> -3.396874226e-05 | M72: =L72*$B$1+M71 -> -0.0006877773621 | N72: =(J72^2+L72^2)*$B$1+N71 -> 3.544180717e-08
A73: 33.44071 | B73: ='DF raw data'!A78 -> -4.5964966e-06 | C73: ='DF raw data'!B78 -> -3.1100308e-06 | D73: ='DF raw data'!C78 -> -4.9063742e-06 | F73: -4.602527204e-06 | G73: -3.120872864e-06 | H73: -4.912811363e-06 | J73: 1.57821345e-05 | K73: 0.0006217834691 | L73: -3.55295844e-05 | M73: -0.0007055467732 | N73: 3.619771722e-08
A74: 33.94084 | B74: ='DF raw data'!A79 -> -1.104362e-05 | C74: ='DF raw data'!B79 -> 7.5146427e-06 | D74: ='DF raw data'!C79 -> 9.3503765e-08 | F74: -1.105810923e-05 | G74: 7.540839945e-06 | H74: 9.362644194e-08 | J74: 1.025164233e-05 | K74: 0.0006269106229 | L74: -3.175818412e-05 | M74: -0.0007214299938 | N74: 3.675470121e-08
A75: 34.44097 | B75: ='DF raw data'!A80 -> -4.4118037e-06 | C75: ='DF raw data'!B80 -> -6.4655896e-06 | D75: ='DF raw data'!C80 -> 1.8276992e-06 | F75: =(1-$G$1*($B$2-$G$2))*B75 -> -4.417591986e-06 | G75: -6.488129678e-06 | H75: =(1-$G$1*($B$2-$G$2))*D75 -> 1.830097141e-06 | J75: 8.042272054e-06 | K75: 0.0006309328045 | L75: -3.500309242e-05 | M75: -0.0007389360904 | N75: 3.739981621e-08
A76: 34.9411 | B76: ='DF raw data'!A81 -> 2.7420779e-06 | C76: ='DF raw data'!B81 -> -5.2747519e-06 | D76: ='DF raw data'!C81 -> -1.8309903e-07 | F76: 2.745675506e-06 | G76: -5.293140528e-06 | H76: -1.833392559e-07 | J76: 9.415466745e-06 | K76: 0.0006356417618 | L76: -3.765035079e-05 | M76: -0.0007577661604 | N76: 3.815311198e-08
A77: 35.44123 | B77: ='DF raw data'!A82 -> 6.1563566e-07 | C77: ='DF raw data'!B82 -> -2.8286313e-06 | D77: ='DF raw data'!C82 -> -4.0132213e-06 | F77: 6.16443374e-07 | G77: -2.838492361e-06 | H77: -4.018486646e-06 | J77: 9.723768569e-06 | K77: 0.0006405049102 | L77: -3.906996597e-05 | M77: -0.0007773062224 | N77: 3.896382967e-08
A78: 35.94136 | B78: ='DF raw data'!A83 -> -1.2012147e-06 | C78: ='DF raw data'!B83 -> 2.8515848e-07 | D78: ='DF raw data'!C83 -> -4.3302202e-06 | F78: -1.202790694e-06 | G78: 2.86152588e-07 | H78: -4.335901449e-06 | J78: 9.12221686e-06 | K78: 0.0006450672045 | L78: -3.892685248e-05 | M78: -0.0007967747092 | N78: 3.976329482e-08
A79: 36.44149 | B79: ='DF raw data'!A84 -> 1.2875994e-06 | C79: ='DF raw data'!B84 -> -1.0432423e-06 | D79: ='DF raw data'!C84 -> -3.2981548e-06 | F79: 1.28928873e-06 | G79: -1.046879209e-06 | H79: -3.302481979e-06 | J79: 9.767028832e-06 | K79: 0.0006499519887 | L79: -3.945042818e-05 | M79: -0.0008165050518 | N79: 4.058937511e-08
A80: 36.94162 | B80: ='DF raw data'!A85 -> 2.72025e-06 | C80: ='DF raw data'!B85 -> -1.022143e-05 | D80: ='DF raw data'!C85 -> -6.2681602e-07 | F80: 2.723818968e-06 | G80: -1.025706354e-05 | H80: -6.276384026e-07 | J80: 1.112929241e-05 | K80: 0.0006555180817 | L80: -4.458029337e-05 | M80: -0.0008388009939 | N80: 4.164528143e-08
A81: 37.44175 | B81: ='DF raw data'!A86 -> 4.4311769e-06 | C81: ='DF raw data'!B86 -> -3.693544e-08 | D81: ='DF raw data'!C86 -> -1.0944855e-06 | F81: 4.436990604e-06 | G81: -3.706420284e-08 | H81: -1.095921465e-06 | J81: 1.334836452e-05 | K81: 0.0006621939992 | L81: -4.459883029e-05 | M81: -0.0008611062069 | N81: 4.272918042e-08
A82: 37.94188 | B82: ='DF raw data'!A87 -> 5.1102129e-06 | C82: ='DF raw data'!B87 -> 7.7924378e-06 | D82: ='DF raw data'!C87 -> -4.7006538e-06 | F82: 5.116917499e-06 | G82: 7.819603483e-06 | H82: -4.706821058e-06 | J82: 1.590748847e-05 | K82: 0.0006701498114 | L82: -4.0688012e-05 | M82: -0.0008814555024 | N82: 4.368370979e-08
A83: 38.44201 | B83: ='DF raw data'!A88 -> 4.430231e-06 | C83: ='DF raw data'!B88 -> 1.161606e-05 | D83: ='DF raw data'!C88 -> -2.453256e-06 | F83: 4.436043463e-06 | G83: 1.165655544e-05 | H83: -2.456474672e-06 | J83: 1.812608689e-05 | K83: 0.0006792152113 | L83: -3.485821892e-05 | M83: -0.0008988891434 | N83: 4.445573569e-08
A84: 38.94214 | B84: ='DF raw data'!A89 -> 6.6102308e-07 | C84: ='DF raw data'!B89 -> -2.9493831e-06 | D84: ='DF raw data'!C89 -> 2.5989036e-07 | F84: 6.618903423e-07 | G84: -2.959665121e-06 | H84: 2.602313362e-07 | J84: 1.845711811e-05 | K84: 0.0006884461698 | L84: -3.633843624e-05 | M84: -0.0009170630855 | N84: 4.528652522e-08
A85: 39.44227 | B85: ='DF raw data'!A90 -> -3.5941171e-06 | C85: ='DF raw data'!B90 -> -7.458338e-07 | D85: ='DF raw data'!C90 -> -3.5888729e-06 | F85: -3.598832582e-06 | G85: -7.484338958e-07 | H85: -3.593581501e-06 | J85: 1.665723397e-05 | K85: 0.0006967769522 | L85: -3.671275048e-05 | M85: -0.0009354242334 | N85: 4.609938125e-08
A86: 39.9424 | B86: ='DF raw data'!A91 -> 5.339412e-07 | C86: ='DF raw data'!B91 -> -4.3208811e-06 | D86: ='DF raw data'!C91 -> -7.244023e-06 | F86: 5.346417309e-07 | G86: -4.335944382e-06 | H86: -7.253527158e-06 | J86: 1.692462434e-05 | K86: 0.0007052414645 | L86: -3.888128635e-05 | M86: -0.0009548699312 | N86: 4.699871368e-08
A87: 40.44253 | B87: ='DF raw data'!A92 -> 3.4744386e-07 | C87: ='DF raw data'!B92 -> -8.3731984e-06 | D87: ='DF raw data'!C92 -> -6.6588759e-06 | F87: 3.478997063e-07 | G87: -8.402388707e-06 | H87: -6.667612345e-06 | J87: 1.709861942e-05 | K87: 0.0007137929971 | L87: -4.308357301e-05 | M87: -0.0009764173185 | N87: 4.807327152e-08
A88: 40.94266 | B88: ='DF raw data'!A93 -> -1.5858946e-06 | C88: ='DF raw data'!B93 -> 1.9070985e-06 | D88: ='DF raw data'!C93 -> -5.2323517e-06 | F88: -1.587975294e-06 | G88: 1.91374695e-06 | H88: -5.239216545e-06 | J88: 1.630442533e-05 | K88: 0.0007219473293 | L88: -4.212645075e-05 | M88: -0.0009974860203 | N88: 4.909377285e-08
A89: 41.44279 | B89: ='DF raw data'!A94 -> -1.0479539e-06 | C89: ='DF raw data'!B94 -> -6.0231459e-06 | D89: ='DF raw data'!C94 -> -8.5635911e-06 | F89: -1.049328816e-06 | G89: -6.044143549e-06 | H89: -8.574826532e-06 | J89: 1.577962451e-05 | K89: 0.0007298391929 | L89: -4.514930826e-05 | M89: -0.001020066544 | N89: 5.023779851e-08
A90: 41.94292 | B90: ='DF raw data'!A95 -> -2.9204798e-06 | C90: ='DF raw data'!B95 -> 3.2184207e-06 | D90: ='DF raw data'!C95 -> -5.4105835e-06 | F90: -2.924311469e-06 | G90: 3.229640629e-06 | H90: -5.417682186e-06 | J90: 1.431708862e-05 | K90: 0.0007369995985 | L90: -4.353406809e-05 | M90: -0.001041839237 | N90: 5.128816859e-08
A91: 42.44305 | B91: ='DF raw data'!A96 -> -6.5003237e-06 | C91: ='DF raw data'!B96 -> 1.6299355e-05 | D91: ='DF raw data'!C96 -> 1.7796488e-06 | F91: -6.508852125e-06 | G91: 1.635617716e-05 | H91: 1.781983699e-06 | J91: 1.10618164e-05 | K91: 0.0007425319447 | L91: -3.535385321e-05 | M91: -0.00105952076 | N91: 5.197447635e-08
A92: 42.94318 | B92: ='DF raw data'!A97 -> -2.6698376e-06 | C92: ='DF raw data'!B97 -> 1.2079408e-06 | D92: ='DF raw data'!C97 -> 1.8597134e-06 | F92: -2.673340427e-06 | G92: 1.212151875e-06 | H92: 1.862153344e-06 | J92: 9.724798656e-06 | K92: 0.0007473956082 | L92: -3.47476197e-05 | M92: -0.001076899087 | N92: 5.262562999e-08
A93: 43.44331 | B93: ='DF raw data'!A98 -> 3.3949495e-06 | C93: ='DF raw data'!B98 -> 1.433832e-06 | D93: ='DF raw data'!C98 -> 1.4028818e-07 | F93: 3.399403674e-06 | G93: 1.438830567e-06 | H93: 1.404722381e-07 | J93: 1.142494242e-05 | K93: 0.0007531095647 | L93: -3.402801737e-05 | M93: -0.001093917519 | N93: 5.327001513e-08
A94: 43.94344 | B94: ='DF raw data'!A99 -> -6.491295e-07 | C94: ='DF raw data'!B99 -> 1.2684812e-05 | D94: ='DF raw data'!C99 -> 9.0227013e-07 | F94: -6.499811579e-07 | G94: 1.272903328e-05 | H94: 9.034539084e-07 | J94: 1.109986734e-05 | K94: 0.0007586609413 | L94: -2.766184595e-05 | M94: -0.001107752038 | N94: 5.371432301e-08
A95: 44.44357 | B95: ='DF raw data'!A100 -> -5.749052e-06 | C95: ='DF raw data'!B100 -> 1.0466185e-05 | D95: ='DF raw data'!C100 -> -2.3175594e-06 | F95: -5.756594756e-06 | G95: 1.050267179e-05 | H95: -2.320600038e-06 | J95: 8.220821604e-06 | K95: 0.0007627724209 | L95: -2.240914471e-05 | M95: -0.001118959524 | N95: 5.399927291e-08
A96: 44.9437 | B96: ='DF raw data'!A101 -> -5.806663e-06 | C96: ='DF raw data'!B101 -> 7.6807592e-06 | D96: ='DF raw data'!C101 -> -4.3735413e-06 | F96: -5.814281342e-06 | G96: 7.707535554e-06 | H96: -4.379279386e-06 | J96: 5.312925076e-06 | K96: 0.0007654295741 | L96: -1.855437495e-05 | M96: -0.001128239123 | N96: 5.418556734e-08
A97: 45.44383 | B97: ='DF raw data'!A102 -> -6.9313951e-06 | C97: ='DF raw data'!B102 -> 3.7672062e-06 | D97: ='DF raw data'!C102 -> -8.5661986e-07 | F97: -6.94048909e-06 | G97: 3.780339283e-06 | H97: -8.577437453e-07 | J97: 1.841778268e-06 | K97: 0.0007663507026 | L97: -1.666371386e-05 | M97: -0.001136573147 | N97: 5.432613963e-08
A98: 45.94396 | B98: ='DF raw data'!A103 -> -9.7042912e-06 | C98: ='DF raw data'!B103 -> 3.3086171e-06 | D98: ='DF raw data'!C103 -> 5.6166832e-06 | F98: -9.71702323e-06 | G98: 3.320151468e-06 | H98: 5.624052288e-06 | J98: -3.017996561e-06 | K98: 0.000764841312 | L98: -1.500320651e-05 | M98: -0.0011440767 | N98: 5.444327233e-08
A99: 46.44409 | B99: ='DF raw data'!A104 -> -6.946078e-06 | C99: ='DF raw data'!B104 -> -5.1552024e-06 | D99: ='DF raw data'!C104 -> 8.9068681e-07 | F99: -6.955191254e-06 | G99: -5.173174259e-06 | H99: 8.918553911e-07 | J99: -6.496496363e-06 | K99: 0.0007615922193 | L99: -1.759046615e-05 | M99: -0.00115287422 | N99: 5.461913252e-08
A100: 46.94422 | B100: ='DF raw data'!A105 -> 1.7191364e-06 | C100: ='DF raw data'!B105 -> -5.8438191e-06 | D100: ='DF raw data'!C105 -> -5.0314916e-06 | F100: 1.721391907e-06 | G100: -5.864191587e-06 | H100: -5.038092917e-06 | J100: -5.635576628e-06 | K100: 0.0007587736984 | L100: -2.052332429e-05 | M100: -0.00116313855 | N100: 5.484567469e-08
A101: 47.44435 | B101: ='DF raw data'!A106 -> 1.1920859e-05 | C101: ='DF raw data'!B106 -> -1.2535726e-05 | D101: ='DF raw data'!C106 -> -7.8342928e-06 | F101: 1.193649917e-05 | G101: -1.257942754e-05 | H101: -7.844571392e-06 | J101: 3.342247002e-07 | K101: 0.0007589408542 | L101: -2.681467339e-05 | M101: -0.001176549373 | N101: 5.520533739e-08
A102: 47.94448 | B102: ='DF raw data'!A107 -> 1.3584856e-05 | C102: ='DF raw data'!B107 -> -2.144151e-06 | D102: ='DF raw data'!C107 -> -2.3309908e-06 | F102: 1.360267933e-05 | G102: -2.151625853e-06 | H102: -2.33404906e-06 | J102: 7.137332714e-06 | K102: 0.0007625104484 | L102: -2.789076603e-05 | M102: -0.001190498382 | N102: 5.561986331e-08
A103: 48.44461 | B103: ='DF raw data'!A108 -> 7.0359406e-06 | C103: ='DF raw data'!B108 -> 9.8610926e-06 | D103: ='DF raw data'!C108 -> 3.5535854e-06 | F103: 7.045171754e-06 | G103: 9.895469944e-06 | H103: 3.558247704e-06 | J103: 1.066083446e-05 | K103: 0.0007678422515 | L103: -2.294174464e-05 | M103: -0.001201972237 | N103: 5.593993503e-08
A104: 48.94474 | B104: ='DF raw data'!A109 -> -2.0339771e-06 | C104: ='DF raw data'!B109 -> 1.1166678e-05 | D104: ='DF raw data'!C109 -> 7.5944308e-07 | F104: -2.036645678e-06 | G104: 1.120560682e-05 | H104: 7.604394693e-07 | J104: 9.642246861e-06 | K104: 0.0007726646284 | L104: -1.73374845e-05 | M104: -0.001210643233 | N104: 5.613676684e-08
A105: 49.44487 | B105: ='DF raw data'!A110 -> -6.668864e-06 | C105: ='DF raw data'!B110 -> 1.8682704e-06 | D105: ='DF raw data'!C110 -> -8.1655844e-07 | F105: -6.67761355e-06 | G105: 1.874783489e-06 | H105: -8.176297647e-07 | J105: 6.302571996e-06 | K105: 0.0007758167338 | L105: -1.639984904e-05 | M105: -0.001218845289 | N105: 5.62911457e-08
A106: 49.945 | B106: ='DF raw data'!A111 -> -5.1343645e-06 | C106: ='DF raw data'!B111 -> -6.3847338e-06 | D106: ='DF raw data'!C111 -> 2.3464895e-06 | F106: -5.141100786e-06 | G106: -6.406992002e-06 | H106: 2.349568094e-06 | J106: 3.73135326e-06 | K106: 0.0007776828955 | L106: -1.960417795e-05 | M106: -0.001228649927 | N106: 5.649032086e-08
A107: 50.44513 | B107: ='DF raw data'!A112 -> -8.3102844e-07 | C107: ='DF raw data'!B112 -> -8.4016659e-07 | D107: ='DF raw data'!C112 -> 3.2062312e-06 | F107: -8.321187493e-07 | G107: -8.43095545e-07 | H107: 3.210437775e-06 | J107: 3.31518571e-06 | K107: 0.0007793409193 | L107: -2.002583532e-05 | M107: -0.001238665448 | N107: 5.669638669e-08
A108: 50.94526 | B108: ='DF raw data'!A113 -> 5.2015262e-06 | C108: ='DF raw data'!B113 -> -2.9852754e-06 | D108: ='DF raw data'!C113 -> -1.8466885e-06 | F108: 5.208350602e-06 | G108: -2.995682547e-06 | H108: -1.849111355e-06 | J108: 5.920038096e-06 | K108: 0.0007823017079 | L108: -2.152406603e-05 | M108: -0.001249430279 | N108: 5.694561761e-08
A109: 51.44539 | B109: ='DF raw data'!A114 -> 7.5420271e-06 | C109: ='DF raw data'!B114 -> 9.4259867e-06 | D109: ='DF raw data'!C114 -> -2.5096883e-06 | F109: 7.55192224e-06 | G109: 9.458847196e-06 | H109: -2.512981011e-06 | J109: 9.696980966e-06 | K109: 0.000787151459 | L109: -1.679341279e-05 | M109: -0.001257829168 | N109: 5.713369158e-08
A110: 51.94552 | B110: ='DF raw data'!A115 -> 6.1461637e-06 | C110: ='DF raw data'!B115 -> 9.8831079e-06 | D110: ='DF raw data'!C115 -> -5.6305503e-06 | F110: 6.154227467e-06 | G110: 9.917561993e-06 | H110: -5.637937582e-06 | J110: 1.277489475e-05 | K110: 0.0007935405671 | L110: -1.183334251e-05 | M110: -0.001263747378 | N110: 5.728534396e-08
A111: 52.44565 | B111: ='DF raw data'!A116 -> -1.8054975e-06 | C111: ='DF raw data'!B116 -> 4.1967096e-06 | D111: ='DF raw data'!C116 -> -4.5620177e-06 | F111: -1.807866313e-06 | G111: 4.21134e-06 | H111: -4.568003067e-06 | J111: 1.187072657e-05 | K111: 0.0007994774736 | L111: -9.727125032e-06 | M111: -0.001268612205 | N111: 5.740314013e-08
A112: 52.94578 | B112: ='DF raw data'!A117 -> -1.007129e-05 | C112: ='DF raw data'!B117 -> 8.5104093e-06 | D112: ='DF raw data'!C117 -> 5.5917267e-06 | F112: -1.008450353e-05 | G112: 8.540077946e-06 | H112: 5.599063045e-06 | J112: 6.827163818e-06 | K112: 0.0008028919431 | L112: -5.455975849e-06 | M112: -0.001271340902 | N112: 5.744133898e-08
A113: 53.44591 | B113: ='DF raw data'!A118 -> -8.9928189e-06 | C113: ='DF raw data'!B118 -> 4.5054594e-06 | D113: ='DF raw data'!C118 -> 6.6479483e-06 | F113: -9.004617478e-06 | G113: 4.521166151e-06 | H113: 6.656670408e-06 | J113: 2.323684479e-06 | K113: 0.0008040540874 | L113: -3.194805022e-06 | M113: -0.00127293872 | N113: 5.744914416e-08
A114: 53.94604 | B114: ='DF raw data'!A119 -> -2.8922491e-06 | C114: ='DF raw data'!B119 -> -1.0259992e-05 | D114: ='DF raw data'!C119 -> -1.348591e-06 | F114: -2.896043731e-06 | G114: -1.029575997e-05 | H114: -1.350360351e-06 | J114: 8.752861278e-07 | K114: 0.0008044918442 | L114: -8.344023456e-06 | M114: -0.001277111816 | N114: 5.748434773e-08
A115: 54.44617 | B115: ='DF raw data'!A120 -> -1.431295e-06 | C115: ='DF raw data'!B120 -> -4.1867037e-07 | D115: ='DF raw data'!C120 -> -2.5345139e-06 | F115: -1.433172859e-06 | G115: -4.201299218e-07 | H115: -2.537839182e-06 | J115: 1.585133858e-07 | K115: 0.0008045711215 | L115: -8.554143034e-06 | M115: -0.00128139 | N115: 5.752095649e-08
A116: 54.9463 | B116: ='DF raw data'!A121 -> -3.878738e-06 | C116: ='DF raw data'!B121 -> 1.1885583e-05 | D116: ='DF raw data'!C121 -> -1.3706954e-06 | F116: -3.883826904e-06 | G116: 1.192701804e-05 | H116: -1.372493752e-06 | J116: -1.783904964e-06 | K116: 0.0008036789371 | L116: -2.589083501e-06 | M116: -0.001282684878 | N116: 5.752590061e-08
A117: 55.44643 | B117: ='DF raw data'!A122 -> -2.8492627e-06 | C117: ='DF raw data'!B122 -> 1.5315729e-05 | D117: ='DF raw data'!C122 -> -5.987145e-06 | F117: -2.853000933e-06 | G117: 1.536912208e-05 | H117: -5.995000134e-06 | J117: -3.21077632e-06 | K117: 0.0008020731316 | L117: 5.097475524e-06 | M117: -0.001280135478 | N117: 5.7544052e-08
A118: 55.94656 | B118: ='DF raw data'!A123 -> 4.2391353e-06 | C118: ='DF raw data'!B123 -> 1.6700436e-05 | D118: ='DF raw data'!C123 -> -7.3980259e-06 | F118: 4.244697046e-06 | G118: 1.675865639e-05 | H118: -7.40773211e-06 | J118: -1.087875987e-06 | K118: 0.0008015290522 | L118: 1.347898234e-05 | M118: -0.001273394234 | N118: 5.7635509e-08
A119: 56.44669 | B119: ='DF raw data'!A124 -> 1.00153e-05 | C119: ='DF raw data'!B124 -> -3.8808384e-06 | D119: ='DF raw data'!C124 -> -4.1520466e-06 | F119: 1.002844007e-05 | G119: -3.894367623e-06 | H119: -4.157494085e-06 | J119: 3.927647747e-06 | K119: 0.0008034933866 | L119: 1.153129226e-05 | M119: -0.001267627089 | N119: 5.770972685e-08
A120: 56.94682 | B120: ='DF raw data'!A125 -> 8.5187085e-06 | C120: ='DF raw data'!B125 -> -7.3428737e-06 | D120: ='DF raw data'!C125 -> 1.3947651e-06 | F120: 8.529885046e-06 | G120: -7.368472131e-06 | H120: 1.396595032e-06 | J120: 8.193699155e-06 | K120: 0.0008075913014 | L120: 7.846098297e-06 | M120: -0.00126370302 | N120: 5.777409256e-08
A121: 57.44695 | B121: ='DF raw data'!A126 -> 5.7158927e-06 | C121: ='DF raw data'!B126 -> -8.3187597e-06 | D121: ='DF raw data'!C126 -> -6.2042773e-07 | F121: 5.723391951e-06 | G121: -8.347760225e-06 | H121: -6.212417312e-07 | J121: 1.105613917e-05 | K121: 0.0008131208083 | L121: 3.671132976e-06 | M121: -0.001261866976 | N121: 5.784196792e-08
A122: 57.94708 | B122: ='DF raw data'!A127 -> 4.1978224e-06 | C122: ='DF raw data'!B127 -> -6.4538481e-06 | D122: ='DF raw data'!C127 -> -1.7014604e-06 | F122: 4.203329943e-06 | G122: -6.476347246e-06 | H122: -1.703692716e-06 | J122: 1.315835058e-05 | K122: 0.0008197016942 | L122: 4.321174281e-07 | M122: -0.001261650862 | N122: 5.792865491e-08
A123: 58.44721 | B123: ='DF raw data'!A128 -> 3.2384874e-06 | C123: ='DF raw data'!B128 -> -2.8016793e-06 | D123: ='DF raw data'!C128 -> 4.7618746e-06 | F123: 3.242736295e-06 | G123: -2.811446402e-06 | H123: 4.768122179e-06 | J123: 1.478014028e-05 | K123: 0.0008270936857 | L123: -9.739712608e-07 | M123: -0.001262137974 | N123: 5.803838401e-08
A124: 58.94734 | B124: ='DF raw data'!A129 -> 6.6362787e-07 | C124: ='DF raw data'!B129 -> -6.4852038e-06 | D124: ='DF raw data'!C129 -> -4.0142836e-06 | F124: 6.644985498e-07 | G124: -6.507812257e-06 | H124: -4.01955034e-06 | J124: 1.511247594e-05 | K124: 0.0008346518883 | L124: -4.228723405e-06 | M124: -0.001264252885 | N124: 5.816155054e-08
A125: 59.44747 | B125: ='DF raw data'!A130 -> -6.1315717e-07 | C125: ='DF raw data'!B130 -> -8.5335787e-06 | D125: ='DF raw data'!C130 -> -9.9227545e-06 | F125: -6.139616322e-07 | G125: -8.563328119e-06 | H125: -9.935773154e-06 | J125: 1.480541531e-05 | K125: 0.0008420565207 | L125: -8.511500697e-06 | M125: -0.001268509742 | N125: 5.830741144e-08
A126: 59.9476 | B126: ='DF raw data'!A131 -> 4.6466592e-08 | C126: ='DF raw data'!B131 -> 4.5063925e-06 | D126: ='DF raw data'!C131 -> -6.5991112e-06 | F126: 4.652755617e-08 | G126: 4.522102504e-06 | H126: -6.607769234e-06 | J126: 1.482868513e-05 | K126: 0.000849472791 | L126: -6.249861571e-06 | M126: -0.001271635485 | N126: 5.843692044e-08
A127: 60.44773 | B127: ='DF raw data'!A132 -> -4.9424539e-06 | C127: ='DF raw data'!B132 -> 4.5248062e-06 | D127: ='DF raw data'!C132 -> -9.4685165e-06 | F127: -4.9489384e-06 | G127: 4.540580397e-06 | H127: -9.480939194e-06 | J127: 1.235357257e-05 | K127: 0.0008556511832 | L127: -3.978981097e-06 | M127: -0.001273625493 | N127: 5.852116386e-08
A128: 60.94786 | B128: ='DF raw data'!A133 -> -8.9846699e-06 | C128: ='DF raw data'!B133 -> 2.8739114e-06 | D128: ='DF raw data'!C133 -> -9.2908958e-06 | F128: -8.996457787e-06 | G128: 2.883930314e-06 | H128: -9.303085455e-06 | J128: 7.85417414e-06 | K128: 0.0008595792913 | L128: -2.536641029e-06 | M128: -0.001274894143 | N128: 5.855523402e-08
A129: 61.44799 | B129: ='DF raw data'!A134 -> -9.0567601e-06 | C129: ='DF raw data'!B134 -> 1.7361259e-07 | D129: ='DF raw data'!C134 -> -4.9700679e-06 | F129: -9.068642569e-06 | G129: 1.742178312e-07 | H129: -4.976588629e-06 | J129: 3.318673932e-06 | K129: 0.0008612390597 | L129: -2.449509465e-06 | M129: -0.001276119217 | N129: 5.856374307e-08
A130: 61.94812 | B130: ='DF raw data'!A135 -> -5.6656258e-06 | C130: ='DF raw data'!B135 -> 7.3794808e-06 | D130: ='DF raw data'!C135 -> -4.0592054e-06 | F130: -5.673059101e-06 | G130: 7.405206849e-06 | H130: -4.064531077e-06 | J130: 4.814068835e-07 | K130: 0.0008614798257 | L130: 1.254056636e-06 | M130: -0.001275492025 | N130: 5.856464551e-08
A131: 62.44825 | B131: ='DF raw data'!A136 -> -6.3478633e-06 | C131: ='DF raw data'!B136 -> 1.1063553e-07 | D131: ='DF raw data'!C136 -> -3.582019e-06 | F131: -6.356191697e-06 | G131: 1.110212231e-07 | H131: -3.586718609e-06 | J131: -2.69751527e-06 | K131: 0.0008601307174 | L131: 1.309581681e-06 | M131: -0.001274837064 | N131: 5.856914248e-08
A132: 62.94838 | B132: ='DF raw data'!A137 -> -3.2750518e-06 | C132: ='DF raw data'!B137 -> 2.4912433e-06 | D132: ='DF raw data'!C137 -> -2.2194504e-06 | F132: -3.279348668e-06 | G132: 2.499928172e-06 | H132: -2.222362319e-06 | J132: -4.337615919e-06 | K132: 0.0008579613456 | L132: 2.559870757e-06 | M132: -0.001273556796 | N132: 5.85818297e-08
A133: 63.44851 | B133: ='DF raw data'!A138 -> 6.540055e-06 | C133: ='DF raw data'!B138 -> 6.1228629e-06 | D133: ='DF raw data'!C138 -> -5.0092708e-06 | F133: 6.548635552e-06 | G133: 6.144208178e-06 | H133: -5.015842963e-06 | J133: -1.06244682e-06 | K133: 0.000857429984 | L133: 5.632773594e-06 | M133: -0.001270739677 | N133: 5.859826244e-08
A134: 63.94864 | B134: ='DF raw data'!A139 -> 5.3886201e-06 | C134: ='DF raw data'!B139 -> 1.2425163e-05 | D134: ='DF raw data'!C139 -> -1.1512202e-05 | F134: 5.39568997e-06 | G134: 1.24684791e-05 | H134: -1.152730601e-05 | J134: 1.636099604e-06 | K134: 0.0008582482465 | L134: 1.186863405e-05 | M134: -0.001264803817 | N134: 5.867005175e-08
A135: 64.44877 | B135: ='DF raw data'!A140 -> 1.2741243e-06 | C135: ='DF raw data'!B140 -> 3.6601987e-06 | D135: ='DF raw data'!C140 -> -1.0441938e-05 | F135: 1.275795951e-06 | G135: =(1-$G$1*($B$2-$G$2))*C135*$M$2/$M$1 -> 3.672958737e-06 | H135: -1.045563782e-05 | J135: 2.274163433e-06 | K135: 0.0008593856239 | L135: 1.37055909e-05 | M135: -0.00125794924 | N135: 5.876658436e-08
A136: =A135+$B$1 -> 64.9489 | B136: ='DF raw data'!A141 -> 3.3595156e-06 | C136: ='DF raw data'!B141 -> -5.1822872e-06 | D136: ='DF raw data'!C141 -> -2.1984229e-06 | F136: 3.363923284e-06 | G136: -5.200353481e-06 | H136: -2.201307231e-06 | J136: =F136*$B$1+J135 -> 3.956562385e-06 | K136: =J136*$B$1+K135 -> 0.0008613644194 | L136: =G136*$B$1+L135 -> 1.110473811e-05 | M136: =L136*$B$1+M135 -> -0.001252395427 | N136: =(J136^2+L136^2)*$B$1+N135 -> 5.883608722e-08
A137: 65.44903 | B137: ='DF raw data'!A142 -> 4.9828545e-06 | C137: ='DF raw data'!B142 -> 4.4552899e-06 | D137: ='DF raw data'!C142 -> -1.5573091e-06 | F137: 4.989392005e-06 | G137: 4.470821752e-06 | H137: -1.55935229e-06 | J137: 6.451907009e-06 | K137: 0.0008645912117 | L137: 1.33407302e-05 | M137: -0.001245723328 | N137: 5.894591687e-08
A138: 65.94916 | B138: ='DF raw data'!A143 -> 7.8583571e-06 | C138: ='DF raw data'!B143 -> 1.0236277e-07 | D138: ='DF raw data'!C143 -> -8.0786049e-06 | F138: 7.868667265e-06 | G138: 1.02719623e-07 | H138: -8.08920403e-06 | J138: 1.038726357e-05 | K138: 0.0008697861938 | L138: 1.339210336e-05 | M138: -0.001239025535 | N138: 5.908957605e-08
A139: 66.44929 | B139: ='DF raw data'!A144 -> 4.6619266e-06 | C139: ='DF raw data'!B144 -> -4.3200807e-06 | D139: ='DF raw data'!C144 -> -8.0520476e-06 | F139: =(1-$G$1*($B$2-$G$2))*B139 -> 4.668043048e-06 | G139: -4.335141191e-06 | H139: =(1-$G$1*($B$2-$G$2))*D139 -> -8.062611886e-06 | J139: 1.272189194e-05 | K139: 0.0008761487936 | L139: 1.12239692e-05 | M139: -0.001233412091 | N139: 5.923352547e-08
A140: 66.94942 | B140: ='DF raw data'!A145 -> -2.2019208e-06 | C140: ='DF raw data'!B145 -> 2.6581171e-07 | D140: ='DF raw data'!C145 -> 2.1265955e-06 | F140: -2.20480972e-06 | G140: 2.667383721e-07 | H140: 2.129385593e-06 | J140: 1.161920045e-05 | K140: 0.0008819599044 | L140: 1.135737306e-05 | M140: -0.001227731928 | N140: 5.936555766e-08
A141: 67.44955 | B141: ='DF raw data'!A146 -> 1.1133839e-06 | C141: ='DF raw data'!B146 -> 5.2074201e-06 | D141: ='DF raw data'!C146 -> 4.9466839e-06 | F141: 1.11484466e-06 | G141: 5.225573998e-06 | H141: 4.953173949e-06 | J141: 1.217676771e-05 | K141: 0.0008880498712 | L141: 1.397083938e-05 | M141: -0.001220744692 | N141: 5.953733133e-08
A142: 67.94968 | B142: ='DF raw data'!A147 -> 3.4847349e-06 | C142: ='DF raw data'!B147 -> -3.3099031e-06 | D142: ='DF raw data'!C147 -> -1.5571782e-06 | F142: 3.489306872e-06 | G142: -3.321441951e-06 | H142: -1.559221218e-06 | J142: 1.392187476e-05 | K142: 0.0008950126184 | L142: 1.230968662e-05 | M142: -0.001214588249 | N142: 5.971004971e-08
A143: 68.44981 | B143: ='DF raw data'!A148 -> -1.3154909e-06 | C143: ='DF raw data'!B148 -> 1.9046975e-06 | D143: ='DF raw data'!C148 -> -4.4176045e-06 | F143: -1.317216824e-06 | G143: 1.91133758e-06 | H143: -4.423400397e-06 | J143: 1.326309511e-05 | K143: 0.0009016458902 | L143: 1.326560388e-05 | M143: -0.001207953722 | N143: 5.988603843e-08
A144: 68.94994 | B144: ='DF raw data'!A149 -> -9.0629592e-06 | C144: ='DF raw data'!B149 -> 2.2693539e-06 | D144: ='DF raw data'!C149 -> -8.8397746e-07 | F144: -9.074849802e-06 | G144: 2.27726523e-06 | H144: -8.851372384e-07 | J144: 8.724490476e-06 | K144: 0.0009060092696 | L144: 1.440453254e-05 | M144: -0.001200749584 | N144: 6.002787894e-08
A145: 69.45007 | B145: ='DF raw data'!A150 -> -9.5856203e-06 | C145: ='DF raw data'!B150 -> 1.8329129e-06 | D145: ='DF raw data'!C150 -> 2.7398278e-06 | F145: -9.598196634e-06 | G145: 1.839302727e-06 | H145: 2.743422454e-06 | J145: 3.924144393e-06 | K145: 0.0009079718519 | L145: 1.532442302e-05 | M145: -0.00119308538 | N145: 6.01530299e-08
A146: 69.9502 | B146: ='DF raw data'!A151 -> -3.5979879e-06 | C146: ='DF raw data'!B151 -> 7.6016368e-06 | D146: ='DF raw data'!C151 -> -1.0614817e-06 | F146: -3.60270846e-06 | G146: 7.62813732e-06 | H146: -1.062874364e-06 | J146: 2.122321811e-06 | K146: 0.0009090332887 | L146: 1.913948334e-05 | M146: -0.00118351315 | N146: 6.033849014e-08
A147: 70.45033 | B147: ='DF raw data'!A152 -> 2.0346721e-07 | C147: ='DF raw data'!B152 -> 1.1994593e-05 | D147: ='DF raw data'!C152 -> -2.8987629e-06 | F147: 2.03734159e-07 | G147: 1.203640807e-05 | H147: -2.902566077e-06 | J147: 2.224215376e-06 | K147: 0.0009101456856 | L147: 2.51592521e-05 | M147: -0.001170930253 | N147: 6.065754062e-08
A148: 70.95046 | B148: ='DF raw data'!A153 -> -2.7289038e-06 | C148: ='DF raw data'!B153 -> 1.4354386e-05 | D148: ='DF raw data'!C153 -> 4.5127604e-06 | F148: -2.732484122e-06 | G148: 1.440442768e-05 | H148: 4.518681142e-06 | J148: 8.576180923e-07 | K148: 0.0009105746061 | L148: 3.236333852e-05 | M148: -0.001154744377 | N148: 6.118173747e-08
A149: 71.45059 | B149: ='DF raw data'!A154 -> -2.1397841e-06 | C149: ='DF raw data'!B154 -> 5.4222373e-06 | D149: ='DF raw data'!C154 -> 5.4616908e-06 | F149: -2.142591497e-06 | G149: 5.441140085e-06 | H149: 5.468856538e-06 | J149: -2.13956193e-07 | K149: 0.0009104676002 | L149: 3.508461591e-05 | M149: -0.001137197508 | N149: 6.179738552e-08
A150: 71.95072 | B150: ='DF raw data'!A155 -> -1.1930656e-06 | C150: ='DF raw data'!B155 -> 9.7271313e-06 | D150: ='DF raw data'!C155 -> -2.9182042e-06 | F150: -1.194630902e-06 | G150: 9.761041634e-06 | H150: -2.922032884e-06 | J150: -8.11426946e-07 | K150: 0.0009100617812 | L150: 3.996640566e-05 | M150: -0.001117209109 | N150: 6.259657926e-08
A151: 72.45085 | B151: ='DF raw data'!A156 -> 1.4140992e-06 | C151: ='DF raw data'!B156 -> 8.538429e-06 | D151: ='DF raw data'!C156 -> -1.1641845e-05 | F151: 1.415954498e-06 | G151: 8.568195328e-06 | H151: -1.16571191e-05 | J151: -1.032656229e-07 | K151: 0.000910010135 | L151: 4.425161719e-05 | M151: -0.001095077548 | N151: 6.357594197e-08
A152: 72.95098 | B152: ='DF raw data'!A157 -> 4.5710062e-06 | C152: ='DF raw data'!B157 -> -5.1194429e-06 | D152: ='DF raw data'!C157 -> -1.3976627e-05 | F152: 4.57700336e-06 | G152: -5.137290096e-06 | H152: -1.399496433e-05 | J152: 2.185831068e-06 | K152: 0.0009111033347 | L152: 4.16823043e-05 | M152: -0.001074230977 | N152: 6.444726463e-08
A153: 73.45111 | B153: ='DF raw data'!A158 -> 3.3780693e-06 | C153: ='DF raw data'!B158 -> 5.1478588e-07 | D153: ='DF raw data'!C158 -> -9.2974733e-06 | F153: 3.382501327e-06 | G153: 5.165805058e-07 | H153: -9.309671585e-06 | J153: 3.877521456e-06 | K153: 0.0009130425995 | L153: 4.19406617e-05 | M153: -0.001053255194 | N153: 6.533452239e-08
A154: 73.95124 | B154: ='DF raw data'!A159 -> 5.6827871e-06 | C154: ='DF raw data'!B159 -> 3.4505838e-06 | D154: ='DF raw data'!C159 -> -5.2658938e-06 | F154: 5.690242917e-06 | G154: 3.462613086e-06 | H154: -5.272802653e-06 | J154: 6.723382646e-06 | K154: 0.0009164051649 | L154: 4.367241839e-05 | M154: -0.001031413308 | N154: 6.631101822e-08
A155: 74.45137 | B155: ='DF raw data'!A160 -> 5.2926357e-06 | C155: ='DF raw data'!B160 -> -2.1612295e-06 | D155: ='DF raw data'!C160 -> -7.4977938e-06 | F155: 5.299579638e-06 | G155: -2.168763891e-06 | H155: -7.507630905e-06 | J155: 9.373861411e-06 | K155: 0.0009210933142 | L155: 4.25877545e-05 | M155: -0.001010113894 | N155: 6.726205848e-08
A156: 74.9515 | B156: ='DF raw data'!A161 -> 3.8792809e-06 | C156: ='DF raw data'!B161 -> -2.2356826e-06 | D156: ='DF raw data'!C161 -> -7.608272e-06 | F156: 3.884370517e-06 | G156: -2.243476547e-06 | H156: -7.618254053e-06 | J156: 1.131655164e-05 | K156: 0.0009267530612 | L156: 4.146572458e-05 | M156: -0.000989375641 | N156: 6.818603398e-08
A157: 75.45163 | B157: ='DF raw data'!A162 -> 5.0240365e-06 | C157: ='DF raw data'!B162 -> 5.1932757e-06 | D157: ='DF raw data'!C162 -> -4.3395917e-06 | F157: 5.030628036e-06 | G157: 5.211380289e-06 | H157: -4.345285244e-06 | J157: 1.383251964e-05 | K157: 0.0009336711192 | L157: 4.40720922e-05 | M157: -0.0009673338655 | N157: 6.925315531e-08
A158: 75.95176 | B158: ='DF raw data'!A163 -> -7.1011016e-08 | C158: ='DF raw data'!B163 -> 5.3062895e-06 | D158: ='DF raw data'!C163 -> -4.1247617e-06 | F158: -7.110418245e-08 | G158: 5.324788073e-06 | H158: -4.130173387e-06 | J158: 1.37969583e-05 | K158: 0.000940571392 | L158: 4.673517846e-05 | M158: -0.0009439602007 | N158: 7.044073049e-08
A159: 76.45189 | B159: ='DF raw data'!A164 -> 5.4475328e-07 | C159: ='DF raw data'!B164 -> -1.2252376e-06 | D159: ='DF raw data'!C164 -> -6.4574192e-06 | F159: 5.454679963e-07 | G159: -1.229508974e-06 | H159: -6.465891334e-06 | J159: 1.406976321e-05 | K159: 0.0009476081026 | L159: 4.612026414e-05 | M159: -0.000920894073 | N159: 7.160355124e-08
A160: 76.95202 | B160: ='DF raw data'!A165 -> 3.4332065e-06 | C160: ='DF raw data'!B165 -> -3.3528677e-06 | D160: ='DF raw data'!C165 -> -3.3318424e-06 | F160: 3.437710867e-06 | G160: -3.364556332e-06 | H160: -3.336213777e-06 | J160: 1.578906555e-05 | K160: 0.000955504688 | L160: 4.443754858e-05 | M160: -0.0008986695219 | N160: 7.271583552e-08
A161: 77.45215 | B161: ='DF raw data'!A166 -> 2.5058566e-06 | C161: ='DF raw data'!B166 -> 2.4815026e-06 | D161: ='DF raw data'!C166 -> 5.1938014e-07 | F161: 2.509144284e-06 | G161: 2.490153515e-06 | H161: 5.200615667e-07 | J161: 1.704396388e-05 | K161: 0.0009640288856 | L161: 4.568294906e-05 | M161: -0.0008758221086 | N161: 7.390485885e-08
A162: 77.95228 | B162: ='DF raw data'!A167 -> 6.0340267e-06 | C162: ='DF raw data'!B167 -> 1.3497116e-05 | D162: ='DF raw data'!C167 -> -4.8527941e-06 | F162: 6.041943343e-06 | G162: 1.35441691e-05 | H162: -4.859160966e-06 | J162: 2.0065721e-05 | K162: 0.0009740643547 | L162: 5.245679435e-05 | M162: -0.000849586892 | N162: 7.548244313e-08
A163: 78.45241 | B163: ='DF raw data'!A168 -> 5.1008706e-06 | C163: ='DF raw data'!B168 -> 1.142139e-05 | D163: ='DF raw data'!C168 -> -3.8062349e-06 | F163: 5.107562942e-06 | G163: 1.146120679e-05 | H163: -3.81122868e-06 | J163: 2.262016646e-05 | K163: 0.0009853773785 | L163: 5.81888877e-05 | M163: -0.0008204848836 | N163: 7.743175911e-08
A164: 78.95254 | B164: ='DF raw data'!A169 -> 2.2244953e-06 | C164: ='DF raw data'!B169 -> 3.496617e-06 | D164: ='DF raw data'!C169 -> 1.6800118e-06 | F164: 2.227413838e-06 | G164: 3.508806765e-06 | H164: 1.682215975e-06 | J164: 2.373416294e-05 | K164: 0.0009972475454 | L164: 5.994374723e-05 | M164: -0.0007905052173 | N164: 7.951058113e-08
A165: 79.45267 | B165: ='DF raw data'!A170 -> 2.2649497e-06 | C165: ='DF raw data'!B170 -> -3.2596026e-06 | D165: ='DF raw data'!C170 -> 1.2577992e-07 | F165: 2.267921314e-06 | G165: -3.270966095e-06 | H165: 1.259449433e-07 | J165: 2.486841843e-05 | K165: 0.001009684988 | L165: 5.830783895e-05 | M165: -0.0007613437178 | N165: 8.152022466e-08
A166: 79.9528 | B166: ='DF raw data'!A171 -> 9.7141537e-07 | C166: ='DF raw data'!B171 -> 4.3780356e-06 | D166: ='DF raw data'!C171 -> -4.5003903e-06 | F166: 9.72689867e-07 | G166: 4.393298132e-06 | H166: -4.506294812e-06 | J166: 2.535488981e-05 | K166: 0.001022365729 | L166: 6.050505915e-05 | M166: -0.0007310833226 | N166: 8.367265045e-08
A167: 80.45293 | B167: ='DF raw data'!A172 -> 2.2598128e-06 | C167: ='DF raw data'!B172 -> 2.7847827e-06 | D167: ='DF raw data'!C172 -> -1.5325418e-06 | F167: 2.262777674e-06 | G167: 2.794490897e-06 | H167: -1.534552495e-06 | J167: 2.648657281e-05 | K167: 0.001035612458 | L167: 6.190266788e-05 | M167: -0.0007001239413 | N167: 8.593997922e-08
A168: 80.95306 | B168: ='DF raw data'!A173 -> 3.0266988e-06 | C168: ='DF raw data'!B173 -> -9.7644211e-08 | D168: ='DF raw data'!C173 -> -1.1744191e-06 | F168: 3.030669829e-06 | G168: -9.798461432e-08 | H168: -1.175959938e-06 | J168: 2.800230171e-05 | K168: 0.001049617249 | L168: 6.185366284e-05 | M168: -0.0006691890689 | N168: 8.824558078e-08
A169: 81.45319 | B169: ='DF raw data'!A174 -> 3.8954481e-06 | C169: ='DF raw data'!B174 -> -4.2105376e-06 | D169: ='DF raw data'!C174 -> -1.0152939e-06 | F169: 3.900558928e-06 | G169: -4.225216207e-06 | H169: -1.016625966e-06 | J169: 2.995308824e-05 | K169: 0.001064597687 | L169: 5.974050546e-05 | M169: -0.0006393110499 | N169: 9.047921912e-08
A170: 81.95332 | B170: ='DF raw data'!A175 -> 8.2639335e-06 | C170: ='DF raw data'!B175 -> 9.9867812e-06 | D170: ='DF raw data'!C175 -> -3.9491201e-06 | F170: 8.274775781e-06 | G170: 1.002159671e-05 | H170: -3.954301346e-06 | J170: 3.409155186e-05 | K170: 0.001081647895 | L170: 6.475260662e-05 | M170: -0.0006069263287 | N170: 9.315748227e-08
A171: 82.45345 | B171: ='DF raw data'!A176 -> 9.5997848e-06 | C171: ='DF raw data'!B176 -> 1.9624225e-05 | D171: ='DF raw data'!C176 -> -5.7516804e-06 | F171: 9.612379718e-06 | G171: 1.969263818e-05 | H171: -5.759226605e-06 | J171: 3.889899132e-05 | K171: 0.001101102448 | L171: 7.460148575e-05 | M171: -0.0005696158877 | N171: 9.669765908e-08
A172: 82.95358 | B172: ='DF raw data'!A177 -> 5.2721466e-06 | C172: ='DF raw data'!B177 -> 3.4041523e-06 | D172: ='DF raw data'!C177 -> 2.5188715e-06 | F172: 5.279063656e-06 | G172: 3.416019719e-06 | H172: 2.522176259e-06 | J172: 4.153920943e-05 | K172: 0.001121877453 | L172: 7.63099397e-05 | M172: -0.0005314509975 | N172: 1.004729968e-07
A173: 83.45371 | B173: ='DF raw data'!A178 -> 4.4136127e-06 | C173: ='DF raw data'!B178 -> -2.0833077e-06 | D173: ='DF raw data'!C178 -> 3.2322646e-06 | F173: 4.41940336e-06 | G173: -2.090570443e-06 | H173: 3.236505331e-06 | J173: 4.374948563e-05 | K173: 0.001143757883 | L173: 7.52643827e-05 | M173: -0.0004938090218 | N173: 1.042633545e-07
A174: 83.95384 | B174: ='DF raw data'!A179 -> 1.114303e-05 | C174: ='DF raw data'!B179 -> -7.6983242e-06 | D174: ='DF raw data'!C179 -> -3.0650913e-06 | F174: 1.115764966e-05 | G174: -7.725161788e-06 | H174: -3.0691127e-06 | J174: 4.932976096e-05 | K174: 0.001168429176 | L174: 7.140079754e-05 | M174: -0.0004580993409 | N174: 1.080300831e-07
A175: 84.45397 | B175: ='DF raw data'!A180 -> 1.0283899e-05 | C175: ='DF raw data'!B180 -> -3.4390605e-06 | D175: ='DF raw data'!C180 -> 3.0067099e-06 | F175: 1.029739148e-05 | G175: -3.451049614e-06 | H175: 3.010654703e-06 | J175: 5.447979535e-05 | K175: 0.001195676156 | L175: 6.967482409e-05 | M175: -0.0004232528712 | N175: 1.119424147e-07
A176: 84.9541 | B176: ='DF raw data'!A181 -> 3.718817e-06 | C176: ='DF raw data'!B181 -> 5.5611354e-06 | D176: ='DF raw data'!C181 -> 2.1667879e-06 | F176: 3.723696088e-06 | G176: 5.580522406e-06 | H176: 2.169630726e-06 | J176: 5.634212748e-05 | K176: 0.001223854544 | L176: 7.246581076e-05 | M176: -0.0003870105452 | N176: 1.161563746e-07
A177: 85.45423 | B177: ='DF raw data'!A182 -> 4.9896648e-06 | C177: ='DF raw data'!B182 -> 1.2635177e-05 | D177: ='DF raw data'!C182 -> -1.9505019e-06 | F177: 4.99621124e-06 | G177: 1.267922525e-05 | H177: -1.953060958e-06 | J177: 5.884088261e-05 | K177: 0.001253282635 | L177: 7.880707169e-05 | M177: -0.0003475967645 | N177: 1.20994034e-07
A178: 85.95436 | B178: ='DF raw data'!A183 -> 5.5476871e-06 | C178: ='DF raw data'!B183 -> 5.7975676e-06 | D178: ='DF raw data'!C183 -> 2.0621014e-06 | F178: 5.554965665e-06 | G178: 5.817778847e-06 | H178: 2.064806877e-06 | J178: 6.161908758e-05 | K178: 0.001284100189 | L178: 8.171671742e-05 | M178: -0.0003067277826 | N178: 1.262326627e-07
A179: 86.45449 | B179: ='DF raw data'!A184 -> 4.2181805e-06 | C179: ='DF raw data'!B184 -> -3.3954302e-06 | D179: ='DF raw data'!C184 -> 5.097238e-06 | F179: 4.223714753e-06 | G179: -3.407267212e-06 | H179: 5.103925576e-06 | J179: 6.373149404e-05 | K179: 0.001315974221 | L179: 8.001264087e-05 | M179: -0.0002667110605 | N179: 1.31465886e-07
A180: 86.95462 | B180: ='DF raw data'!A185 -> 1.0117295e-05 | C180: ='DF raw data'!B185 -> 9.7651582e-06 | D180: ='DF raw data'!C185 -> 5.9985109e-06 | F180: 1.013056889e-05 | G180: 9.799201102e-06 | H180: 6.006380946e-06 | J180: 6.879809546e-05 | K180: 0.001350382213 | L180: 8.491351532e-05 | M180: -0.0002242432641 | N180: 1.374391801e-07
A181: 87.45475 | B181: ='DF raw data'!A186 -> 1.3735381e-05 | C181: ='DF raw data'!B186 -> 1.3025985e-05 | D181: ='DF raw data'!C186 -> 1.4397597e-06 | F181: 1.375340182e-05 | G181: 1.307139566e-05 | H181: 1.441648665e-06 | J181: 7.567658432e-05 | K181: 0.001388230343 | L181: 9.145091243e-05 | M181: -0.0001785059193 | N181: 1.444861193e-07
A182: 87.95488 | B182: ='DF raw data'!A187 -> 1.0595616e-05 | C182: ='DF raw data'!B187 -> 2.0345224e-06 | D182: ='DF raw data'!C187 -> -6.1946553e-06 | F182: 1.060951745e-05 | G182: 2.04161507e-06 | H182: -6.202782688e-06 | J182: 8.098272228e-05 | K182: 0.001428732232 | L182: 9.247198538e-05 | M182: -0.0001322579052 | N182: 1.520427182e-07
A183: 88.45501 | B183: ='DF raw data'!A188 -> 2.1171022e-06 | C183: ='DF raw data'!B188 -> -2.340289e-06 | D183: ='DF raw data'!C188 -> -5.5888881e-06 | F183: 2.119879838e-06 | G183: -2.348447621e-06 | H183: -5.596220721e-06 | J183: 8.204293778e-05 | K183: 0.001469764366 | L183: 9.129745627e-05 | M183: -8.659730841e-05 | N183: 1.595778113e-07
A184: 88.95514 | B184: ='DF raw data'!A189 -> -7.5748517e-06 | C184: ='DF raw data'!B189 -> 1.369152e-05 | D184: ='DF raw data'!C189 -> -4.1692906e-06 | F184: -7.584789905e-06 | G184: 1.373925083e-05 | H184: -4.174760709e-06 | J184: 7.82495568e-05 | K184: 0.001508899317 | L184: 9.816886778e-05 | M184: -3.750011257e-05 | N184: 1.6745992e-07
A185: 89.45527 | B185: ='DF raw data'!A190 -> -5.1091897e-06 | C185: ='DF raw data'!B190 -> 1.4215489e-05 | D185: ='DF raw data'!C190 -> -2.3950192e-06 | F185: -5.115892957e-06 | G185: 1.426504647e-05 | H185: -2.398161465e-06 | J185: 7.569094526e-05 | K185: 0.00154675463 | L185: 0.0001053032455 | M185: 1.516519959e-05 | N185: 1.758710527e-07
A186: 89.9554 | B186: ='DF raw data'!A191 -> 2.9016105e-06 | C186: ='DF raw data'!B191 -> 1.564276e-05 | D186: ='DF raw data'!C191 -> 2.6297425e-06 | F186: 2.905417413e-06 | G186: 1.569729316e-05 | H186: 2.633192722e-06 | J186: 7.714403167e-05 | K186: 0.001585336674 | L186: 0.0001131539327 | M186: 7.175687595e-05 | N186: 1.852509979e-07
A187: 90.45553 | B187: ='DF raw data'!A192 -> 5.9979088e-06 | C187: ='DF raw data'!B192 -> 4.3059854e-06 | D187: ='DF raw data'!C192 -> 1.7851057e-06 | F187: 6.005778056e-06 | G187: 4.320996753e-06 | H187: 1.787447759e-06 | J187: 8.014770145e-05 | K187: 0.001625420944 | L187: 0.0001153149928 | M187: 0.0001294293633 | N187: 1.951141625e-07
A188: 90.95566 | B188: ='DF raw data'!A193 -> 5.7602178e-06 | C188: ='DF raw data'!B193 -> 9.1341817e-06 | D188: ='DF raw data'!C193 -> -2.9866274e-06 | F188: 5.767775206e-06 | G188: 9.166024917e-06 | H188: -2.990545855e-06 | J188: 8.303233886e-05 | K188: 0.001666947908 | L188: 0.0001198991968 | M188: 0.0001893945486 | N188: 2.05752021e-07
A189: 91.45579 | B189: ='DF raw data'!A194 -> 5.3629942e-06 | C189: ='DF raw data'!B194 -> 7.2970224e-06 | D189: ='DF raw data'!C194 -> -3.4871696e-06 | F189: 5.370030448e-06 | G189: 7.322460986e-06 | H189: -3.491744767e-06 | J189: 8.571805219e-05 | K189: 0.001709818077 | L189: 0.0001235613793 | M189: 0.0002511913012 | N189: 2.170624604e-07
A190: 91.95592 | B190: ='DF raw data'!A195 -> 5.5938749e-06 | C190: ='DF raw data'!B195 -> 1.3751242e-06 | D190: ='DF raw data'!C195 -> 3.5272319e-06 | F190: 5.601214064e-06 | G190: 1.379918103e-06 | H190: 3.531859628e-06 | J190: 8.851938738e-05 | K190: 0.001754089278 | L190: 0.0001242515177 | M190: 0.0003133332128 | N190: 2.287025468e-07
A191: 92.45605 | B191: ='DF raw data'!A196 -> 5.8628816e-06 | C191: ='DF raw data'!B196 -> 4.4351427e-06 | D191: ='DF raw data'!C196 -> 2.6218263e-06 | F191: 5.870573701e-06 | G191: 4.450604316e-06 | H191: 2.625266136e-06 | J191: 9.145543741e-05 | K191: 0.001799828886 | L191: 0.0001264773984 | M191: 0.0003765883541 | N191: 2.408860284e-07
A192: 92.95618 | B192: ='DF raw data'!A197 -> 5.8910541e-06 | C192: ='DF raw data'!B197 -> 1.0031212e-05 | D192: ='DF raw data'!C197 -> 1.438825e-07 | F192: 5.898783163e-06 | G192: 1.006618241e-05 | H192: 1.440712738e-07 | J192: 9.440559583e-05 | K192: 0.001847043957 | L192: 0.0001315117982 | M192: 0.0004423613497 | N192: 2.539933202e-07
A193: 93.45631 | B193: ='DF raw data'!A198 -> 5.1453267e-06 | C193: ='DF raw data'!B198 -> 7.5355902e-06 | D193: ='DF raw data'!C198 -> -8.7930603e-06 | F193: 5.152077369e-06 | G193: 7.561860471e-06 | H193: -8.804596795e-06 | J193: 9.698230428e-05 | K193: 0.001895547717 | L193: 0.0001352937115 | M193: 0.0005100257937 | N193: 2.678519003e-07
A194: 93.95644 | B194: ='DF raw data'!A199 -> 2.4449132e-06 | C194: ='DF raw data'!B199 -> 5.7510015e-06 | D194: ='DF raw data'!C199 -> -8.9140594e-06 | F194: 2.448120926e-06 | G194: 5.77105041e-06 | H194: -8.925754646e-06 | J194: 9.8206683e-05 | K194: 0.001944663825 | L194: 0.000138179987 | M194: 0.0005791337505 | N194: 2.82224767e-07
A195: 94.45657 | B195: ='DF raw data'!A200 -> 3.0768301e-06 | C195: ='DF raw data'!B200 -> 1.2101735e-05 | D195: ='DF raw data'!C200 -> -5.5021474e-07 | F195: 3.080866901e-06 | G195: 1.214392358e-05 | H195: -5.509366217e-07 | J195: 9.974751697e-05 | K195: 0.001994550551 | L195: 0.0001442535275 | M195: 0.0006512792672 | N195: 2.976080893e-07
A196: 94.9567 | B196: ='DF raw data'!A201 -> 5.0253752e-06 | C196: ='DF raw data'!B201 -> 1.1058201e-05 | D196: ='DF raw data'!C201 -> -4.1603703e-06 | F196: 5.031968492e-06 | G196: 1.109675166e-05 | H196: -4.165828706e-06 | J196: 0.0001022641554 | K196: 0.002045695923 | L196: 0.0001498033459 | M196: 0.0007262004146 | N196: 3.140618661e-07
A197: 95.45683 | B197: ='DF raw data'!A202 -> 1.3548874e-06 | C197: ='DF raw data'!B202 -> 9.0374469e-06 | D197: ='DF raw data'!C202 -> -4.9531004e-06 | F197: 1.356665012e-06 | G197: 9.068952884e-06 | H197: -4.959598868e-06 | J197: 0.0001029426642 | K197: 0.002097180638 | L197: 0.0001543390013 | M197: 0.0008033899793 | N197: 3.312752001e-07
A198: 95.95696 | B198: ='DF raw data'!A203 -> -3.0686037e-06 | C198: ='DF raw data'!B203 -> 1.9011261e-05 | D198: ='DF raw data'!C203 -> -4.2158713e-06 | F198: -3.072629708e-06 | G198: 1.907753729e-05 | H198: -4.221402523e-06 | J198: 0.0001014059499 | K198: 0.002147896795 | L198: 0.00016388025 | M198: 0.0008853514087 | N198: 3.498499798e-07
A199: 96.45709 | B199: ='DF raw data'!A204 -> 2.5039212e-06 | C199: ='DF raw data'!B204 -> 2.0480962e-05 | D199: ='DF raw data'!C204 -> -1.2855926e-05 | F199: 2.507206345e-06 | G199: =(1-$G$1*($B$2-$G$2))*C199*$M$2/$M$1 -> 2.055236191e-05 | H199: -1.287279297e-05 | J199: 0.0001026598791 | K199: 0.002199240081 | L199: 0.0001741591028 | M199: 0.0009724536008 | N199: 3.702905149e-07
A200: =A199+$B$1 -> 96.95722 | B200: ='DF raw data'!A205 -> 5.2907731e-06 | C200: ='DF raw data'!B205 -> 9.7747652e-06 | D200: ='DF raw data'!C205 -> -1.6940678e-05 | F200: 5.297714594e-06 | G200: 9.808841593e-06 | H200: -1.696290417e-05 | J200: =F200*$B$1+J199 -> 0.0001053094251 | K200: =J200*$B$1+K199 -> 0.002251908483 | L200: =G200*$B$1+L199 -> 0.0001790647987 | M200: =L200*$B$1+M199 -> 0.001062009279 | N200: =(J200^2+L200^2)*$B$1+N199 -> 3.918732635e-07
A201: 97.45735 | B201: ='DF raw data'!A206 -> -3.6299002e-06 | C201: ='DF raw data'!B206 -> 1.0529162e-05 | D201: ='DF raw data'!C206 -> -8.0329555e-06 | F201: -3.634662629e-06 | G201: 1.056586834e-05 | H201: -8.043494738e-06 | J201: 0.0001034916212 | K201: 0.002303667748 | L201: 0.0001843491064 | M201: 0.001154207797 | N201: 4.142266282e-07
... 1002 more rows

Sheet 12 mm
A1: dz | B1: ='DF raw data'!E7 -> 0.50024 | C1: mm | F1: T_coeff | G1: -0.0008 | H1: /degC | L1: Hallref | M1: ='PI vs gap'!B50 -> 0.505375 | N1: T | P1: IBy total | Q1: =L1203*1000 -> 6.792704253 | R1: muTm | X1: DF ref | Y1: 19
A2: Tref | B2: ='DF raw data'!E8 -> 21.64 | C2: degC | F2: Tcorr | G2: 20 | H2: degC | L2: NMRref | M2: ='PI vs gap'!B51 -> 0.506502 | N2: T | P2: JBy total | Q2: =M1203 -> 0.01632393771 | R2: muTm^2
A3: Encoder | B3: ='DF raw data'!E9 -> 17931645 | P3: PI total | Q3: =N1203 -> 545.4457139 | R3: T^2mm^3
A5: z [mm] | B5: Bx | C5: By | D5: Bz | F5: Bx_corr | G5: By_corr | H5: Bz_corr | J5: Ix | K5: Jx | L5: Iy | M5: Jy | N5: PI
A6: -0.068 | B6: ='DF raw data'!D11 -> 5.0166218e-06 | C6: ='DF raw data'!E11 -> 7.2499347e-06 | D6: ='DF raw data'!F11 -> 1.4845689e-07 | F6: =(1-$G$1*($B$2-$G$2))*B6 -> 5.023203608e-06 | G6: =(1-$G$1*($B$2-$G$2))*C6*$M$2/$M$1 -> 7.275635378e-06 | H6: =(1-$G$1*($B$2-$G$2))*D6 -> 1.486516654e-07 | J6: =F6*$B$1 -> 2.512807373e-06 | K6: =J6*$B$1 -> 1.25700676e-06 | L6: =G6*$B$1 -> 3.639563841e-06 | M6: =L6*$B$1 -> 1.820655416e-06 | N6: =(J6^2+L6)^2*$B$1 -> 6.626414612e-12
A7: =A6+$B$1 -> 0.43224 | B7: ='DF raw data'!D12 -> 5.1883781e-06 | C7: ='DF raw data'!E12 -> 1.4836128e-06 | D7: ='DF raw data'!F12 -> -6.3164789e-06 | F7: =(1-$G$1*($B$2-$G$2))*B7 -> 5.195185252e-06 | G7: =(1-$G$1*($B$2-$G$2))*C7*$M$2/$M$1 -> 1.488872138e-06 | H7: -6.32476612e-06 | J7: =F7*$B$1+J6 -> 5.111646843e-06 | K7: =J7*$B$1+K6 -> 3.814056977e-06 | L7: =G7*$B$1+L6 -> 4.38435724e-06 | M7: =L7*$B$1+M6 -> 4.013886282e-06 | N7: =(J7^2+L7^2)*$B$1+N6 -> 2.93130599e-11
A8: =A7+$B$1 -> 0.93248 | B8: ='DF raw data'!D13 -> 5.2143387e-06 | C8: ='DF raw data'!E13 -> 1.1823345e-06 | D8: ='DF raw data'!F13 -> -3.840325e-06 | F8: 5.221179912e-06 | G8: 1.18652582e-06 | H8: -3.845363506e-06 | J8: =F8*$B$1+J7 -> 7.723489883e-06 | K8: =J8*$B$1+K7 -> 7.677655556e-06 | L8: =G8*$B$1+L7 -> 4.977904916e-06 | M8: =L8*$B$1+M7 -> 6.504033437e-06 | N8: =(J8^2+L8^2)*$B$1+N7 -> 7.15492402e-11
A9: 1.43272 | B9: ='DF raw data'!D14 -> 5.5401415e-06 | C9: ='DF raw data'!E14 -> -5.686496e-06 | D9: ='DF raw data'!F14 -> 8.0991431e-06 | F9: 5.547410166e-06 | G9: -5.706654361e-06 | H9: 8.109769176e-06 | J9: 1.049852634e-05 | K9: 1.292943837e-05 | L9: 2.123208138e-06 | M9: 7.566147076e-06 | N9: 1.289403088e-10
A10: 1.93296 | B10: ='DF raw data'!D15 -> 5.7864472e-06 | C10: ='DF raw data'!E15 -> -1.2748396e-05 | D10: ='DF raw data'!F15 -> 5.5276159e-06 | F10: 5.794039019e-06 | G10: -1.279358846e-05 | H10: 5.534868132e-06 | J10: 1.339693642e-05 | K10: 1.963112185e-05 | L10: -4.276656555e-06 | M10: 5.4267924e-06 | N10: 2.278716214e-10
A11: 2.4332 | B11: ='DF raw data'!D16 -> 5.5758519e-06 | C11: ='DF raw data'!E16 -> -7.7777004e-06 | D11: ='DF raw data'!F16 -> 4.2146539e-07 | F11: 5.583167418e-06 | G11: -7.805271982e-06 | H11: 4.220183526e-07 | J11: 1.618986009e-05 | K11: 2.772993746e-05 | L11: -8.181165812e-06 | M11: 1.334246015e-06 | N11: 3.924721137e-10
A12: 2.93344 | B12: ='DF raw data'!D17 -> 5.4754e-06 | C12: ='DF raw data'!E17 -> -5.0028161e-06 | D12: ='DF raw data'!F17 -> 4.7017065e-07 | F12: 5.482583725e-06 | G12: -5.020550848e-06 | H12: 4.707875139e-07 | J12: 1.893246777e-05 | K12: 3.720071514e-05 | L12: -1.069264617e-05 | M12: -4.014643304e-06 | N12: 6.289710878e-10
A13: 3.43368 | B13: ='DF raw data'!D18 -> 5.5157088e-06 | C13: ='DF raw data'!E18 -> -6.7740607e-06 | D13: ='DF raw data'!F18 -> -3.8228918e-06 | F13: 5.52294541e-06 | G13: -6.798074427e-06 | H13: -3.827907434e-06 | J13: 2.169526599e-05 | K13: 4.8053555e-05 | L13: -1.409331492e-05 | M13: -1.106468316e-05 | N13: 9.63784767e-10
A14: 3.93392 | B14: ='DF raw data'!D19 -> 5.4814682e-06 | C14: ='DF raw data'!E19 -> -5.7689545e-06 | D14: ='DF raw data'!F19 -> -3.7707086e-06 | F14: 5.488659886e-06 | G14: -5.789405173e-06 | H14: -3.77565577e-06 | J14: 2.444091321e-05 | K14: 6.027987742e-05 | L14: -1.698940696e-05 | M14: -1.95634641e-05 | N14: 1.4069965e-09
A15: 4.43416 | B15: ='DF raw data'!D20 -> 4.8304591e-06 | C15: ='DF raw data'!E20 -> 1.1455826e-05 | D15: ='DF raw data'!F20 -> -6.7407545e-06 | F15: 4.836796662e-06 | G15: 1.149643636e-05 | H15: -6.74959837e-06 | J15: 2.686047237e-05 | K15: 7.371656012e-05 | L15: -1.123842964e-05 | M15: -2.518537614e-05 | N15: 1.831093608e-09
A16: 4.9344 | B16: ='DF raw data'!D21 -> 5.0632898e-06 | C16: ='DF raw data'!E21 -> 5.4826919e-06 | D16: ='DF raw data'!F21 -> -3.9275201e-06 | F16: 5.069932836e-06 | G16: 5.502127785e-06 | H16: -3.932673006e-06 | J16: 2.939665557e-05 | K16: 8.84219431e-05 | L16: -8.486045232e-06 | M16: -2.943043541e-05 | N16: 2.299406451e-09
A17: 5.43464 | B17: ='DF raw data'!D22 -> 5.1343759e-06 | C17: ='DF raw data'!E22 -> 4.3039959e-06 | D17: ='DF raw data'!F22 -> 8.6924234e-07 | F17: 5.141112201e-06 | G17: 4.319253363e-06 | H17: 8.70382786e-07 | J17: 3.196844554e-05 | K17: 0.0001044138383 | L17: -6.32538193e-06 | M17: -3.259464446e-05 | N17: 2.830657313e-09
A18: 5.93488 | B18: ='DF raw data'!D23 -> 5.0188337e-06 | C18: ='DF raw data'!E23 -> 7.4707568e-06 | D18: ='DF raw data'!F23 -> 1.1053036e-06 | F18: 5.02541841e-06 | G18: 7.497240282e-06 | H18: 1.106753758e-06 | J18: 3.448236084e-05 | K18: 0.0001216632945 | L18: -2.574962451e-06 | M18: -3.388274368e-05 | N18: 3.428776092e-09
A19: 6.43512 | B19: ='DF raw data'!D24 -> 5.029573e-06 | C19: ='DF raw data'!E24 -> 8.260512e-06 | D19: ='DF raw data'!F24 -> 7.7238346e-06 | F19: 5.0361718e-06 | G19: 8.289795127e-06 | H19: 7.733968271e-06 | J19: 3.700165543e-05 | K19: 0.0001401730026 | L19: 1.571924663e-06 | M19: -3.309640409e-05 | N19: 4.114902e-09
A20: 6.93536 | B20: ='DF raw data'!D25 -> 5.5313958e-06 | C20: ='DF raw data'!E25 -> -6.0750358e-06 | D20: ='DF raw data'!F25 -> 3.7570117e-06 | F20: 5.538652991e-06 | G20: -6.096571516e-06 | H20: 3.761940899e-06 | J20: 3.97723112e-05 | K20: 0.0001600687036 | L20: -1.477824273e-06 | M20: -3.38356709e-05 | N20: 4.907292517e-09
A21: 7.4356 | B21: ='DF raw data'!D26 -> 4.8018937e-06 | C21: ='DF raw data'!E26 -> 1.2270933e-05 | D21: ='DF raw data'!F26 -> -5.562355e-06 | F21: 4.808193785e-06 | G21: 1.231443288e-05 | H21: -5.56965281e-06 | J21: 4.217756206e-05 | K21: 0.0001811676072 | L21: 4.682347632e-06 | M21: -3.149337332e-05 | N21: 5.808160286e-09
A22: 7.93584 | B22: ='DF raw data'!D27 -> 4.841344e-06 | C22: ='DF raw data'!E27 -> -5.562943e-06 | D22: ='DF raw data'!F27 -> -5.0331746e-06 | F22: 4.847695843e-06 | G22: -5.582663371e-06 | H22: -5.039778125e-06 | J22: 4.460257343e-05 | K22: 0.0002034795985 | L22: 1.889676107e-06 | M22: -3.054808175e-05 | N22: 6.805118813e-09
A23: 8.43608 | B23: ='DF raw data'!D28 -> 2.4934943e-06 | C23: ='DF raw data'!E28 -> 3.2529902e-06 | D23: ='DF raw data'!F28 -> -6.9036034e-08 | F23: =(1-$G$1*($B$2-$G$2))*B23 -> 2.496765765e-06 | G23: 3.264521897e-06 | H23: -6.912660928e-08 | J23: 4.585155553e-05 | K23: 0.0002264163807 | L23: 3.522720541e-06 | M23: -2.878587602e-05 | N23: 7.863013711e-09
A24: 8.93632 | B24: ='DF raw data'!D29 -> 8.5158723e-07 | C24: ='DF raw data'!E29 -> -3.8450676e-06 | D24: ='DF raw data'!F29 -> 1.7161348e-06 | F24: 8.527045124e-07 | G24: -3.858698184e-06 | H24: 1.718386369e-06 | J24: 4.627811244e-05 | K24: 0.0002495665436 | L24: 1.592445361e-06 | M24: -2.798927116e-05 | N24: 8.935628105e-09
A25: 9.43656 | B25: ='DF raw data'!D30 -> 1.7949249e-07 | C25: ='DF raw data'!E30 -> -5.0532512e-06 | D25: ='DF raw data'!F30 -> -1.9972522e-06 | F25: 1.797279841e-07 | G25: -5.071164738e-06 | H25: -1.999872595e-06 | J25: 4.636801956e-05 | K25: 0.0002727616817 | L25: -9.443540874e-07 | M25: -2.846167484e-05 | N25: 1.001158684e-08
A26: 9.9368 | B26: ='DF raw data'!D31 -> -1.865037e-06 | C26: ='DF raw data'!E31 -> 7.3389306e-06 | D26: ='DF raw data'!F31 -> -1.6415887e-06 | F26: -1.867483929e-06 | G26: 7.364946764e-06 | H26: -1.643742464e-06 | J26: 4.54338294e-05 | K26: 0.0002954895006 | L26: 2.739886882e-06 | M26: -2.709107383e-05 | N26: 1.104795397e-08
A27: 10.43704 | B27: ='DF raw data'!D32 -> -4.3390519e-06 | C27: ='DF raw data'!E32 -> 6.6939442e-06 | D27: ='DF raw data'!F32 -> -1.7725979e-08 | F27: -4.344744736e-06 | G27: 6.717673918e-06 | H27: -1.774923548e-08 | J27: 4.32604143e-05 | K27: 0.0003171300902 | L27: 6.100336082e-06 | M27: -2.403944171e-05 | N27: 1.200275083e-08
A28: 10.93728 | B28: ='DF raw data'!D33 -> -5.822023e-06 | C28: ='DF raw data'!E33 -> -6.9327057e-06 | D28: ='DF raw data'!F33 -> 2.057086e-06 | F28: -5.829661494e-06 | G28: -6.957281816e-06 | H28: 2.059784897e-06 | J28: 4.034418443e-05 | K28: 0.000337311865 | L28: 2.620025427e-06 | M28: -2.272880019e-05 | N28: 1.282040199e-08
A29: 11.43752 | B29: ='DF raw data'!D34 -> -5.4513566e-06 | C29: ='DF raw data'!E34 -> -4.7463695e-06 | D29: ='DF raw data'!F34 -> 5.1993829e-06 | F29: -5.45850878e-06 | G29: -4.763195157e-06 | H29: 5.20620449e-06 | J29: 3.761362e-05 | K29: 0.0003561277023 | L29: 2.372846816e-07 | M29: -2.26101009e-05 | N29: 1.352816191e-08
A30: 11.93776 | B30: ='DF raw data'!D35 -> -2.9449784e-06 | C30: ='DF raw data'!E35 -> 8.0606929e-07 | D30: ='DF raw data'!F35 -> 6.4820033e-06 | F30: -2.948842212e-06 | G30: 8.089267678e-07 | H30: 6.490507688e-06 | J30: 3.613849117e-05 | K30: 0.0003742056211 | L30: 6.419422079e-07 | M30: -2.228897573e-05 | N30: 1.418167676e-08
A31: 12.438 | B31: ='DF raw data'!D36 -> -3.8208e-06 | C31: ='DF raw data'!E36 -> -4.2452891e-07 | D31: ='DF raw data'!F36 -> 5.5941764e-06 | F31: -3.82581289e-06 | G31: -4.26033845e-07 | H31: 5.601515959e-06 | J31: 3.422466653e-05 | K31: 0.0003913261683 | L31: 4.288230372e-07 | M31: -2.207446129e-05 | N31: 1.476771377e-08
A32: 12.93824 | B32: ='DF raw data'!D37 -> -2.9983839e-06 | C32: ='DF raw data'!E37 -> 7.0679977e-07 | D32: ='DF raw data'!F37 -> 8.0047012e-06 | F32: -3.00231778e-06 | G32: 7.09305342e-07 | H32: 8.015203368e-06 | J32: 3.272278708e-05 | K32: 0.0004076954153 | L32: 7.836459415e-07 | M32: -2.168245025e-05 | N32: 1.530366835e-08
A33: 13.43848 | B33: ='DF raw data'!D38 -> 3.7003283e-06 | C33: ='DF raw data'!E38 -> -1.3601129e-05 | D33: ='DF raw data'!F38 -> 4.7239137e-06 | F33: 3.705183131e-06 | G33: -1.364934436e-05 | H33: 4.730111475e-06 | J33: 3.457626789e-05 | K33: 0.0004249918476 | L33: -6.044302083e-06 | M33: -2.470605192e-05 | N33: 1.591998999e-08
A34: 13.93872 | B34: ='DF raw data'!D39 -> 6.5455188e-06 | C34: ='DF raw data'!E39 -> -2.0007051e-06 | D34: ='DF raw data'!F39 -> -3.1930849e-06 | F34: 6.554106521e-06 | G34: -2.007797506e-06 | H34: -3.197274227e-06 | J34: 3.785489414e-05 | K34: 0.0004439283798 | L34: -7.048682707e-06 | M34: -2.823208496e-05 | N34: 1.66616843e-08
A35: 14.43896 | B35: ='DF raw data'!D40 -> 7.6138476e-06 | C35: ='DF raw data'!E40 -> 6.9840148e-06 | D35: ='DF raw data'!F40 -> -6.2831987e-06 | F35: 7.623836968e-06 | G35: 7.008772804e-06 | H35: -6.291442257e-06 | J35: 4.166864234e-05 | K35: 0.0004647727015 | L35: -3.542614199e-06 | M35: -3.000424229e-05 | N35: 1.753651695e-08
A36: 14.9392 | B36: ='DF raw data'!D41 -> 6.3200368e-06 | C36: ='DF raw data'!E41 -> -2.0718203e-06 | D36: ='DF raw data'!F41 -> -8.7176177e-06 | F36: 6.328328688e-06 | G36: -2.079164806e-06 | H36: -8.729055214e-06 | J36: 4.483432549e-05 | K36: 0.0004872006244 | L36: -4.582695602e-06 | M36: -3.229668993e-05 | N36: 1.855256334e-08
A37: 15.43944 | B37: ='DF raw data'!D42 -> 3.0244937e-06 | C37: ='DF raw data'!E42 -> -4.0206583e-06 | D37: ='DF raw data'!F42 -> -1.0481499e-05 | F37: 3.028461836e-06 | G37: -4.034911345e-06 | H37: -1.049525073e-05 | J37: 4.634928324e-05 | K37: 0.0005103863899 | L37: -6.601119653e-06 | M37: -3.559883403e-05 | N37: 1.96490048e-08
A38: 15.93968 | B38: ='DF raw data'!D43 -> -2.4459641e-06 | C38: ='DF raw data'!E43 -> -6.7260285e-06 | D38: ='DF raw data'!F43 -> -5.4933353e-06 | F38: -2.449173205e-06 | G38: -6.749871955e-06 | H38: -5.500542556e-06 | J38: 4.512410883e-05 | K38: 0.0005329592741 | L38: -9.977675599e-06 | M38: -4.059006647e-05 | N38: 2.071738698e-08
A39: 16.43992 | B39: ='DF raw data'!D44 -> -8.1855451e-06 | C39: ='DF raw data'!E44 -> -5.8535466e-06 | D39: ='DF raw data'!F44 -> 8.4327748e-06 | F39: -8.196284535e-06 | G39: -5.874297148e-06 | H39: 8.443838601e-06 | J39: 4.102399946e-05 | K39: 0.0005534811196 | L39: -1.2916234e-05 | M39: -4.705128337e-05 | N39: 2.164272975e-08
A40: 16.94016 | B40: ='DF raw data'!D45 -> -8.9402802e-06 | C40: ='DF raw data'!E45 -> -1.0430633e-05 | D40: ='DF raw data'!F45 -> 1.4070638e-05 | F40: -8.952009848e-06 | G40: -1.04676091e-05 | H40: 1.408909868e-05 | J40: 3.654584605e-05 | K40: 0.0005717628136 | L40: -1.815255078e-05 | M40: -5.613191537e-05 | N40: 2.247568636e-08
A41: 17.4404 | B41: ='DF raw data'!D46 -> -4.0952782e-06 | C41: ='DF raw data'!E46 -> -6.233015e-06 | D41: ='DF raw data'!F46 -> 7.2697421e-06 | F41: -4.100651205e-06 | G41: -6.255110745e-06 | H41: 7.279280002e-06 | J41: 3.449453629e-05 | K41: 0.0005890183604 | L41: -2.128160738e-05 | M41: -6.677782665e-05 | N41: 2.329747055e-08
A42: 17.94064 | B42: ='DF raw data'!D47 -> 3.434523e-06 | C42: ='DF raw data'!E47 -> -1.420035e-05 | D42: ='DF raw data'!F47 -> -2.4886849e-06 | F42: 3.439029094e-06 | G42: -1.425068957e-05 | H42: -2.491950055e-06 | J42: 3.621487621e-05 | K42: 0.0006071344901 | L42: -2.841037233e-05 | M42: -8.098983131e-05 | N42: 2.435731229e-08
A43: 18.44088 | B43: ='DF raw data'!D48 -> 3.6128131e-06 | C43: ='DF raw data'!E48 -> 6.6263561e-07 | D43: ='DF raw data'!F48 -> -3.3466668e-07 | F43: 3.617553111e-06 | G43: 6.649846221e-07 | H43: -3.351057627e-07 | J43: 3.802452097e-05 | K43: 0.0006261558765 | L43: -2.807772043e-05 | M43: -9.503543017e-05 | N43: 2.547495979e-08
A44: 18.94112 | B44: ='DF raw data'!D49 -> 3.4323984e-06 | C44: ='DF raw data'!E49 -> -7.9838446e-06 | D44: ='DF raw data'!F49 -> 4.9040082e-06 | F44: 3.436901707e-06 | G44: -8.012146954e-06 | H44: 4.910442259e-06 | J44: 3.974379668e-05 | K44: 0.0006460373133 | L44: -3.208571682e-05 | M44: -0.0001110859892 | N44: 2.678011726e-08
A45: 19.44136 | B45: ='DF raw data'!D50 -> 7.0574794e-07 | C45: ='DF raw data'!E50 -> -2.1243909e-06 | D45: ='DF raw data'!F50 -> 1.4498493e-06 | F45: 7.066738813e-07 | G45: -2.131921766e-06 | H45: 1.451751502e-06 | J45: 4.009730323e-05 | K45: 0.0006660955883 | L45: -3.315218936e-05 | M45: -0.0001276700404 | N45: 2.81341976e-08
A46: 19.9416 | B46: ='DF raw data'!D51 -> 5.6551113e-07 | C46: ='DF raw data'!E51 -> 2.4899205e-06 | D46: ='DF raw data'!F51 -> -4.8021629e-06 | F46: 5.662530806e-07 | G46: 2.498747151e-06 | H46: -4.808463338e-06 | J46: 4.038056567e-05 | K46: 0.0006862955625 | L46: -3.190221609e-05 | M46: -0.0001436288049 | N46: 2.945900394e-08
A47: 20.44184 | B47: ='DF raw data'!D52 -> 4.6792065e-06 | C47: ='DF raw data'!E52 -> 6.6238949e-06 | D47: ='DF raw data'!F52 -> -7.315788e-06 | F47: 4.685345619e-06 | G47: 6.647376296e-06 | H47: -7.325386314e-06 | J47: 4.272436296e-05 | K47: 0.0007076679978 | L47: -2.857693257e-05 | M47: -0.0001579241297 | N47: 3.078064416e-08
A48: 20.94208 | B48: ='DF raw data'!D53 -> 4.1859257e-06 | C48: ='DF raw data'!E53 -> 6.1867872e-06 | D48: ='DF raw data'!F53 -> -8.3889627e-06 | F48: 4.191417635e-06 | G48: 6.20871907e-06 | H48: -8.399969019e-06 | J48: 4.482107772e-05 | K48: 0.0007300892937 | L48: -2.547108294e-05 | M48: -0.0001706657842 | N48: 3.211013454e-08
A49: 21.44232 | B49: ='DF raw data'!D54 -> 7.8731142e-07 | C49: ='DF raw data'!E54 -> -4.1662283e-06 | D49: ='DF raw data'!F54 -> -2.384988e-06 | F49: 7.883443726e-07 | G49: -4.180997384e-06 | H49: -2.388117104e-06 | J49: 4.521543911e-05 | K49: 0.000752707865 | L49: -2.756258507e-05 | M49: -0.0001844536918 | N49: 3.351287355e-08
A50: 21.94256 | B50: ='DF raw data'!D55 -> -2.580191e-06 | C50: ='DF raw data'!E55 -> 5.9954523e-06 | D50: ='DF raw data'!F55 -> 1.648278e-07 | F50: -2.583576211e-06 | G50: 6.016705897e-06 | H50: 1.650440541e-07 | J50: 4.392303094e-05 | K50: 0.000774679922 | L50: -2.455278812e-05 | M50: -0.0001967359785 | N50: 3.477951727e-08
A51: 22.4428 | B51: ='DF raw data'!D56 -> -2.1668147e-06 | C51: ='DF raw data'!E56 -> 6.662855e-06 | D51: ='DF raw data'!F56 -> -7.6579327e-06 | F51: -2.169657561e-06 | G51: 6.686474508e-06 | H51: -7.667979908e-06 | J51: 4.283768144e-05 | K51: 0.0007961090437 | L51: -2.120794611e-05 | M51: -0.0002073450415 | N51: 3.59224876e-08
A52: 22.94304 | B52: ='DF raw data'!D57 -> 2.3961129e-06 | C52: ='DF raw data'!E57 -> -1.9436762e-07 | D52: ='DF raw data'!F57 -> -6.4712094e-06 | F52: 2.3992566e-06 | G52: -1.950566441e-07 | H52: -6.479699627e-06 | J52: 4.403788557e-05 | K52: 0.0008181385556 | L52: -2.130552124e-05 | M52: -0.0002180029154 | N52: 3.711969228e-08
A53: 23.44328 | B53: ='DF raw data'!D58 -> 4.2257107e-06 | C53: ='DF raw data'!E58 -> -6.6042816e-07 | D53: ='DF raw data'!F58 -> 5.0759245e-06 | F53: 4.231254832e-06 | G53: -6.627693468e-07 | H53: 5.082584113e-06 | J53: 4.615452848e-05 | K53: 0.0008412268969 | L53: -2.163706498e-05 | M53: -0.0002288266408 | N53: 3.841951744e-08
A54: 23.94352 | B54: ='DF raw data'!D59 -> 2.1487303e-06 | C54: ='DF raw data'!E59 -> 5.0662661e-06 | D54: ='DF raw data'!F59 -> 7.5641128e-06 | F54: 2.151549434e-06 | G54: 5.084225775e-06 | H54: 7.574036916e-06 | J54: 4.723081957e-05 | K54: 0.0008648536421 | L54: -1.909373188e-05 | M54: -0.0002383780892 | N54: 3.971780077e-08
A55: 24.44376 | B55: ='DF raw data'!D60 -> 1.6240854e-07 | C55: ='DF raw data'!E60 -> 5.7954453e-06 | D55: ='DF raw data'!F60 -> 9.9875444e-07 | F55: 1.6262162e-07 | G55: 5.815989881e-06 | H55: 1.000064806e-06 | J55: 4.731216941e-05 | K55: 0.0008885210818 | L55: -1.61843411e-05 | M55: -0.000246474144 | N55: 4.0968588e-08
A56: 24.944 | B56: ='DF raw data'!D61 -> 7.4034759e-08 | C56: ='DF raw data'!E61 -> 7.5681587e-06 | D56: ='DF raw data'!F61 -> -4.8287797e-07 | F56: 7.41318926e-08 | G56: 7.594987467e-06 | H56: -4.835115059e-07 | J56: 4.734925315e-05 | K56: 0.0009122070721 | L56: -1.238502457e-05 | M56: -0.0002526696287 | N56: 4.216683319e-08
A57: 25.44424 | B57: ='DF raw data'!D62 -> 2.7590959e-06 | C57: ='DF raw data'!E62 -> 1.7973476e-05 | D57: ='DF raw data'!F62 -> 1.8755946e-06 | F57: 2.762715834e-06 | G57: 1.803719113e-05 | H57: 1.87805538e-06 | J57: 4.873127412e-05 | K57: 0.0009365844047 | L57: -3.362100081e-06 | M57: -0.0002543514857 | N57: 4.336042623e-08
A58: 25.94448 | B58: ='DF raw data'!D63 -> 4.2467382e-06 | C58: ='DF raw data'!E63 -> 1.0417896e-05 | D58: ='DF raw data'!F63 -> 5.8667192e-06 | F58: 4.252309921e-06 | G58: 1.045482695e-05 | H58: 5.874416336e-06 | J58: 5.085844963e-05 | K58: 0.0009620258356 | L58: 1.867822553e-06 | M58: -0.0002534171261 | N58: 4.465608318e-08
A59: 26.44472 | B59: ='DF raw data'!D64 -> -8.3870503e-07 | C59: ='DF raw data'!E64 -> -5.6009088e-07 | D59: ='DF raw data'!F64 -> 7.9455331e-06 | F59: -8.39805411e-07 | G59: -5.620763758e-07 | H59: 7.955957639e-06 | J59: 5.043834537e-05 | K59: 0.0009872571134 | L59: 1.586649467e-06 | M59: -0.0002526234206 | N59: 4.592996642e-08
A60: 26.94496 | B60: ='DF raw data'!D65 -> -6.1075752e-06 | C60: ='DF raw data'!E65 -> 1.0345579e-05 | D60: ='DF raw data'!F65 -> 8.8760686e-07 | F60: -6.115588339e-06 | G60: 1.038225359e-05 | H60: 8.887714002e-07 | J60: 4.737908346e-05 | K60: 0.001010958026 | L60: 6.780268003e-06 | M60: -0.0002492316593 | N60: 4.707589099e-08
A61: 27.4452 | B61: ='DF raw data'!D66 -> -6.3996031e-06 | C61: ='DF raw data'!E66 -> -4.530834e-07 | D61: ='DF raw data'!F66 -> -7.7195018e-06 | F61: -6.407999379e-06 | G61: -4.546895594e-07 | H61: -7.729629786e-06 | J61: 4.417354585e-05 | K61: 0.001033055401 | L61: 6.552814098e-06 | M61: -0.0002459536796 | N61: 4.807349037e-08
A62: 27.94544 | B62: ='DF raw data'!D67 -> -7.123168e-06 | C62: ='DF raw data'!E67 -> -6.8421091e-06 | D62: ='DF raw data'!F67 -> -1.0112855e-05 | F62: -7.132513596e-06 | G62: -6.866364055e-06 | H62: -1.012612307e-05 | J62: 4.060557725e-05 | K62: 0.001053367935 | L62: 3.117984143e-06 | M62: -0.0002443939392 | N62: 4.890315579e-08
A63: 28.44568 | B63: ='DF raw data'!D68 -> -4.9473947e-06 | C63: ='DF raw data'!E68 -> -1.0519361e-05 | D63: ='DF raw data'!F68 -> -4.7412777e-06 | F63: -4.953885682e-06 | G63: -1.055665164e-05 | H63: -4.747498256e-06 | J63: 3.812744548e-05 | K63: 0.001072440808 | L63: -2.162875274e-06 | M63: -0.0002454758959 | N63: 4.963269586e-08
A64: 28.94592 | B64: ='DF raw data'!D69 -> -3.3968154e-06 | C64: ='DF raw data'!E69 -> 2.4759106e-06 | D64: ='DF raw data'!F69 -> -5.1455748e-07 | F64: -3.401272022e-06 | G64: 2.484687587e-06 | H64: -5.152325794e-07 | J64: 3.642599316e-05 | K64: 0.001090662547 | L64: -9.199351551e-07 | M64: -0.0002459360843 | N64: 5.029686414e-08
A65: 29.44616 | B65: ='DF raw data'!D70 -> 3.7754407e-07 | C65: ='DF raw data'!E70 -> -1.0508154e-05 | D65: ='DF raw data'!F70 -> -3.5880239e-06 | F65: 3.780394078e-07 | G65: -1.054540491e-05 | H65: -3.592731387e-06 | J65: 3.66151036e-05 | K65: 0.001108978886 | L65: -6.195168508e-06 | M65: -0.0002490351554 | N65: 5.098671807e-08
A66: 29.9464 | B66: ='DF raw data'!D71 -> 2.831317e-06 | C66: ='DF raw data'!E71 -> 4.5975362e-06 | D66: ='DF raw data'!F71 -> -3.6269503e-06 | F66: 2.835031688e-06 | G66: 4.61383425e-06 | H66: -3.631708859e-06 | J66: 3.803329985e-05 | K66: 0.001128004664 | L66: -3.887144063e-06 | M66: -0.0002509796603 | N66: 5.171788976e-08
A67: 30.44664 | B67: ='DF raw data'!D72 -> -1.5996537e-06 | C67: ='DF raw data'!E72 -> 4.5238844e-06 | D67: ='DF raw data'!F72 -> 2.336438e-07 | F67: -1.601752446e-06 | G67: 4.539921358e-06 | H67: 2.339503407e-07 | J67: 3.72320392e-05 | K67: 0.001146629619 | L67: -1.616093803e-06 | M67: -0.0002517880951 | N67: 5.241264133e-08
A68: 30.94688 | B68: ='DF raw data'!D73 -> -4.2604861e-06 | C68: ='DF raw data'!E73 -> 4.1074577e-06 | D68: ='DF raw data'!F73 -> 1.5219977e-06 | F68: -4.266075858e-06 | G68: 4.122018445e-06 | H68: 1.523994561e-06 | J68: 3.509797742e-05 | K68: 0.001164187032 | L68: 4.459047033e-07 | M68: -0.0002515650357 | N68: 5.302897045e-08
A69: 31.44712 | B69: ='DF raw data'!D74 -> 5.1197463e-07 | C69: ='DF raw data'!E74 -> 1.5755436e-06 | D69: ='DF raw data'!F74 -> 7.1136861e-07 | F69: 5.126463407e-07 | G69: 1.581128828e-06 | H69: 7.123019256e-07 | J69: 3.535442362e-05 | K69: 0.001181872729 | L69: 1.236848588e-06 | M69: -0.0002509463146 | N69: 5.365500334e-08
A70: 31.94736 | B70: ='DF raw data'!D75 -> 2.103081e-06 | C70: ='DF raw data'!E75 -> 4.750977e-06 | D70: ='DF raw data'!F75 -> -3.4217683e-06 | F70: 2.105840242e-06 | G70: 4.76781899e-06 | H70: -3.42625766e-06 | J70: 3.640784915e-05 | K70: 0.001200085391 | L70: 3.62190236e-06 | M70: -0.0002491344941 | N70: 5.432464944e-08
A71: 32.4476 | B71: ='DF raw data'!D76 -> 4.4408462e-06 | C71: ='DF raw data'!E76 -> 1.7727493e-06 | D71: ='DF raw data'!F76 -> -7.4696729e-08 | F71: 4.44667259e-06 | G71: =(1-$G$1*($B$2-$G$2))*C71*$M$2/$M$1 -> 1.779033613e-06 | H71: -7.479473111e-08 | J71: 3.863225264e-05 | K71: 0.001219410789 | L71: 4.511846134e-06 | M71: -0.0002468774882 | N71: 5.508141636e-08
A72: =A71+$B$1 -> 32.94784 | B72: ='DF raw data'!D77 -> 6.6256853e-06 | C72: ='DF raw data'!E77 -> 4.5769096e-07 | D72: ='DF raw data'!F77 -> 2.9824569e-06 | F72: 6.634378199e-06 | G72: 4.593134529e-07 | H72: 2.986369883e-06 | J72: =F72*$B$1+J71 -> 4.195103399e-05 | K72: =J72*$B$1+K71 -> 0.001240396374 | L72: =G72*$B$1+L71 -> 4.741613096e-06 | M72: =L72*$B$1+M71 -> -0.0002445055437 | N72: =(J72^2+L72^2)*$B$1+N71 -> 5.597303021e-08
A73: 33.44808 | B73: ='DF raw data'!D78 -> 2.8351878e-06 | C73: ='DF raw data'!E78 -> 1.4258389e-06 | D73: ='DF raw data'!F78 -> -5.138881e-07 | F73: 2.838907566e-06 | G73: 1.430893432e-06 | H73: -5.145623212e-07 | J73: 4.337116911e-05 | K73: 0.001262092368 | L73: 5.457403227e-06 | M73: -0.0002417755323 | N73: 5.692890959e-08
A74: 33.94832 | B74: ='DF raw data'!D79 -> -2.7107653e-06 | C74: ='DF raw data'!E79 -> -9.4871684e-06 | D74: ='DF raw data'!F79 -> -5.1313418e-06 | F74: -2.714321824e-06 | G74: -9.520799966e-06 | H74: -5.13807412e-06 | J74: 4.201335676e-05 | K74: 0.00128310913 | L74: 6.947182515e-07 | M74: -0.0002414280065 | N74: 5.781213572e-08
A75: 34.44856 | B75: ='DF raw data'!D80 -> -7.429675e-06 | C75: ='DF raw data'!E80 -> -1.4724052e-05 | D75: ='DF raw data'!F80 -> -1.0709644e-05 | F75: -7.439422734e-06 | G75: -1.477624807e-05 | H75: -1.072369505e-05 | J75: 3.829185994e-05 | K75: 0.00130226425 | L75: -6.696952084e-06 | M75: -0.0002447780898 | N75: 5.856805624e-08
A76: 34.9488 | B76: ='DF raw data'!D81 -> -6.6527191e-06 | C76: ='DF raw data'!E81 -> -5.8608862e-06 | D76: ='DF raw data'!F81 -> -3.5334542e-06 | F76: -6.661447467e-06 | G76: -5.881662766e-06 | H76: -3.538090092e-06 | J76: 3.495953745e-05 | K76: 0.001319752409 | L76: -9.639195066e-06 | M76: -0.0002496000007 | N76: 5.922591353e-08
A77: 35.44904 | B77: ='DF raw data'!D82 -> -1.6849571e-06 | C77: ='DF raw data'!E82 -> -2.2959235e-07 | D77: ='DF raw data'!F82 -> 5.2365194e-06 | F77: -1.687167764e-06 | G77: -2.304062441e-07 | H77: 5.243389713e-06 | J77: 3.411554865e-05 | K77: 0.001336818371 | L77: -9.754453486e-06 | M77: -0.0002544795685 | N77: 5.985572571e-08
A78: 35.94928 | B78: ='DF raw data'!D83 -> -7.5800011e-07 | C78: ='DF raw data'!E83 -> 4.1789749e-06 | D78: ='DF raw data'!F83 -> 5.3753447e-06 | F78: -7.589946061e-07 | G78: 4.19378917e-06 | H78: 5.382397152e-06 | J78: 3.373586919e-05 | K78: 0.001353694402 | L78: -7.656552392e-06 | M78: -0.0002583096823 | N78: 6.045437876e-08
A79: 36.44952 | B79: ='DF raw data'!D84 -> 6.4400416e-07 | C79: ='DF raw data'!E84 -> 9.8104955e-08 | D79: ='DF raw data'!F84 -> 2.6943435e-06 | F79: 6.448490935e-07 | G79: 9.845273245e-08 | H79: 2.697878479e-06 | J79: 3.40584485e-05 | K79: 0.0013707318 | L79: -7.607302397e-06 | M79: -0.0002621151592 | N79: 6.106359552e-08
A80: 36.94976 | B80: ='DF raw data'!D85 -> 8.6928236e-07 | C80: ='DF raw data'!E85 -> 6.6137541e-06 | D80: ='DF raw data'!F85 -> -4.7380763e-06 | F80: 8.704228585e-07 | G80: 6.637199547e-06 | H80: -4.744292656e-06 | J80: 3.449386883e-05 | K80: 0.001387987013 | L80: -4.287109695e-06 | M80: -0.000264259743 | N80: 6.166798864e-08
A81: 37.45 | B81: ='DF raw data'!D86 -> 2.7538135e-06 | C81: ='DF raw data'!E86 -> 1.9799622e-06 | D81: ='DF raw data'!F86 -> -1.2051636e-05 | F81: 2.757426503e-06 | G81: 1.986981073e-06 | H81: -1.206744775e-05 | J81: 3.587324387e-05 | K81: 0.001405932245 | L81: -3.293142283e-06 | M81: -0.0002659071045 | N81: 6.23171673e-08
A82: 37.95024 | B82: ='DF raw data'!D87 -> 7.1181657e-06 | C82: ='DF raw data'!E87 -> -5.6847625e-06 | D82: ='DF raw data'!F87 -> -8.9166733e-06 | F82: 7.127504733e-06 | G82: -5.704914716e-06 | H82: -8.928371975e-06 | J82: 3.943870683e-05 | K82: 0.001425661063 | L82: -6.146968821e-06 | M82: -0.0002689820642 | N82: 6.311414808e-08
A83: 38.45048 | B83: ='DF raw data'!D88 -> 4.9943283e-06 | C83: ='DF raw data'!E88 -> -6.9361763e-06 | D83: ='DF raw data'!F88 -> -3.6346773e-06 | F83: 5.000880859e-06 | G83: -6.960764719e-06 | H83: -3.639445997e-06 | J83: 4.194034747e-05 | K83: 0.001446641303 | L83: -9.629021764e-06 | M83: -0.000273798886 | N83: 6.40404479e-08
A84: 38.95072 | B84: ='DF raw data'!D89 -> -8.0012791e-07 | C84: ='DF raw data'!E89 -> -8.4309107e-07 | D84: ='DF raw data'!F89 -> -1.1337688e-08 | F84: -8.011776778e-07 | G84: -8.460797882e-07 | H84: -1.135256305e-08 | J84: 4.153956635e-05 | K84: 0.001467421055 | L84: -1.005226472e-05 | M84: -0.0002788274309 | N84: 6.495417807e-08
A85: 39.45096 | B85: ='DF raw data'!D90 -> -4.3851669e-06 | C85: ='DF raw data'!E90 -> -3.6793522e-06 | D85: ='DF raw data'!F90 -> -9.5721214e-07 | F85: -4.390920239e-06 | G85: -3.692395331e-06 | H85: -9.584680023e-07 | J85: 3.934305241e-05 | K85: 0.001487102024 | L85: -1.189934856e-05 | M85: -0.000284779961 | N85: 6.579931868e-08
A86: 39.9512 | B86: ='DF raw data'!D91 -> -9.8735279e-07 | C86: ='DF raw data'!E91 -> 8.5383081e-06 | D86: ='DF raw data'!F91 -> -1.1935352e-06 | F86: -9.886481969e-07 | G86: 8.568576001e-06 | H86: -1.195101118e-06 | J86: 3.884849104e-05 | K86: 0.001506535593 | L86: -7.613004099e-06 | M86: -0.0002885882902 | N86: 6.658327635e-08
A87: 40.45144 | B87: ='DF raw data'!D92 -> 4.7203303e-06 | C87: ='DF raw data'!E92 -> 3.933736e-06 | D87: ='DF raw data'!F92 -> 1.2608344e-06 | F87: =(1-$G$1*($B$2-$G$2))*B87 -> 4.726523373e-06 | G87: 3.947680909e-06 | H87: 1.262488615e-06 | J87: 4.121288709e-05 | K87: 0.001527151928 | L87: -5.6382162e-06 | M87: -0.0002914087515 | N87: 6.744883739e-08
A88: 40.95168 | B88: ='DF raw data'!D93 -> 7.8683024e-06 | C88: ='DF raw data'!E93 -> -2.7248138e-06 | D88: ='DF raw data'!F93 -> 2.0859716e-06 | F88: 7.878625613e-06 | G88: -2.734473137e-06 | H88: 2.088708395e-06 | J88: 4.515409077e-05 | K88: 0.00154973981 | L88: -7.006109042e-06 | M88: -0.0002949134875 | N88: 6.849332724e-08
A89: 41.45192 | B89: ='DF raw data'!D94 -> 6.5352451e-06 | C89: ='DF raw data'!E94 -> 8.3310952e-06 | D89: ='DF raw data'!F94 -> 3.4729583e-06 | F89: 6.543819342e-06 | G89: 8.360628541e-06 | H89: 3.477514821e-06 | J89: 4.842757095e-05 | K89: 0.001573965218 | L89: -2.823788221e-06 | M89: -0.0002963260593 | N89: 6.967049371e-08
A90: 41.95216 | B90: ='DF raw data'!D95 -> 1.7583899e-06 | C90: ='DF raw data'!E95 -> 1.2339114e-05 | D90: ='DF raw data'!F95 -> 3.0010251e-06 | F90: 1.760696908e-06 | G90: 1.238285558e-05 | H90: 3.004962445e-06 | J90: 4.930834198e-05 | K90: 0.001598631223 | L90: 3.370611454e-06 | M90: -0.0002946399446 | N90: 7.089241676e-08
A91: 42.4524 | B91: ='DF raw data'!D96 -> 6.3149926e-08 | C91: ='DF raw data'!E96 -> 2.0604743e-07 | D91: ='DF raw data'!F96 -> 1.0006753e-06 | F91: 6.32327787e-08 | G91: 2.067778585e-07 | H91: 1.001988186e-06 | J91: 4.933997354e-05 | K91: 0.001623313052 | L91: 3.47405001e-06 | M91: -0.0002929020858 | N91: 7.211625493e-08
A92: 42.95264 | B92: ='DF raw data'!D97 -> -2.5819372e-06 | C92: ='DF raw data'!E97 -> 1.0944635e-07 | D92: ='DF raw data'!F97 -> 4.0238938e-06 | F92: -2.585324702e-06 | G92: 1.098343322e-07 | H92: 4.029173149e-06 | J92: 4.804669071e-05 | K92: 0.001647347928 | L92: 3.528993536e-06 | M92: -0.0002911367421 | N92: 7.327728109e-08
A93: 43.45288 | B93: ='DF raw data'!D98 -> -8.4064868e-06 | C93: ='DF raw data'!E98 -> 7.9932579e-06 | D93: ='DF raw data'!F98 -> 2.2182921e-06 | F93: -8.417516111e-06 | G93: 8.021593624e-06 | H93: 2.221202499e-06 | J93: 4.383591245e-05 | K93: 0.001669276405 | L93: 7.54171553e-06 | M93: -0.0002873640743 | N93: 7.426698827e-08
A94: 43.95312 | B94: ='DF raw data'!D99 -> -1.1123257e-05 | C94: ='DF raw data'!E99 -> 7.4760937e-06 | D94: ='DF raw data'!F99 -> -1.5553977e-06 | F94: -1.113785071e-05 | G94: 7.502596101e-06 | H94: -1.557438382e-06 | J94: 3.826431401e-05 | K94: 0.001688417745 | L94: 1.12948142e-05 | M94: -0.0002817139565 | N94: 7.506323556e-08
A95: 44.45336 | B95: ='DF raw data'!D100 -> -1.1507005e-05 | C95: ='DF raw data'!E100 -> 9.8927267e-06 | D95: ='DF raw data'!F100 -> 4.0521827e-06 | F95: -1.152210219e-05 | G95: 9.927795951e-06 | H95: 4.057499164e-06 | J95: 3.250049761e-05 | K95: 0.001704675794 | L95: 1.626109485e-05 | M95: -0.0002735795064 | N95: 7.572390531e-08
A96: 44.9536 | B96: ='DF raw data'!D101 -> -9.7524953e-06 | C96: ='DF raw data'!E101 -> -2.1155852e-06 | D96: ='DF raw data'!F101 -> 6.4580508e-06 | F96: -9.765290574e-06 | G96: -2.12308485e-06 | H96: 6.466523763e-06 | J96: 2.761550866e-05 | K96: 0.001718490176 | L96: 1.519904289e-05 | M96: -0.0002659763372 | N96: 7.622095739e-08
A97: 45.45384 | B97: ='DF raw data'!D102 -> -6.4069518e-06 | C97: ='DF raw data'!E102 -> -1.0977461e-07 | D97: ='DF raw data'!F102 -> 2.1744909e-06 | F97: -6.415357721e-06 | G97: -1.101637558e-07 | H97: 2.177343832e-06 | J97: 2.440629011e-05 | K97: 0.001730699179 | L97: 1.514393457e-05 | M97: -0.0002584007354 | N97: 7.663365827e-08
A98: 45.95408 | B98: ='DF raw data'!D103 -> -2.7757105e-06 | C98: ='DF raw data'!E103 -> -1.5429164e-06 | D98: ='DF raw data'!F103 -> 1.3267983e-06 | F98: -2.779352232e-06 | G98: -1.548385966e-06 | H98: 1.328539059e-06 | J98: 2.301594695e-05 | K98: 0.001742212676 | L98: 1.436936997e-05 | M98: -0.0002512126017 | N98: 7.700194126e-08
A99: 46.45432 | B99: ='DF raw data'!D104 -> 2.5405552e-06 | C99: ='DF raw data'!E104 -> 1.0586468e-06 | D99: ='DF raw data'!F104 -> 4.848244e-07 | F99: 2.543888408e-06 | G99: 1.062399653e-06 | H99: 4.854604896e-07 | J99: 2.428850169e-05 | K99: 0.001754362756 | L99: 1.490082477e-05 | M99: -0.0002437586131 | N99: 7.740811908e-08
A100: 46.95456 | B100: ='DF raw data'!D105 -> 2.5086429e-06 | C100: ='DF raw data'!E105 -> 6.7561209e-06 | D100: ='DF raw data'!F105 -> 3.5248067e-06 | F100: 2.511934239e-06 | G100: 6.780071031e-06 | H100: 3.529431246e-06 | J100: 2.554507167e-05 | K100: 0.001767141423 | L100: 1.829248751e-05 | M100: -0.0002346079792 | N100: 7.790193889e-08
A101: 47.4548 | B101: ='DF raw data'!D106 -> -9.3321972e-07 | C101: ='DF raw data'!E106 -> -3.347252e-06 | D101: ='DF raw data'!F106 -> 7.0639489e-06 | F101: -9.344441043e-07 | G101: -3.359117851e-06 | H101: 7.073216801e-06 | J101: 2.507762535e-05 | K101: 0.001779686254 | L101: 1.661212239e-05 | M101: -0.0002262979311 | N101: 7.835458101e-08
A102: 47.95504 | B102: ='DF raw data'!D107 -> 1.3797782e-06 | C102: ='DF raw data'!E107 -> -4.3602308e-06 | D102: ='DF raw data'!F107 -> 3.8484559e-06 | F102: 1.381588469e-06 | G102: -4.375687613e-06 | H102: 3.853505074e-06 | J102: 2.576875117e-05 | K102: 0.001792576814 | L102: 1.442322842e-05 | M102: -0.0002190828553 | N102: 7.879081933e-08
A103: 48.45528 | B103: ='DF raw data'!D108 -> 2.2105469e-06 | C103: ='DF raw data'!E108 -> -4.3492896e-06 | D103: ='DF raw data'!F108 -> 1.2559159e-06 | F103: 2.213447138e-06 | G103: -4.364707627e-06 | H103: 1.257563662e-06 | J103: 2.687600596e-05 | K103: 0.001806021268 | L103: 1.223982708e-05 | M103: -0.0002129600042 | N103: 7.922709518e-08
A104: 48.95552 | B104: ='DF raw data'!D109 -> 6.1717043e-07 | C104: ='DF raw data'!E109 -> -7.4182485e-06 | D104: ='DF raw data'!F109 -> 3.6513939e-06 | F104: 6.179801576e-07 | G104: -7.444545842e-06 | H104: 3.656184529e-06 | J104: 2.718514436e-05 | K104: 0.001819620364 | L104: 8.515767466e-06 | M104: -0.0002087000767 | N104: 7.963306513e-08
A105: 49.45576 | B105: ='DF raw data'!D110 -> 2.7534597e-07 | C105: ='DF raw data'!E110 -> 2.1287328e-06 | D105: ='DF raw data'!F110 -> 5.8578571e-06 | F105: 2.757072239e-07 | G105: 2.136279058e-06 | H105: 5.865542609e-06 | J105: 2.732306414e-05 | K105: 0.001833288454 | L105: 9.584419702e-06 | M105: -0.0002039055666 | N105: 8.005247182e-08
A106: 49.956 | B106: ='DF raw data'!D111 -> -1.7985639e-06 | C106: ='DF raw data'!E111 -> 4.491862e-06 | D106: ='DF raw data'!F111 -> 1.5465613e-06 | F106: -1.800923616e-06 | G106: 4.50778544e-06 | H106: 1.548590388e-06 | J106: 2.642217011e-05 | K106: 0.00184650588 | L106: 1.183939429e-05 | M106: -0.000197983028 | N106: 8.047182418e-08
A107: 50.45624 | B107: ='DF raw data'!D112 -> -3.988278e-06 | C107: ='DF raw data'!E112 -> -4.3304758e-06 | D107: ='DF raw data'!F112 -> -3.5552821e-06 | F107: -3.993510621e-06 | G107: -4.345827133e-06 | H107: -3.55994663e-06 | J107: 2.442445636e-05 | K107: 0.00185872397 | L107: 9.665437725e-06 | M107: -0.0001931479894 | N107: 8.081697715e-08
A108: 50.95648 | B108: ='DF raw data'!D113 -> -8.6267204e-07 | C108: ='DF raw data'!E113 -> 8.549037e-07 | D108: ='DF raw data'!F113 -> -1.7260335e-06 | F108: -8.638038657e-07 | G108: 8.579342934e-07 | H108: -1.728298056e-06 | J108: 2.399234711e-05 | K108: 0.001870725902 | L108: 1.009461078e-05 | M108: -0.0001880982613 | N108: 8.11559067e-08
A109: 51.45672 | B109: ='DF raw data'!D114 -> 6.8138803e-07 | C109: ='DF raw data'!E114 -> 2.3677007e-06 | D109: ='DF raw data'!F114 -> 1.6360119e-06 | F109: 6.822820111e-07 | G109: 2.376094088e-06 | H109: 1.638158348e-06 | J109: 2.433365186e-05 | K109: 0.001882898568 | L109: 1.128322808e-05 | M109: -0.0001824539393 | N109: 8.151579829e-08
A110: 51.95696 | B110: ='DF raw data'!D115 -> -9.7728287e-07 | C110: ='DF raw data'!E115 -> -9.4913048e-06 | D110: ='DF raw data'!F115 -> 4.8674683e-06 | F110: -9.785650651e-07 | G110: -9.524951029e-06 | H110: 4.873854418e-06 | J110: 2.384413448e-05 | K110: 0.001894826358 | L110: 6.51846658e-06 | M110: -0.0001791931416 | N110: 8.182146151e-08
A111: 52.4572 | B111: ='DF raw data'!D116 -> -8.1981665e-07 | C111: ='DF raw data'!E116 -> -1.0248637e-05 | D111: ='DF raw data'!F116 -> 5.5037945e-06 | F111: -8.208922494e-07 | G111: -1.028496794e-05 | H111: 5.511015478e-06 | J111: 2.343349134e-05 | K111: 0.001906548727 | L111: 1.373514219e-06 | M111: -0.0001785060548 | N111: 8.209710129e-08
A112: 52.95744 | B112: ='DF raw data'!D117 -> 3.0197498e-06 | C112: ='DF raw data'!E117 -> -3.8106432e-06 | D112: ='DF raw data'!F117 -> 3.7696573e-06 | F112: 3.023711712e-06 | G112: -3.824151751e-06 | H112: 3.77460309e-06 | J112: 2.494607288e-05 | K112: 0.001919027751 | L112: -5.394794529e-07 | M112: -0.000178775924 | N112: 8.24085495e-08
A113: 53.45768 | B113: ='DF raw data'!D118 -> 2.9500025e-06 | C113: ='DF raw data'!E118 -> 2.9359676e-06 | D113: ='DF raw data'!F118 -> 8.7894847e-07 | F113: 2.953872903e-06 | G113: 2.946375467e-06 | H113: 8.801016504e-07 | J113: 2.642371826e-05 | K113: 0.001932245952 | L113: 9.344154108e-07 | M113: -0.000178308492 | N113: 8.27582603e-08
A114: 53.95792 | B114: ='DF raw data'!D119 -> 1.1920148e-06 | C114: ='DF raw data'!E119 -> -7.3544693e-06 | D114: ='DF raw data'!F119 -> -1.1997926e-06 | F114: 1.193578723e-06 | G114: -7.380540548e-06 | H114: -1.201366728e-06 | J114: 2.702079409e-05 | K114: 0.001945762834 | L114: -2.757626193e-06 | M114: -0.000179687967 | N114: 8.312730126e-08
A115: 54.45816 | B115: ='DF raw data'!D120 -> 1.1764006e-06 | C115: ='DF raw data'!E120 -> -9.521993e-06 | D115: ='DF raw data'!F120 -> -1.6325374e-06 | F115: 1.177944038e-06 | G115: -9.555748018e-06 | H115: -1.634679289e-06 | J115: 2.761004881e-05 | K115: 0.001959574485 | L115: -7.537793581e-06 | M115: -0.0001834586728 | N115: 8.353706441e-08
A116: 54.9584 | B116: ='DF raw data'!D121 -> 1.2857291e-06 | C116: ='DF raw data'!E121 -> 3.9732299e-06 | D116: ='DF raw data'!F121 -> -9.8775661e-07 | F116: 1.287415977e-06 | G116: 3.987314813e-06 | H116: -9.890525467e-07 | J116: 2.825406578e-05 | K116: 0.001973708299 | L116: -5.543179219e-06 | M116: -0.0001862315928 | N116: 8.395177291e-08
A117: 55.45864 | B117: ='DF raw data'!D122 -> 5.8533084e-07 | C117: ='DF raw data'!E122 -> -3.5474702e-07 | D117: ='DF raw data'!F122 -> -3.7785676e-07 | F117: 5.860987941e-07 | G117: -3.560045815e-07 | H117: -3.783525081e-07 | J117: 2.854725584e-05 | K117: 0.001987988778 | L117: -5.721266951e-06 | M117: -0.0001890935994 | N117: 8.437581571e-08
A118: 55.95888 | B118: ='DF raw data'!D123 -> 1.069997e-06 | C118: ='DF raw data'!E123 -> -2.4498208e-06 | D118: ='DF raw data'!F123 -> 1.0540517e-06 | F118: 1.071400836e-06 | G118: -2.4585053e-06 | H118: 1.055434616e-06 | J118: 2.908321339e-05 | K118: 0.002002537364 | L118: -6.951109642e-06 | M118: -0.0001925708225 | N118: 8.482310592e-08
A119: 56.45912 | B119: ='DF raw data'!D124 -> 3.9963579e-06 | C119: ='DF raw data'!E124 -> 7.0626033e-06 | D119: ='DF raw data'!F124 -> 3.4105306e-06 | F119: 4.001601122e-06 | G119: 7.087639897e-06 | H119: 3.415005216e-06 | J119: 3.108497434e-05 | K119: 0.002018087312 | L119: -3.40558866e-06 | M119: -0.0001942744341 | N119: 8.531227744e-08
A120: 56.95936 | B120: ='DF raw data'!D125 -> 4.7723825e-06 | C120: ='DF raw data'!E125 -> 1.1203649e-05 | D120: ='DF raw data'!F125 -> 5.3594395e-06 | F120: 4.778643866e-06 | G120: 1.124336541e-05 | H120: 5.366471085e-06 | J120: 3.347544315e-05 | K120: 0.002034833068 | L120: 2.218792452e-06 | M120: -0.0001931645054 | N120: 8.587531174e-08
A121: 57.4596 | B121: ='DF raw data'!D126 -> 3.3766646e-06 | C121: ='DF raw data'!E126 -> 6.7833403e-06 | D121: ='DF raw data'!F126 -> 1.8071133e-06 | F121: 3.381094784e-06 | G121: 6.807386923e-06 | H121: 1.809484233e-06 | J121: 3.5166802e-05 | K121: 0.002052424909 | L121: 5.624119686e-06 | M121: -0.0001903510958 | N121: 8.650978348e-08
A122: 57.95984 | B122: ='DF raw data'!D127 -> 1.6218784e-06 | C122: ='DF raw data'!E127 -> 3.2073581e-06 | D122: ='DF raw data'!F127 -> -7.2359853e-06 | F122: 1.624006304e-06 | G122: 3.218728034e-06 | H122: -7.245478913e-06 | J122: 3.597919492e-05 | K122: 0.002070423141 | L122: 7.234256198e-06 | M122: -0.0001867322315 | N122: 8.718352518e-08
A123: 58.46008 | B123: ='DF raw data'!D128 -> 2.416602e-06 | C123: ='DF raw data'!E128 -> -1.2573073e-05 | D123: ='DF raw data'!F128 -> -1.3643616e-05 | F123: 2.419772582e-06 | G123: -1.261764395e-05 | H123: -1.366151642e-05 | J123: 3.718966195e-05 | K123: 0.002089026898 | L123: 9.224059869e-07 | M123: -0.0001862708071 | N123: 8.787581822e-08
A124: 58.96032 | B124: ='DF raw data'!D129 -> 7.151737e-06 | C124: ='DF raw data'!E129 -> -2.5412178e-06 | D124: ='DF raw data'!F129 -> -1.1043814e-05 | F124: 7.161120079e-06 | G124: -2.550226298e-06 | H124: -1.105830348e-05 | J124: 4.077194066e-05 | K124: 0.002109422653 | L124: -3.533192162e-07 | M124: -0.0001864475515 | N124: 8.87074552e-08
A125: 59.46056 | B125: ='DF raw data'!D130 -> 1.1172126e-05 | C125: ='DF raw data'!E130 -> -1.177325e-06 | D125: ='DF raw data'!F130 -> 3.8552216e-07 | F125: 1.118678383e-05 | G125: -1.181498562e-06 | H125: 3.860279651e-07 | J125: 4.63680174e-05 | K125: 0.00213261779 | L125: -9.443520568e-07 | M125: -0.0001869199542 | N125: 8.978341384e-08
A126: 59.9608 | B126: ='DF raw data'!D131 -> 1.112019e-05 | C126: ='DF raw data'!E131 -> -1.2086064e-05 | D126: ='DF raw data'!F131 -> 5.2943487e-06 | F126: 1.113477969e-05 | G126: -1.212890853e-05 | H126: 5.301294885e-06 | J126: 5.193807959e-05 | K126: 0.002158599295 | L126: -7.011717259e-06 | M126: -0.0001904274956 | N126: 9.11574372e-08
A127: 60.46104 | B127: ='DF raw data'!D132 -> 1.1004255e-05 | C127: ='DF raw data'!E132 -> 6.1787819e-06 | D127: ='DF raw data'!F132 -> -2.0047755e-06 | F127: 1.101869258e-05 | G127: 6.200685391e-06 | H127: -2.007405765e-06 | J127: 5.745007037e-05 | K127: 0.002187338118 | L127: -3.909886399e-06 | M127: -0.0001923833772 | N127: 9.281613189e-08
A128: 60.96128 | B128: ='DF raw data'!D133 -> 6.6083394e-06 | C128: ='DF raw data'!E133 -> 2.0649545e-06 | D128: ='DF raw data'!F133 -> -7.1559934e-06 | F128: 6.617009541e-06 | G128: 2.072274667e-06 | H128: -7.165382063e-06 | J128: 6.076016322e-05 | K128: 0.002217732782 | L128: -2.87325172e-06 | M128: -0.0001938206926 | N128: 9.46670464e-08
A129: 61.46152 | B129: ='DF raw data'!D134 -> -1.630693e-06 | C129: ='DF raw data'!E134 -> -2.1848341e-06 | D129: ='DF raw data'!F134 -> -1.0292673e-05 | F129: -1.632832469e-06 | G129: -2.192579234e-06 | H129: -1.030617699e-05 | J129: 5.994335511e-05 | K129: 0.002247718846 | L129: -3.970067556e-06 | M129: -0.0001958066792 | N129: 9.647239619e-08
A130: 61.96176 | B130: ='DF raw data'!D135 -> -5.0066064e-06 | C130: ='DF raw data'!E135 -> 5.3594053e-06 | D130: ='DF raw data'!F135 -> -9.531972e-06 | F130: -5.013175068e-06 | G130: 5.37840414e-06 | H130: -9.544477947e-06 | J130: 5.743556441e-05 | K130: 0.002276450413 | L130: -1.279574669e-06 | M130: -0.0001964467736 | N130: 9.812342899e-08
A131: 62.462 | B131: ='DF raw data'!D136 -> 1.2802236e-07 | C131: ='DF raw data'!E136 -> 6.3554995e-07 | D131: ='DF raw data'!F136 -> -5.9022441e-06 | F131: 1.281903253e-07 | G131: 6.378029447e-07 | H131: -5.909987844e-06 | J131: 5.749969034e-05 | K131: 0.002305214058 | L131: -9.605201239e-07 | M131: -0.0001969272642 | N131: 9.977779119e-08
A132: 62.96224 | B132: ='DF raw data'!D137 -> 3.3065098e-06 | C132: ='DF raw data'!E137 -> -7.2467942e-06 | D132: ='DF raw data'!F137 -> -7.8530011e-06 | F132: 3.310847941e-06 | G132: -7.272483745e-06 | H132: -7.863304237e-06 | J132: 5.915590892e-05 | K132: 0.00233480621 | L132: -4.598507392e-06 | M132: -0.0001992276216 | N132: 1.0153892e-07
A133: 63.46248 | B133: ='DF raw data'!D138 -> 1.1333415e-06 | C133: ='DF raw data'!E138 -> 1.0474391e-06 | D133: ='DF raw data'!F138 -> -1.0055681e-05 | F133: 1.134828444e-06 | G133: 1.051152222e-06 | H133: -1.006887405e-05 | J133: 5.97235955e-05 | K133: 0.002364682342 | L133: -4.072679005e-06 | M133: -0.0002012649385 | N133: 1.033315274e-07
A134: 63.96272 | B134: ='DF raw data'!D139 -> -2.8363775e-06 | C134: ='DF raw data'!E139 -> 5.5251217e-06 | D134: ='DF raw data'!F139 -> -9.593934e-06 | F134: -2.840098827e-06 | G134: 5.544707997e-06 | H134: -9.606521241e-06 | J134: 5.830286446e-05 | K134: 0.002393847767 | L134: -1.298994276e-06 | M134: -0.0002019147474 | N134: 1.050327993e-07
A135: 64.46296 | B135: ='DF raw data'!D140 -> -3.0981664e-06 | C135: ='DF raw data'!E140 -> -3.8804269e-06 | D135: ='DF raw data'!F140 -> -9.6801105e-06 | F135: -3.102231194e-06 | G135: =(1-$G$1*($B$2-$G$2))*C135*$M$2/$M$1 -> -3.894182831e-06 | H135: -9.692810805e-06 | J135: 5.675100433e-05 | K135: 0.002422236889 | L135: -3.247020296e-06 | M135: -0.0002035390368 | N135: 1.066491846e-07
A136: =A135+$B$1 -> 64.9632 | B136: ='DF raw data'!D141 -> 4.4985154e-06 | C136: ='DF raw data'!E141 -> 3.4843529e-06 | D136: ='DF raw data'!F141 -> -5.0999388e-06 | F136: 4.504417452e-06 | G136: 3.496704767e-06 | H136: -5.10662992e-06 | J136: =F136*$B$1+J135 -> 5.900429411e-05 | K136: =J136*$B$1+K135 -> 0.002451753197 | L136: =G136*$B$1+L135 -> -1.497828703e-06 | M136: =L136*$B$1+M135 -> -0.0002042883107 | N136: =(J136^2+L136^2)*$B$1+N135 -> 1.083918958e-07
A137: 65.46344 | B137: ='DF raw data'!D142 -> 9.7146494e-06 | C137: ='DF raw data'!E142 -> 1.1529878e-05 | D137: ='DF raw data'!F142 -> -3.3727865e-06 | F137: 9.72739502e-06 | G137: 1.157075088e-05 | H137: -3.377211596e-06 | J137: 6.38703262e-05 | K137: 0.002483703689 | L137: 4.290323715e-06 | M137: -0.0002021421191 | N137: 1.10441792e-07
A138: 65.96368 | B138: ='DF raw data'!D143 -> 4.7360754e-06 | C138: ='DF raw data'!E143 -> 5.5055084e-06 | D138: ='DF raw data'!F143 -> -4.0419854e-06 | F138: 4.742289131e-06 | G138: 5.525025169e-06 | H138: -4.047288485e-06 | J138: 6.624260891e-05 | K138: 0.002516840892 | L138: 7.054162305e-06 | M138: -0.000198613345 | N138: 1.126617793e-07
A139: 66.46392 | B139: ='DF raw data'!D144 -> -3.3502201e-06 | C139: ='DF raw data'!E144 -> 2.6756511e-06 | D139: ='DF raw data'!F144 -> -8.8131801e-06 | F139: -3.354615589e-06 | G139: 2.685136157e-06 | H139: -8.824742992e-06 | J139: 6.456449601e-05 | K139: 0.002549138635 | L139: 8.397374817e-06 | M139: -0.0001944126422 | N139: 1.147823417e-07
A140: 66.96416 | B140: ='DF raw data'!D145 -> -3.1701256e-06 | C140: ='DF raw data'!E145 -> 1.562335e-06 | D140: ='DF raw data'!F145 -> -1.3968065e-05 | F140: -3.174284805e-06 | G140: 1.567873404e-06 | H140: -1.39863911e-05 | J140: 6.297659178e-05 | K140: 0.002580642045 | L140: 9.181687808e-06 | M140: -0.0001898195947 | N140: 1.16808491e-07
A141: 67.4644 | B141: ='DF raw data'!D146 -> -5.6329549e-07 | C141: ='DF raw data'!E146 -> -3.3315068e-06 | D141: ='DF raw data'!F146 -> -8.8165125e-06 | F141: -5.640345337e-07 | G141: -3.343316835e-06 | H141: -8.828079764e-06 | J141: 6.269443915e-05 | K141: 0.002612004312 | L141: 7.509226995e-06 | M141: -0.000186063179 | N141: 1.188029385e-07
A142: 67.96464 | B142: ='DF raw data'!D147 -> 1.7162039e-06 | C142: ='DF raw data'!E147 -> 2.64889e-07 | D142: ='DF raw data'!F147 -> -3.4730201e-06 | F142: 1.71845556e-06 | G142: 2.658280191e-07 | H142: -3.477576702e-06 | J142: 6.355407935e-05 | K142: 0.002643796604 | L142: 7.642204803e-06 | M142: -0.0001822402425 | N142: 1.208526841e-07
A143: 68.46488 | B143: ='DF raw data'!D148 -> 6.1862029e-06 | C143: ='DF raw data'!E148 -> 6.9817465e-06 | D143: ='DF raw data'!F148 -> -3.8552989e-06 | F143: 6.194319198e-06 | G143: 7.006496463e-06 | H143: -3.860357052e-06 | J143: 6.665272559e-05 | K143: 0.002677138964 | L143: 1.114713459e-05 | M143: -0.0001766639998 | N143: 1.231372023e-07
A144: 68.96512 | B144: ='DF raw data'!D149 -> 6.6893062e-06 | C144: ='DF raw data'!E149 -> 6.1967944e-06 | D144: ='DF raw data'!F149 -> -2.8504019e-06 | F144: 6.69808257e-06 | G144: 6.218761745e-06 | H144: -2.854141627e-06 | J144: 7.000337441e-05 | K144: 0.002712157452 | L144: 1.425800797e-05 | M144: -0.0001695315739 | N144: 1.256903088e-07
A145: 69.46536 | B145: ='DF raw data'!D150 -> 2.3007833e-06 | C145: ='DF raw data'!E150 -> 2.9395701e-06 | D145: ='DF raw data'!F150 -> 6.3510203e-07 | F145: 2.303801928e-06 | G145: 2.949990738e-06 | H145: 6.359352839e-07 | J145: 7.115582829e-05 | K145: 0.002747752443 | L145: 1.573371134e-05 | M145: -0.0001616609422 | N145: 1.283469342e-07
A146: 69.9656 | B146: ='DF raw data'!D151 -> 8.3344099e-07 | C146: ='DF raw data'!E151 -> -8.8648649e-06 | D146: ='DF raw data'!F151 -> -3.9667229e-06 | F146: 8.345344646e-07 | G146: -8.896290429e-06 | H146: -3.97192724e-06 | J146: 7.157329581e-05 | K146: 0.002783556269 | L146: 1.128343101e-05 | M146: -0.0001560165187 | N146: 1.309732205e-07
A147: 70.46584 | B147: ='DF raw data'!D152 -> 5.6222434e-06 | C147: ='DF raw data'!E152 -> -1.2898636e-05 | D147: ='DF raw data'!F152 -> -4.8887614e-06 | F147: 5.629619783e-06 | G147: -1.294436106e-05 | H147: -4.895175455e-06 | J147: 7.438945681e-05 | K147: 0.002820768851 | L147: 4.808143836e-06 | M147: -0.0001536112928 | N147: 1.337530089e-07
A148: 70.96608 | B148: ='DF raw data'!D153 -> 1.0160535e-05 | C148: ='DF raw data'!E153 -> 3.8417286e-07 | D148: ='DF raw data'!F153 -> -1.0495149e-06 | F148: 1.017386562e-05 | G148: 3.855347347e-07 | H148: -1.050891864e-06 | J148: 7.947883135e-05 | K148: 0.002860527341 | L148: 5.001003731e-06 | M148: -0.0001511095907 | N148: 1.369254783e-07
A149: 71.46632 | B149: ='DF raw data'!D154 -> 6.160446e-06 | C149: ='DF raw data'!E154 -> -6.5372283e-06 | D149: ='DF raw data'!F154 -> -4.585936e-06 | F149: 6.168528505e-06 | G149: -6.560402467e-06 | H149: -4.591952748e-06 | J149: 8.256457605e-05 | K149: 0.002901829445 | L149: 1.719228001e-06 | M149: -0.0001502495641 | N149: 1.403370475e-07
A150: 71.96656 | B150: ='DF raw data'!D155 -> 8.505977e-07 | C150: ='DF raw data'!E155 -> -5.2986238e-06 | D150: ='DF raw data'!F155 -> -6.5726363e-06 | F150: 8.517136842e-07 | G150: -5.317407172e-06 | H150: -6.581259599e-06 | J150: 8.29906373e-05 | K150: 0.002943344681 | L150: -9.407517628e-07 | M150: -0.0001507201657 | N150: 1.437828662e-07
A151: 72.4668 | B151: ='DF raw data'!D156 -> 1.399205e-06 | C151: ='DF raw data'!E156 -> 2.8154832e-06 | D151: ='DF raw data'!F156 -> -5.1493862e-06 | F151: =(1-$G$1*($B$2-$G$2))*B151 -> 1.401040757e-06 | G151: 2.825463956e-06 | H151: -5.156142195e-06 | J151: 8.369149393e-05 | K151: 0.002985210514 | L151: 4.726583264e-07 | M151: -0.0001504837231 | N151: 1.47286792e-07
A152: 72.96704 | B152: ='DF raw data'!D157 -> 4.9062164e-06 | C152: ='DF raw data'!E157 -> 4.8801344e-06 | D152: ='DF raw data'!F157 -> -1.6416469e-06 | F152: 4.912653356e-06 | G152: 4.897434247e-06 | H152: -1.643800741e-06 | J152: 8.614899965e-05 | K152: 0.00302830569 | L152: 2.922550834e-06 | M152: -0.0001490217463 | N152: 1.51003671e-07
A153: 73.46728 | B153: ='DF raw data'!D158 -> 8.1718117e-06 | C153: ='DF raw data'!E158 -> -5.182676e-06 | D153: ='DF raw data'!F158 -> 6.0655117e-07 | F153: 8.182533117e-06 | G153: -5.201048343e-06 | H153: 6.073469651e-07 | J153: 9.024223001e-05 | K153: 0.003073448463 | L153: 3.207784111e-07 | M153: -0.0001488612801 | N153: 1.55077507e-07
A154: 73.96752 | B154: ='DF raw data'!D159 -> 9.6704698e-06 | C154: ='DF raw data'!E159 -> -1.5804094e-06 | D154: ='DF raw data'!F159 -> -1.4076521e-06 | F154: 9.683157456e-06 | G154: -1.586011877e-06 | H154: -1.40949894e-06 | J154: 9.50861327e-05 | K154: 0.00312101435 | L154: -4.726081702e-07 | M154: -0.0001490976976 | N154: 1.59600475e-07
A155: 74.46776 | B155: ='DF raw data'!D160 -> 8.3408759e-06 | C155: ='DF raw data'!E160 -> 4.4926624e-06 | D155: ='DF raw data'!F160 -> -3.5385037e-06 | F155: 8.351819129e-06 | G155: 4.508588677e-06 | H155: -3.543146217e-06 | J155: 9.92640467e-05 | K155: 0.003170670197 | L155: 1.78276823e-06 | M155: -0.0001482058856 | N155: 1.645311051e-07
A156: 74.968 | B156: ='DF raw data'!D161 -> 1.4702329e-06 | C156: ='DF raw data'!E161 -> -1.011361e-05 | D156: ='DF raw data'!F161 -> -2.5830541e-06 | F156: 1.472161846e-06 | G156: -1.014946227e-05 | H156: -2.586443067e-06 | J156: 0.0001000004809 | K156: 0.003220694437 | L156: -3.294398777e-06 | M156: -0.0001498538757 | N156: 1.695389824e-07
A157: 75.46824 | B157: ='DF raw data'!D162 -> -4.0004288e-06 | C157: ='DF raw data'!E162 -> -9.5441428e-06 | D157: ='DF raw data'!F162 -> -5.63916e-06 | F157: -4.005677363e-06 | G157: -9.577976338e-06 | H157: -5.646558578e-06 | J157: 9.79966809e-05 | K157: 0.003269716297 | L157: -8.085685661e-06 | M157: -0.0001538986591 | N157: 1.743756668e-07
A158: 75.96848 | B158: ='DF raw data'!D163 -> 1.037488e-06 | C158: ='DF raw data'!E163 -> 1.3695321e-06 | D158: ='DF raw data'!F163 -> -9.0880512e-06 | F158: 1.038849184e-06 | G158: 1.374387027e-06 | H158: -9.099974723e-06 | J158: 9.851635481e-05 | K158: 0.003318998118 | L158: -7.398162294e-06 | M158: -0.0001575995158 | N158: 1.792581117e-07
A159: 76.46872 | B159: ='DF raw data'!D164 -> 7.9048714e-06 | C159: ='DF raw data'!E164 -> -2.0085758e-06 | D159: ='DF raw data'!F164 -> -1.1479135e-05 | F159: 7.915242591e-06 | G159: -2.015696107e-06 | H159: -1.149419563e-05 | J159: 0.0001024758758 | K159: 0.00337026065 | L159: -8.406494115e-06 | M159: -0.0001618047804 | N159: 1.845466361e-07
A160: 76.96896 | B160: ='DF raw data'!D165 -> 7.3953797e-06 | C160: ='DF raw data'!E165 -> 2.0898328e-07 | D160: ='DF raw data'!F165 -> -1.4298772e-05 | F160: 7.405082438e-06 | G160: 2.097241159e-07 | H160: -1.431753199e-05 | J160: 0.0001061801942 | K160: 0.003423376231 | L160: -8.301581723e-06 | M160: -0.0001659575636 | N160: 1.902209334e-07
A161: 77.4692 | B161: ='DF raw data'!D166 -> 3.278672e-06 | C161: ='DF raw data'!E166 -> 4.493329e-06 | D161: ='DF raw data'!F166 -> -1.2252758e-05 | F161: 3.282973618e-06 | G161: 4.50925764e-06 | H161: -1.226883362e-05 | J161: 0.0001078224689 | K161: 0.003477313342 | L161: -6.045870681e-06 | M161: -0.00016898195 | N161: 1.96054851e-07
A162: 77.96944 | B162: ='DF raw data'!D167 -> -8.0439162e-07 | C162: ='DF raw data'!E167 -> 1.2713303e-06 | D162: ='DF raw data'!F167 -> -2.6118814e-06 | F162: -8.054469818e-07 | G162: 1.275837106e-06 | H162: -2.615308188e-06 | J162: 0.0001074195521 | K162: 0.003531048899 | L162: -5.407645927e-06 | M162: -0.0001716870708 | N162: 2.018417288e-07
A163: 78.46968 | B163: ='DF raw data'!D168 -> -2.2570657e-06 | C163: ='DF raw data'!E168 -> -9.524796e-06 | D163: ='DF raw data'!F168 -> -4.774792e-07 | F163: -2.26002697e-06 | G163: -9.558560954e-06 | H163: -4.781056527e-07 | J163: 0.0001062889962 | K163: 0.003584218907 | L163: -1.018922046e-05 | M163: -0.0001767841264 | N163: 2.075450506e-07
A164: 78.96992 | B164: ='DF raw data'!D169 -> -3.2839844e-07 | C164: ='DF raw data'!E169 -> -4.9130199e-06 | D164: ='DF raw data'!F169 -> -1.1822021e-05 | F164: -3.288292988e-07 | G164: -4.930436325e-06 | H164: -1.183753149e-05 | J164: 0.0001061245027 | K164: 0.003637306628 | L164: -1.265562193e-05 | M164: -0.0001831149747 | N164: 2.132590794e-07
A165: 79.47016 | B165: ='DF raw data'!D170 -> 1.8960947e-06 | C165: ='DF raw data'!E170 -> 3.1353079e-06 | D165: ='DF raw data'!F170 -> -1.251705e-05 | F165: 1.898582376e-06 | G165: 3.146422419e-06 | H165: -1.253347237e-05 | J165: 0.0001070742495 | K165: 0.003690869451 | L165: -1.108165557e-05 | M165: -0.0001886584621 | N165: 2.190557095e-07
A166: 79.9704 | B166: ='DF raw data'!D171 -> 2.3041302e-06 | C166: ='DF raw data'!E171 -> 3.3169022e-06 | D166: ='DF raw data'!F171 -> -1.0335471e-05 | F166: 2.307153219e-06 | G166: 3.328660462e-06 | H166: -1.034903114e-05 | J166: 0.0001082283798 | K166: 0.003745009615 | L166: -9.416526465e-06 | M166: -0.0001933689853 | N166: 2.249595685e-07
A167: 80.47064 | B167: ='DF raw data'!D172 -> 3.8296221e-06 | C167: ='DF raw data'!E172 -> -2.2239278e-06 | D167: ='DF raw data'!F172 -> -1.021242e-05 | F167: 3.834646564e-06 | G167: -2.23181152e-06 | H167: -1.02258187e-05 | J167: 0.0001101466234 | K167: 0.003800109362 | L167: -1.053296786e-05 | M167: -0.0001986379972 | N167: 2.310841179e-07
A168: 80.97088 | B168: ='DF raw data'!D173 -> 8.2845454e-06 | C168: ='DF raw data'!E173 -> 5.8570881e-06 | D168: ='DF raw data'!F173 -> -5.4946595e-06 | F168: 8.295414724e-06 | G168: 5.877851202e-06 | H168: -5.501868493e-06 | J168: 0.0001142963217 | K168: 0.003857284954 | L168: -7.592631574e-06 | M168: -0.0002024361352 | N168: 2.376479157e-07
A169: 81.47112 | B169: ='DF raw data'!D174 -> 1.2228173e-05 | C169: ='DF raw data'!E174 -> 6.0855159e-06 | D169: ='DF raw data'!F174 -> -4.9185055e-06 | F169: 1.224421636e-05 | G169: 6.107088768e-06 | H169: -4.924958579e-06 | J169: 0.0001204213685 | K169: 0.00391752454 | L169: -4.537621489e-06 | M169: -0.000204706035 | N169: 2.449123489e-07
A170: 81.97136 | B170: ='DF raw data'!D175 -> 1.1344202e-05 | C170: ='DF raw data'!E175 -> -7.6757027e-07 | D170: ='DF raw data'!F175 -> -1.2908788e-05 | F170: 1.135908559e-05 | G170: -7.702912705e-07 | H170: -1.292572433e-05 | J170: 0.0001261036375 | K170: 0.003980606623 | L170: -4.922951994e-06 | M170: -0.0002071686925 | N170: 2.528793527e-07
A171: 82.4716 | B171: ='DF raw data'!D176 -> 5.533273e-06 | C171: ='DF raw data'!E176 -> -1.6038925e-06 | D171: ='DF raw data'!F176 -> -1.1732775e-05 | F171: 5.540532654e-06 | G171: -1.609578224e-06 | H171: -1.17481684e-05 | J171: 0.0001288752335 | K171: 0.00404507517 | L171: -5.728127405e-06 | M171: -0.0002100341309 | N171: 2.612041653e-07
A172: 82.97184 | B172: ='DF raw data'!D177 -> -4.7345193e-07 | C172: ='DF raw data'!E177 -> 1.5659375e-06 | D172: ='DF raw data'!F177 -> -5.7333982e-06 | F172: -4.740730989e-07 | G172: 1.571488675e-06 | H172: -5.740920418e-06 | J172: 0.0001286380832 | K172: 0.004109425085 | L172: -4.94200591e-06 | M172: -0.0002125063199 | N172: 2.694942325e-07
A173: 83.47208 | B173: ='DF raw data'!D178 -> -1.9792551e-06 | C173: ='DF raw data'!E178 -> 6.9259736e-06 | D173: ='DF raw data'!F178 -> -4.5733632e-06 | F173: -1.981851883e-06 | G173: 6.950525851e-06 | H173: -4.579363453e-06 | J173: 0.0001276466816 | K173: 0.004173279061 | L173: -1.465074859e-06 | M173: -0.000213239209 | N173: 2.776460544e-07
A174: 83.97232 | B174: ='DF raw data'!D179 -> 1.0921596e-06 | C174: ='DF raw data'!E179 -> 6.6540492e-06 | D174: ='DF raw data'!F179 -> -3.068375e-06 | F174: 1.093592513e-06 | G174: 6.677637492e-06 | H174: -3.072400708e-06 | J174: 0.0001281937403 | K174: 0.004237406697 | L174: 1.87534652e-06 | M174: -0.0002123010857 | N174: 2.858685753e-07
A175: 84.47256 | B175: ='DF raw data'!D180 -> 5.9543181e-06 | C175: ='DF raw data'!E180 -> 9.5335408e-06 | D175: ='DF raw data'!F180 -> 3.9090637e-07 | F175: 5.962130165e-06 | G175: 9.567336754e-06 | H175: 3.914192392e-07 | J175: 0.0001311762363 | K175: 0.004303026298 | L175: 6.661311058e-06 | M175: -0.0002089688314 | N175: 2.944985047e-07
A176: 84.9728 | B176: ='DF raw data'!D181 -> 9.2510109e-06 | C176: ='DF raw data'!E181 -> 1.043671e-05 | D176: ='DF raw data'!F181 -> 5.3253007e-06 | F176: 9.263148226e-06 | G176: 1.047370765e-05 | H176: 5.332287495e-06 | J176: 0.0001358100336 | K176: 0.004370963909 | L176: 1.190067857e-05 | M176: -0.000203015636 | N176: 3.037959611e-07
A177: 85.47304 | B177: ='DF raw data'!D182 -> 1.2183978e-05 | C177: ='DF raw data'!E182 -> 2.620412e-06 | D177: ='DF raw data'!F182 -> 1.1535389e-05 | F177: 1.219996338e-05 | G177: 2.629701237e-06 | H177: 1.155052343e-05 | J177: 0.0001419129433 | K177: 0.00444195444 | L177: 1.321616032e-05 | M177: -0.0001964043839 | N177: 3.139578116e-07
A178: 85.97328 | B178: ='DF raw data'!D183 -> 1.0369602e-05 | C178: ='DF raw data'!E183 -> 5.5044407e-06 | D178: ='DF raw data'!F183 -> 1.0256421e-05 | F178: 1.038320692e-05 | G178: 5.523953684e-06 | H178: 1.026987742e-05 | J178: 0.0001471070387 | K178: 0.004515543265 | L178: 1.597946291e-05 | M178: -0.0001884108174 | N178: 3.249109786e-07
A179: 86.47352 | B179: ='DF raw data'!D184 -> 4.7624435e-06 | C179: ='DF raw data'!E184 -> 2.9874705e-06 | D179: ='DF raw data'!F184 -> 6.939501e-06 | F179: 4.768691826e-06 | G179: 2.998060943e-06 | H179: 6.948605625e-06 | J179: 0.0001494925291 | K179: 0.004590325408 | L179: 1.747921291e-05 | M179: -0.0001796670159 | N179: 3.36243185e-07
A180: 86.97376 | B180: ='DF raw data'!D185 -> 3.3156484e-06 | C180: ='DF raw data'!E185 -> -8.2286842e-06 | D180: ='DF raw data'!F185 -> 3.3753295e-06 | F180: 3.319998531e-06 | G180: -8.257854499e-06 | H180: 3.379757932e-06 | J180: 0.0001511533252 | K180: 0.004665938347 | L180: 1.334830378e-05 | M180: -0.0001729896604 | N180: 3.477614636e-07
A181: 87.474 | B181: ='DF raw data'!D186 -> 4.4449789e-06 | C181: ='DF raw data'!E186 -> 2.1995834e-06 | D181: ='DF raw data'!F186 -> -2.0918833e-06 | F181: 4.450810712e-06 | G181: 2.20738082e-06 | H181: -2.094627851e-06 | J181: 0.0001533797987 | K181: 0.004742665057 | L181: 1.445252396e-05 | M181: -0.0001657599299 | N181: 3.596342789e-07
A182: 87.97424 | B182: ='DF raw data'!D187 -> 7.1654886e-06 | C182: ='DF raw data'!E187 -> 3.5689459e-06 | D182: ='DF raw data'!F187 -> -3.19016e-06 | F182: 7.174889721e-06 | G182: 3.581597645e-06 | H182: -3.19434549e-06 | J182: 0.0001569689656 | K182: 0.004821187213 | L182: 1.624418237e-05 | M182: -0.0001576339401 | N182: 3.720918205e-07
A183: 88.47448 | B183: ='DF raw data'!D188 -> 7.4561194e-06 | C183: ='DF raw data'!E188 -> -1.5040882e-06 | D183: ='DF raw data'!F188 -> -2.696268e-06 | F183: 7.465901829e-06 | G183: -1.509420122e-06 | H183: -2.699805504e-06 | J183: 0.0001607037083 | K183: 0.004901577636 | L183: 1.548911005e-05 | M183: -0.0001498856677 | N183: 3.851308734e-07
A184: 88.97472 | B184: ='DF raw data'!D189 -> 8.389683e-06 | C184: ='DF raw data'!E189 -> -4.518341e-06 | D184: ='DF raw data'!F189 -> 2.9294287e-07 | F184: 8.400690264e-06 | G184: -4.534358306e-06 | H184: 2.93327211e-07 | J184: 0.0001649060696 | K184: 0.004984070248 | L184: 1.322084265e-05 | M184: -0.0001432720733 | N184: 3.988218431e-07
A185: 89.47496 | B185: ='DF raw data'!D190 -> 4.5046563e-06 | C185: ='DF raw data'!E190 -> -4.8281604e-06 | D185: ='DF raw data'!F190 -> 2.2630102e-06 | F185: 4.510566409e-06 | G185: -4.845276002e-06 | H185: 2.265979269e-06 | J185: 0.0001671624353 | K185: 0.005067691585 | L185: 1.079704178e-05 | M185: -0.0001378709612 | N185: 4.128585054e-07
A186: 89.9752 | B186: ='DF raw data'!D191 -> 4.4408998e-07 | C186: ='DF raw data'!E191 -> -3.7912964e-06 | D186: ='DF raw data'!F191 -> -3.1170376e-07 | F186: 4.446726261e-07 | G186: -3.804736368e-06 | H186: -3.121127153e-07 | J186: 0.0001673848784 | K186: 0.005151424196 | L186: 8.893760459e-06 | M186: -0.0001334219464 | N186: 4.269136469e-07
A187: 90.47544 | B187: ='DF raw data'!D192 -> 4.0392133e-06 | C187: ='DF raw data'!E192 -> 1.7073703e-06 | D187: ='DF raw data'!F192 -> 2.8833001e-06 | F187: 4.044512748e-06 | G187: 1.713422847e-06 | H187: 2.88708299e-06 | J187: 0.0001694081054 | K187: 0.005236168907 | L187: 9.750883104e-06 | M187: -0.0001285441647 | N187: 4.413176505e-07
A188: 90.97568 | B188: ='DF raw data'!D193 -> 4.6612495e-06 | C188: ='DF raw data'!E193 -> 8.4115518e-06 | D188: ='DF raw data'!F193 -> 3.5057146e-06 | F188: 4.667365059e-06 | G188: 8.441370356e-06 | H188: 3.510314098e-06 | J188: 0.0001717429081 | K188: 0.005322081579 | L188: 1.397359421e-05 | M188: -0.0001215540139 | N188: 4.561702202e-07
A189: 91.47592 | B189: ='DF raw data'!D194 -> 2.7816513e-06 | C189: ='DF raw data'!E194 -> 1.0704498e-05 | D189: ='DF raw data'!F194 -> -4.5959914e-06 | F189: 2.785300827e-06 | G189: 1.074244494e-05 | H189: -4.602021341e-06 | J189: 0.000173136227 | K189: 0.005408691245 | L189: 1.934739487e-05 | M189: -0.0001118756731 | N189: 4.713527417e-07
A190: 91.97616 | B190: ='DF raw data'!D195 -> 3.894771e-06 | C190: ='DF raw data'!E195 -> 2.4568303e-06 | D190: ='DF raw data'!F195 -> -5.0554681e-06 | F190: 3.89988094e-06 | G190: 2.465539648e-06 | H190: -5.062100874e-06 | J190: 0.0001750871034 | K190: 0.005496276818 | L190: 2.058075642e-05 | M190: -0.0001015803555 | N190: 4.868997313e-07
A191: 92.4764 | B191: ='DF raw data'!D196 -> 4.59904e-06 | C191: ='DF raw data'!E196 -> 5.2830851e-06 | D191: ='DF raw data'!F196 -> 1.3588125e-06 | F191: 4.60507394e-06 | G191: 5.301813388e-06 | H191: 1.360595262e-06 | J191: 0.0001773907456 | K191: 0.005585014765 | L191: 2.323293555e-05 | M191: -8.995831181e-05 | N191: 5.02911036e-07
A192: 92.97664 | B192: ='DF raw data'!D197 -> 2.6826692e-06 | C192: ='DF raw data'!E197 -> 7.5038465e-06 | D192: ='DF raw data'!F197 -> 4.4397293e-06 | F192: 2.686188862e-06 | G192: 7.530447283e-06 | H192: 4.445554225e-06 | J192: 0.0001787344847 | K192: 0.005674424903 | L192: 2.69999665e-05 | M192: -7.645184857e-05 | N192: 5.192563852e-07
A193: 93.47688 | B193: ='DF raw data'!D198 -> -7.9184787e-07 | C193: ='DF raw data'!E198 -> 2.9797914e-07 | D193: ='DF raw data'!F198 -> 1.0073401e-06 | F193: -7.928867744e-07 | G193: 2.99035462e-07 | H193: 1.00866173e-06 | J193: 0.0001783378511 | K193: 0.00576363663 | L193: 2.7149556e-05 | M193: -6.287055467e-05 | N193: 5.355349389e-07
A194: 93.97712 | B194: ='DF raw data'!D199 -> -2.7410042e-06 | C194: ='DF raw data'!E199 -> -1.9166459e-06 | D194: ='DF raw data'!F199 -> -5.2786363e-06 | F194: -2.744600398e-06 | G194: -1.92344032e-06 | H194: -5.285561871e-06 | J194: 0.0001769648922 | K194: 0.005852161548 | L194: 2.618737422e-05 | M194: -4.977058259e-05 | N194: 5.515437953e-07
A195: 94.47736 | B195: ='DF raw data'!D200 -> -2.1306387e-06 | C195: ='DF raw data'!E200 -> -2.7682515e-07 | D195: ='DF raw data'!F200 -> -8.7721146e-06 | F195: -2.133434098e-06 | G195: -2.778064821e-07 | H195: -8.783623614e-06 | J195: 0.0001758976631 | K195: 0.005940152595 | L195: 2.60484043e-05 | M195: -3.674012883e-05 | N195: 5.673606373e-07
A196: 94.9776 | B196: ='DF raw data'!D201 -> 2.4957453e-07 | C196: ='DF raw data'!E201 -> 1.5291112e-06 | D196: ='DF raw data'!F201 -> -1.0705511e-05 | F196: 2.499019718e-07 | G196: 1.534531827e-06 | H196: -1.071955663e-05 | J196: 0.0001760226741 | K196: 0.006028206177 | L196: 2.68160385e-05 | M196: -2.332567373e-05 | N196: 5.832197869e-07
A197: 95.47784 | B197: ='DF raw data'!D202 -> 3.7515219e-06 | C197: ='DF raw data'!E202 -> 8.3349651e-06 | D197: ='DF raw data'!F202 -> -1.0113976e-05 | F197: 3.756443897e-06 | G197: 8.36451216e-06 | H197: -1.012724554e-05 | J197: 0.0001779017975 | K197: 0.006117199772 | L197: 3.100030206e-05 | M197: -7.818082622e-06 | N197: 5.995326475e-07
A198: 95.97808 | B198: ='DF raw data'!D203 -> 6.1948904e-06 | C198: ='DF raw data'!E203 -> 5.9743711e-06 | D198: ='DF raw data'!F203 -> -4.128904e-06 | F198: 6.203018096e-06 | G198: 5.995549965e-06 | H198: -4.134321122e-06 | J198: 0.0001810047953 | K198: 0.006207745611 | L198: 3.399951598e-05 | M198: 9.189835251e-06 | N198: 6.165001395e-07
A199: 96.47832 | B199: ='DF raw data'!D204 -> 5.7645466e-06 | C199: ='DF raw data'!E204 -> 8.2903998e-06 | D199: ='DF raw data'!F204 -> -8.1205684e-07 | F199: 5.772109685e-06 | G199: =(1-$G$1*($B$2-$G$2))*C199*$M$2/$M$1 -> 8.319788878e-06 | H199: -8.131222586e-07 | J199: 0.0001838922355 | K199: 0.006299735863 | L199: 3.816140717e-05 | M199: 2.827969757e-05 | N199: 6.341449285e-07
A200: =A199+$B$1 -> 96.97856 | B200: ='DF raw data'!D205 -> 5.5857327e-06 | C200: ='DF raw data'!E205 -> 1.1054344e-05 | D200: ='DF raw data'!F205 -> -1.4630222e-06 | F200: 5.593061181e-06 | G200: 1.109353113e-05 | H200: -1.464941685e-06 | J200: =F200*$B$1+J199 -> 0.0001866901084 | K200: =J200*$B$1+K199 -> 0.006393125723 | L200: =G200*$B$1+L199 -> 4.371083518e-05 | M200: =L200*$B$1+M199 -> 5.014560576e-05 | N200: =(J200^2+L200^2)*$B$1+N199 -> 6.525356687e-07
A201: 97.4788 | B201: ='DF raw data'!D206 -> 3.1902255e-06 | C201: ='DF raw data'!E206 -> -6.2808304e-08 | D201: ='DF raw data'!F206 -> 1.1157518e-06 | F201: 3.194411076e-06 | G201: -6.303095649e-08 | H201: 1.117215666e-06 | J201: 0.0001882880806 | K201: 0.006487314952 | L201: 4.367930457e-05 | M201: 7.199574108e-05 | N201: 6.712247766e-07
... 1002 more rows

Sheet 15 mm
A1: dz | B1: ='DF raw data'!H7 -> 0.50016 | C1: mm | F1: T_coeff | G1: -0.0008 | H1: /degC | L1: Hallref | M1: ='PI vs gap'!B50 -> 0.505375 | N1: T | P1: IBy total | Q1: =L1203*1000 -> 6.206064932 | R1: muTm | X1: DF ref | Y1: 20
A2: Tref | B2: ='DF raw data'!H8 -> 21.62 | C2: degC | F2: Tcorr | G2: 20 | H2: degC | L2: NMRref | M2: ='PI vs gap'!B51 -> 0.506502 | N2: T | P2: JBy total | Q2: =M1203 -> -0.04670901994 | R2: muTm^2
A3: Encoder | B3: ='DF raw data'!H9 -> 17919629 | P3: PI total | Q3: =N1203 -> 372.2915259 | R3: T^2mm^3
A5: z [mm] | B5: Bx | C5: By | D5: Bz | F5: Bx_corr | G5: By_corr | H5: Bz_corr | J5: Ix | K5: Jx | L5: Iy | M5: Jy | N5: PI
A6: -0.068 | B6: ='DF raw data'!G11 -> 1.1992923e-06 | C6: ='DF raw data'!H11 -> -8.6215759e-06 | D6: ='DF raw data'!I11 -> -1.5429252e-05 | F6: =(1-$G$1*($B$2-$G$2))*B6 -> 1.200846583e-06 | G6: =(1-$G$1*($B$2-$G$2))*C6*$M$2/$M$1 -> -8.652000729e-06 | H6: =(1-$G$1*($B$2-$G$2))*D6 -> -1.544924831e-05 | J6: =F6*$B$1 -> 6.006154269e-07 | K6: =J6*$B$1 -> 3.004038119e-07 | L6: =G6*$B$1 -> -4.327384684e-06 | M6: =L6*$B$1 -> -2.164384724e-06 | N6: =(J6^2+L6)^2*$B$1 -> 9.366123743e-12
A7: =A6+$B$1 -> 0.43216 | B7: ='DF raw data'!G12 -> 4.4922839e-07 | C7: ='DF raw data'!H12 -> 1.1970772e-05 | D7: ='DF raw data'!I12 -> -1.3890853e-05 | F7: =(1-$G$1*($B$2-$G$2))*B7 -> 4.4981059e-07 | G7: =(1-$G$1*($B$2-$G$2))*C7*$M$2/$M$1 -> 1.201301586e-05 | H7: -1.390885555e-05 | J7: =F7*$B$1+J6 -> 8.255926916e-07 | K7: =J7*$B$1+K6 -> 7.133322525e-07 | L7: =G7*$B$1+L6 -> 1.68104533e-06 | M7: =L7*$B$1+M6 -> -1.323593091e-06 | N7: =(J7^2+L7^2)*$B$1+N6 -> 1.112044329e-11
A8: =A7+$B$1 -> 0.93232 | B8: ='DF raw data'!G13 -> 1.2086929e-06 | C8: ='DF raw data'!H13 -> -7.6494262e-06 | D8: ='DF raw data'!I13 -> -6.2941122e-06 | F8: 1.210259366e-06 | G8: -7.676420393e-06 | H8: -6.302269369e-06 | J8: =F8*$B$1+J7 -> 1.430916016e-06 | K8: =J8*$B$1+K7 -> 1.429019207e-06 | L8: =G8*$B$1+L7 -> -2.158393093e-06 | M8: =L8*$B$1+M7 -> -2.403134981e-06 | N8: =(J8^2+L8^2)*$B$1+N7 -> 1.447460698e-11
A9: 1.43248 | B9: ='DF raw data'!G14 -> 1.1114424e-06 | C9: ='DF raw data'!H14 -> -3.399505e-06 | D9: ='DF raw data'!I14 -> 3.4607933e-06 | F9: 1.112882829e-06 | G9: -3.411501572e-06 | H9: 3.465278488e-06 | J9: 1.987535492e-06 | K9: 2.423104959e-06 | L9: -3.864689719e-06 | M9: -4.336098191e-06 | N9: 2.392069074e-11
A10: 1.93264 | B10: ='DF raw data'!G15 -> 1.1024348e-06 | C10: ='DF raw data'!H15 -> -3.5617516e-06 | D10: ='DF raw data'!I15 -> 9.195486e-07 | F10: 1.103863556e-06 | G10: -3.574320727e-06 | H10: 9.20740335e-07 | J10: 2.539643888e-06 | K10: 3.693333246e-06 | L10: -5.652421974e-06 | M10: -7.163213565e-06 | N10: 4.312666731e-11
A11: 2.4328 | B11: ='DF raw data'!G16 -> 1.3237112e-06 | C11: ='DF raw data'!H16 -> -9.8773935e-06 | D11: ='DF raw data'!I16 -> -1.0477248e-06 | F11: 1.32542673e-06 | G11: -9.912250005e-06 | H11: -1.049082651e-06 | J11: 3.202569321e-06 | K11: 5.295130317e-06 | L11: -1.061013294e-05 | M11: -1.246997765e-05 | N11: 1.045620059e-10
A12: 2.93296 | B12: ='DF raw data'!G17 -> 1.3138887e-06 | C12: ='DF raw data'!H17 -> -9.8963401e-06 | D12: ='DF raw data'!I17 -> -3.3259289e-06 | F12: 1.3155915e-06 | G12: -9.931263466e-06 | H12: -3.330239304e-06 | J12: 3.860575566e-06 | K12: 7.226035792e-06 | L12: -1.557735367e-05 | M12: -2.026114687e-05 | N12: 2.333822108e-10
A13: 3.43312 | B13: ='DF raw data'!G18 -> 9.9456145e-07 | C13: ='DF raw data'!H18 -> -1.0732012e-06 | D13: ='DF raw data'!I18 -> -2.9069793e-06 | F13: 9.958504016e-07 | G13: -1.076988438e-06 | H13: -2.910746745e-06 | J13: 4.358660102e-06 | K13: 9.406063229e-06 | L13: -1.611602021e-05 | M13: -2.832173554e-05 | N13: 3.727888192e-10
A14: 3.93328 | B14: ='DF raw data'!G19 -> 8.2955722e-07 | C14: ='DF raw data'!H19 -> 2.6540863e-06 | D14: ='DF raw data'!I19 -> -7.2783746e-06 | F14: 8.306323262e-07 | G14: 2.663452351e-06 | H14: -7.287807373e-06 | J14: 4.774109167e-06 | K14: 1.179388167e-05 | L14: -1.478386788e-05 | M14: -3.571603489e-05 | N14: 4.935048699e-10
A15: 4.43344 | B15: ='DF raw data'!G20 -> 9.8575754e-07 | C15: ='DF raw data'!H20 -> -1.7340656e-06 | D15: ='DF raw data'!I20 -> -7.6348388e-06 | F15: 9.870350818e-07 | G15: -1.740184974e-06 | H15: -7.644733551e-06 | J15: 5.267784633e-06 | K15: 1.442861683e-05 | L15: -1.56542388e-05 | M15: -4.354565897e-05 | N15: 6.299508923e-10
A16: 4.9336 | B16: ='DF raw data'!G21 -> 6.4305988e-07 | C16: ='DF raw data'!H21 -> 7.8258572e-06 | D16: ='DF raw data'!I21 -> -5.9611352e-06 | F16: 6.438932856e-07 | G16: 7.853474003e-06 | H16: -5.968860831e-06 | J16: 5.589834299e-06 | K16: 1.722442835e-05 | L16: -1.172624524e-05 | M16: -4.941065779e-05 | N16: 7.1435343e-10
A17: 5.43376 | B17: ='DF raw data'!G22 -> 1.1465562e-06 | C17: ='DF raw data'!H22 -> -6.0781886e-06 | D17: ='DF raw data'!I22 -> -6.7975939e-06 | F17: 1.148042137e-06 | G17: -6.099638025e-06 | H17: -6.806403582e-06 | J17: 6.164039054e-06 | K17: 2.030743413e-05 | L17: -1.47770402e-05 | M17: -5.680154222e-05 | N17: 8.425725942e-10
A18: 5.93392 | B18: ='DF raw data'!G23 -> 1.0437615e-06 | C18: ='DF raw data'!H23 -> -2.949587e-06 | D18: ='DF raw data'!I23 -> -5.045616e-06 | F18: 1.045114215e-06 | G18: -2.959995849e-06 | H18: -5.052155118e-06 | J18: 6.68676338e-06 | K18: 2.36518857e-05 | L18: -1.625751172e-05 | M18: -6.493289928e-05 | N18: 9.971317832e-10
A19: 6.43408 | B19: ='DF raw data'!G24 -> 1.1031042e-06 | C19: ='DF raw data'!H24 -> -4.6214309e-06 | D19: ='DF raw data'!I24 -> -5.6046715e-06 | F19: 1.104533823e-06 | G19: -4.637739548e-06 | H19: -5.611935154e-06 | J19: 7.239207017e-06 | K19: 2.727264748e-05 | L19: -1.857712353e-05 | M19: -7.422443338e-05 | N19: 1.195953204e-09
A20: 6.93424 | B20: ='DF raw data'!G25 -> 1.1097108e-06 | C20: ='DF raw data'!H25 -> -5.4421407e-06 | D20: ='DF raw data'!I25 -> -9.4634761e-06 | F20: 1.111148985e-06 | G20: -5.461345565e-06 | H20: -9.475740765e-06 | J20: 7.794959293e-06 | K20: 3.117137432e-05 | L20: -2.130867013e-05 | M20: -8.488217783e-05 | N20: 1.453445982e-09
A21: 7.4344 | B21: ='DF raw data'!G26 -> 9.8482622e-07 | C21: ='DF raw data'!H26 -> -2.0181335e-06 | D21: ='DF raw data'!I26 -> -9.1999991e-06 | F21: 9.861025548e-07 | G21: -2.025255326e-06 | H21: -9.211922299e-06 | J21: 8.288168347e-06 | K21: 3.53167846e-05 | L21: -2.232162183e-05 | M21: -9.604656021e-05 | N21: 1.737010962e-09
A22: 7.93456 | B22: ='DF raw data'!G27 -> -2.1054186e-06 | C22: ='DF raw data'!H27 -> -6.0166776e-06 | D22: ='DF raw data'!I27 -> 1.4112578e-06 | F22: -2.108147223e-06 | G22: -6.037909958e-06 | H22: 1.41308679e-06 | J22: 7.233757432e-06 | K22: 3.893482072e-05 | L22: -2.534154288e-05 | M22: -0.0001087213863 | N22: 2.084382606e-09
A23: 8.43472 | B23: ='DF raw data'!G28 -> -7.7893383e-06 | C23: ='DF raw data'!H28 -> -1.191496e-05 | D23: ='DF raw data'!I28 -> 7.2490498e-06 | F23: =(1-$G$1*($B$2-$G$2))*B23 -> -7.799433282e-06 | G23: -1.195700691e-05 | H23: 7.258444569e-06 | J23: 3.332792882e-06 | K23: 4.060175041e-05 | L23: -3.132195945e-05 | M23: -0.0001243873775 | N23: 2.58062768e-09
A24: 8.93488 | B24: ='DF raw data'!G29 -> -6.7647961e-06 | C24: ='DF raw data'!H29 -> 3.4513027e-07 | D24: ='DF raw data'!I29 -> 8.2283204e-06 | F24: -6.773563276e-06 | G24: 3.463482062e-07 | H24: 8.238984303e-06 | J24: -5.507252638e-08 | K24: 4.057420533e-05 | L24: -3.114872993e-05 | M24: -0.0001399667263 | N24: 3.065906124e-09
A25: 9.43504 | B25: ='DF raw data'!G30 -> -4.1465428e-06 | C25: ='DF raw data'!H30 -> 5.4931506e-06 | D25: ='DF raw data'!I30 -> 3.2434168e-06 | F25: -4.151916719e-06 | G25: 5.512535474e-06 | H25: 3.247620268e-06 | J25: -2.131695193e-06 | K25: 3.950801666e-05 | L25: -2.839158019e-05 | M25: -0.000154167059 | N25: 3.471348799e-09
A26: 9.9352 | B26: ='DF raw data'!G31 -> -3.8488397e-06 | C26: ='DF raw data'!H31 -> 3.6322415e-06 | D26: ='DF raw data'!I31 -> -7.1796835e-06 | F26: -3.853827796e-06 | G26: 3.64505938e-06 | H26: -7.18898837e-06 | J26: -4.059225703e-06 | K26: 3.747775434e-05 | L26: -2.656846729e-05 | M26: -0.0001674555436 | N26: 3.832644761e-09
A27: 10.43536 | B27: ='DF raw data'!G32 -> 6.2409873e-07 | C27: ='DF raw data'!H32 -> 8.9969481e-06 | D27: ='DF raw data'!I32 -> -3.1887625e-06 | F27: 6.24907562e-07 | G27: 9.028697586e-06 | H27: -3.192895136e-06 | J27: -3.746671937e-06 | K27: 3.56038189e-05 | L27: -2.205267391e-05 | M27: -0.000178485409 | N27: 4.082903806e-09
A28: 10.93552 | B28: ='DF raw data'!G33 -> 6.5941822e-06 | C28: ='DF raw data'!H33 -> 7.1285535e-07 | D28: ='DF raw data'!I33 -> -3.9460151e-06 | F28: 6.60272826e-06 | G28: 7.153709576e-07 | H28: -3.951129136e-06 | J28: -4.442513706e-07 | K28: 3.538162214e-05 | L28: -2.169487397e-05 | M28: -0.0001893363172 | N28: 4.318411603e-09
A29: 11.43568 | B29: ='DF raw data'!G34 -> 5.9782142e-06 | C29: ='DF raw data'!H34 -> -5.0616063e-06 | D29: ='DF raw data'!I34 -> -4.9472596e-06 | F29: 5.985961966e-06 | G29: -5.07946829e-06 | H29: -4.953671248e-06 | J29: 2.549687366e-06 | K29: 3.665687377e-05 | L29: -2.423542083e-05 | M29: -0.0002014579053 | N29: 4.615434884e-09
A30: 11.93584 | B30: ='DF raw data'!G35 -> -1.7561629e-07 | C30: ='DF raw data'!H35 -> 5.7368993e-07 | D30: ='DF raw data'!I35 -> -1.8861625e-06 | F30: -1.758438887e-07 | G30: 5.757144343e-07 | H30: -1.888606967e-06 | J30: 2.461737287e-06 | K30: 3.788813629e-05 | L30: -2.39474715e-05 | M30: -0.0002134354726 | N30: 4.905298381e-09
A31: 12.436 | B31: ='DF raw data'!G36 -> -4.2359206e-06 | C31: ='DF raw data'!H36 -> -1.5811595e-06 | D31: ='DF raw data'!I36 -> 6.1962915e-06 | F31: -4.241410353e-06 | G31: -1.586739281e-06 | H31: 6.204321894e-06 | J31: 3.403534845e-07 | K31: 3.805836749e-05 | L31: -2.474109502e-05 | M31: -0.0002258099787 | N31: 5.211515151e-09
A32: 12.93616 | B32: ='DF raw data'!G37 -> -2.5205993e-06 | C32: ='DF raw data'!H37 -> -1.9596912e-06 | D32: ='DF raw data'!I37 -> 7.5893317e-06 | F32: -2.523865997e-06 | G32: -1.966606788e-06 | H32: 7.599167474e-06 | J32: -9.219833324e-07 | K32: 3.759722831e-05 | L32: -2.572471307e-05 | M32: -0.0002386764512 | N32: 5.542926627e-09
A33: 13.43632 | B33: ='DF raw data'!G38 -> -1.081342e-06 | C33: ='DF raw data'!H38 -> -2.8197639e-06 | D33: ='DF raw data'!I38 -> 2.6485796e-07 | F33: -1.082743419e-06 | G33: -2.829714614e-06 | H33: 2.652012159e-07 | J33: -1.463528281e-06 | K33: 3.686523e-05 | L33: -2.714002313e-05 | M33: -0.0002522508052 | N33: 5.912406207e-09
A34: 13.93648 | B34: ='DF raw data'!G39 -> -5.2766882e-06 | C34: ='DF raw data'!H39 -> -5.392506e-06 | D34: ='DF raw data'!I39 -> -3.8476442e-06 | F34: -5.283526788e-06 | G34: -5.411535708e-06 | H34: -3.852630747e-06 | J34: -4.106137039e-06 | K34: 3.48115045e-05 | L34: -2.984665683e-05 | M34: -0.000267178909 | N34: 6.366393079e-09
A35: 14.43664 | B35: ='DF raw data'!G40 -> -1.1054177e-05 | C35: ='DF raw data'!H40 -> 5.8093729e-06 | D35: ='DF raw data'!I40 -> -4.0937607e-06 | F35: -1.106850321e-05 | G35: 5.829873697e-06 | H35: -4.099066214e-06 | J35: -9.642159606e-06 | K35: 2.998888195e-05 | L35: -2.69307872e-05 | M35: -0.0002806486116 | N35: 6.775643268e-09
A36: 14.9368 | B36: ='DF raw data'!G41 -> -8.3079685e-06 | C36: ='DF raw data'!H41 -> -6.2128424e-07 | D36: ='DF raw data'!I41 -> 1.3319208e-06 | F36: -8.318735627e-06 | G36: -6.234767007e-07 | H36: 1.333646969e-06 | J36: -1.380285842e-05 | K36: 2.308524428e-05 | L36: -2.724262531e-05 | M36: -0.000294274283 | N36: 7.242132264e-09
A37: 15.43696 | B37: ='DF raw data'!G42 -> -1.1297417e-06 | C37: ='DF raw data'!H42 -> -7.1721774e-07 | D37: ='DF raw data'!I42 -> 7.679655e-06 | F37: -1.131205845e-06 | G37: -7.197487421e-07 | H37: 7.689607833e-06 | J37: -1.436864233e-05 | K37: 1.589862413e-05 | L37: -2.760261484e-05 | M37: -0.0003080800069 | N37: 7.726468316e-09
A38: 15.93712 | B38: ='DF raw data'!G43 -> 1.8398822e-06 | C38: ='DF raw data'!H43 -> -8.6913597e-06 | D38: ='DF raw data'!I43 -> 8.934001e-06 | F38: 1.842266687e-06 | G38: -8.72203079e-06 | H38: 8.945579465e-06 | J38: -1.344721423e-05 | K38: 9.172865467e-06 | L38: -3.196502576e-05 | M38: -0.0003240676342 | N38: 8.327955951e-09
A39: 16.43728 | B39: ='DF raw data'!G44 -> -2.0441405e-06 | C39: ='DF raw data'!H44 -> -5.8900559e-06 | D39: ='DF raw data'!I44 -> 5.6033009e-06 | F39: -2.046789706e-06 | G39: -5.91084142e-06 | H39: 5.610562778e-06 | J39: -1.447093657e-05 | K39: 1.935081834e-06 | L39: -3.49213922e-05 | M39: -0.0003415339177 | N39: 9.042640397e-09
A40: 16.93744 | B40: ='DF raw data'!G45 -> -3.1158745e-06 | C40: ='DF raw data'!H45 -> -1.0674487e-05 | D40: ='DF raw data'!I45 -> -3.5059652e-06 | F40: -3.119912673e-06 | G40: -1.071215638e-05 | H40: -3.510508931e-06 | J40: -1.603139209e-05 | K40: -6.083179234e-06 | L40: -4.027918434e-05 | M40: -0.0003616799545 | N40: 9.982650215e-09
A41: 17.4376 | B41: ='DF raw data'!G46 -> 1.1461487e-06 | C41: ='DF raw data'!H46 -> -8.2084853e-06 | D41: ='DF raw data'!I46 -> -7.7127788e-06 | F41: 1.147634109e-06 | G41: -8.237452366e-06 | H41: -7.722774561e-06 | J41: -1.545739141e-05 | K41: -1.381434812e-05 | L41: -4.439922851e-05 | M41: -0.0003838866726 | N41: 1.108811507e-08
A42: 17.93776 | B42: ='DF raw data'!G47 -> -6.0921974e-07 | C42: ='DF raw data'!H47 -> -5.2006371e-06 | D42: ='DF raw data'!I47 -> -2.4759079e-06 | F42: -6.100092888e-07 | G42: -5.218989718e-06 | H42: -2.479116677e-06 | J42: -1.576249366e-05 | K42: -2.169811695e-05 | L42: -4.700955841e-05 | M42: -0.0004073989734 | N42: 1.23176858e-08
A43: 18.43792 | B43: ='DF raw data'!G48 -> -4.6384266e-06 | C43: ='DF raw data'!H48 -> 5.683818e-06 | D43: ='DF raw data'!I48 -> 3.4263053e-06 | F43: -4.644438001e-06 | G43: 5.703875724e-06 | H43: 3.430745792e-06 | J43: -1.808545577e-05 | K43: -3.074373851e-05 | L43: -4.415670793e-05 | M43: -0.0004294843924 | N43: 1.345649939e-08
A44: 18.93808 | B44: ='DF raw data'!G49 -> -1.6599262e-06 | C44: ='DF raw data'!H49 -> 1.4963396e-06 | D44: ='DF raw data'!I49 -> 7.3567921e-06 | F44: -1.662077464e-06 | G44: 1.501620059e-06 | H44: 7.366326503e-06 | J44: -1.891676043e-05 | K44: -4.020514541e-05 | L44: -4.340565764e-05 | M44: -0.0004511941661 | N44: 1.457780556e-08
A45: 19.43824 | B45: ='DF raw data'!G50 -> 1.3379284e-06 | C45: ='DF raw data'!H50 -> -7.7864561e-06 | D45: ='DF raw data'!I50 -> 4.7895433e-06 | F45: 1.339662355e-06 | G45: -7.81393386e-06 | H45: 4.795750548e-06 | J45: -1.824671491e-05 | K45: -4.933142234e-05 | L45: -4.73138748e-05 | M45: -0.0004748586738 | N45: 1.586398969e-08
A46: 19.9384 | B46: ='DF raw data'!G51 -> 9.3134787e-07 | C46: ='DF raw data'!H51 -> -1.1776062e-05 | D46: ='DF raw data'!I51 -> -2.5019849e-06 | F46: 9.325548968e-07 | G46: -1.181761875e-05 | H46: -2.505227472e-06 | J46: -1.778028825e-05 | K46: -5.822441131e-05 | L46: -5.322457499e-05 | M46: -0.0005014794772 | N46: 1.743899054e-08
A47: 20.43856 | B47: ='DF raw data'!G52 -> 9.8388034e-07 | C47: ='DF raw data'!H52 -> 2.7512212e-06 | D47: ='DF raw data'!I52 -> 1.3922821e-06 | F47: 9.851554489e-07 | G47: 2.760930032e-06 | H47: 1.394086498e-06 | J47: -1.72875529e-05 | K47: -6.687095377e-05 | L47: -5.184366823e-05 | M47: -0.0005274096063 | N47: 1.893278111e-08
A48: 20.93872 | B48: ='DF raw data'!G53 -> -3.8661906e-07 | C48: ='DF raw data'!H53 -> 8.1128592e-06 | D48: ='DF raw data'!I53 -> 1.4323943e-05 | F48: -3.871201183e-07 | G48: 8.141488809e-06 | H48: 1.434250683e-05 | J48: -1.74811749e-05 | K48: -7.561433821e-05 | L48: -4.777162119e-05 | M48: -0.0005513030603 | N48: 2.022705478e-08
A49: 21.43888 | B49: ='DF raw data'!G54 -> -2.1245689e-06 | C49: ='DF raw data'!H54 -> -4.9959749e-07 | D49: ='DF raw data'!I54 -> 1.0085043e-05 | F49: -2.127322341e-06 | G49: -5.013605282e-07 | H49: 1.009811322e-05 | J49: -1.854517644e-05 | K49: -8.488989366e-05 | L49: -4.802238167e-05 | M49: -0.0005753219348 | N49: 2.155251515e-08
A50: 21.93904 | B50: ='DF raw data'!G55 -> -5.5515937e-07 | C50: ='DF raw data'!H55 -> -1.054493e-05 | D50: ='DF raw data'!I55 -> 1.032611e-05 | F50: -5.558788565e-07 | G50: -1.058214219e-05 | H50: 1.033949264e-05 | J50: -1.882320481e-05 | K50: -9.430450778e-05 | L50: -5.33151459e-05 | M50: -0.0006019880381 | N50: 2.315143555e-08
A51: 22.4392 | B51: ='DF raw data'!G56 -> 5.0061118e-07 | C51: ='DF raw data'!H56 -> 1.0249028e-05 | D51: ='DF raw data'!I56 -> 1.1081966e-05 | F51: 5.012599721e-07 | G51: 1.028519597e-05 | H51: 1.109632823e-05 | J51: -1.857249463e-05 | K51: -0.0001035937267 | L51: -4.817090229e-05 | M51: -0.0006260811966 | N51: 2.44845487e-08
A52: 22.93936 | B52: ='DF raw data'!G57 -> -1.7041203e-06 | C52: ='DF raw data'!H57 -> 1.4263452e-05 | D52: ='DF raw data'!I57 -> 6.8361392e-06 | F52: -1.70632884e-06 | G52: 1.431378654e-05 | H52: 6.844998836e-06 | J52: -1.942593206e-05 | K52: -0.0001133098009 | L52: -4.101171881e-05 | M52: -0.0006465936179 | N52: 2.551454215e-08
A53: 23.43952 | B53: ='DF raw data'!G58 -> -4.1531493e-06 | C53: ='DF raw data'!H58 -> -4.0922578e-06 | D53: ='DF raw data'!I58 -> 4.777698e-06 | F53: -4.158531781e-06 | G53: -4.106699039e-06 | H53: 4.783889897e-06 | J53: -2.150586331e-05 | K53: -0.0001240661735 | L53: -4.30657254e-05 | M53: -0.0006681333711 | N53: 2.667349233e-08
A54: 23.93968 | B54: ='DF raw data'!G59 -> -6.4475935e-06 | C54: ='DF raw data'!H59 -> -1.0118497e-05 | D54: ='DF raw data'!I59 -> 3.2127414e-06 | F54: -6.455949581e-06 | G54: -1.015420434e-05 | H54: 3.216905113e-06 | J54: -2.473487106e-05 | K54: -0.0001364375666 | L54: -4.814445224e-05 | M54: -0.0006922133004 | N54: 2.813881214e-08
A55: 24.43984 | B55: ='DF raw data'!G60 -> -4.4956432e-06 | C55: ='DF raw data'!H60 -> -1.0905583e-05 | D55: ='DF raw data'!I60 -> 8.4370548e-08 | F55: -4.501469554e-06 | G55: -1.09440679e-05 | H55: 8.447989223e-08 | J55: -2.698632607e-05 | K55: -0.0001499350474 | L55: -5.361823724e-05 | M55: -0.0007190309979 | N55: 2.994097723e-08
A56: 24.94 | B56: ='DF raw data'!G61 -> -1.8735337e-06 | C56: ='DF raw data'!H61 -> -5.1083052e-06 | D56: ='DF raw data'!I61 -> -3.5478165e-06 | F56: -1.8759618e-06 | G56: -5.126331987e-06 | H56: -3.55241447e-06 | J56: -2.792460712e-05 | K56: -0.0001639018189 | L56: -5.618222345e-05 | M56: -0.0007471310988 | N56: 3.190971999e-08
A57: 25.44016 | B57: ='DF raw data'!G62 -> -3.1910206e-06 | C57: ='DF raw data'!H62 -> -1.2048943e-06 | D57: ='DF raw data'!I62 -> -3.1432442e-06 | F57: -3.195156163e-06 | G57: -1.209146272e-06 | H57: -3.147317844e-06 | J57: -2.952269643e-05 | K57: -0.0001786678908 | L57: -5.678699005e-05 | M57: -0.0007755336797 | N57: 3.395855132e-08
A58: 25.94032 | B58: ='DF raw data'!G63 -> -2.4049843e-06 | C58: ='DF raw data'!H63 -> -3.1701431e-06 | D58: ='DF raw data'!I63 -> 7.463414e-06 | F58: -2.40810116e-06 | G58: -3.181330273e-06 | H58: 7.473086585e-06 | J58: -3.07271323e-05 | K58: -0.0001940363733 | L58: -5.83781642e-05 | M58: -0.0008047321023 | N58: 3.613533103e-08
A59: 26.44048 | B59: ='DF raw data'!G64 -> 3.8955099e-07 | C59: ='DF raw data'!H64 -> -7.4163281e-06 | D59: ='DF raw data'!I64 -> 2.6930925e-06 | F59: 3.900558481e-07 | G59: -7.442499709e-06 | H59: 2.696582748e-06 | J59: -3.053204197e-05 | K59: -0.0002093072794 | L59: -6.210060485e-05 | M59: -0.0008357923408 | N59: 3.853044257e-08
A60: 26.94064 | B60: ='DF raw data'!G65 -> 2.3595553e-07 | C60: ='DF raw data'!H65 -> -4.7058902e-06 | D60: ='DF raw data'!I65 -> -5.8381424e-06 | F60: 2.362613284e-07 | G60: -4.722496897e-06 | H60: -5.845708633e-06 | J60: -3.041387351e-05 | K60: -0.0002245190823 | L60: -6.44626089e-05 | M60: -0.0008680339593 | N60: 4.107147127e-08
A61: 27.4408 | B61: ='DF raw data'!G66 -> 1.6693338e-06 | C61: ='DF raw data'!H66 -> -4.6433115e-06 | D61: ='DF raw data'!I66 -> -9.3880099e-06 | F61: 1.671497257e-06 | G61: -4.659697362e-06 | H61: -9.400176761e-06 | J61: -2.957785744e-05 | K61: -0.0002393127435 | L61: -6.679320313e-05 | M61: -0.0009014412478 | N61: 4.374041587e-08
A62: 27.94096 | B62: ='DF raw data'!G67 -> 4.8350594e-06 | C62: ='DF raw data'!H67 -> 1.1164727e-06 | D62: ='DF raw data'!I67 -> -6.4006613e-06 | F62: 4.841325637e-06 | G62: 1.12041264e-06 | H62: -6.408956557e-06 | J62: -2.715642001e-05 | K62: -0.0002528952986 | L62: -6.623281755e-05 | M62: -0.0009345682538 | N62: 4.630336439e-08
A63: 28.44112 | B63: ='DF raw data'!G68 -> 6.4746964e-06 | C63: ='DF raw data'!H68 -> 8.4681483e-07 | D63: ='DF raw data'!I68 -> -2.230388e-06 | F63: 6.483087607e-06 | G63: 8.498031695e-07 | H63: -2.233278583e-06 | J63: -2.391383891e-05 | K63: -0.0002648560442 | L63: -6.580777999e-05 | M63: -0.0009674826731 | N63: 4.875541659e-08
A64: 28.94128 | B64: ='DF raw data'!G69 -> 4.2564752e-06 | C64: ='DF raw data'!H69 -> -3.4508732e-06 | D64: ='DF raw data'!I69 -> -6.3089551e-06 | F64: 4.261991592e-06 | G64: -3.463051046e-06 | H64: -6.317131506e-06 | J64: -2.17821612e-05 | K64: -0.00027575061 | L64: -6.753985961e-05 | M64: -0.001001263409 | N64: 5.127426996e-08
A65: 29.44144 | B65: ='DF raw data'!G70 -> 1.6241501e-06 | C65: ='DF raw data'!H70 -> 2.4056451e-06 | D65: ='DF raw data'!I70 -> -3.8262237e-06 | F65: 1.626254999e-06 | G65: 2.414134423e-06 | H65: -3.831182486e-06 | J65: -2.09687735e-05 | K65: -0.0002862383517 | L65: -6.633240613e-05 | M65: -0.001034440225 | N65: 5.369488309e-08
A66: 29.9416 | B66: ='DF raw data'!G71 -> 4.2457941e-06 | C66: ='DF raw data'!H71 -> 1.0261417e-06 | D66: ='DF raw data'!I71 -> -7.6300205e-07 | F66: 4.251296649e-06 | G66: 1.029762869e-06 | H66: -7.639909007e-07 | J66: -1.884244496e-05 | K66: -0.000295662589 | L66: -6.581735994e-05 | M66: -0.001067359436 | N66: 5.603911431e-08
A67: 30.44176 | B67: ='DF raw data'!G72 -> 9.9120916e-06 | C67: ='DF raw data'!H72 -> -1.4281425e-05 | D67: ='DF raw data'!I72 -> -1.3945261e-06 | F67: 9.924937671e-06 | G67: -1.433182297e-05 | H67: -1.396333406e-06 | J67: -1.387838814e-05 | K67: -0.0003026040036 | L67: -7.298556451e-05 | M67: -0.001103863896 | N67: 5.879974857e-08
A68: 30.94192 | B68: ='DF raw data'!G73 -> 1.014044e-05 | C68: ='DF raw data'!H73 -> -1.2306035e-05 | D68: ='DF raw data'!I73 -> 2.6872281e-06 | F68: 1.015358201e-05 | G68: -1.234946198e-05 | H68: 2.690710748e-06 | J68: -8.79997256e-06 | K68: -0.0003070053979 | L68: -7.916227142e-05 | M68: -0.001143457698 | N68: 6.197281599e-08
A69: 31.44208 | B69: ='DF raw data'!G74 -> 2.5335428e-06 | C69: ='DF raw data'!H74 -> -1.1391141e-06 | D69: ='DF raw data'!I74 -> -8.5211798e-07 | F69: 2.536826271e-06 | G69: -1.143133939e-06 | H69: -8.532223249e-07 | J69: -7.531153532e-06 | K69: -0.0003107721796 | L69: -7.973402129e-05 | M69: -0.001183337466 | N69: 6.518095848e-08
A70: 31.94224 | B70: ='DF raw data'!G75 -> -3.4734442e-06 | C70: ='DF raw data'!H75 -> 1.5841349e-06 | D70: ='DF raw data'!I75 -> -9.0648264e-06 | F70: -3.477945784e-06 | G70: 1.589725181e-06 | H70: -9.076574415e-06 | J70: -9.270682895e-06 | K70: -0.0003154090044 | L70: -7.893890434e-05 | M70: -0.001222819548 | N70: 6.834061734e-08
A71: 32.4424 | B71: ='DF raw data'!G76 -> -3.9479673e-06 | C71: ='DF raw data'!H76 -> -1.6047754e-06 | D71: ='DF raw data'!I76 -> -6.7498781e-06 | F71: -3.953083866e-06 | G71: =(1-$G$1*($B$2-$G$2))*C71*$M$2/$M$1 -> -1.61043852e-06 | H71: -6.758625942e-06 | J71: -1.124785732e-05 | K71: -0.0003210347327 | L71: -7.974438127e-05 | M71: -0.001262704498 | N71: 7.158449537e-08
A72: =A71+$B$1 -> 32.94256 | B72: ='DF raw data'!G77 -> -1.1186531e-06 | C72: ='DF raw data'!H77 -> 3.1412289e-06 | D72: ='DF raw data'!I77 -> 4.5481415e-06 | F72: -1.120102874e-06 | G72: 3.152314037e-06 | H72: 4.554035891e-06 | J72: =F72*$B$1+J71 -> -1.180808797e-05 | K72: =J72*$B$1+K71 -> -0.000326940666 | L72: =G72*$B$1+L71 -> -7.816771988e-05 | M72: =L72*$B$1+M71 -> -0.001301800865 | N72: =(J72^2+L72^2)*$B$1+N71 -> 7.471030699e-08
A73: 33.44272 | B73: ='DF raw data'!G78 -> 1.7472302e-06 | C73: ='DF raw data'!H78 -> 6.9553789e-06 | D73: ='DF raw data'!I78 -> 1.0695874e-05 | F73: 1.74949461e-06 | G73: 6.979923857e-06 | H73: 1.070973585e-05 | J73: -1.093306075e-05 | K73: -0.0003324089456 | L73: -7.467664117e-05 | M73: -0.001339151134 | N73: 7.755928465e-08
A74: 33.94288 | B74: ='DF raw data'!G79 -> -1.350145e-06 | C74: ='DF raw data'!H79 -> 1.9411843e-06 | D74: ='DF raw data'!I79 -> 1.4900694e-05 | F74: -1.351894788e-06 | G74: 1.948034579e-06 | H74: 1.49200053e-05 | J74: -1.160922445e-05 | K74: -0.0003382154153 | L74: -7.370231219e-05 | M74: -0.001376014082 | N74: 8.03435778e-08
A75: 34.44304 | B75: ='DF raw data'!G80 -> -5.8314363e-06 | C75: ='DF raw data'!H80 -> -7.4464833e-06 | D75: ='DF raw data'!I80 -> 9.4692932e-06 | F75: -5.838993841e-06 | G75: -7.472761324e-06 | H75: 9.481565404e-06 | J75: -1.452965561e-05 | K75: -0.0003454825679 | L75: -7.743988849e-05 | M75: -0.001414746417 | N75: 8.34485947e-08
A76: 34.9432 | B76: ='DF raw data'!G81 -> -1.2540878e-06 | C76: ='DF raw data'!H81 -> -1.5325907e-06 | D76: ='DF raw data'!I81 -> 2.5430768e-06 | F76: -1.255713098e-06 | G76: -1.537999086e-06 | H76: 2.546372628e-06 | J76: -1.515771307e-05 | K76: -0.0003530638497 | L76: -7.820913412e-05 | M76: -0.001453863497 | N76: 8.662282259e-08
A77: 35.44336 | B77: ='DF raw data'!G82 -> 4.3559376e-06 | C77: ='DF raw data'!H82 -> 1.3158121e-06 | D77: ='DF raw data'!I82 -> -9.8390012e-07 | F77: 4.361582895e-06 | G77: 1.320455492e-06 | H77: -9.851752546e-07 | J77: -1.297622377e-05 | K77: -0.0003595540377 | L77: -7.75486951e-05 | M77: -0.001492650253 | N77: 8.971490298e-08
A78: 35.94352 | B78: ='DF raw data'!G83 -> -1.5690748e-08 | C78: ='DF raw data'!H83 -> 2.9795153e-06 | D78: ='DF raw data'!I83 -> -2.4969354e-06 | F78: -1.571108321e-08 | G78: 2.990029763e-06 | H78: -2.500171428e-06 | J78: -1.298408182e-05 | K78: -0.0003660481561 | L78: -7.605320181e-05 | M78: -0.001530689022 | N78: 9.269219335e-08
A79: 36.44368 | B79: ='DF raw data'!G84 -> -1.9545589e-06 | C79: ='DF raw data'!H84 -> -5.0658755e-06 | D79: ='DF raw data'!I84 -> -6.6459775e-06 | F79: -1.957092008e-06 | G79: -5.083752556e-06 | H79: -6.654590687e-06 | J79: -1.396294096e-05 | K79: -0.0003730318607 | L79: -7.859589149e-05 | M79: -0.001569999543 | N79: 9.587935186e-08
A80: 36.94384 | B80: ='DF raw data'!G85 -> 1.4897777e-06 | C80: ='DF raw data'!H85 -> 2.1109051e-06 | D80: ='DF raw data'!I85 -> -6.5065556e-06 | F80: 1.491708452e-06 | G80: 2.11835431e-06 | H80: -6.514988096e-06 | J80: -1.321684806e-05 | K80: -0.0003796423994 | L80: -7.75363754e-05 | M80: -0.001608780137 | N80: 9.8973629e-08
A81: 37.444 | B81: ='DF raw data'!G86 -> 4.1779094e-06 | C81: ='DF raw data'!H86 -> 6.7844585e-06 | D81: ='DF raw data'!I86 -> -3.9606543e-06 | F81: 4.183323971e-06 | G81: 6.808400293e-06 | H81: -3.965787308e-06 | J81: -1.112451675e-05 | K81: -0.0003852064377 | L81: -7.413108591e-05 | M81: -0.001645857541 | N81: 1.017841145e-07
A82: 37.94416 | B82: ='DF raw data'!G87 -> 1.8038371e-06 | C82: ='DF raw data'!H87 -> 2.3034397e-06 | D82: ='DF raw data'!I87 -> -4.6242071e-06 | F82: 1.806174873e-06 | G82: 2.311568348e-06 | H82: -4.630200072e-06 | J82: -1.022114032e-05 | K82: -0.0003903186432 | L82: -7.297493188e-05 | M82: -0.001682356683 | N82: 1.044998894e-07
A83: 38.44432 | B83: ='DF raw data'!G88 -> -4.023128e-06 | C83: ='DF raw data'!H88 -> 9.8678265e-06 | D83: ='DF raw data'!I88 -> 1.0629141e-06 | F83: -4.028341974e-06 | G83: 9.902649244e-06 | H83: 1.064291637e-06 | J83: -1.223595584e-05 | K83: -0.0003964385789 | L83: -6.802202284e-05 | M83: -0.001716378577 | N83: 1.068890108e-07
A84: 38.94448 | B84: ='DF raw data'!G89 -> -7.8315825e-06 | C84: ='DF raw data'!H89 -> 9.6201857e-06 | D84: ='DF raw data'!I89 -> 5.8631836e-06 | F84: -7.841732231e-06 | G84: 9.65413454e-06 | H84: 5.870782286e-06 | J84: -1.615807664e-05 | K84: -0.0004045202025 | L84: -6.319341091e-05 | M84: -0.001747985394 | N84: 1.090169368e-07
A85: 39.44464 | B85: ='DF raw data'!G90 -> -5.6700992e-06 | C85: ='DF raw data'!H90 -> -7.4044538e-06 | D85: ='DF raw data'!I90 -> 1.4891251e-06 | F85: -5.677447649e-06 | G85: -7.430583505e-06 | H85: 1.491055006e-06 | J85: -1.899770885e-05 | K85: -0.0004140220966 | L85: -6.690989155e-05 | M85: -0.001781451045 | N85: 1.114366341e-07
A86: 39.9448 | B86: ='DF raw data'!G91 -> -1.560944e-06 | C86: ='DF raw data'!H91 -> -1.2533795e-05 | D86: ='DF raw data'!I91 -> -5.6334261e-06 | F86: -1.562966983e-06 | G86: -1.257802573e-05 | H86: -5.64072702e-06 | J86: -1.977944242e-05 | K86: -0.0004239149825 | L86: -7.32009169e-05 | M86: -0.001818063216 | N86: 1.143123544e-07
A87: 40.44496 | B87: ='DF raw data'!G92 -> -1.2731799e-06 | C87: ='DF raw data'!H92 -> 6.440066e-07 | D87: ='DF raw data'!I92 -> -3.6378638e-06 | F87: =(1-$G$1*($B$2-$G$2))*B87 -> -1.274829941e-06 | G87: 6.46279246e-07 | H87: -3.642578471e-06 | J87: -2.041706136e-05 | K87: -0.0004341267799 | L87: -7.287767387e-05 | M87: -0.001854513713 | N87: 1.171772767e-07
A88: 40.94512 | B88: ='DF raw data'!G93 -> -4.4260996e-06 | C88: ='DF raw data'!H93 -> -1.1364707e-05 | D88: ='DF raw data'!I93 -> 1.7505503e-06 | F88: -4.431835825e-06 | G88: -1.140481211e-05 | H88: 1.752819013e-06 | J88: -2.263368837e-05 | K88: -0.0004454472455 | L88: -7.85819047e-05 | M88: -0.001893817239 | N88: 1.205220465e-07
A89: 41.44528 | B89: ='DF raw data'!G94 -> -6.8165864e-06 | C89: ='DF raw data'!H94 -> -3.9920533e-06 | D89: ='DF raw data'!I94 -> -6.0479229e-06 | F89: -6.825420696e-06 | G89: -4.006140926e-06 | H89: -6.055761008e-06 | J89: -2.604749078e-05 | K89: -0.0004584751585 | L89: -8.058561614e-05 | M89: -0.00193412294 | N89: 1.241094508e-07
A90: 41.94544 | B90: ='DF raw data'!G95 -> -4.06658e-06 | C90: ='DF raw data'!H95 -> 8.6776413e-07 | D90: ='DF raw data'!I95 -> -1.7498287e-05 | F90: -4.071850288e-06 | G90: 8.708263979e-07 | H90: -1.752096478e-05 | J90: -2.808406742e-05 | K90: -0.0004725216856 | L90: -8.015006361e-05 | M90: -0.001974210796 | N90: 1.277169786e-07
A91: 42.4456 | B91: ='DF raw data'!G96 -> 1.7844831e-06 | C91: ='DF raw data'!H96 -> -1.168469e-06 | D91: ='DF raw data'!I96 -> -3.6623546e-06 | F91: 1.78679579e-06 | G91: -1.17259243e-06 | H91: -3.667101012e-06 | J91: -2.719038364e-05 | K91: -0.0004861212279 | L91: -8.073654744e-05 | M91: -0.002014591988 | N91: 1.313469933e-07
A92: 42.94576 | B92: ='DF raw data'!G97 -> 7.5186455e-07 | C92: ='DF raw data'!H97 -> 5.6157696e-06 | D92: ='DF raw data'!I97 -> 4.2537854e-06 | F92: 7.528389665e-07 | G92: 5.635587187e-06 | H92: 4.259298306e-06 | J92: -2.68138437e-05 | K92: -0.00049953244 | L92: -7.791785215e-05 | M92: -0.002053563381 | N92: 1.347431667e-07
A93: 43.44592 | B93: ='DF raw data'!G98 -> -4.2111533e-06 | C93: ='DF raw data'!H98 -> -2.9430496e-06 | D93: ='DF raw data'!I98 -> -8.4153874e-07 | F93: -4.216610955e-06 | G93: -2.953435379e-06 | H93: -8.426293742e-07 | J93: -2.892282384e-05 | K93: -0.0005139984796 | L93: -7.939504239e-05 | M93: -0.002093273605 | N93: 1.383143604e-07
A94: 43.94608 | B94: ='DF raw data'!G99 -> -2.5872762e-06 | C94: ='DF raw data'!H99 -> -8.2605229e-06 | D94: ='DF raw data'!I99 -> -3.6586293e-06 | F94: -2.59062931e-06 | G94: -8.289673602e-06 | H94: -3.663370884e-06 | J94: -3.0218553e-05 | K94: -0.000529112591 | L94: -8.354120554e-05 | M94: -0.002135057575 | N94: 1.422617701e-07
A95: 44.44624 | B95: ='DF raw data'!G100 -> 2.4123835e-06 | C95: ='DF raw data'!H100 -> 9.6744907e-06 | D95: ='DF raw data'!I100 -> -2.2974723e-06 | F95: 2.415509949e-06 | G95: 9.708631178e-06 | H95: -2.300449824e-06 | J95: -2.901041154e-05 | K95: -0.0005436224385 | L95: -7.868533657e-05 | M95: -0.002174412832 | N95: 1.457793885e-07
A96: 44.9464 | B96: ='DF raw data'!G101 -> 6.1147839e-06 | C96: ='DF raw data'!H101 -> 4.7601015e-06 | D96: ='DF raw data'!I101 -> -2.6665089e-06 | F96: 6.12270866e-06 | G96: 4.776899505e-06 | H96: -2.669964696e-06 | J96: -2.594807758e-05 | K96: -0.0005566006289 | L96: -7.629612252e-05 | M96: -0.002212573101 | N96: 1.490276281e-07
A97: 45.44656 | B97: ='DF raw data'!G102 -> 5.5701785e-06 | C97: ='DF raw data'!H102 -> -8.7678136e-06 | D97: ='DF raw data'!I102 -> -3.0993119e-06 | F97: 5.577397451e-06 | G97: -8.798754489e-06 | H97: -3.103328608e-06 | J97: -2.315848647e-05 | K97: -0.0005681835775 | L97: -8.069690756e-05 | M97: -0.002252934466 | N97: 1.52552909e-07
A98: 45.94672 | B98: ='DF raw data'!G103 -> 2.1578705e-06 | C98: ='DF raw data'!H103 -> 1.1727935e-05 | D98: ='DF raw data'!I103 -> 4.2749439e-06 | F98: 2.1606671e-06 | G98: 1.176932191e-05 | H98: 4.280484227e-06 | J98: -2.207780721e-05 | K98: -0.0005792260136 | L98: -7.481036351e-05 | M98: -0.002290351618 | N98: 1.555958925e-07
A99: 46.44688 | B99: ='DF raw data'!G104 -> -2.0454065e-06 | C99: ='DF raw data'!H104 -> 9.1451857e-06 | D99: ='DF raw data'!I104 -> 1.3019946e-05 | F99: -2.048057347e-06 | G99: 9.177458304e-06 | H99: 1.303681985e-05 | J99: -2.310216357e-05 | K99: -0.0005907807917 | L99: -7.022016597e-05 | M99: -0.002325472936 | N99: 1.583290577e-07
A100: 46.94704 | B100: ='DF raw data'!G105 -> -6.0424973e-06 | C100: ='DF raw data'!H105 -> -6.8835534e-06 | D100: ='DF raw data'!I105 -> 9.5918203e-06 | F100: -6.050328377e-06 | G100: -6.907844891e-06 | H100: 9.604251299e-06 | J100: -2.612829581e-05 | K100: -0.0006038491202 | L100: -7.367519367e-05 | M100: -0.002362322321 | N100: 1.613853964e-07
A101: 47.4472 | B101: ='DF raw data'!G106 -> -6.9995476e-06 | C101: ='DF raw data'!H106 -> 6.5405538e-06 | D101: ='DF raw data'!I106 -> 5.6615959e-06 | F101: -7.008619014e-06 | G101: 6.563634874e-06 | H101: 5.668933328e-06 | J101: -2.96337267e-05 | K101: -0.0006186707249 | L101: -7.039232605e-05 | M101: -0.002397529747 | N101: 1.643029484e-07
A102: 47.94736 | B102: ='DF raw data'!G107 -> -5.3179283e-06 | C102: ='DF raw data'!H107 -> 9.0768708e-06 | D102: ='DF raw data'!I107 -> 1.7382393e-06 | F102: -5.324820335e-06 | G102: 9.108902327e-06 | H102: 1.740492058e-06 | J102: -3.229698884e-05 | K102: -0.0006348243868 | L102: -6.583641746e-05 | M102: -0.002430458489 | N102: 1.669925735e-07
A103: 48.44752 | B103: ='DF raw data'!G108 -> -5.1696879e-06 | C103: ='DF raw data'!H108 -> -2.2401557e-06 | D103: ='DF raw data'!I108 -> 9.9521856e-07 | F103: -5.176387816e-06 | G103: -2.248061024e-06 | H103: 9.965083633e-07 | J103: -3.488601097e-05 | K103: -0.0006522729741 | L103: -6.696080766e-05 | M103: -0.002463949607 | N103: 1.698438773e-07
A104: 48.94768 | B104: ='DF raw data'!G109 -> -7.4059244e-06 | C104: ='DF raw data'!H109 -> 9.7856355e-06 | D104: ='DF raw data'!I109 -> 2.1521978e-06 | F104: -7.415522478e-06 | G104: 9.820168199e-06 | H104: 2.154987048e-06 | J104: -3.859495869e-05 | K104: -0.0006715766286 | L104: -6.204915234e-05 | M104: -0.002494984111 | N104: 1.725145658e-07
A105: 49.44784 | B105: ='DF raw data'!G110 -> -2.8626857e-06 | C105: ='DF raw data'!H110 -> 9.6742242e-06 | D105: ='DF raw data'!I110 -> -4.1337639e-06 | F105: -2.866395741e-06 | G105: 9.708363737e-06 | H105: -4.139121258e-06 | J105: -4.002861518e-05 | K105: -0.0006915973408 | L105: -5.719341713e-05 | M105: -0.00252358997 | N105: 1.74952034e-07
A106: 49.948 | B106: ='DF raw data'!G111 -> 7.9263664e-06 | C106: ='DF raw data'!H111 -> -1.80545e-06 | D106: ='DF raw data'!I111 -> -5.73446e-06 | F106: 7.936638971e-06 | G106: -1.811821284e-06 | H106: -5.74189186e-06 | J106: -3.605902584e-05 | K106: -0.0007096326232 | L106: -5.809961766e-05 | M106: -0.002552649075 | N106: 1.772906916e-07
A107: 50.44816 | B107: ='DF raw data'!G112 -> 1.0315267e-05 | C107: ='DF raw data'!H112 -> -8.1653898e-06 | D107: ='DF raw data'!I112 -> -1.1772369e-06 | F107: 1.032863559e-05 | G107: -8.194204786e-06 | H107: -1.178762599e-06 | J107: -3.089305546e-05 | K107: -0.0007250840938 | L107: -6.219803113e-05 | M107: -0.002583758042 | N107: 1.797029512e-07
A108: 50.94832 | B108: ='DF raw data'!G113 -> 2.2682759e-06 | C108: ='DF raw data'!H113 -> 3.7927537e-06 | D108: ='DF raw data'!I113 -> 7.6550914e-06 | F108: 2.271215586e-06 | G108: 3.806138014e-06 | H108: 7.665012398e-06 | J108: -2.975708427e-05 | K108: -0.000739967397 | L108: -6.029435314e-05 | M108: -0.002613914866 | N108: 1.819641211e-07
A109: 51.44848 | B109: ='DF raw data'!G114 -> -1.7890162e-06 | C109: ='DF raw data'!H114 -> 1.793748e-06 | D109: ='DF raw data'!I114 -> 9.1265956e-06 | F109: -1.791334765e-06 | G109: 1.800077988e-06 | H109: 9.138423668e-06 | J109: -3.065303827e-05 | K109: -0.0007552988207 | L109: -5.939402613e-05 | M109: -0.002643621382 | N109: 1.841984654e-07
A110: 51.94864 | B110: ='DF raw data'!G115 -> 1.361357e-06 | C110: ='DF raw data'!H115 -> 1.0915217e-06 | D110: ='DF raw data'!I115 -> 8.1425951e-06 | F110: 1.363121319e-06 | G110: 1.09537359e-06 | H110: 8.153147903e-06 | J110: -2.997125951e-05 | K110: -0.0007702892458 | L110: -5.884616408e-05 | M110: -0.00267305388 | N110: 1.863797369e-07
A111: 52.4488 | B111: ='DF raw data'!G116 -> 5.4559023e-06 | C111: ='DF raw data'!H116 -> 7.6637434e-06 | D111: ='DF raw data'!I116 -> 8.5173667e-07 | F111: 5.462973149e-06 | G111: 7.690788117e-06 | H111: 8.528405207e-07 | J111: -2.723889886e-05 | K111: -0.0007839130535 | L111: -5.49995395e-05 | M111: -0.002700562449 | N111: 1.882637931e-07
A112: 52.94896 | B112: ='DF raw data'!G117 -> 6.1665742e-06 | C112: ='DF raw data'!H117 -> 6.3269363e-06 | D112: ='DF raw data'!I117 -> -4.1920007e-06 | F112: 6.17456608e-06 | G112: 6.349263535e-06 | H112: -4.197433533e-06 | J112: -2.415062789e-05 | K112: -0.0007959922315 | L112: -5.182389185e-05 | M112: -0.002726482687 | N112: 1.898988004e-07
A113: 53.44912 | B113: ='DF raw data'!G118 -> 5.1662755e-06 | C113: ='DF raw data'!H118 -> -4.9428554e-06 | D113: ='DF raw data'!I118 -> -4.1886683e-06 | F113: 5.172970993e-06 | G113: -4.960298328e-06 | H113: -4.194096814e-06 | J113: -2.156331472e-05 | K113: -0.000806777339 | L113: -5.430483466e-05 | M113: -0.002753643793 | N113: 1.916063425e-07
A114: 53.94928 | B114: ='DF raw data'!G119 -> 3.408564e-06 | C114: ='DF raw data'!H119 -> 2.1510666e-06 | D114: ='DF raw data'!I119 -> -2.7264773e-06 | F114: 3.412981499e-06 | G114: 2.158657536e-06 | H114: -2.730010815e-06 | J114: -1.985627789e-05 | K114: -0.000816708655 | L114: -5.32251605e-05 | M114: -0.002780264889 | N114: 1.932204536e-07
A115: 54.44944 | B115: ='DF raw data'!G120 -> 1.6868252e-06 | C115: ='DF raw data'!H120 -> 1.3954967e-05 | D115: ='DF raw data'!I120 -> -9.6431777e-06 | F115: 1.689011325e-06 | G115: 1.400421292e-05 | H115: -9.655675258e-06 | J115: -1.901150199e-05 | K115: -0.0008262174478 | L115: -4.622081337e-05 | M115: -0.002803382691 | N115: 1.944697536e-07
A116: 54.9496 | B116: ='DF raw data'!G121 -> 7.3237953e-07 | C116: ='DF raw data'!H121 -> 7.7359273e-06 | D116: ='DF raw data'!I121 -> -9.5532614e-06 | F116: 7.333286939e-07 | G116: 7.763226748e-06 | H116: -9.565642427e-06 | J116: -1.864472031e-05 | K116: -0.0008355427911 | L116: -4.233795788e-05 | M116: -0.002824558444 | N116: 1.955401602e-07
A117: 55.44976 | B117: ='DF raw data'!G122 -> -3.2681894e-06 | C117: ='DF raw data'!H122 -> 4.3919754e-06 | D117: ='DF raw data'!I122 -> -5.4037532e-06 | F117: -3.272424973e-06 | G117: 4.407474318e-06 | H117: -5.410756464e-06 | J117: -2.028145638e-05 | K117: -0.0008456867643 | L117: -4.013351552e-05 | M117: -0.002844631623 | N117: 1.96551502e-07
A118: 55.94992 | B118: ='DF raw data'!G123 -> -5.426471e-06 | C118: ='DF raw data'!H123 -> -5.2670848e-06 | D118: ='DF raw data'!I123 -> -4.2857005e-06 | F118: -5.433503706e-06 | G118: -5.285671907e-06 | H118: -4.291254768e-06 | J118: -2.29990776e-05 | K118: -0.000857189983 | L118: -4.277719718e-05 | M118: -0.002866027066 | N118: 1.977313025e-07
A119: 56.45008 | B119: ='DF raw data'!G124 -> -2.996185e-06 | C119: ='DF raw data'!H124 -> 7.4634477e-07 | D119: ='DF raw data'!I124 -> 1.3581158e-07 | F119: -3.000068056e-06 | G119: 7.48978559e-07 | H119: 1.359875918e-07 | J119: -2.449959164e-05 | K119: -0.0008694436987 | L119: -4.240258807e-05 | M119: -0.002887235145 | N119: 1.989307909e-07
A120: 56.95024 | B120: ='DF raw data'!G125 -> 8.8363214e-07 | C120: ='DF raw data'!H125 -> 4.1147141e-06 | D120: ='DF raw data'!I125 -> -1.7703002e-06 | F120: 8.847773273e-07 | G120: 4.129234586e-06 | H120: -1.772594509e-06 | J120: -2.405706141e-05 | K120: -0.0008814760786 | L120: -4.03373101e-05 | M120: -0.002907410254 | N120: 2.000340643e-07
A121: 57.4504 | B121: ='DF raw data'!G126 -> 4.6029709e-06 | C121: ='DF raw data'!H126 -> 4.0560062e-06 | D121: ='DF raw data'!I126 -> -2.961287e-06 | F121: 4.60893635e-06 | G121: 4.070319511e-06 | H121: -2.965124828e-06 | J121: -2.17518558e-05 | K121: -0.0008923554868 | L121: -3.830149909e-05 | M121: -0.002926567132 | N121: 2.010044487e-07
A122: 57.95056 | B122: ='DF raw data'!G127 -> 1.0489279e-05 | C122: ='DF raw data'!H127 -> 1.5741268e-06 | D122: ='DF raw data'!I127 -> -4.4677304e-06 | F122: 1.050287311e-05 | G122: 1.579681763e-06 | H122: -4.473520579e-06 | J122: -1.649873879e-05 | K122: -0.000900607496 | L122: -3.751140546e-05 | M122: -0.002945328836 | N122: 2.018443744e-07
A123: 58.45072 | B123: ='DF raw data'!G128 -> 1.3431065e-05 | C123: ='DF raw data'!H128 -> 6.5360173e-06 | D123: ='DF raw data'!I128 -> -7.655939e-06 | F123: 1.344847166e-05 | G123: 6.559082365e-06 | H123: -7.665861097e-06 | J123: -9.772351204e-06 | K123: -0.0009054952351 | L123: -3.423081482e-05 | M123: -0.002962449721 | N123: 2.024782009e-07
A124: 58.95088 | B124: ='DF raw data'!G129 -> 1.004399e-05 | C124: ='DF raw data'!H129 -> 8.0313357e-06 | D124: ='DF raw data'!I129 -> -1.3558616e-06 | F124: 1.005700701e-05 | G124: 8.05967762e-06 | H124: -1.357618797e-06 | J124: -4.742238578e-06 | K124: -0.0009078671132 | L124: -3.019968647e-05 | M124: -0.002977554396 | N124: 2.029456054e-07
A125: 59.45104 | B125: ='DF raw data'!G130 -> 5.212667e-06 | C125: ='DF raw data'!H130 -> 3.6023537e-06 | D125: ='DF raw data'!I130 -> 2.4642068e-07 | F125: 5.219422616e-06 | G125: 3.615066108e-06 | H125: 2.467400412e-07 | J125: -2.131692162e-06 | K125: -0.0009089333003 | L125: -2.8391575e-05 | M125: -0.002991754726 | N125: 2.033510479e-07
A126: 59.9512 | B126: ='DF raw data'!G131 -> 5.3322838e-06 | C126: ='DF raw data'!H131 -> -2.6836672e-06 | D126: ='DF raw data'!I131 -> -8.8053635e-09 | F126: 5.33919444e-06 | G126: -2.69313764e-06 | H126: -8.816775251e-09 | J126: 5.387593291e-07 | K126: -0.0009086638345 | L126: -2.973857472e-05 | M126: -0.003006628771 | N126: 2.03793526e-07
A127: 60.45136 | B127: ='DF raw data'!G132 -> 1.0558691e-05 | C127: ='DF raw data'!H132 -> 2.9293467e-06 | D127: ='DF raw data'!I132 -> -5.5851137e-06 | F127: 1.057237506e-05 | G127: 2.939684122e-06 | H127: -5.592352007e-06 | J127: 5.826638441e-06 | K127: -0.000905749583 | L127: -2.826826231e-05 | M127: -0.003020767426 | N127: 2.042101814e-07
A128: 60.95152 | B128: ='DF raw data'!G133 -> 1.2357264e-05 | C128: ='DF raw data'!H133 -> -4.194063e-06 | D128: ='DF raw data'!I133 -> -6.8503009e-06 | F128: 1.237327901e-05 | G128: -4.208863502e-06 | H128: -6.85917889e-06 | J128: 1.201525767e-05 | K128: -0.0008997400317 | L128: -3.037336748e-05 | M128: -0.003035958969 | N128: 2.047438061e-07
A129: 61.45168 | B129: ='DF raw data'!G134 -> 6.2254512e-06 | C129: ='DF raw data'!H134 -> -2.1046183e-07 | D129: ='DF raw data'!I134 -> -2.4848136e-06 | F129: 6.233519385e-06 | G129: -2.112045324e-07 | H129: -2.488033918e-06 | J129: 1.513301473e-05 | K129: -0.0008921711031 | L129: -3.047900354e-05 | M129: -0.003051203347 | N129: 2.053229802e-07
A130: 61.95184 | B130: ='DF raw data'!G135 -> 6.6509148e-07 | C130: ='DF raw data'!H135 -> -2.7690771e-07 | D130: ='DF raw data'!I135 -> -6.1939513e-06 | F130: 6.659534386e-07 | G130: -2.778848944e-07 | H130: -6.201978661e-06 | J130: 1.5466098e-05 | K130: -0.0008844355795 | L130: -3.061799045e-05 | M130: -0.003066517242 | N130: 2.059114993e-07
A131: 62.452 | B131: ='DF raw data'!G136 -> 1.2920608e-06 | C131: ='DF raw data'!H136 -> -1.0701572e-05 | D131: ='DF raw data'!I136 -> -2.9909002e-06 | F131: 1.293735311e-06 | G131: -1.073933696e-05 | H131: -2.994776407e-06 | J131: 1.611317265e-05 | K131: -0.0008763764151 | L131: -3.598937722e-05 | M131: -0.003084517688 | N131: 2.066891829e-07
A132: 62.95216 | B132: ='DF raw data'!G137 -> 2.8013999e-06 | C132: ='DF raw data'!H137 -> -1.8461444e-06 | D132: ='DF raw data'!I137 -> 6.1495653e-06 | F132: 2.805030514e-06 | G132: -1.852659291e-06 | H132: 6.157535137e-06 | J132: 1.751613671e-05 | K132: -0.0008676155441 | L132: -3.69160033e-05 | M132: -0.003102981597 | N132: 2.075242532e-07
A133: 63.45232 | B133: ='DF raw data'!G138 -> 6.8558057e-07 | C133: ='DF raw data'!H138 -> 5.4042875e-06 | D133: ='DF raw data'!I138 -> 9.6780695e-06 | F133: 6.864690824e-07 | G133: 5.423358784e-06 | H133: 9.690612278e-06 | J133: 1.785948109e-05 | K133: -0.000858682946 | L133: -3.420345617e-05 | M133: -0.003120088797 | N133: 2.082689101e-07
A134: 63.95248 | B134: ='DF raw data'!G139 -> -2.2080096e-06 | C134: ='DF raw data'!H139 -> 1.2703138e-06 | D134: ='DF raw data'!I139 -> 8.0920854e-06 | F134: -2.21087118e-06 | G134: 1.274796632e-06 | H134: 8.102572743e-06 | J134: 1.675369176e-05 | K134: -0.0008503034196 | L134: -3.356585388e-05 | M134: -0.003136877095 | N134: 2.089728117e-07
A135: 64.45264 | B135: ='DF raw data'!G140 -> -1.9966867e-06 | C135: ='DF raw data'!H140 -> 1.1858026e-05 | D135: ='DF raw data'!I140 -> 8.3082541e-06 | F135: -1.999274406e-06 | G135: =(1-$G$1*($B$2-$G$2))*C135*$M$2/$M$1 -> 1.189987199e-05 | H135: 8.319021597e-06 | J135: 1.575373467e-05 | K135: -0.0008424240316 | L135: -2.761401391e-05 | M135: -0.00315068852 | N135: 2.094783303e-07
A136: =A135+$B$1 -> 64.9528 | B136: ='DF raw data'!G141 -> 2.1346457e-06 | C136: ='DF raw data'!H141 -> 1.0583397e-05 | D136: ='DF raw data'!I141 -> 4.4680187e-06 | F136: 2.137412201e-06 | G136: 1.062074493e-05 | H136: 4.473809252e-06 | J136: =F136*$B$1+J135 -> 1.682278276e-05 | K136: =J136*$B$1+K135 -> -0.0008340099486 | L136: =G136*$B$1+L135 -> -2.230194212e-05 | M136: =L136*$B$1+M135 -> -0.003161843059 | N136: =(J136^2+L136^2)*$B$1+N135 -> 2.098686465e-07
A137: 65.45296 | B137: ='DF raw data'!G142 -> 7.5765238e-06 | C137: ='DF raw data'!H142 -> 8.171944e-07 | D137: ='DF raw data'!I142 -> 6.2763561e-06 | F137: 7.586342975e-06 | G137: 8.200782115e-07 | H137: 6.284490258e-06 | J137: 2.061716806e-05 | K137: -0.0008236980658 | L137: -2.18917718e-05 | M137: -0.003172792448 | N137: 2.103209499e-07
A138: 65.95312 | B138: ='DF raw data'!G143 -> 6.2934087e-06 | C138: ='DF raw data'!H143 -> 4.2242582e-06 | D138: ='DF raw data'!I143 -> 2.0283593e-05 | F138: 6.301564958e-06 | G138: 4.239165258e-06 | H138: 2.030988054e-05 | J138: 2.376895879e-05 | K138: -0.0008118097834 | L138: -1.977151091e-05 | M138: -0.003182681367 | N138: 2.107990408e-07
A139: 66.45328 | B139: ='DF raw data'!G144 -> -9.5826192e-07 | C139: ='DF raw data'!H144 -> -3.3481524e-07 | D139: ='DF raw data'!I144 -> 2.0586411e-05 | F139: -9.595038274e-07 | G139: -3.359967753e-07 | H139: 2.061309099e-05 | J139: 2.328905336e-05 | K139: -0.0008001615305 | L139: -1.993956305e-05 | M139: -0.003192654339 | N139: 2.112691743e-07
A140: 66.95344 | B140: ='DF raw data'!G145 -> -3.8675971e-06 | C140: ='DF raw data'!H145 -> -5.153538e-06 | D140: ='DF raw data'!I145 -> 9.6587737e-06 | F140: -3.872609506e-06 | G140: -5.17172441e-06 | H140: 9.671291471e-06 | J140: 2.135212899e-05 | K140: -0.0007894820496 | L140: -2.252625273e-05 | M140: -0.003203921069 | N140: 2.117510012e-07
A141: 67.4536 | B141: ='DF raw data'!G146 -> 1.2515724e-07 | C141: ='DF raw data'!H146 -> 1.676465e-06 | D141: ='DF raw data'!I146 -> 5.9155705e-06 | F141: 1.253194438e-07 | G141: 1.682381106e-06 | H141: 5.923237079e-06 | J141: 2.141480876e-05 | K141: -0.0007787712189 | L141: -2.1684793e-05 | M141: -0.003214766935 | N141: 2.122155619e-07
A142: 67.95376 | B142: ='DF raw data'!G147 -> 3.9477563e-06 | C142: ='DF raw data'!H147 -> 4.1125795e-06 | D142: ='DF raw data'!I147 -> 2.4721944e-06 | F142: 3.952872592e-06 | G142: 4.127092453e-06 | H142: 2.475398364e-06 | J142: 2.339187752e-05 | K142: -0.0007670715374 | L142: -1.962058644e-05 | M142: -0.003224580368 | N142: 2.126817848e-07
A143: 68.45392 | B143: ='DF raw data'!G148 -> 5.321268e-06 | C143: ='DF raw data'!H148 -> 2.1694784e-06 | D143: ='DF raw data'!I148 -> -2.3140469e-06 | F143: 5.328164363e-06 | G143: 2.17713431e-06 | H143: -2.317045905e-06 | J143: 2.60568122e-05 | K143: -0.0007540389622 | L143: -1.853167094e-05 | M143: -0.003233849168 | N143: 2.131931385e-07
A144: 68.95408 | B144: ='DF raw data'!G149 -> 4.1813873e-06 | C144: ='DF raw data'!H149 -> 1.0609015e-05 | D144: ='DF raw data'!I149 -> -6.7098022e-06 | F144: 4.186806378e-06 | G144: 1.064645334e-05 | H144: -6.718498104e-06 | J144: 2.815088528e-05 | K144: -0.0007399590155 | L144: -1.320674084e-05 | M144: -0.003240454652 | N144: 2.136767384e-07
A145: 69.45424 | B145: ='DF raw data'!G150 -> 2.3011924e-06 | C145: ='DF raw data'!H150 -> 3.3677886e-06 | D145: ='DF raw data'!I150 -> -4.19446e-06 | F145: 2.304174745e-06 | G145: 3.379673248e-06 | H145: -4.19989602e-06 | J145: 2.930334132e-05 | K145: -0.0007253026563 | L145: -1.151636347e-05 | M145: -0.003246214676 | N145: 2.141725532e-07
A146: 69.9544 | B146: ='DF raw data'!G151 -> -2.201665e-06 | C146: ='DF raw data'!H151 -> 1.283538e-05 | D146: ='DF raw data'!I151 -> 2.985324e-06 | F146: -2.204518358e-06 | G146: 1.288067499e-05 | H146: 2.98919298e-06 | J146: 2.820072942e-05 | K146: -0.0007111977794 | L146: -5.073965065e-06 | M146: -0.003248752471 | N146: 2.145831977e-07
A147: 70.45456 | B147: ='DF raw data'!G152 -> -4.8866677e-06 | C147: ='DF raw data'!H152 -> 6.199647e-06 | D147: ='DF raw data'!I152 -> 7.3802935e-06 | F147: -4.893000821e-06 | G147: 6.221525042e-06 | H147: 7.38985836e-06 | J147: 2.575344613e-05 | K147: -0.0006983169358 | L147: -1.9622071e-06 | M147: -0.003249733888 | N147: 2.149168495e-07
A148: 70.95472 | B148: ='DF raw data'!G153 -> -4.8581023e-06 | C148: ='DF raw data'!H153 -> 5.2529813e-06 | D148: ='DF raw data'!I153 -> 1.0665199e-05 | F148: -4.864398401e-06 | G148: 5.271518637e-06 | H148: 1.06790211e-05 | J148: 2.332046863e-05 | K148: -0.0006866529702 | L148: 6.743956616e-07 | M148: -0.003249396582 | N148: 2.151890862e-07
A149: 71.45488 | B149: ='DF raw data'!G154 -> -6.2832005e-06 | C149: ='DF raw data'!H154 -> 3.9041661e-06 | D149: ='DF raw data'!I154 -> 7.3998513e-06 | F149: -6.291343528e-06 | G149: 3.917943579e-06 | H149: 7.409441507e-06 | J149: 2.017379025e-05 | K149: -0.0006765628473 | L149: 2.633994322e-06 | M149: -0.003248079164 | N149: 2.153961123e-07
A150: 71.95504 | B150: ='DF raw data'!G155 -> -5.867947e-06 | C150: ='DF raw data'!H155 -> 2.9122682e-06 | D150: ='DF raw data'!I155 -> 5.9890431e-06 | F150: -5.875551859e-06 | G150: 2.922545354e-06 | H150: 5.9968049e-06 | J150: 1.723507423e-05 | K150: -0.0006679425526 | L150: 4.095734606e-06 | M150: -0.003246030641 | N150: 2.155530739e-07
A151: 72.4552 | B151: ='DF raw data'!G156 -> -4.0938212e-06 | C151: ='DF raw data'!H156 -> 1.0992218e-05 | D151: ='DF raw data'!I156 -> 5.0810472e-06 | F151: =(1-$G$1*($B$2-$G$2))*B151 -> -4.099126792e-06 | G151: 1.103100863e-05 | H151: 5.087632237e-06 | J151: 1.518485497e-05 | K151: -0.0006603476955 | L151: 9.613003882e-06 | M151: -0.003241222601 | N151: 2.157146204e-07
A152: 72.95536 | B152: ='DF raw data'!G157 -> -3.4890584e-06 | C152: ='DF raw data'!H157 -> 4.5020533e-06 | D152: ='DF raw data'!I157 -> 2.6189505e-06 | F152: -3.49358022e-06 | G152: 4.517940674e-06 | H152: 2.62234466e-06 | J152: 1.343750589e-05 | K152: -0.0006536267926 | L152: 1.187269709e-05 | M152: -0.003235284353 | N152: 2.158754356e-07
A153: 73.45552 | B153: ='DF raw data'!G158 -> -2.7193542e-07 | C153: ='DF raw data'!H158 -> -2.203996e-06 | D153: ='DF raw data'!I158 -> 1.8878476e-06 | F153: -2.722878483e-07 | G153: -2.21177372e-06 | H153: 1.89029425e-06 | J153: 1.33013184e-05 | K153: -0.0006469740052 | L153: 1.076645635e-05 | M153: -0.003229899402 | N153: 2.160219033e-07
A154: 73.95568 | B154: ='DF raw data'!G159 -> 3.4231741e-06 | C154: ='DF raw data'!H159 -> 1.0057427e-05 | D154: ='DF raw data'!I159 -> -1.5816782e-06 | F154: 3.427610534e-06 | G154: 1.009291883e-05 | H154: -1.583728055e-06 | J154: 1.501567208e-05 | K154: -0.0006394637666 | L154: 1.581453063e-05 | M154: -0.003221989606 | N154: 2.162597642e-07
A155: 74.45584 | B155: ='DF raw data'!G160 -> 4.4867593e-06 | C155: ='DF raw data'!H160 -> 5.6329818e-06 | D155: ='DF raw data'!I160 -> -4.2821789e-06 | F155: 4.49257414e-06 | G155: 5.652860127e-06 | H155: -4.287728604e-06 | J155: 1.726267797e-05 | K155: -0.0006308296656 | L155: 1.864186515e-05 | M155: -0.003212665691 | N155: 2.165826271e-07
A156: 74.956 | B156: ='DF raw data'!G161 -> 3.9085098e-06 | C156: ='DF raw data'!H161 -> -1.2448935e-05 | D156: ='DF raw data'!I161 -> -1.8893639e-06 | F156: 3.913575229e-06 | G156: -1.249286626e-05 | H156: -1.891812516e-06 | J156: 1.922009175e-05 | K156: -0.0006212165445 | L156: 1.239343316e-05 | M156: -0.003206466992 | N156: 2.168442154e-07
A157: 75.45616 | B157: ='DF raw data'!G162 -> 6.6328704e-07 | C157: ='DF raw data'!H162 -> -5.7099287e-06 | D157: ='DF raw data'!I162 -> 2.0180291e-06 | F157: 6.6414666e-07 | G157: -5.730078566e-06 | H157: 2.020644466e-06 | J157: 1.955227135e-05 | K157: -0.0006114372805 | L157: 9.527477063e-06 | M157: -0.003201701729 | N157: 2.170808231e-07
A158: 75.95632 | B158: ='DF raw data'!G163 -> -1.3588179e-06 | C158: ='DF raw data'!H163 -> 4.4664284e-06 | D158: ='DF raw data'!I163 -> 1.8576378e-06 | F158: -1.360578928e-06 | G158: 4.482190057e-06 | H158: 1.860045299e-06 | J158: 1.887176419e-05 | K158: -0.0006019983789 | L158: 1.176928924e-05 | M158: -0.003195815201 | N158: 2.173282321e-07
A159: 76.45648 | B159: ='DF raw data'!G164 -> -1.5245643e-06 | C159: ='DF raw data'!H164 -> 2.9637711e-06 | D159: ='DF raw data'!I164 -> -3.4051932e-06 | F159: -1.526540135e-06 | G159: 2.974230003e-06 | H159: -3.40960633e-06 | J159: 1.810824988e-05 | K159: -0.0005929413566 | L159: 1.325688012e-05 | M159: -0.00318918464 | N159: 2.175801395e-07
A160: 76.95664 | B160: ='DF raw data'!G165 -> -4.2337815e-06 | C160: ='DF raw data'!H165 -> 2.1295843e-06 | D160: ='DF raw data'!I165 -> -1.0307647e-05 | F160: -4.239268481e-06 | G160: 2.137099427e-06 | H160: -1.032100571e-05 | J160: 1.598793735e-05 | K160: -0.0005849448299 | L160: 1.432577177e-05 | M160: -0.003182019462 | N160: 2.178106341e-07
A161: 77.4568 | B161: ='DF raw data'!G166 -> -4.6918176e-06 | C161: ='DF raw data'!H166 -> -1.1201676e-06 | D161: ='DF raw data'!I166 -> -5.2152041e-06 | F161: -4.697898196e-06 | G161: -1.124120579e-06 | H161: -5.221963005e-06 | J161: 1.363823659e-05 | K161: -0.0005781235295 | L161: 1.376353162e-05 | M161: -0.003175135494 | N161: 2.179984124e-07
A162: 77.95696 | B162: ='DF raw data'!G167 -> -7.0360346e-07 | C162: ='DF raw data'!H167 -> -6.0553712e-06 | D162: ='DF raw data'!I167 -> 4.992397e-06 | F162: -7.045153301e-07 | G162: -6.076740104e-06 | H162: 4.998867147e-06 | J162: 1.32858662e-05 | K162: -0.0005714784706 | L162: 1.072418929e-05 | M162: -0.003169771683 | N162: 2.181442202e-07
A163: 78.45712 | B163: ='DF raw data'!G168 -> 2.4523722e-06 | C163: ='DF raw data'!H168 -> 2.4566141e-06 | D163: ='DF raw data'!I168 -> 8.7963545e-06 | F163: 2.455550474e-06 | G163: 2.465283288e-06 | H163: 8.807754575e-06 | J163: 1.451403433e-05 | K163: -0.0005642191312 | L163: 1.195722538e-05 | M163: -0.003163791158 | N163: 2.18321093e-07
A164: 78.95728 | B164: ='DF raw data'!G169 -> 4.0096311e-06 | C164: ='DF raw data'!H169 -> 8.7884009e-06 | D164: ='DF raw data'!I169 -> 7.4998811e-06 | F164: 4.014827582e-06 | G164: 8.81941444e-06 | H164: 7.509600946e-06 | J164: 1.652209049e-05 | K164: -0.0005559554424 | L164: 1.636834371e-05 | M164: -0.003155604367 | N164: 2.185916307e-07
A165: 79.45744 | B165: ='DF raw data'!G170 -> 7.056482e-06 | C165: ='DF raw data'!H170 -> 1.5157947e-05 | D165: ='DF raw data'!I170 -> 4.8138304e-06 | F165: 7.065627201e-06 | G165: 1.521143814e-05 | H165: 4.820069124e-06 | J165: 2.005603459e-05 | K165: -0.0005459242162 | L165: 2.397649661e-05 | M165: -0.003143612282 | N165: 2.190803455e-07
A166: 79.9576 | B166: ='DF raw data'!G171 -> 9.0874637e-06 | C166: ='DF raw data'!H171 -> 1.626606e-05 | D166: ='DF raw data'!I171 -> 6.7368514e-06 | F166: 9.099241053e-06 | G166: 1.632346158e-05 | H166: 6.745582359e-06 | J166: 2.4607111e-05 | K166: -0.0005336167235 | L166: 3.214083915e-05 | M166: -0.00312753672 | N166: 2.198998793e-07
A167: 80.45776 | B167: ='DF raw data'!G172 -> 6.115788e-06 | C167: ='DF raw data'!H172 -> 1.9102588e-05 | D167: ='DF raw data'!I172 -> 9.2777464e-06 | F167: 6.123714061e-06 | G167: 1.916999945e-05 | H167: 9.289770359e-06 | J167: 2.766994782e-05 | K167: -0.0005197773224 | L167: 4.172890608e-05 | M167: -0.00310666559 | N167: 2.211537443e-07
A168: 80.95792 | B168: ='DF raw data'!G173 -> 4.7772592e-06 | C168: ='DF raw data'!H173 -> 9.7804323e-06 | D168: ='DF raw data'!I173 -> 3.900916e-06 | F168: 4.783450528e-06 | G168: 9.814946637e-06 | H168: 3.905971587e-06 | J168: 3.006243844e-05 | K168: -0.0005047412932 | L168: 4.663794979e-05 | M168: -0.003083339153 | N168: 2.226936612e-07
A169: 81.45808 | B169: ='DF raw data'!G174 -> 7.0775095e-06 | C169: ='DF raw data'!H174 -> 1.1623862e-05 | D169: ='DF raw data'!I174 -> -7.2726255e-07 | F169: 7.086681952e-06 | G169: 1.166488165e-05 | H169: -7.282050823e-07 | J169: 3.360691328e-05 | K169: -0.0004879324595 | L169: 5.247225699e-05 | M169: -0.003057094629 | N169: 2.246356636e-07
A170: 81.95824 | B170: ='DF raw data'!G175 -> 9.1490765e-06 | C170: ='DF raw data'!H175 -> 5.0116114e-06 | D170: ='DF raw data'!I175 -> -8.2712959e-06 | F170: 9.160933703e-06 | G170: 5.029296962e-06 | H170: -8.282015499e-06 | J170: 3.818884588e-05 | K170: -0.0004688319263 | L170: 5.498771016e-05 | M170: -0.003029591976 | N170: 2.268773988e-07
A171: 82.4584 | B171: ='DF raw data'!G176 -> 8.9209316e-06 | C171: ='DF raw data'!H176 -> 2.2632782e-06 | D171: ='DF raw data'!I176 -> -7.2311973e-06 | F171: 8.932493127e-06 | G171: 2.271265122e-06 | H171: -7.240568932e-06 | J171: 4.265652165e-05 | K171: -0.0004474968405 | L171: 5.612370612e-05 | M171: -0.003001521143 | N171: 2.293629186e-07
A172: 82.95856 | B172: ='DF raw data'!G177 -> 5.6514073e-06 | C172: ='DF raw data'!H177 -> 6.2021818e-06 | D172: ='DF raw data'!I177 -> 3.3324745e-06 | F172: 5.658731524e-06 | G172: 6.224068787e-06 | H172: 3.336793387e-06 | J172: 4.548679281e-05 | K172: -0.0004247461662 | L172: 5.923673637e-05 | M172: -0.002971893297 | N172: 2.321528307e-07
A173: 83.45872 | B173: ='DF raw data'!G178 -> 2.3854916e-06 | C173: ='DF raw data'!H178 -> 8.0402751e-06 | D173: ='DF raw data'!I178 -> 6.4963228e-06 | F173: 2.388583197e-06 | G173: 8.068648566e-06 | H173: 6.504742034e-06 | J173: 4.668146658e-05 | K173: -0.0004013979638 | L173: 6.327235164e-05 | M173: -0.002940246998 | N173: 2.352450948e-07
A174: 83.95888 | B174: ='DF raw data'!G179 -> 8.3115793e-07 | C174: ='DF raw data'!H179 -> 6.2312693e-06 | D174: ='DF raw data'!I179 -> 2.8735799e-06 | F174: 8.322351107e-07 | G174: 6.253258934e-06 | H174: 2.87730406e-06 | J174: 4.709771729e-05 | K174: -0.0003778415696 | L174: 6.639998162e-05 | M174: -0.002907036383 | N174: 2.385597314e-07
A175: 84.45904 | B175: ='DF raw data'!G180 -> -1.3347927e-06 | C175: ='DF raw data'!H180 -> 1.1071322e-06 | D175: ='DF raw data'!I180 -> -3.5701246e-06 | F175: -1.336522591e-06 | G175: 1.111039178e-06 | H175: -3.574751481e-06 | J175: 4.642924215e-05 | K175: -0.0003546195198 | L175: 6.695567898e-05 | M175: -0.002873547831 | N175: 2.418801623e-07
A176: 84.9592 | B176: ='DF raw data'!G181 -> -3.5222367e-06 | C176: ='DF raw data'!H181 -> 5.8716832e-06 | D176: ='DF raw data'!I181 -> -5.6694275e-06 | F176: -3.526801519e-06 | G176: 5.892403885e-06 | H176: -5.676775078e-06 | J176: 4.46652771e-05 | K176: -0.0003322797348 | L176: 6.990282371e-05 | M176: -0.002838585234 | N176: 2.453219592e-07
A177: 85.45936 | B177: ='DF raw data'!G182 -> -5.1885763e-06 | C177: ='DF raw data'!H182 -> 4.3692935e-06 | D177: ='DF raw data'!I182 -> 2.3046146e-06 | F177: -5.195300695e-06 | G177: 4.384712376e-06 | H177: 2.307601381e-06 | J177: 4.206679551e-05 | K177: -0.0003112396064 | L177: 7.209588145e-05 | M177: -0.002802525758 | N177: 2.488067897e-07
A178: 85.95952 | B178: ='DF raw data'!G183 -> -8.4968815e-06 | C178: ='DF raw data'!H183 -> 6.0950406e-06 | D178: ='DF raw data'!I183 -> 8.916888e-06 | F178: -8.507893458e-06 | G178: 6.116549494e-06 | H178: 8.928444287e-06 | J178: 3.781148752e-05 | K178: -0.0002923278128 | L178: 7.515513484e-05 | M178: -0.002764936166 | N178: 2.523469236e-07
A179: 86.45968 | B179: ='DF raw data'!G184 -> -9.6383628e-06 | C179: ='DF raw data'!H184 -> -4.3801929e-06 | D179: ='DF raw data'!I184 -> 1.0931746e-05 | F179: -9.650854118e-06 | G179: -4.395650239e-06 | H179: 1.094591354e-05 | J179: 3.298451632e-05 | K179: -0.0002758302771 | L179: 7.295660642e-05 | M179: -0.00272844619 | N179: 2.555532717e-07
A180: 86.95984 | B180: ='DF raw data'!G185 -> -7.6736505e-06 | C180: ='DF raw data'!H185 -> -9.3466197e-06 | D180: ='DF raw data'!I185 -> 8.35418e-06 | F180: -7.683595551e-06 | G180: -9.379603148e-06 | H180: 8.365007017e-06 | J180: 2.914148917e-05 | K180: -0.0002612548699 | L180: 6.826530411e-05 | M180: -0.002694302615 | N180: 2.583088423e-07
A181: 87.46 | B181: ='DF raw data'!G186 -> -5.700469e-06 | C181: ='DF raw data'!H186 -> 4.569034e-06 | D181: ='DF raw data'!I186 -> 2.8739146e-06 | F181: -5.707856808e-06 | G181: 4.585157743e-06 | H181: 2.877639193e-06 | J181: 2.628664751e-05 | K181: -0.0002481073402 | L181: 7.055861661e-05 | M181: -0.002659012018 | N181: 2.611445025e-07
A182: 87.96016 | B182: ='DF raw data'!G187 -> -4.3405926e-06 | C182: ='DF raw data'!H187 -> 1.6089001e-05 | D182: ='DF raw data'!I187 -> 7.8384455e-06 | F182: -4.346218008e-06 | G182: 1.614577775e-05 | H182: 7.848604125e-06 | J182: 2.411284311e-05 | K182: -0.0002360470606 | L182: 7.863408881e-05 | M182: -0.002619682392 | N182: 2.645279594e-07
A183: 88.46032 | B183: ='DF raw data'!G188 -> -3.0829581e-06 | C183: ='DF raw data'!H188 -> 9.7426719e-06 | D183: ='DF raw data'!I188 -> 9.4654952e-06 | F183: -3.086953614e-06 | G183: 9.777052984e-06 | H183: 9.477762482e-06 | J183: 2.256887239e-05 | K183: -0.0002247590134 | L183: 8.352417963e-05 | M183: -0.002577906938 | N183: 2.682719784e-07
A184: 88.96048 | B184: ='DF raw data'!G189 -> -1.7431631e-06 | C184: ='DF raw data'!H189 -> -8.3902132e-06 | D184: ='DF raw data'!I189 -> 3.0267242e-06 | F184: -1.745422239e-06 | G184: -8.419821569e-06 | H184: 3.030646835e-06 | J184: 2.1695882e-05 | K184: -0.0002139076011 | L184: 7.931292167e-05 | M184: -0.002538237787 | N184: 2.716536856e-07
A185: 89.46064 | B185: ='DF raw data'!G190 -> -3.6897729e-06 | C185: ='DF raw data'!H190 -> -7.2695843e-07 | D185: ='DF raw data'!I190 -> 1.5108802e-06 | F185: -3.694554846e-06 | G185: -7.295238062e-07 | H185: 1.512838301e-06 | J185: 1.984801345e-05 | K185: -0.0002039804187 | L185: 7.894804305e-05 | M185: -0.002498751134 | N185: 2.749681145e-07
A186: 89.9608 | B186: ='DF raw data'!G191 -> -6.8831469e-06 | C186: ='DF raw data'!H191 -> 3.7057596e-06 | D186: ='DF raw data'!I191 -> 1.50423e-06 | F186: -6.892067458e-06 | G186: 3.718836919e-06 | H186: 1.506179482e-06 | J186: 1.640087699e-05 | K186: -0.000195777356 | L186: 8.080805652e-05 | M186: -0.002458334177 | N186: 2.783686677e-07
A187: 90.46096 | B187: ='DF raw data'!G192 -> -8.3027735e-06 | C187: ='DF raw data'!H192 -> 1.6484453e-06 | D187: ='DF raw data'!I192 -> 1.8753329e-06 | F187: -8.313533894e-06 | G187: 1.654262527e-06 | H187: 1.877763331e-06 | J187: 1.224277988e-05 | K187: -0.0001896540073 | L187: 8.163545246e-05 | M187: -0.002417503389 | N187: 2.817768743e-07
A188: 90.96112 | B188: ='DF raw data'!G193 -> -6.5396489e-06 | C188: ='DF raw data'!H193 -> 9.9895124e-06 | D188: ='DF raw data'!I193 -> -3.0583905e-07 | F188: -6.548124285e-06 | G188: 1.002476456e-05 | H188: -3.062354174e-07 | J188: 8.967670037e-06 | K188: -0.0001851687374 | L188: 8.664943871e-05 | M188: -0.002374164805 | N188: 2.855723607e-07
A189: 91.46128 | B189: ='DF raw data'!G194 -> -1.5590668e-06 | C189: ='DF raw data'!H194 -> 8.6831269e-06 | D189: ='DF raw data'!I194 -> -2.9274102e-06 | F189: -1.561087351e-06 | G189: 8.713768937e-06 | H189: -2.931204124e-06 | J189: 8.186876588e-06 | K189: -0.0001810739892 | L189: 9.100771738e-05 | M189: -0.002328646385 | N189: 2.897484114e-07
A190: 91.96144 | B190: ='DF raw data'!G195 -> 1.7753299e-06 | C190: ='DF raw data'!H195 -> 4.4085209e-06 | D190: ='DF raw data'!I195 -> -1.1992672e-05 | F190: 1.777630728e-06 | G190: 4.424078206e-06 | H190: -1.20082145e-05 | J190: 9.075976372e-06 | K190: -0.0001765345489 | L190: 9.322046434e-05 | M190: -0.002282021238 | N190: 2.941360291e-07
A191: 92.4616 | B191: ='DF raw data'!G196 -> 2.0787081e-06 | C191: ='DF raw data'!H196 -> -1.3275142e-06 | D191: ='DF raw data'!I196 -> -1.4431747e-05 | F191: 2.081402106e-06 | G191: -1.332198888e-06 | H191: -1.445045054e-05 | J191: 1.011701045e-05 | K191: -0.0001714744249 | L191: 9.255415174e-05 | M191: -0.002235729353 | N191: 2.984717286e-07
A192: 92.96176 | B192: ='DF raw data'!G197 -> 4.8159183e-07 | C192: ='DF raw data'!H197 -> 4.7036619e-06 | D192: ='DF raw data'!I197 -> -6.5566578e-06 | F192: 4.82215973e-07 | G192: 4.720260734e-06 | H192: -6.565155229e-06 | J192: 1.035819559e-05 | K192: -0.0001662936698 | L192: 9.491503735e-05 | M192: -0.002188256648 | N192: 3.030312654e-07
A193: 93.46192 | B193: ='DF raw data'!G198 -> -3.7169414e-06 | C193: ='DF raw data'!H198 -> 7.7031045e-06 | D193: ='DF raw data'!I198 -> -1.4101694e-06 | F193: -3.721758556e-06 | G193: 7.730288119e-06 | H193: -1.41199698e-06 | J193: 8.496720831e-06 | K193: -0.0001620439499 | L193: 9.878141825e-05 | M193: -0.002138850134 | N193: 3.079478196e-07
A194: 93.96208 | B194: ='DF raw data'!G199 -> -6.3511434e-06 | C194: ='DF raw data'!H199 -> 5.3379586e-07 | D194: ='DF raw data'!I199 -> -6.0859168e-07 | F194: -6.359374482e-06 | G194: 5.356795815e-07 | H194: -6.093804148e-07 | J194: 5.31601609e-06 | K194: -0.0001593850913 | L194: 9.904934375e-05 | M194: -0.002089309614 | N194: 3.128689101e-07
A195: 94.46224 | B195: ='DF raw data'!G200 -> -3.0583944e-06 | C195: ='DF raw data'!H200 -> 4.1651288e-07 | D195: ='DF raw data'!I200 -> -1.8609441e-06 | F195: -3.062358079e-06 | G195: 4.179827195e-07 | H195: -1.863355884e-06 | J195: 3.784347074e-06 | K195: -0.0001574923123 | L195: 9.925840199e-05 | M195: -0.002039664532 | N195: 3.178037646e-07
A196: 94.9624 | B196: ='DF raw data'!G201 -> -3.6352517e-07 | C196: ='DF raw data'!H201 -> 4.9422297e-06 | D196: ='DF raw data'!I201 -> -9.9820465e-07 | F196: -3.639962986e-07 | G196: 4.95967042e-06 | H196: -9.994983232e-07 | J196: 3.602290685e-06 | K196: -0.0001556905906 | L196: 0.0001017390307 | M196: -0.001988778738 | N196: 3.229873263e-07
A197: 95.46256 | B197: ='DF raw data'!G202 -> -1.0089171e-06 | C197: ='DF raw data'!H202 -> 3.7041589e-06 | D197: ='DF raw data'!I202 -> -1.8700536e-06 | F197: -1.010224657e-06 | G197: 3.717230571e-06 | H197: -1.872477189e-06 | J197: 3.097016721e-06 | K197: -0.0001541415867 | L197: 0.0001035982408 | M197: -0.001936963042 | N197: 3.283601385e-07
A198: 95.96272 | B198: ='DF raw data'!G203 -> -1.8314787e-06 | C198: ='DF raw data'!H203 -> 1.9885526e-06 | D198: ='DF raw data'!I203 -> -1.0047619e-05 | F198: -1.833852296e-06 | G198: 1.995570038e-06 | H198: -1.006064071e-05 | J198: 2.179797156e-06 | K198: -0.0001530513393 | L198: 0.0001045963451 | M198: -0.001884648134 | N198: 3.338344632e-07
A199: 96.46288 | B199: ='DF raw data'!G204 -> 9.8962835e-07 | C199: ='DF raw data'!H204 -> 5.6692743e-06 | D199: ='DF raw data'!I204 -> -1.1077487e-05 | F199: 9.909109083e-07 | G199: =(1-$G$1*($B$2-$G$2))*C199*$M$2/$M$1 -> 5.6892807e-06 | H199: -1.109184342e-05 | J199: 2.675411156e-06 | K199: -0.0001517132057 | L199: 0.0001074418957 | M199: -0.001830909996 | N199: 3.396117707e-07
A200: =A199+$B$1 -> 96.96304 | B200: ='DF raw data'!G205 -> 5.4559023e-06 | C200: ='DF raw data'!H205 -> 4.3575519e-06 | D200: ='DF raw data'!I205 -> -4.8620582e-06 | F200: 5.462973149e-06 | G200: 4.37292934e-06 | H200: -4.868359427e-06 | J200: =F200*$B$1+J199 -> 5.407771806e-06 | K200: =J200*$B$1+K199 -> -0.0001490084546 | L200: =G200*$B$1+L199 -> 0.0001096290601 | M200: =L200*$B$1+M199 -> -0.001776077925 | N200: =(J200^2+L200^2)*$B$1+N199 -> 3.456375858e-07
A201: 97.4632 | B201: ='DF raw data'!G206 -> 5.1242932e-06 | C201: ='DF raw data'!H206 -> 8.90515e-06 | D201: ='DF raw data'!I206 -> 2.8525524e-06 | F201: 5.130934284e-06 | G201: 8.936575538e-06 | H201: 2.856249308e-06 | J201: 7.974059898e-06 | K201: -0.0001450201488 | L201: 0.0001140987777 | M201: -0.00171901028 | N201: 3.521807373e-07
... 1002 more rows

Sheet 20 mm
A1: dz | B1: ='DF raw data'!K7 -> 0.50014 | C1: mm | F1: T_coeff | G1: -0.0008 | H1: /degC | L1: Hallref | M1: ='PI vs gap'!B50 -> 0.505375 | N1: T | P1: IBy total | Q1: =L1203*1000 -> 7.468017398 | R1: muTm | X1: DF ref | Y1: 21
A2: Tref | B2: ='DF raw data'!K8 -> 21.67 | C2: degC | F2: Tcorr | G2: 20 | H2: degC | L2: NMRref | M2: ='PI vs gap'!B51 -> 0.506502 | N2: T | P2: JBy total | Q2: =M1203 -> 0.2678525259 | R2: muTm^2
A3: Encoder | B3: ='DF raw data'!K9 -> 17899628 | P3: PI total | Q3: =N1203 -> 204.5378989 | R3: T^2mm^3
A5: z [mm] | B5: Bx | C5: By | D5: Bz | F5: Bx_corr | G5: By_corr | H5: Bz_corr | J5: Ix | K5: Jx | L5: Iy | M5: Jy | N5: PI
A6: -0.068 | B6: ='DF raw data'!J11 -> 6.6839439e-06 | C6: ='DF raw data'!K11 -> -1.5595268e-05 | D6: ='DF raw data'!L11 -> -5.3290933e-07 | F6: =(1-$G$1*($B$2-$G$2))*B6 -> 6.692873649e-06 | G6: =(1-$G$1*($B$2-$G$2))*C6*$M$2/$M$1 -> -1.565092761e-05 | H6: =(1-$G$1*($B$2-$G$2))*D6 -> -5.336212969e-07 | J6: =F6*$B$1 -> 3.347373827e-06 | K6: =J6*$B$1 -> 1.674155546e-06 | L6: =G6*$B$1 -> -7.827654936e-06 | M6: =L6*$B$1 -> -3.91492334e-06 | N6: =(J6^2+L6)^2*$B$1 -> 3.064458128e-11
A7: =A6+$B$1 -> 0.43214 | B7: ='DF raw data'!J12 -> 6.1648334e-06 | C7: ='DF raw data'!K12 -> -1.2774651e-06 | D7: ='DF raw data'!L12 -> 1.0876065e-06 | F7: =(1-$G$1*($B$2-$G$2))*B7 -> 6.173069617e-06 | G7: =(1-$G$1*($B$2-$G$2))*C7*$M$2/$M$1 -> -1.282024381e-06 | H7: 1.089059542e-06 | J7: =F7*$B$1+J6 -> 6.434772865e-06 | K7: =J7*$B$1+K6 -> 4.892442847e-06 | L7: =G7*$B$1+L6 -> -8.468846611e-06 | M7: =L7*$B$1+M6 -> -8.150532284e-06 | N7: =(J7^2+L7^2)*$B$1+N6 -> 8.722425152e-11
A8: =A7+$B$1 -> 0.93228 | B8: ='DF raw data'!J13 -> 6.4471842e-06 | C8: ='DF raw data'!K13 -> -7.5470743e-06 | D8: ='DF raw data'!L13 -> 1.0771426e-05 | F8: 6.455797638e-06 | G8: -7.574009857e-06 | H8: 1.078581663e-05 | J8: =F8*$B$1+J7 -> 9.663575496e-06 | K8: =J8*$B$1+K7 -> 9.725583495e-06 | L8: =G8*$B$1+L7 -> -1.22569119e-05 | M8: =L8*$B$1+M7 -> -1.42807042e-05 | N8: =(J8^2+L8^2)*$B$1+N7 -> 2.090666482e-10
A9: 1.43242 | B9: ='DF raw data'!J14 -> 6.6366792e-06 | C9: ='DF raw data'!K14 -> -1.2218492e-05 | D9: ='DF raw data'!L14 -> 1.3895678e-05 | F9: 6.645545803e-06 | G9: -1.226209988e-05 | H9: 1.391424263e-05 | J9: 1.298727877e-05 | K9: 1.62210411e-05 | L9: -1.838967853e-05 | M9: -2.347811802e-05 | N9: 4.625624504e-10
A10: 1.93256 | B10: ='DF raw data'!J15 -> 6.8731042e-06 | C10: ='DF raw data'!K15 -> -1.9314151e-05 | D10: ='DF raw data'!L15 -> 9.2758237e-06 | F10: 6.882286667e-06 | G10: -1.938308333e-05 | H10: 9.2882162e-06 | J10: 1.642938563e-05 | K10: 2.443803403e-05 | L10: -2.808393383e-05 | M10: -3.752401669e-05 | N10: 9.920266847e-10
A11: 2.4327 | B11: ='DF raw data'!J16 -> 6.4495125e-06 | C11: ='DF raw data'!K16 -> -8.3301584e-06 | D11: ='DF raw data'!L16 -> 5.412101e-06 | F11: 6.458129049e-06 | G11: -8.35988879e-06 | H11: 5.419331567e-06 | J11: 1.965935429e-05 | K11: 3.427046348e-05 | L11: -3.226504861e-05 | M11: -5.36610581e-05 | N11: 1.705988324e-09
A12: 2.93284 | B12: ='DF raw data'!J17 -> 6.1341289e-06 | C12: ='DF raw data'!K17 -> -5.4871425e-08 | D12: ='DF raw data'!L17 -> 3.7489772e-06 | F12: 6.142324096e-06 | G12: -5.506726147e-08 | H12: 3.753985834e-06 | J12: 2.273137626e-05 | K12: 4.563933401e-05 | L12: -3.229258995e-05 | M12: -6.981187404e-05 | N12: 2.485970074e-09
A13: 3.43298 | B13: ='DF raw data'!J18 -> 6.5528457e-06 | C13: ='DF raw data'!K18 -> -1.1237271e-05 | D13: ='DF raw data'!L18 -> 5.4140946e-06 | F13: 6.561600302e-06 | G13: -1.127737689e-05 | H13: 5.42132783e-06 | J13: 2.601309504e-05 | K13: 5.864952336e-05 | L13: -3.793285723e-05 | M13: -8.878361325e-05 | N13: 3.544057642e-09
A14: 3.93312 | B14: ='DF raw data'!J19 -> 6.2788331e-06 | C14: ='DF raw data'!K19 -> -3.3882823e-06 | D14: ='DF raw data'!L19 -> 7.6407996e-06 | F14: 6.287221621e-06 | G14: -3.400375102e-06 | H14: 7.651007708e-06 | J14: 2.915758606e-05 | K14: 7.323239845e-05 | L14: -3.963352083e-05 | M14: -0.0001086059224 | N14: 4.754886978e-09
A15: 4.43326 | B15: ='DF raw data'!J20 -> 6.1618939e-06 | C15: ='DF raw data'!K20 -> -2.591494e-07 | D15: ='DF raw data'!L20 -> 7.5975368e-06 | F15: 6.17012619e-06 | G15: -2.600743059e-07 | H15: 7.607687109e-06 | J15: 3.224351297e-05 | K15: 8.935866903e-05 | L15: -3.97635944e-05 | M15: -0.0001284932865 | N15: 6.065647672e-09
A16: 4.9334 | B16: ='DF raw data'!J21 -> 6.3723583e-06 | C16: ='DF raw data'!K21 -> -6.2745803e-06 | D16: ='DF raw data'!L21 -> 6.3265434e-06 | F16: 6.380871771e-06 | G16: -6.296974318e-06 | H16: 6.334995662e-06 | J16: 3.543484218e-05 | K16: 0.000107081051 | L16: -4.291296313e-05 | M16: -0.0001499557758 | N16: 7.614656496e-09
A17: 5.43354 | B17: ='DF raw data'!J22 -> 6.4529904e-06 | C17: ='DF raw data'!K22 -> -9.192765e-06 | D17: ='DF raw data'!L22 -> 1.8473911e-06 | F17: 6.461611595e-06 | G17: -9.225574038e-06 | H17: 1.849859215e-06 | J17: 3.86665526e-05 | K17: 0.0001264197406 | L17: -4.752704173e-05 | M17: -0.0001737259505 | N17: 9.492143038e-09
A18: 5.93368 | B18: ='DF raw data'!J23 -> 6.4984506e-06 | C18: ='DF raw data'!K23 -> -1.1435675e-05 | D18: ='DF raw data'!L23 -> -4.7148969e-06 | F18: 6.50713253e-06 | G18: -1.1476489e-05 | H18: -4.721196002e-06 | J18: 4.192102987e-05 | K18: 0.0001473861245 | L18: -5.326689294e-05 | M18: -0.0002003668543 | N18: 1.179015362e-08
A19: 6.43382 | B19: ='DF raw data'!J24 -> 6.2652271e-06 | C19: ='DF raw data'!K24 -> -5.7311318e-06 | D19: ='DF raw data'!L24 -> -8.9172572e-06 | F19: 6.273597443e-06 | G19: -5.751586247e-06 | H19: -8.929170656e-06 | J19: 4.505870689e-05 | K19: 0.0001699217862 | L19: -5.614349128e-05 | M19: -0.0002284464601 | N19: 1.438206849e-08
A20: 6.93396 | B20: ='DF raw data'!J25 -> 6.073913e-06 | C20: ='DF raw data'!K25 -> -2.5888201e-07 | D20: ='DF raw data'!L25 -> -7.1663562e-06 | F20: 6.082027748e-06 | G20: -2.598059616e-07 | H20: -7.175930452e-06 | J20: 4.810057225e-05 | K20: 0.0001939788064 | L20: -5.627343064e-05 | M20: -0.0002565910537 | N20: 1.712301776e-08
A21: 7.4341 | B21: ='DF raw data'!J26 -> 6.2217605e-06 | C21: ='DF raw data'!K26 -> -3.7984389e-06 | D21: ='DF raw data'!L26 -> -3.9989864e-06 | F21: 6.230072772e-06 | G21: -3.811995553e-06 | H21: -4.004329046e-06 | J21: 5.121648085e-05 | K21: 0.0002195942171 | L21: -5.817996209e-05 | M21: -0.0002856891799 | N21: 2.012787684e-08
A22: 7.93424 | B22: ='DF raw data'!J27 -> 3.0385581e-06 | C22: ='DF raw data'!K27 -> -4.9417758e-06 | D22: ='DF raw data'!L27 -> -4.4994704e-06 | F22: 3.042617614e-06 | G22: -4.95941303e-06 | H22: -4.505481692e-06 | J22: 5.273821562e-05 | K22: 0.0002459707083 | L22: -6.066036293e-05 | M22: -0.0003160278538 | N22: 2.335928089e-08
A23: 8.43438 | B23: ='DF raw data'!J28 -> -3.0230276e-06 | C23: ='DF raw data'!K28 -> 6.9592193e-07 | D23: ='DF raw data'!L28 -> -6.6482353e-06 | F23: =(1-$G$1*($B$2-$G$2))*B23 -> -3.027066365e-06 | G23: 6.984056799e-07 | H23: -6.657117342e-06 | J23: 5.122425865e-05 | K23: 0.000271590009 | L23: -6.031106231e-05 | M23: -0.0003461918285 | N23: 2.649083193e-08
A24: 8.93452 | B24: ='DF raw data'!J29 -> -3.5412795e-06 | C24: ='DF raw data'!K29 -> 1.6243785e-08 | D24: ='DF raw data'!L29 -> -6.0103084e-06 | F24: -3.546010649e-06 | G24: 1.630175917e-08 | H24: -6.018338172e-06 | J24: 4.945075688e-05 | K24: 0.0002963223105 | L24: -6.030290915e-05 | M24: -0.0003763517255 | N24: 2.953259249e-08
A25: 9.43466 | B25: ='DF raw data'!J30 -> -3.8411217e-06 | C25: ='DF raw data'!K30 -> 9.9007966e-06 | D25: ='DF raw data'!L30 -> -1.5341539e-06 | F25: -3.846253439e-06 | G25: 9.936132608e-06 | H25: -1.53620353e-06 | J25: 4.752709169e-05 | K25: 0.0003200925102 | L25: -5.533345179e-05 | M25: -0.0004040261981 | N25: 3.219364504e-08
A26: 9.9348 | B26: ='DF raw data'!J31 -> -3.5450776e-06 | C26: ='DF raw data'!K31 -> -1.2459766e-06 | D26: ='DF raw data'!L31 -> 8.0575046e-07 | F26: -3.549813824e-06 | G26: -1.250423499e-06 | H26: 8.068269426e-07 | J26: 4.57516878e-05 | K26: 0.0003429747593 | L26: -5.595883859e-05 | M26: -0.0004320134516 | N26: 3.480668076e-08
A27: 10.43494 | B27: ='DF raw data'!J32 -> -3.4138484e-06 | C27: ='DF raw data'!K32 -> -3.6060353e-06 | D27: ='DF raw data'!L32 -> -1.6560443e-07 | F27: -3.418409301e-06 | G27: -3.618905264e-06 | H27: -1.658256775e-07 | J27: 4.404200457e-05 | K27: 0.0003650019275 | L27: -5.776879787e-05 | M27: -0.0004609059382 | N27: 3.744588562e-08
A28: 10.93508 | B28: ='DF raw data'!J33 -> -1.7297554e-06 | C28: ='DF raw data'!K33 -> 1.4920827e-06 | D28: ='DF raw data'!L33 -> -3.2347343e-06 | F28: -1.732066353e-06 | G28: 1.497407953e-06 | H28: -3.239055905e-06 | J28: 4.317572891e-05 | K28: 0.0003865958365 | L28: -5.701988426e-05 | M28: -0.0004894238631 | N28: 4.000430716e-08
A29: 11.43522 | B29: ='DF raw data'!J34 -> -1.966122e-06 | C29: ='DF raw data'!K34 -> -1.9914348e-06 | D29: ='DF raw data'!L34 -> -1.4923608e-06 | F29: -1.968748739e-06 | G29: -1.998542244e-06 | H29: -1.494354594e-06 | J29: 4.219107891e-05 | K29: 0.0004076972827 | L29: -5.801943518e-05 | M29: -0.0005184417034 | N29: 4.257819865e-08
A30: 11.93536 | B30: ='DF raw data'!J35 -> -5.6695844e-06 | C30: ='DF raw data'!K35 -> -1.0076054e-05 | D30: ='DF raw data'!L35 -> 1.1125776e-06 | F30: -5.677158965e-06 | G30: -1.01120155e-05 | H30: 1.114064004e-06 | J30: 3.935170463e-05 | K30: 0.0004273786443 | L30: -6.307685861e-05 | M30: -0.0005499889635 | N30: 4.534259584e-08
A31: 12.4355 | B31: ='DF raw data'!J36 -> -9.3430699e-06 | C31: ='DF raw data'!K36 -> -2.6540326e-06 | D31: ='DF raw data'!L36 -> -9.5772339e-07 | F31: -9.355552241e-06 | G31: -2.66350486e-06 | H31: -9.590029084e-07 | J31: 3.467261873e-05 | K31: 0.0004447198078 | L31: -6.440898393e-05 | M31: -0.0005822024727 | N31: 4.801869879e-08
A32: 12.93564 | B32: ='DF raw data'!J37 -> -7.1438099e-06 | C32: ='DF raw data'!K37 -> 1.4380042e-07 | D32: ='DF raw data'!L37 -> -1.3418066e-06 | F32: -7.15335403e-06 | G32: 1.443136446e-07 | H32: -1.343599254e-06 | J32: 3.109494025e-05 | K32: 0.0004602716312 | L32: -6.43368069e-05 | M32: -0.0006143798833 | N32: 5.057247366e-08
A33: 13.43578 | B33: ='DF raw data'!J38 -> 4.8986288e-07 | C33: ='DF raw data'!K38 -> 1.7089026e-06 | D33: ='DF raw data'!L38 -> -7.2486728e-08 | F33: 4.905173368e-07 | G33: 1.715001685e-06 | H33: -7.258357027e-08 | J33: 3.134026759e-05 | K33: 0.0004759461527 | L33: -6.347906596e-05 | M33: -0.0006461283033 | N33: 5.307907741e-08
A34: 13.93592 | B34: ='DF raw data'!J39 -> 6.9271064e-06 | C34: ='DF raw data'!K39 -> -2.5416882e-06 | D34: ='DF raw data'!L39 -> 1.1997581e-06 | F34: 6.936361014e-06 | G34: -2.550759502e-06 | H34: 1.201360977e-06 | J34: 3.480941918e-05 | K34: 0.0004933557356 | L34: -6.475480282e-05 | M34: -0.0006785147704 | N34: 5.578227417e-08
A35: 14.43606 | B35: ='DF raw data'!J40 -> 6.2663621e-06 | C35: ='DF raw data'!K40 -> 1.4205655e-06 | D35: ='DF raw data'!L40 -> -7.7336517e-07 | F35: 6.27473396e-06 | G35: 1.425635508e-06 | H35: -7.743983859e-07 | J35: 3.794766463e-05 | K35: 0.0005123348806 | L35: -6.404178548e-05 | M35: -0.000710544629 | N35: 5.855373773e-08
A36: 14.9362 | B36: ='DF raw data'!J41 -> 4.8359816e-06 | C36: ='DF raw data'!K41 -> 3.6629428e-06 | D36: ='DF raw data'!L41 -> -5.6252247e-07 | F36: 4.842442471e-06 | G36: 3.676015867e-06 | H36: -5.63274e-07 | J36: 4.03695638e-05 | K36: 0.0005325253142 | L36: -6.22032629e-05 | M36: -0.0007416549689 | N36: 6.130398138e-08
A37: 15.43634 | B37: ='DF raw data'!J42 -> 5.9815375e-06 | C37: ='DF raw data'!K42 -> -1.143904e-06 | D37: ='DF raw data'!L42 -> 2.5066802e-06 | F37: 5.989528834e-06 | G37: -1.147986601e-06 | H37: 2.510029125e-06 | J37: 4.336516676e-05 | K37: 0.0005542139687 | L37: -6.277741692e-05 | M37: -0.0007730524662 | N37: 6.421556728e-08
A38: 15.93648 | B38: ='DF raw data'!J43 -> 6.6055818e-06 | C38: ='DF raw data'!K43 -> -8.7814096e-06 | D38: ='DF raw data'!L43 -> 1.5917976e-07 | F38: 6.614406857e-06 | G38: -8.812750508e-06 | H38: 1.593924242e-07 | J38: 4.66732962e-05 | K38: 0.0005775571511 | L38: -6.718502596e-05 | M38: -0.0008066543851 | N38: 6.756261633e-08
A39: 16.43662 | B39: ='DF raw data'!J44 -> 4.4639182e-06 | C39: ='DF raw data'!K44 -> -1.1266091e-05 | D39: ='DF raw data'!L44 -> -4.217949e-06 | F39: 4.469881995e-06 | G39: -1.130629975e-05 | H39: -4.22358418e-06 | J39: 4.890886298e-05 | K39: 0.0006020184298 | L39: -7.283975872e-05 | M39: -0.000843084462 | N39: 7.141254768e-08
A40: 16.93676 | B40: ='DF raw data'!J45 -> 1.0460079e-06 | C40: ='DF raw data'!K45 -> -1.9364613e-06 | D40: ='DF raw data'!L45 -> -3.0528499e-06 | F40: 1.047405367e-06 | G40: -1.943372543e-06 | H40: -3.056928507e-06 | J40: 4.94327123e-05 | K40: 0.0006267417065 | L40: -7.381171706e-05 | M40: -0.0008800006542 | N40: 7.535953383e-08
A41: 17.4369 | B41: ='DF raw data'!J46 -> 4.1975163e-06 | C41: ='DF raw data'!K46 -> -5.1070929e-06 | D41: ='DF raw data'!L46 -> 5.9723607e-07 | F41: 4.203124182e-06 | G41: -5.125320148e-06 | H41: 5.980339774e-07 | J41: 5.153486283e-05 | K41: 0.0006525163528 | L41: -7.637509468e-05 | M41: -0.0009181988941 | N41: 7.960522088e-08
A42: 17.93704 | B42: ='DF raw data'!J47 -> 7.4755244e-06 | C42: ='DF raw data'!K47 -> -1.0371326e-05 | D42: ='DF raw data'!L47 -> 5.2169707e-07 | F42: 7.485511701e-06 | G42: -1.040834133e-05 | H42: 5.223940573e-07 | J42: 5.527866665e-05 | K42: 0.0006801634252 | L42: -8.158072251e-05 | M42: -0.0009590006766 | N42: 8.446215308e-08
A43: 18.43718 | B43: ='DF raw data'!J48 -> 2.3941557e-06 | C43: ='DF raw data'!K48 -> -1.2135531e-06 | D43: ='DF raw data'!L48 -> -2.1217602e-06 | F43: 2.397354292e-06 | G43: -1.217884279e-06 | H43: -2.124594872e-06 | J43: 5.647767943e-05 | K43: 0.0007084101717 | L43: -8.218983516e-05 | M43: -0.001000107101 | N43: 8.9435994e-08
A44: 18.93732 | B44: ='DF raw data'!J49 -> -1.6857795e-06 | C44: ='DF raw data'!K49 -> 9.1287866e-06 | D44: ='DF raw data'!L49 -> -1.551718e-06 | F44: -1.688031701e-06 | G44: 9.161367299e-06 | H44: -1.553791095e-06 | J44: 5.563342725e-05 | K44: 0.0007362346741 | L44: -7.760786891e-05 | M44: -0.0010389219 | N44: 9.39963003e-08
A45: 19.43746 | B45: ='DF raw data'!J50 -> -2.7908945e-07 | C45: ='DF raw data'!K50 -> 2.453826e-06 | D45: ='DF raw data'!L50 -> -2.7723181e-06 | F45: -2.794623135e-07 | G45: 2.462583721e-06 | H45: -2.776021917e-06 | J45: 5.549365697e-05 | K45: 0.0007639892717 | L45: -7.637623229e-05 | M45: -0.001077120709 | N45: 9.845398552e-08
A46: 19.9376 | B46: ='DF raw data'!J51 -> 2.7142833e-06 | C46: ='DF raw data'!K51 -> 9.0678104e-06 | D46: ='DF raw data'!L51 -> -4.9941627e-06 | F46: 2.717909582e-06 | G46: 9.100173474e-06 | H46: -5.000834901e-06 | J46: 5.685299227e-05 | K46: 0.0007924237272 | L46: -7.182487153e-05 | M46: -0.0011130432 | N46: 1.026506977e-07
A47: 20.43774 | B47: ='DF raw data'!J52 -> 5.8783353e-06 | C47: ='DF raw data'!K52 -> -1.2541919e-05 | D47: ='DF raw data'!L52 -> -3.9015467e-06 | F47: 5.886188756e-06 | G47: -1.258668119e-05 | H47: -3.906759166e-06 | J47: 5.979691071e-05 | K47: 0.0008223305541 | L47: -7.811997426e-05 | M47: -0.001152114124 | N47: 1.074912531e-07
A48: 20.93788 | B48: ='DF raw data'!J53 -> 2.3912162e-06 | C48: ='DF raw data'!K53 -> -6.4932665e-06 | D48: ='DF raw data'!L53 -> -3.7578611e-06 | F48: 2.394410865e-06 | G48: -6.51644101e-06 | H48: -3.762881602e-06 | J48: 6.099445136e-05 | K48: 0.000852836319 | L48: -8.137910707e-05 | M48: -0.001192815071 | N48: 1.126641422e-07
A49: 21.43802 | B49: ='DF raw data'!J54 -> -2.3842422e-06 | C49: ='DF raw data'!K54 -> -6.5711884e-06 | D49: ='DF raw data'!L54 -> -4.7818503e-06 | F49: -2.387427548e-06 | G49: -6.594641014e-06 | H49: -4.788238852e-06 | J49: 5.980040335e-05 | K49: 0.0008827448928 | L49: -8.467735083e-05 | M49: -0.001235165601 | N49: 1.180388177e-07
A50: 21.93816 | B50: ='DF raw data'!J55 -> -4.3562159e-06 | C50: ='DF raw data'!K55 -> 5.9352069e-06 | D50: ='DF raw data'!L55 -> -1.4350553e-06 | F50: -4.362035804e-06 | G50: 5.956389692e-06 | H50: -1.436972534e-06 | J50: 5.761877476e-05 | K50: 0.0009115623468 | L50: -8.169832208e-05 | M50: -0.0012760262 | N50: 1.230374865e-07
A51: 22.4383 | B51: ='DF raw data'!J56 -> -6.6345074e-06 | C51: ='DF raw data'!K56 -> 2.2375409e-06 | D51: ='DF raw data'!L56 -> 9.1384209e-07 | F51: -6.643371102e-06 | G51: 2.245526698e-06 | H51: 9.15062983e-07 | J51: 5.429615914e-05 | K51: 0.0009387180278 | L51: -8.057524436e-05 | M51: -0.001316325103 | N51: 1.277590296e-07
A52: 22.93844 | B52: ='DF raw data'!J57 -> -1.1835566e-05 | C52: ='DF raw data'!K57 -> -2.8105439e-06 | D52: ='DF raw data'!L57 -> -3.9740189e-07 | F52: -1.185137832e-05 | G52: -2.82057475e-06 | H52: -3.979328189e-07 | J52: 4.836881079e-05 | K52: 0.0009629092048 | L52: -8.198592662e-05 | M52: -0.001357329544 | N52: 1.322909152e-07
A53: 23.43858 | B53: ='DF raw data'!J58 -> -1.3286959e-05 | C53: ='DF raw data'!K58 -> 6.3390917e-06 | D53: ='DF raw data'!L58 -> -2.2702807e-07 | F53: -1.330471038e-05 | G53: 6.36171596e-06 | H53: -2.273313795e-07 | J53: 4.171459294e-05 | K53: 0.0009837723414 | L53: -7.8804178e-05 | M53: -0.001396742666 | N53: 1.362671311e-07
A54: 23.93872 | B54: ='DF raw data'!J59 -> -9.4056868e-06 | C54: ='DF raw data'!K59 -> 7.5084472e-06 | D54: ='DF raw data'!L59 -> 5.8641999e-06 | F54: -9.418252798e-06 | G54: 7.535244897e-06 | H54: 5.872034471e-06 | J54: 3.700414799e-05 | K54: 0.001002279596 | L54: -7.503550061e-05 | M54: -0.001434270921 | N54: 1.397679277e-07
A55: 24.43886 | B55: ='DF raw data'!J60 -> -4.6951736e-06 | C55: ='DF raw data'!K60 -> 7.6670922e-06 | D55: ='DF raw data'!L60 -> 1.0248255e-05 | F55: -4.701446352e-06 | G55: 7.694456102e-06 | H55: 1.026194667e-05 | J55: 3.465276661e-05 | K55: 0.001019610831 | L55: -7.118719534e-05 | M55: -0.001469874485 | N55: 1.429030208e-07
A56: 24.939 | B56: ='DF raw data'!J61 -> 2.0196778e-07 | C56: ='DF raw data'!K61 -> 1.0591123e-06 | D56: ='DF raw data'!L61 -> 8.4315943e-06 | F56: 2.02237609e-07 | G56: 1.062892279e-06 | H56: 8.44285891e-06 | J56: 3.475391373e-05 | K56: 0.001036992653 | L56: -7.06556004e-05 | M56: -0.001505212177 | N56: 1.46003913e-07
A57: 25.43914 | B57: ='DF raw data'!J62 -> 1.8783193e-06 | C57: ='DF raw data'!K62 -> -3.110488e-06 | D57: ='DF raw data'!L62 -> 1.0990007e-06 | F57: 1.880828735e-06 | G57: -3.121589352e-06 | H57: 1.100468965e-06 | J57: 3.569459141e-05 | K57: 0.001054844946 | L57: -7.221683209e-05 | M57: -0.001541330703 | N57: 1.492495088e-07
A58: 25.93928 | B58: ='DF raw data'!J63 -> -1.7169497e-06 | C58: ='DF raw data'!K63 -> 5.4340544e-06 | D58: ='DF raw data'!L63 -> -5.8279584e-06 | F58: -1.719243545e-06 | G58: 5.453448576e-06 | H58: -5.835744552e-06 | J58: 3.483472894e-05 | K58: 0.001072267187 | L58: -6.948934432e-05 | M58: -0.001576085104 | N58: 1.522714684e-07
A59: 26.43942 | B59: ='DF raw data'!J64 -> -2.8004852e-06 | C59: ='DF raw data'!K64 -> 4.9722639e-06 | D59: ='DF raw data'!L64 -> -6.7482652e-06 | F59: -2.804226648e-06 | G59: 4.990009942e-06 | H59: -6.757280882e-06 | J59: 3.343222303e-05 | K59: 0.001088987979 | L59: -6.699364075e-05 | M59: -0.001609591303 | N59: 1.550751839e-07
A60: 26.93956 | B60: ='DF raw data'!J65 -> 3.3467968e-06 | C60: ='DF raw data'!K65 -> -6.7710625e-06 | D60: ='DF raw data'!L65 -> -4.4723165e-06 | F60: 3.351268121e-06 | G60: -6.795228466e-06 | H60: -4.478291515e-06 | J60: 3.510832627e-05 | K60: 0.001106547058 | L60: -7.039220632e-05 | M60: -0.001644797261 | N60: 1.581698788e-07
A61: 27.4397 | B61: ='DF raw data'!J66 -> 5.2479609e-06 | C61: ='DF raw data'!K66 -> -1.0530772e-05 | D61: ='DF raw data'!L66 -> -9.7889642e-07 | F61: 5.254972176e-06 | G61: -1.056835639e-05 | H61: -9.802042256e-07 | J61: 3.773654805e-05 | K61: 0.001125420615 | L61: -7.567786408e-05 | M61: -0.001682646788 | N61: 1.617464731e-07
A62: 27.93984 | B62: ='DF raw data'!J67 -> 6.8482944e-07 | C62: ='DF raw data'!K67 -> 3.8413345e-06 | D62: ='DF raw data'!L67 -> 6.1849823e-06 | F62: 6.857443721e-07 | G62: 3.855044248e-06 | H62: 6.193245436e-06 | J62: 3.807951624e-05 | K62: 0.001144465704 | L62: -7.374980225e-05 | M62: -0.001719532014 | N62: 1.65191979e-07
A63: 28.43998 | B63: ='DF raw data'!J68 -> 3.1590926e-07 | C63: ='DF raw data'!K68 -> -3.5117025e-06 | D63: ='DF raw data'!L68 -> 1.0336571e-05 | F63: 3.163313148e-07 | G63: -3.524235789e-06 | H63: 1.035038066e-05 | J63: 3.823772618e-05 | K63: 0.00116358992 | L63: -7.551241354e-05 | M63: -0.001757298793 | N63: 1.687751061e-07
A64: 28.94012 | B64: ='DF raw data'!J69 -> 5.8590552e-07 | C64: ='DF raw data'!K69 -> 1.2045477e-06 | D64: ='DF raw data'!L69 -> 6.3004663e-06 | F64: 5.866882898e-07 | G64: 1.208846739e-06 | H64: 6.308883723e-06 | J64: 3.853115246e-05 | K64: 0.001182860891 | L64: -7.490782093e-05 | M64: -0.00179476319 | N64: 1.723240152e-07
A65: 29.44026 | B65: ='DF raw data'!J70 -> -9.0940563e-07 | C65: ='DF raw data'!K70 -> 4.4232111e-06 | D65: ='DF raw data'!L70 -> 2.2985005e-06 | F65: -9.106205959e-07 | G65: 4.438997569e-06 | H65: 2.301571297e-06 | J65: 3.807571468e-05 | K65: 0.001201904079 | L65: -7.268770069e-05 | M65: -0.001831117217 | N65: 1.756915888e-07
A66: 29.9404 | B66: ='DF raw data'!J71 -> -5.2242376e-06 | C66: ='DF raw data'!K71 -> 3.5252453e-06 | D66: ='DF raw data'!L71 -> 2.2734712e-06 | F66: -5.231217181e-06 | G66: 3.537826923e-06 | H66: 2.276508558e-06 | J66: 3.545937372e-05 | K66: 0.00121963873 | L66: -7.091829193e-05 | M66: -0.001866586292 | N66: 1.788358546e-07
A67: 30.44054 | B67: ='DF raw data'!J72 -> -2.6902835e-06 | C67: ='DF raw data'!K72 -> -6.5863037e-07 | D67: ='DF raw data'!L72 -> 5.5976525e-06 | F67: -2.693877719e-06 | G67: -6.609810261e-07 | H67: 5.605130964e-06 | J67: 3.411205772e-05 | K67: 0.001236699535 | L67: -7.124887498e-05 | M67: -0.001902220704 | N67: 1.819567456e-07
A68: 30.94068 | B68: ='DF raw data'!J73 -> 1.0062375e-06 | C68: ='DF raw data'!K73 -> -5.2086307e-06 | D68: ='DF raw data'!L73 -> 7.7483382e-06 | F68: 1.007581833e-06 | G68: -5.227220337e-06 | H68: 7.75868998e-06 | J68: 3.461598969e-05 | K68: 0.001254012376 | L68: -7.386321696e-05 | M68: -0.001939162653 | N68: 1.852846979e-07
A69: 31.44082 | B69: ='DF raw data'!J74 -> -1.4691014e-06 | C69: ='DF raw data'!K74 -> 3.905112e-06 | D69: ='DF raw data'!L74 -> 6.8307672e-06 | F69: -1.471064119e-06 | G69: 3.91904937e-06 | H69: 6.839893105e-06 | J69: 3.388025169e-05 | K69: 0.001270957245 | L69: -7.190314361e-05 | M69: -0.001975124292 | N69: 1.884445492e-07
A70: 31.94096 | B70: ='DF raw data'!J75 -> -2.4247547e-06 | C70: ='DF raw data'!K75 -> 7.2708135e-06 | D70: ='DF raw data'!L75 -> 5.2789946e-06 | F70: -2.427994172e-06 | G70: 7.296763081e-06 | H70: 5.286047337e-06 | J70: 3.266591468e-05 | K70: 0.001287294775 | L70: -6.825374052e-05 | M70: -0.002009260717 | N70: 1.913081683e-07
A71: 32.4411 | B71: ='DF raw data'!J76 -> -9.4692047e-07 | C71: ='DF raw data'!K76 -> 9.4172565e-06 | D71: ='DF raw data'!L76 -> 5.3731019e-06 | F71: -9.481855557e-07 | G71: =(1-$G$1*($B$2-$G$2))*C71*$M$2/$M$1 -> 9.45086675e-06 | H71: 5.380280364e-06 | J71: 3.219168916e-05 | K71: 0.001303395127 | L71: -6.352698402e-05 | M71: -0.002041033103 | N71: 1.938448697e-07
A72: =A71+$B$1 -> 32.94124 | B72: ='DF raw data'!J77 -> 1.2670952e-06 | C72: ='DF raw data'!K77 -> -4.814352e-06 | D72: ='DF raw data'!L77 -> 4.3131549e-06 | F72: 1.268788039e-06 | G72: -4.831534454e-06 | H72: 4.318917275e-06 | J72: =F72*$B$1+J71 -> 3.282626081e-05 | K72: =J72*$B$1+K71 -> 0.001319812853 | L72: =G72*$B$1+L71 -> -6.594342767e-05 | M72: =L72*$B$1+M71 -> -0.002074014049 | N72: =(J72^2+L72^2)*$B$1+N71 -> 1.965586789e-07
A73: 33.44138 | B73: ='DF raw data'!J78 -> 2.4096389e-06 | C73: ='DF raw data'!K78 -> -5.718588e-06 | D73: ='DF raw data'!L78 -> -2.36095e-06 | F73: 2.412858178e-06 | G73: -5.738997678e-06 | H73: -2.364104229e-06 | J73: 3.40330277e-05 | K73: 0.001336834131 | L73: -6.881372996e-05 | M73: -0.002108430548 | N73: 1.995062922e-07
A74: 33.94152 | B74: ='DF raw data'!J79 -> 3.0256069e-06 | C74: ='DF raw data'!K79 -> -4.9170922e-06 | D74: ='DF raw data'!L79 -> -3.2180287e-06 | F74: 3.029649111e-06 | G74: -4.934641334e-06 | H74: -3.222327986e-06 | J74: 3.55482764e-05 | K74: 0.001354613246 | L74: -7.128174148e-05 | M74: -0.002144081398 | N74: 2.026795637e-07
A75: 34.44166 | B75: ='DF raw data'!J80 -> 1.5984277e-06 | C75: ='DF raw data'!K80 -> -3.1808047e-06 | D75: ='DF raw data'!L80 -> 3.2053031e-06 | F75: 1.600563199e-06 | G75: -3.192157013e-06 | H75: 3.209585385e-06 | J75: 3.634878208e-05 | K75: 0.001372792726 | L75: -7.287826689e-05 | M75: -0.002180530735 | N75: 2.059967302e-07
A76: 34.9418 | B76: ='DF raw data'!J81 -> -3.3775414e-06 | C76: ='DF raw data'!K81 -> 9.1075717e-06 | D76: ='DF raw data'!L81 -> 8.3704908e-06 | F76: -3.382053795e-06 | G76: 9.140076683e-06 | H76: 8.381673776e-06 | J76: 3.46572817e-05 | K76: 0.001390126219 | L76: -6.830694894e-05 | M76: -0.002214693772 | N76: 2.089310348e-07
A77: 35.44194 | B77: ='DF raw data'!J82 -> -4.0318828e-06 | C77: ='DF raw data'!K82 -> -6.9309081e-06 | D77: ='DF raw data'!L82 -> 8.5817992e-06 | F77: -4.037269395e-06 | G77: -6.955644556e-06 | H77: 8.593264484e-06 | J77: 3.263808178e-05 | K77: 0.001406449829 | L77: -7.178574501e-05 | M77: -0.002250596694 | N77: 2.120411241e-07
A78: 35.94208 | B78: ='DF raw data'!J83 -> -1.041377e-06 | C78: ='DF raw data'!K83 -> -7.5307962e-06 | D78: ='DF raw data'!L83 -> 5.5796809e-06 | F78: -1.04276828e-06 | G78: -7.557673661e-06 | H78: 5.587135354e-06 | J78: 3.211655165e-05 | K78: 0.001422512601 | L78: -7.556563991e-05 | M78: -0.002288390094 | N78: 2.154128874e-07
A79: 36.44222 | B79: ='DF raw data'!J84 -> -5.5957759e-07 | C79: ='DF raw data'!K84 -> -2.2896436e-06 | D79: ='DF raw data'!L84 -> 4.3864929e-07 | F79: -5.603251857e-07 | G79: -2.297815353e-06 | H79: 4.392353255e-07 | J79: 3.183631061e-05 | K79: 0.001438435214 | L79: -7.671486928e-05 | M79: -0.002326758268 | N79: 2.188632141e-07
A80: 36.94236 | B80: ='DF raw data'!J85 -> -1.563296e-06 | C80: ='DF raw data'!K85 -> -1.6014271e-06 | D80: ='DF raw data'!L85 -> -1.219687e-06 | F80: -1.565384563e-06 | G80: -1.607142604e-06 | H80: -1.221316502e-06 | J80: 3.105339918e-05 | K80: 0.001453966261 | L80: -7.751866558e-05 | M80: -0.002365528454 | N80: 2.223509189e-07
A81: 37.4425 | B81: ='DF raw data'!J86 -> 2.3645134e-06 | C81: ='DF raw data'!K86 -> -5.8478799e-06 | D81: ='DF raw data'!L86 -> 6.8050213e-07 | F81: 2.36767239e-06 | G81: -5.868751022e-06 | H81: 6.814112808e-07 | J81: 3.223756685e-05 | K81: 0.001470089558 | L81: -8.045386272e-05 | M81: -0.002405766649 | N81: 2.26108013e-07
A82: 37.94264 | B82: ='DF raw data'!J87 -> 8.1639755e-06 | C82: ='DF raw data'!K87 -> -1.0004269e-05 | D82: ='DF raw data'!L87 -> 1.2584132e-07 | F82: 8.174882571e-06 | G82: -1.00399743e-05 | H82: 1.26009444e-07 | J82: 3.632615262e-05 | K82: 0.00148825772 | L82: -8.547525547e-05 | M82: -0.002448516243 | N82: 2.304220249e-07
A83: 38.44278 | B83: ='DF raw data'!J88 -> 5.5235014e-06 | C83: ='DF raw data'!K88 -> -3.7842944e-06 | D83: ='DF raw data'!L88 -> 2.1009691e-07 | F83: 5.530880798e-06 | G83: -3.797800571e-06 | H83: 2.103775995e-07 | J83: 3.909236734e-05 | K83: 0.001507809376 | L83: -8.737468744e-05 | M83: -0.002492215819 | N83: 2.350045823e-07
A84: 38.94292 | B84: ='DF raw data'!J89 -> 1.5628483e-06 | C84: ='DF raw data'!K89 -> 5.9772015e-07 | D84: ='DF raw data'!L89 -> 5.100952e-06 | F84: 1.564936265e-06 | G84: 5.998534171e-07 | H84: 5.107766872e-06 | J84: 3.987505456e-05 | K84: 0.001527752486 | L84: -8.707467676e-05 | M84: -0.002535765348 | N84: 2.39591876e-07
A85: 39.44306 | B85: ='DF raw data'!J90 -> 5.1385596e-06 | C85: ='DF raw data'!K90 -> -4.6911991e-06 | D85: ='DF raw data'!L90 -> 9.30225e-06 | F85: 5.145424716e-06 | G85: -4.70794202e-06 | H85: 9.314677806e-06 | J85: 4.244848728e-05 | K85: 0.001548982672 | L85: -8.942930688e-05 | M85: -0.002580492521 | N85: 2.444929854e-07
A86: 39.9432 | B86: ='DF raw data'!J91 -> 7.9982437e-06 | C86: ='DF raw data'!K91 -> -7.5166536e-06 | D86: ='DF raw data'!L91 -> 4.155223e-06 | F86: 8.008929354e-06 | G86: -7.543480586e-06 | H86: 4.160774378e-06 | J86: 4.645407321e-05 | K86: 0.001572216213 | L86: -9.320210326e-05 | M86: -0.002627106621 | N86: 2.499168102e-07
A87: 40.44334 | B87: ='DF raw data'!J92 -> 5.4263819e-06 | C87: ='DF raw data'!K92 -> -3.9802999e-06 | D87: ='DF raw data'!L92 -> -1.786455e-06 | F87: =(1-$G$1*($B$2-$G$2))*B87 -> 5.433631546e-06 | G87: -3.994505616e-06 | H87: -1.788841704e-06 | J87: 4.917164969e-05 | K87: 0.001596808921 | L87: -9.51999153e-05 | M87: -0.002674719907 | N87: 2.55658855e-07
A88: 40.94348 | B88: ='DF raw data'!J93 -> 3.0347455e-06 | C88: ='DF raw data'!K93 -> 1.5422504e-06 | D88: ='DF raw data'!L93 -> -3.4471195e-06 | F88: 3.03879992e-06 | G88: 1.547754702e-06 | H88: -3.451724852e-06 | J88: 5.069147508e-05 | K88: 0.001622161756 | L88: -9.442582126e-05 | M88: -0.002721946037 | N88: 2.614033937e-07
A89: 41.44362 | B89: ='DF raw data'!J94 -> 7.6189626e-06 | C89: ='DF raw data'!K94 -> -9.1117745e-06 | D89: ='DF raw data'!L94 -> -2.5533554e-06 | F89: 7.629141534e-06 | G89: -9.144294483e-06 | H89: -2.556766683e-06 | J89: 5.450711393e-05 | K89: 0.001649422944 | L89: -9.89992487e-05 | M89: -0.002771459522 | N89: 2.677911201e-07
A90: 41.94376 | B90: ='DF raw data'!J95 -> 1.0441001e-05 | C90: ='DF raw data'!K95 -> -4.2378142e-06 | D90: ='DF raw data'!L95 -> -3.315803e-06 | F90: 1.045495018e-05 | G90: -4.252938987e-06 | H90: -3.320232913e-06 | J90: 5.973605271e-05 | K90: 0.001679299333 | L90: -0.0001011263136 | M90: -0.002822036836 | N90: 2.746905151e-07
A91: 42.4439 | B91: ='DF raw data'!J96 -> 8.8290708e-06 | C91: ='DF raw data'!K96 -> 3.0697249e-06 | D91: ='DF raw data'!L96 -> -2.5240042e-06 | F91: 8.840866439e-06 | G91: 3.080680768e-06 | H91: -2.52737627e-06 | J91: 6.415772365e-05 | K91: 0.001711387177 | L91: -9.958554193e-05 | M91: -0.002871843549 | N91: 2.817092266e-07
A92: 42.94404 | B92: ='DF raw data'!J97 -> 5.1597908e-06 | C92: ='DF raw data'!K97 -> 6.6318307e-06 | D92: ='DF raw data'!L97 -> 2.1298438e-06 | F92: 5.166684281e-06 | G92: 6.655499747e-06 | H92: 2.132689271e-06 | J92: 6.674178913e-05 | K92: 0.001744767415 | L92: -9.625686029e-05 | M92: -0.002919985455 | N92: 2.885710721e-07
A93: 43.44418 | B93: ='DF raw data'!J98 -> 2.4522906e-06 | C93: ='DF raw data'!K98 -> 3.788364e-06 | D93: ='DF raw data'!L98 -> 1.8341489e-06 | F93: 2.45556686e-06 | G93: 3.801884696e-06 | H93: 1.836599323e-06 | J93: 6.796991633e-05 | K93: 0.001778761889 | L93: -9.435538567e-05 | M93: -0.002967176358 | N93: 2.953343895e-07
A94: 43.94432 | B94: ='DF raw data'!J99 -> 2.9060484e-06 | C94: ='DF raw data'!K99 -> -1.0727888e-06 | D94: ='DF raw data'!L99 -> -1.6334561e-06 | F94: 2.909930881e-06 | G94: -1.07661759e-06 | H94: -1.635638397e-06 | J94: 6.942528917e-05 | K94: 0.001813484253 | L94: -9.489384519e-05 | M94: -0.003014636565 | N94: 3.022486813e-07
A95: 44.44446 | B95: ='DF raw data'!J100 -> -1.6674877e-06 | C95: ='DF raw data'!K100 -> 2.5050615e-06 | D95: ='DF raw data'!L100 -> -5.7372417e-06 | F95: -1.669715464e-06 | G95: 2.514002081e-06 | H95: -5.744906655e-06 | J95: 6.859019767e-05 | K95: 0.001847788955 | L95: -9.363649219e-05 | M95: -0.003061467921 | N95: 3.089867714e-07
A96: 44.9446 | B96: ='DF raw data'!J101 -> -5.7813286e-06 | C96: ='DF raw data'!K101 -> -6.5012719e-06 | D96: ='DF raw data'!L101 -> -7.4927993e-06 | F96: -5.789052455e-06 | G96: -6.524474982e-06 | H96: -7.50280968e-06 | J96: 6.569486098e-05 | K96: 0.001880645583 | L96: -9.689964311e-05 | M96: -0.003109931308 | N96: 3.158413679e-07
A97: 45.44474 | B97: ='DF raw data'!J102 -> -1.8579286e-06 | C97: ='DF raw data'!K102 -> 2.1660237e-06 | D97: ='DF raw data'!L102 -> -5.303973e-06 | F97: -1.860410793e-06 | G97: 2.173754253e-06 | H97: -5.311059108e-06 | J97: 6.476439512e-05 | K97: 0.001913036847 | L97: -9.581246166e-05 | M97: -0.003157850953 | N97: 3.225304677e-07
A98: 45.94488 | B98: ='DF raw data'!J103 -> 2.6608195e-06 | C98: ='DF raw data'!K103 -> 8.2021352e-06 | D98: ='DF raw data'!L103 -> -4.7855901e-06 | F98: 2.664374355e-06 | G98: 8.231408674e-06 | H98: -4.791983648e-06 | J98: 6.609695531e-05 | K98: 0.001946094579 | L98: -9.169560493e-05 | M98: -0.003203711593 | N98: 3.289207022e-07
A99: 46.44502 | B99: ='DF raw data'!J104 -> 2.4016936e-06 | C99: ='DF raw data'!K104 -> 5.6876997e-06 | D99: ='DF raw data'!L104 -> -6.4407832e-06 | F99: 2.404902263e-06 | G99: 5.707999137e-06 | H99: -6.449388086e-06 | J99: 6.729974313e-05 | K99: 0.001979753872 | L99: -8.884080624e-05 | M99: -0.003248144433 | N99: 3.351334134e-07
A100: 46.94516 | B100: ='DF raw data'!J105 -> -7.2685185e-07 | C100: ='DF raw data'!K105 -> 1.1621606e-05 | D100: ='DF raw data'!L105 -> -7.642815e-06 | F100: -7.278229241e-07 | G100: 1.166308359e-05 | H100: -7.653025801e-06 | J100: 6.693572978e-05 | K100: 0.002013231108 | L100: -8.300763161e-05 | M100: -0.00328965987 | N100: 3.408203347e-07
A101: 47.4453 | B101: ='DF raw data'!J106 -> 1.9763131e-07 | C101: ='DF raw data'!K106 -> 8.3224859e-06 | D101: ='DF raw data'!L106 -> -4.770136e-06 | F101: 1.978953454e-07 | G101: 8.352188906e-06 | H101: -4.776508902e-06 | J101: 6.703470515e-05 | K101: 0.002046757845 | L101: -7.883036785e-05 | M101: -0.00332908609 | N101: 3.461757731e-07
A102: 47.94544 | B102: ='DF raw data'!J107 -> 1.5650602e-06 | C102: ='DF raw data'!K107 -> 4.9036826e-06 | D102: ='DF raw data'!L107 -> -1.5279547e-06 | F102: 1.56715112e-06 | G102: 4.921183875e-06 | H102: -1.529996047e-06 | J102: 6.781850011e-05 | K102: 0.00208067659 | L102: -7.636908695e-05 | M102: -0.003367281326 | N102: 3.513930267e-07
A103: 48.44558 | B103: ='DF raw data'!J108 -> -1.4420058e-06 | C103: ='DF raw data'!K108 -> -1.4520243e-07 | D103: ='DF raw data'!L108 -> -2.9914263e-06 | F103: -1.44393232e-06 | G103: -1.457206584e-07 | H103: -2.995422846e-06 | J103: 6.70963318e-05 | K103: 0.002114234149 | L103: -7.644196768e-05 | M103: -0.003405513011 | N103: 3.565671211e-07
A104: 48.94572 | B104: ='DF raw data'!J109 -> -3.1236978e-06 | C104: ='DF raw data'!K109 -> -5.0828075e-06 | D104: ='DF raw data'!L109 -> -5.4699522e-06 | F104: -3.12787106e-06 | G104: -5.100948073e-06 | H104: -5.477260056e-06 | J104: 6.553195837e-05 | K104: 0.002147009303 | L104: -7.899315585e-05 | M104: -0.003445020648 | N104: 3.618357741e-07
A105: 49.44586 | B105: ='DF raw data'!J110 -> -9.8056455e-07 | C105: ='DF raw data'!K110 -> -3.2839833e-07 | D105: ='DF raw data'!L110 -> -6.090504e-06 | F105: -9.818745842e-07 | G105: -3.295703858e-07 | H105: -6.098640913e-06 | J105: 6.504088362e-05 | K105: 0.002179538851 | L105: -7.915798718e-05 | M105: -0.003484610724 | N105: 3.670853953e-07
A106: 49.946 | B106: ='DF raw data'!J111 -> -2.3040757e-06 | C106: ='DF raw data'!K111 -> 8.0631035e-06 | D106: ='DF raw data'!L111 -> -2.4372894e-06 | F106: -2.307153945e-06 | G106: 8.091880769e-06 | H106: -2.440545619e-06 | J106: 6.388698364e-05 | K106: 0.002211491287 | L106: -7.511091393e-05 | M106: -0.003522176696 | N106: 3.719483546e-07
A107: 50.44614 | B107: ='DF raw data'!J112 -> -9.566078e-06 | C107: ='DF raw data'!K112 -> 7.4832296e-06 | D107: ='DF raw data'!L112 -> -4.1337989e-07 | F107: -9.57885828e-06 | G107: 7.509937295e-06 | H107: -4.139321655e-07 | J107: 5.909621346e-05 | K107: 0.002241047667 | L107: -7.135489389e-05 | M107: -0.003557864133 | N107: 3.76241498e-07
A108: 50.94628 | B108: ='DF raw data'!J113 -> -1.3365132e-05 | C108: ='DF raw data'!K113 -> 4.8541806e-06 | D108: ='DF raw data'!L113 -> -3.5038865e-06 | F108: -1.338298782e-05 | G108: 4.871505202e-06 | H108: -3.508567692e-06 | J108: 5.240284594e-05 | K108: 0.002267256426 | L108: -6.891845928e-05 | M108: -0.003592333011 | N108: 3.799904535e-07
A109: 51.44642 | B109: ='DF raw data'!J114 -> -9.4528787e-06 | C109: ='DF raw data'!K114 -> 3.8370654e-06 | D109: ='DF raw data'!L114 -> -5.9427584e-06 | F109: -9.465507746e-06 | G109: 3.850759911e-06 | H109: -5.950697925e-06 | J109: 4.766876689e-05 | K109: 0.002291097483 | L109: -6.699254022e-05 | M109: -0.00362583866 | N109: 3.833715559e-07
A110: 51.94656 | B110: ='DF raw data'!J115 -> -6.6132907e-06 | C110: ='DF raw data'!K115 -> 3.4629359e-06 | D110: ='DF raw data'!L115 -> -4.0813065e-06 | F110: -6.622126056e-06 | G110: 3.475295141e-06 | H110: -4.086759125e-06 | J110: 4.435677677e-05 | K110: 0.002313282082 | L110: -6.525440611e-05 | M110: -0.003658474999 | N110: 3.86485258e-07
A111: 52.4467 | B111: ='DF raw data'!J116 -> -6.3906173e-06 | C111: ='DF raw data'!K116 -> 5.6862318e-06 | D111: ='DF raw data'!L116 -> -5.3391341e-07 | F111: -6.399155165e-06 | G111: 5.706525998e-06 | H111: -5.346267183e-07 | J111: 4.11563033e-05 | K111: 0.002333865995 | L111: -6.24003442e-05 | M111: -0.003689683907 | N111: 3.892798624e-07
A112: 52.94684 | B112: ='DF raw data'!J117 -> -1.8920965e-06 | C112: ='DF raw data'!K117 -> -4.923802e-07 | D112: ='DF raw data'!L117 -> 2.6303424e-06 | F112: -1.894624341e-06 | G112: -4.941375081e-07 | H112: 2.633856537e-06 | J112: 4.020872588e-05 | K112: 0.002353975987 | L112: -6.264748213e-05 | M112: -0.003721016419 | N112: 3.920513626e-07
A113: 53.44698 | B113: ='DF raw data'!J118 -> 3.5579305e-06 | C113: ='DF raw data'!K118 -> -8.004863e-06 | D113: ='DF raw data'!L118 -> 1.384713e-06 | F113: 3.562683895e-06 | G113: -8.033432408e-06 | H113: 1.386562977e-06 | J113: 4.199056661e-05 | K113: 0.002374977149 | L113: -6.666532301e-05 | M113: -0.003754358414 | N113: 3.951559681e-07
A114: 53.94712 | B114: ='DF raw data'!J119 -> 6.172575e-06 | C114: ='DF raw data'!K119 -> -8.5443098e-06 | D114: ='DF raw data'!L119 -> -3.6924357e-06 | F114: 6.18082156e-06 | G114: -8.574804497e-06 | H114: -3.697368794e-06 | J114: 4.50818427e-05 | K114: 0.002397524382 | L114: -7.095392573e-05 | M114: -0.00378984531 | N114: 3.986903735e-07
A115: 54.44726 | B115: ='DF raw data'!J120 -> 4.6205114e-06 | C115: ='DF raw data'!K120 -> -2.2549518e-06 | D115: ='DF raw data'!L120 -> -5.359343e-06 | F115: 4.626684403e-06 | G115: -2.262999738e-06 | H115: -5.366503082e-06 | J115: 4.739583264e-05 | K115: 0.002421228934 | L115: -7.208574242e-05 | M115: -0.003825898273 | N115: 4.024127751e-07
A116: 54.9474 | B116: ='DF raw data'!J121 -> 1.1114915e-06 | C116: ='DF raw data'!K121 -> 4.7023404e-06 | D116: ='DF raw data'!L121 -> -3.6418533e-06 | F116: 1.112976453e-06 | G116: 4.719123084e-06 | H116: -3.646718816e-06 | J116: 4.795247668e-05 | K116: 0.002445211886 | L116: -6.97255202e-05 | M116: -0.003860770795 | N116: 4.059943218e-07
A117: 55.44754 | B117: ='DF raw data'!J122 -> 9.5690655e-07 | C117: ='DF raw data'!K122 -> 1.2510765e-05 | D117: ='DF raw data'!L122 -> -1.2306591e-06 | F117: 9.581849772e-07 | G117: 1.2555416e-05 | H117: -1.232303261e-06 | J117: 4.843170332e-05 | K117: 0.002469434518 | L117: -6.344605445e-05 | M117: -0.003892502705 | N117: 4.091807296e-07
A118: 55.94768 | B118: ='DF raw data'!J123 -> 5.2257983e-06 | C118: ='DF raw data'!K123 -> 4.0381401e-06 | D118: ='DF raw data'!L123 -> -2.816847e-06 | F118: 5.232779967e-06 | G118: 4.052552248e-06 | H118: -2.820610308e-06 | J118: 5.104882589e-05 | K118: 0.002494966077 | L118: -6.141921096e-05 | M118: -0.003923220909 | N118: 4.123707736e-07
A119: 56.44782 | B119: ='DF raw data'!J124 -> 7.6891902e-06 | C119: ='DF raw data'!K124 -> -9.1758211e-06 | D119: ='DF raw data'!L124 -> -8.154213e-06 | F119: 7.699462958e-06 | G119: -9.208569665e-06 | H119: -8.165107029e-06 | J119: 5.489963529e-05 | K119: 0.002522423581 | L119: -6.6024785e-05 | M119: -0.003956242545 | N119: 4.160584269e-07
A120: 56.94796 | B120: ='DF raw data'!J125 -> 7.4003941e-07 | C120: ='DF raw data'!K125 -> 4.4739136e-06 | D120: ='DF raw data'!L125 -> -9.1993898e-06 | F120: 7.410281027e-07 | G120: 4.489881027e-06 | H120: -9.211680185e-06 | J120: 5.527025309e-05 | K120: 0.002550066445 | L120: -6.37792159e-05 | M120: -0.003988141082 | N120: 4.196207187e-07
A121: 57.4481 | B121: ='DF raw data'!J126 -> -9.2456885e-06 | C121: ='DF raw data'!K126 -> 9.0994326e-06 | D121: ='DF raw data'!L126 -> -2.6721573e-06 | F121: -9.25804074e-06 | G121: 9.131908534e-06 | H121: -2.675727302e-06 | J121: 5.063993659e-05 | K121: 0.002575393503 | L121: -5.921198317e-05 | M121: -0.004017755363 | N121: 4.226567996e-07
A122: 57.94824 | B122: ='DF raw data'!J127 -> -9.4544794e-06 | C122: ='DF raw data'!K127 -> 1.1303649e-05 | D122: ='DF raw data'!L127 -> 8.272862e-06 | F122: -9.467110584e-06 | G122: 1.13439918e-05 | H122: 8.283914544e-06 | J122: 4.590505591e-05 | K122: 0.002598352458 | L122: -5.353839911e-05 | M122: -0.004044532058 | N122: 4.251443131e-07
A123: 58.44838 | B123: ='DF raw data'!J128 -> -1.9738636e-06 | C123: ='DF raw data'!K128 -> 3.9743609e-06 | D123: ='DF raw data'!L128 -> 1.549604e-05 | F123: -1.976500682e-06 | G123: 3.98854542e-06 | H123: 1.551674271e-05 | J123: 4.491652886e-05 | K123: 0.002620817011 | L123: -5.1543568e-05 | M123: -0.004070311058 | N123: 4.274820845e-07
A124: 58.94852 | B124: ='DF raw data'!J129 -> 2.0772295e-06 | C124: ='DF raw data'!K129 -> -2.5786464e-06 | D124: ='DF raw data'!L129 -> 1.3761772e-05 | F124: 2.080004679e-06 | G124: -2.587849606e-06 | H124: 1.378015773e-05 | J124: 4.59568224e-05 | K124: 0.002643801856 | L124: -5.28378551e-05 | M124: -0.004096737383 | N124: 4.299347053e-07
A125: 59.44866 | B125: ='DF raw data'!J130 -> 3.1354739e-06 | C125: ='DF raw data'!K130 -> -4.9720638e-06 | D125: ='DF raw data'!L130 -> 6.5747263e-06 | F125: 3.139662893e-06 | G125: -4.989809128e-06 | H125: 6.583510134e-06 | J125: 4.752709339e-05 | K125: 0.002667572056 | L125: -5.533345824e-05 | M125: -0.004124411859 | N125: 4.325957582e-07
A126: 59.9488 | B126: ='DF raw data'!J131 -> 3.3870474e-06 | C126: ='DF raw data'!K131 -> -3.8655526e-06 | D126: ='DF raw data'!L131 -> -1.2114942e-06 | F126: 3.391572495e-06 | G126: -3.879348782e-06 | H126: -1.213112756e-06 | J126: 4.922335446e-05 | K126: 0.002692190625 | L126: -5.727367574e-05 | M126: -0.004153056715 | N126: 4.35448163e-07
A127: 60.44894 | B127: ='DF raw data'!J132 -> 1.6847351e-06 | C127: ='DF raw data'!K132 -> -3.3533595e-07 | D127: ='DF raw data'!L132 -> -3.5141311e-06 | F127: 1.686985906e-06 | G127: -3.365327662e-07 | H127: -3.518825979e-06 | J127: 5.006708359e-05 | K127: 0.002717231176 | L127: -5.744198924e-05 | M127: -0.004181785751 | N127: 4.383521234e-07
A128: 60.94908 | B128: ='DF raw data'!J133 -> -9.8644352e-07 | C128: ='DF raw data'!K133 -> -8.107736e-06 | D128: ='DF raw data'!L133 -> -3.6548336e-06 | F128: -9.877614085e-07 | G128: -8.136672563e-06 | H128: -3.659716458e-06 | J128: 4.95730646e-05 | K128: 0.002742024649 | L128: -6.151146465e-05 | M128: -0.004212550095 | N128: 4.414735716e-07
A129: 61.44922 | B129: ='DF raw data'!J134 -> -3.2816879e-06 | C129: ='DF raw data'!K134 -> -3.8061769e-06 | D129: ='DF raw data'!L134 -> -8.3135419e-06 | F129: -3.286072235e-06 | G129: -3.81976117e-06 | H129: -8.324648792e-06 | J129: 4.792956844e-05 | K129: 0.002765996143 | L129: -6.342188001e-05 | M129: -0.004244269914 | N129: 4.446342456e-07
A130: 61.94936 | B130: ='DF raw data'!J135 -> -4.6830228e-06 | C130: ='DF raw data'!K135 -> 4.5111392e-06 | D130: ='DF raw data'!L135 -> -1.1065425e-05 | F130: -4.689279318e-06 | G130: 4.527239485e-06 | H130: -1.108020841e-05 | J130: 4.558427228e-05 | K130: 0.002788794661 | L130: -6.115762645e-05 | M130: -0.00427485729 | N130: 4.475441507e-07
A131: 62.4495 | B131: ='DF raw data'!J136 -> -1.0087371e-06 | C131: ='DF raw data'!K136 -> 6.9327089e-06 | D131: ='DF raw data'!L136 -> -6.4771921e-06 | F131: -1.010084773e-06 | G131: 6.957451783e-06 | H131: -6.485845629e-06 | J131: 4.507908848e-05 | K131: 0.002811340516 | L131: -5.767792651e-05 | M131: -0.004303704328 | N131: 4.502243346e-07
A132: 62.94964 | B132: ='DF raw data'!J137 -> 3.8936141e-06 | C132: ='DF raw data'!K137 -> 2.1705294e-07 | D132: ='DF raw data'!L137 -> -1.1400152e-06 | F132: 3.898815968e-06 | G132: 2.178276034e-07 | H132: -1.14153826e-06 | J132: 4.70290423e-05 | K132: 0.002834861621 | L132: -5.756898222e-05 | M132: -0.004332496879 | N132: 4.529880675e-07
A133: 63.44978 | B133: ='DF raw data'!J138 -> 5.2077103e-06 | C133: ='DF raw data'!K138 -> -5.3736803e-06 | D133: ='DF raw data'!L138 -> 1.0422191e-06 | F133: 5.214667801e-06 | G133: -5.392859e-06 | H133: 1.043611505e-06 | J133: 4.963710625e-05 | K133: 0.002859687124 | L133: -6.026616672e-05 | M133: -0.004362638399 | N133: 4.560368475e-07
A134: 63.94992 | B134: ='DF raw data'!J139 -> 3.3954584e-06 | C134: ='DF raw data'!K139 -> -9.7550273e-06 | D134: ='DF raw data'!L139 -> 1.0145995e-06 | F134: 3.399994732e-06 | G134: -9.789843056e-06 | H134: 1.015955005e-06 | J134: 5.133757962e-05 | K134: 0.002885363101 | L134: -6.516245882e-05 | M134: -0.004395228751 | N134: 4.594786575e-07
A135: 64.45006 | B135: ='DF raw data'!J140 -> -2.5342288e-06 | C135: ='DF raw data'!K140 -> -8.6422442e-06 | D135: ='DF raw data'!L140 -> 2.157929e-06 | F135: -2.53761453e-06 | G135: =(1-$G$1*($B$2-$G$2))*C135*$M$2/$M$1 -> -8.673088426e-06 | H135: 2.160811993e-06 | J135: 5.006841709e-05 | K135: 0.002910404319 | L135: -6.950021727e-05 | M135: -0.00442998859 | N135: 4.63148248e-07
A136: =A135+$B$1 -> 64.9502 | B136: ='DF raw data'!J141 -> -5.3740205e-06 | C136: ='DF raw data'!K141 -> 4.2672345e-06 | D136: ='DF raw data'!L141 -> 5.232996e-06 | F136: -5.381200191e-06 | G136: 4.282464288e-06 | H136: 5.239987283e-06 | J136: =F136*$B$1+J135 -> 4.737706362e-05 | K136: =J136*$B$1+K135 -> 0.002934099483 | L136: =G136*$B$1+L135 -> -6.735838558e-05 | M136: =L136*$B$1+M135 -> -0.004463677213 | N136: =(J136^2+L136^2)*$B$1+N135 -> 4.665400666e-07
A137: 65.45034 | B137: ='DF raw data'!J142 -> 1.2996606e-08 | C137: ='DF raw data'!K142 -> 7.2017635e-08 | D137: ='DF raw data'!L142 -> 7.0453352e-06 | F137: 1.301396947e-08 | G137: 7.227466641e-08 | H137: 7.054747768e-06 | J137: 4.738357243e-05 | K137: 0.002957797903 | L137: -6.732223813e-05 | M137: -0.004497347757 | N137: 4.699297588e-07
A138: 65.95048 | B138: ='DF raw data'!J143 -> 3.5023277e-06 | C138: ='DF raw data'!K143 -> -8.3066752e-06 | D138: ='DF raw data'!L143 -> 5.5347591e-06 | F138: 3.50700681e-06 | G138: -8.336321778e-06 | H138: 5.542153538e-06 | J138: 4.913756681e-05 | K138: 0.002982373566 | L138: -7.14915661e-05 | M138: -0.004533103549 | N138: 4.736935846e-07
A139: 66.45062 | B139: ='DF raw data'!J144 -> 1.313152e-06 | C139: ='DF raw data'!K144 -> -3.7398638e-06 | D139: ='DF raw data'!L144 -> 4.0384111e-07 | F139: 1.314906371e-06 | G139: -3.753211398e-06 | H139: 4.043806417e-07 | J139: 4.979520409e-05 | K139: 0.003007278139 | L139: -7.336869725e-05 | M139: -0.004569798169 | N139: 4.776259494e-07
A140: 66.95076 | B140: ='DF raw data'!J145 -> 4.150381e-08 | C140: ='DF raw data'!K145 -> -4.1544226e-06 | D140: ='DF raw data'!L145 -> -2.72939e-06 | F140: 4.155925909e-08 | G140: -4.169249761e-06 | H140: -2.733036465e-06 | J140: 4.981598953e-05 | K140: 0.003032193108 | L140: -7.545390583e-05 | M140: -0.004607535686 | N140: 4.817145563e-07
A141: 67.4509 | B141: ='DF raw data'!J146 -> 2.8970408e-06 | C141: ='DF raw data'!K146 -> -8.4419717e-06 | D141: ='DF raw data'!L146 -> 1.51942e-06 | F141: 2.900911247e-06 | G141: -8.472101152e-06 | H141: 1.521449945e-06 | J141: 5.126685129e-05 | K141: 0.003057833711 | L141: -7.96911425e-05 | M141: -0.004647392414 | N141: 4.862052974e-07
A142: 67.95104 | B142: ='DF raw data'!J147 -> 8.2588977e-06 | C142: ='DF raw data'!K147 -> -1.2230264e-06 | D142: ='DF raw data'!L147 -> 5.6234676e-06 | F142: 8.269931587e-06 | G142: -1.227391389e-06 | H142: 5.630980553e-06 | J142: 5.540297487e-05 | K142: 0.003085542955 | L142: -8.030501003e-05 | M142: -0.004687556161 | N142: 4.909658221e-07
A143: 68.45118 | B143: ='DF raw data'!J148 -> 9.8818437e-06 | C143: ='DF raw data'!K148 -> 2.6755808e-06 | D143: ='DF raw data'!L148 -> 1.0228505e-06 | F143: 9.895045843e-06 | G143: 2.685129965e-06 | H143: 1.024217028e-06 | J143: 6.03518831e-05 | K143: 0.003115727346 | L143: -7.896206913e-05 | M143: -0.004727048251 | N143: 4.95905884e-07
A144: 68.95132 | B144: ='DF raw data'!J149 -> 5.0649269e-06 | C144: ='DF raw data'!K149 -> -2.147144e-06 | D144: ='DF raw data'!L149 -> -4.160047e-06 | F144: 5.071693642e-06 | G144: -2.154807171e-06 | H144: -4.165604823e-06 | J144: 6.288843996e-05 | K144: 0.00314718037 | L144: -8.003977438e-05 | M144: -0.004767079343 | N144: 5.010879953e-07
A145: 69.45146 | B145: ='DF raw data'!J150 -> 1.5247368e-06 | C145: ='DF raw data'!K150 -> -2.0410696e-06 | D145: ='DF raw data'!L150 -> -2.9858966e-06 | F145: 1.526773848e-06 | G145: -2.048354191e-06 | H145: -2.989885758e-06 | J145: 6.365204063e-05 | K145: 0.003179015302 | L145: -8.106423825e-05 | M145: -0.004807622812 | N145: 5.06400979e-07
A146: 69.9516 | B146: ='DF raw data'!J151 -> 1.8237059e-06 | C146: ='DF raw data'!K151 -> -1.4940176e-06 | D146: ='DF raw data'!L151 -> -3.3059405e-07 | F146: 1.826142371e-06 | G146: -1.499349759e-06 | H146: -3.310357237e-07 | J146: 6.456536747e-05 | K146: 0.003211307025 | L146: -8.181412304e-05 | M146: -0.004848541327 | N146: 5.118336184e-07
A147: 70.45174 | B147: ='DF raw data'!J152 -> 4.136311e-06 | C147: ='DF raw data'!K152 -> -2.8476623e-07 | D147: ='DF raw data'!L152 -> 3.7188511e-07 | F147: 4.141837111e-06 | G147: -2.857825625e-07 | H147: 3.723819485e-07 | J147: 6.663686589e-05 | K147: 0.003244634787 | L147: -8.195705433e-05 | M147: -0.004889531328 | N147: 5.174138958e-07
A148: 70.95188 | B148: ='DF raw data'!J153 -> 6.6695957e-06 | C148: ='DF raw data'!K153 -> 6.9605949e-06 | D148: ='DF raw data'!L153 -> 1.7560196e-06 | F148: 6.67850628e-06 | G148: 6.985437309e-06 | H148: 1.758365642e-06 | J148: 6.997705402e-05 | K148: 0.003279633111 | L148: -7.846335771e-05 | M148: -0.004928773992 | N148: 5.229420866e-07
A149: 71.45202 | B149: ='DF raw data'!J154 -> 1.0110396e-05 | C149: ='DF raw data'!K154 -> -3.631121e-06 | D149: ='DF raw data'!L154 -> -1.2794771e-08 | F149: 1.012390349e-05 | G149: -3.644080495e-06 | H149: -1.281186481e-08 | J149: 7.504042311e-05 | K149: 0.003317163828 | L149: -8.028590813e-05 | M149: -0.004968928186 | N149: 5.289822234e-07
A150: 71.95216 | B150: ='DF raw data'!J155 -> 8.5595402e-06 | C150: ='DF raw data'!K155 -> -2.0124186e-07 | D150: ='DF raw data'!L155 -> -2.877543e-06 | F150: 8.570975746e-06 | G150: -2.019600935e-07 | H150: -2.881387397e-06 | J150: 7.932711092e-05 | K150: 0.003356838489 | L150: -8.038691645e-05 | M150: -0.005009132898 | N150: 5.353614325e-07
A151: 72.4523 | B151: ='DF raw data'!J156 -> 5.1340921e-06 | C151: ='DF raw data'!K156 -> 7.7954492e-06 | D151: ='DF raw data'!L156 -> -2.5080408e-06 | F151: =(1-$G$1*($B$2-$G$2))*B151 -> 5.140951247e-06 | G151: 7.823271209e-06 | H151: -2.511391543e-06 | J151: 8.189830627e-05 | K151: 0.003397799108 | L151: -7.647418559e-05 | M151: -0.005047380698 | N151: 5.416410071e-07
A152: 72.95244 | B152: ='DF raw data'!J157 -> 8.4515941e-06 | C152: ='DF raw data'!K157 -> 4.436286e-06 | D152: ='DF raw data'!L157 -> -4.3955697e-06 | F152: 8.46288543e-06 | G152: 4.452119134e-06 | H152: -4.401442181e-06 | J152: 8.613093379e-05 | K152: 0.003440876633 | L152: -7.424750273e-05 | M152: -0.005084514844 | N152: 5.481084322e-07
A153: 73.45258 | B153: ='DF raw data'!J158 -> 8.0200716e-06 | C153: ='DF raw data'!K158 -> 5.8859723e-06 | D153: ='DF raw data'!L158 -> -7.8665653e-06 | F153: 8.030786416e-06 | G153: 5.906979374e-06 | H153: -7.877075031e-06 | J153: 9.014745131e-05 | K153: 0.00348596298 | L153: -7.129318606e-05 | M153: -0.005120171418 | N153: 5.547149222e-07
A154: 73.95272 | B154: ='DF raw data'!J159 -> 1.3849233e-07 | C154: ='DF raw data'!K159 -> 4.801077e-06 | D154: ='DF raw data'!L159 -> -6.8410336e-06 | F154: 1.386773558e-07 | G154: 4.818212075e-06 | H154: -6.850173221e-06 | J154: 9.02168094e-05 | K154: 0.003531084015 | L154: -6.888340547e-05 | M154: -0.005154622764 | N154: 5.611587241e-07
A155: 74.45286 | B155: ='DF raw data'!J160 -> -2.9804487e-06 | C155: ='DF raw data'!K160 -> 7.6218603e-06 | D155: ='DF raw data'!L160 -> -4.5220986e-06 | F155: -2.984430579e-06 | G155: 7.649062769e-06 | H155: -4.528140124e-06 | J155: 8.872417629e-05 | K155: 0.003575458524 | L155: -6.505780322e-05 | M155: -0.005187160774 | N155: 5.672126673e-07
A156: 74.953 | B156: ='DF raw data'!J161 -> 2.3977645e-06 | C156: ='DF raw data'!K161 -> 5.3969616e-06 | D156: ='DF raw data'!L161 -> -4.4599328e-06 | F156: 2.400967913e-06 | G156: 5.416223391e-06 | H156: -4.46589127e-06 | J156: 8.992499639e-05 | K156: 0.003620433612 | L156: -6.234893325e-05 | M156: -0.005218343969 | N156: 5.732012909e-07
A157: 75.45314 | B157: ='DF raw data'!J162 -> 1.2025632e-05 | C157: ='DF raw data'!K162 -> 3.7799584e-06 | D157: ='DF raw data'!L162 -> -2.4376823e-06 | F157: 1.204169824e-05 | G157: 3.793449096e-06 | H157: -2.440939044e-06 | J157: 9.594753135e-05 | K157: 0.00366842081 | L157: -6.045167762e-05 | M157: -0.005248578271 | N157: 5.796332584e-07
A158: 75.95328 | B158: ='DF raw data'!J163 -> 1.4709965e-05 | C158: ='DF raw data'!K163 -> 3.1991497e-06 | D158: ='DF raw data'!L163 -> -1.6971353e-06 | F158: 1.472961751e-05 | G158: 3.210567486e-06 | H158: -1.699402673e-06 | J158: 0.0001033144022 | K158: 0.003720092475 | L158: -5.88459444e-05 | M158: -0.005278009482 | N158: 5.867035929e-07
A159: 76.45342 | B159: ='DF raw data'!J164 -> 6.3214848e-06 | C159: ='DF raw data'!K164 -> 7.7504433e-07 | D159: ='DF raw data'!L164 -> -4.9085102e-06 | F159: 6.329930304e-06 | G159: 7.778104683e-07 | H159: -4.91506797e-06 | J159: 0.0001064802536 | K159: 0.00377334751 | L159: -5.845693027e-05 | M159: -0.005307246131 | N159: 5.940832872e-07
A160: 76.95356 | B160: ='DF raw data'!J165 -> -4.2354631e-07 | C160: ='DF raw data'!K165 -> 7.6278648e-06 | D160: ='DF raw data'!L165 -> -4.482823e-06 | F160: -4.241121679e-07 | G160: 7.655088699e-06 | H160: -4.488812052e-06 | J160: 0.0001062681381 | K160: 0.003826496456 | L160: -5.462831421e-05 | M160: -0.005334567936 | N160: 6.01223871e-07
A161: 77.4537 | B161: ='DF raw data'!J166 -> -1.1351641e-06 | C161: ='DF raw data'!K166 -> 1.0065845e-05 | D161: ='DF raw data'!L166 -> -1.7854654e-06 | F161: -1.136680679e-06 | G161: 1.010177007e-05 | H161: -1.787850782e-06 | J161: 0.0001056996387 | K161: 0.003879361073 | L161: -4.957601493e-05 | M161: -0.005359362884 | N161: 6.080408766e-07
A162: 77.95384 | B162: ='DF raw data'!J167 -> 8.8988048e-07 | C162: ='DF raw data'!K167 -> 9.3484077e-06 | D162: ='DF raw data'!L167 -> 7.4662239e-08 | F162: 8.910693603e-07 | G162: 9.381772228e-06 | H162: 7.476198775e-08 | J162: 0.0001061452981 | K162: 0.003932448583 | L162: -4.488381537e-05 | M162: -0.005381811076 | N162: 6.146834266e-07
A163: 78.45398 | B163: ='DF raw data'!J168 -> 1.6850116e-06 | C163: ='DF raw data'!K168 -> 1.073605e-05 | D163: ='DF raw data'!L168 -> 2.7150636e-06 | F163: 1.687262775e-06 | G163: 1.077436703e-05 | H163: 2.718690925e-06 | J163: 0.0001069891657 | K163: 0.003985958144 | L163: -3.949512344e-05 | M163: -0.005401564167 | N163: 6.211885207e-07
A164: 78.95412 | B164: ='DF raw data'!J169 -> -1.1242793e-06 | C164: ='DF raw data'!K169 -> 9.7252059e-06 | D164: ='DF raw data'!L169 -> 2.6021116e-06 | F164: -1.125781337e-06 | G164: 9.759915223e-06 | H164: 2.605588021e-06 | J164: 0.0001064261174 | K164: 0.004039186102 | L164: -3.461379944e-05 | M164: -0.005418875912 | N164: 6.27452591e-07
A165: 79.45426 | B165: ='DF raw data'!J170 -> -4.3067539e-06 | C165: ='DF raw data'!K170 -> 1.1666972e-05 | D165: ='DF raw data'!L170 -> -1.2133569e-06 | F165: -4.312507723e-06 | G165: 1.17086115e-05 | H165: -1.214977945e-06 | J165: 0.0001042692598 | K165: 0.00409133533 | L165: -2.875785449e-05 | M165: -0.005433258866 | N165: 6.333037752e-07
A166: 79.9544 | B166: ='DF raw data'!J171 -> -4.232932e-06 | C166: ='DF raw data'!K171 -> 9.3077124e-06 | D166: ='DF raw data'!L171 -> -8.4457315e-06 | F166: -4.238587197e-06 | G166: 9.340931686e-06 | H166: -8.457014997e-06 | J166: 0.0001021493728 | K166: 0.004142424317 | L166: -2.408608091e-05 | M166: -0.005445305278 | N166: 6.388126341e-07
A167: 80.45454 | B167: ='DF raw data'!J172 -> -2.014187e-06 | C167: ='DF raw data'!K172 -> -2.1660906e-06 | D167: ='DF raw data'!L172 -> -1.1136512e-05 | F167: -2.016877954e-06 | G167: -2.173821391e-06 | H167: -1.115139038e-05 | J167: 0.0001011406515 | K167: 0.004193008803 | L167: -2.517329594e-05 | M167: -0.00545789545 | N167: 6.44245718e-07
A168: 80.95468 | B168: ='DF raw data'!J173 -> -1.3658411e-06 | C168: ='DF raw data'!K173 -> 8.7914823e-06 | D168: ='DF raw data'!L173 -> -3.1774434e-06 | F168: -1.367665864e-06 | G168: 8.822859158e-06 | H168: -3.181688464e-06 | J168: 0.0001004566271 | K168: 0.00424325118 | L168: -2.076063116e-05 | M168: -0.005468278672 | N168: 6.4950846e-07
A169: 81.45482 | B169: ='DF raw data'!J174 -> 4.2973554e-08 | C169: ='DF raw data'!K174 -> 6.5390986e-06 | D169: ='DF raw data'!L174 -> 3.7799873e-06 | F169: 4.303096667e-08 | G169: 6.562436686e-06 | H169: 3.785037363e-06 | J169: 0.0001004781486 | K169: 0.004293504321 | L169: -1.747849408e-05 | M169: -0.005477020367 | N169: 6.547105943e-07
A170: 81.95496 | B170: ='DF raw data'!J175 -> 2.9575185e-06 | C170: ='DF raw data'!K175 -> -9.5556879e-06 | D170: ='DF raw data'!L175 -> 7.5823846e-07 | F170: 2.961469745e-06 | G170: -9.589792212e-06 | H170: 7.592514666e-07 | J170: 0.000101959298 | K170: 0.004344498245 | L170: -2.227473276e-05 | M170: -0.005488160851 | N170: 6.601580502e-07
A171: 82.4551 | B171: ='DF raw data'!J176 -> 5.8797468e-06 | C171: ='DF raw data'!K176 -> -2.5314492e-07 | D171: ='DF raw data'!L176 -> -2.9966795e-06 | F171: 5.887602142e-06 | G171: -2.540483959e-07 | H171: -3.000683064e-06 | J171: 0.0001049039234 | K171: 0.004396964893 | L171: -2.240179252e-05 | M171: -0.005499364884 | N171: 6.659129979e-07
A172: 82.95524 | B172: ='DF raw data'!J177 -> 8.2118368e-06 | C172: ='DF raw data'!K177 -> -9.6457893e-07 | D172: ='DF raw data'!L177 -> -2.2694476e-06 | F172: 8.222807814e-06 | G172: -9.680215185e-07 | H172: -2.272479582e-06 | J172: 0.0001090164785 | K172: 0.004451488395 | L172: -2.28859388e-05 | M172: -0.005510811057 | N172: 6.721189144e-07
A173: 83.45538 | B173: ='DF raw data'!J178 -> 6.2775089e-06 | C173: ='DF raw data'!K178 -> -3.1646593e-06 | D173: ='DF raw data'!L178 -> -2.3042412e-06 | F173: 6.285895652e-06 | G173: -3.17595399e-06 | H173: -2.307319666e-06 | J173: 0.0001121603063 | K173: 0.00450758425 | L173: -2.447436043e-05 | M173: -0.005523051664 | N173: 6.787102238e-07
A174: 83.95552 | B174: ='DF raw data'!J179 -> -4.1152643e-07 | C174: ='DF raw data'!K179 -> 7.6010133e-07 | D174: ='DF raw data'!L179 -> -4.0922205e-06 | F174: -4.120762293e-07 | G174: 7.628141366e-07 | H174: -4.097687707e-06 | J174: 0.0001119542105 | K174: 0.004563577029 | L174: -2.409284657e-05 | M174: -0.00553510146 | N174: 6.852691651e-07
A175: 84.45566 | B175: ='DF raw data'!J180 -> -3.4654495e-06 | C175: ='DF raw data'!K180 -> 2.5200063e-06 | D175: ='DF raw data'!L180 -> -5.8097248e-06 | F175: -3.470079341e-06 | G175: 2.529000219e-06 | H175: -5.817486592e-06 | J175: 0.000110218685 | K175: 0.004618701802 | L175: -2.28279924e-05 | M175: -0.005546518652 | N175: 6.916055766e-07
A176: 84.9558 | B176: ='DF raw data'!J181 -> 8.4149536e-07 | C176: ='DF raw data'!K181 -> -5.2145006e-06 | D176: ='DF raw data'!L181 -> -7.1149152e-06 | F176: 8.426195978e-07 | G176: -5.233111187e-06 | H176: -7.124420727e-06 | J176: 0.0001106401128 | K176: 0.004674037348 | L176: -2.544528063e-05 | M176: -0.005559244855 | N176: 6.980517295e-07
A177: 85.45594 | B177: ='DF raw data'!J182 -> -6.3654267e-07 | C177: ='DF raw data'!K182 -> -9.4889747e-06 | D177: ='DF raw data'!L182 -> -5.7167381e-06 | F177: -6.37393091e-07 | G177: -9.522840913e-06 | H177: -5.724375662e-06 | J177: 0.000110321327 | K177: 0.004729213457 | L177: -3.020803428e-05 | M177: -0.005574353101 | N177: 7.045952214e-07
A178: 85.95608 | B178: ='DF raw data'!J183 -> -8.1278395e-06 | C178: ='DF raw data'!K183 -> 6.9870139e-06 | D178: ='DF raw data'!L183 -> -1.994038e-06 | F178: -8.138698294e-06 | G178: 7.011950598e-06 | H178: -1.996702035e-06 | J178: 0.0001062508385 | K178: 0.004782353751 | L178: -2.670107731e-05 | M178: -0.005587707378 | N178: 7.105979958e-07
A179: 86.45622 | B179: ='DF raw data'!J184 -> -6.6377816e-06 | C179: ='DF raw data'!K184 -> 4.119931e-06 | D179: ='DF raw data'!L184 -> -2.3513749e-06 | F179: -6.646649676e-06 | G179: 4.134635061e-06 | H179: -2.354516337e-06 | J179: 0.0001029265831 | K179: 0.004833831452 | L179: -2.463318093e-05 | M179: -0.005600027417 | N179: 7.161999015e-07
A180: 86.95636 | B180: ='DF raw data'!J185 -> -3.3671949e-06 | C180: ='DF raw data'!K185 -> -5.9275198e-08 | D180: ='DF raw data'!L185 -> -6.6420362e-06 | F180: -3.371693472e-06 | G180: -5.948675157e-08 | H180: -6.65090996e-06 | J180: 0.0001012402643 | K180: 0.004884465758 | L180: -2.466293264e-05 | M180: -0.005612362336 | N180: 7.216303473e-07
A181: 87.4565 | B181: ='DF raw data'!J186 -> -6.4812612e-06 | C181: ='DF raw data'!K186 -> 8.7782737e-06 | D181: ='DF raw data'!L186 -> -9.4486932e-06 | F181: -6.489920165e-06 | G181: 8.809603416e-06 | H181: -9.461316654e-06 | J181: 9.799439565e-05 | K181: 0.004933476675 | L181: -2.025689758e-05 | M181: -0.005622493621 | N181: 7.266383709e-07
A182: 87.95664 | B182: ='DF raw data'!J187 -> -6.9309444e-06 | C182: ='DF raw data'!K187 -> 1.1836158e-05 | D182: ='DF raw data'!L187 -> -8.7626577e-06 | F182: -6.940204142e-06 | G182: 1.187840133e-05 | H182: -8.774364611e-06 | J182: 9.452332195e-05 | K182: 0.004980751569 | L182: -1.431603394e-05 | M182: -0.005629653642 | N182: 7.31209454e-07
A183: 88.45678 | B183: ='DF raw data'!J188 -> -4.0064606e-06 | C183: ='DF raw data'!K188 -> 9.7968568e-06 | D183: ='DF raw data'!L188 -> -4.1706262e-06 | F183: -4.011813231e-06 | G183: 9.831821846e-06 | H183: -4.176198157e-06 | J183: 9.251685368e-05 | K183: 0.005027022949 | L183: -9.398746567e-06 | M183: -0.005634354331 | N183: 7.35534517e-07
A184: 88.95692 | B184: ='DF raw data'!J189 -> 1.0758539e-06 | C184: ='DF raw data'!K189 -> -5.5939672e-06 | D184: ='DF raw data'!L189 -> 1.3381177e-06 | F184: 1.077291241e-06 | G184: -5.613932105e-06 | H184: 1.339905425e-06 | J184: 9.305565012e-05 | K184: 0.005073563801 | L184: -1.220649857e-05 | M184: -0.00564045929 | N184: 7.399399265e-07
A185: 89.45706 | B185: ='DF raw data'!J190 -> 5.3863932e-06 | C185: ='DF raw data'!K190 -> -6.4897977e-06 | D185: ='DF raw data'!L190 -> 4.2389547e-06 | F185: 5.393589421e-06 | G185: -6.51295983e-06 | H185: 4.244617943e-06 | J185: 9.575319993e-05 | K185: 0.005121453807 | L185: -1.54638903e-05 | M185: -0.0056481934 | N185: 7.446451472e-07
A186: 89.9572 | B186: ='DF raw data'!J191 -> 5.4132997e-06 | C186: ='DF raw data'!K191 -> -4.6801251e-06 | D186: ='DF raw data'!L191 -> 1.9243998e-06 | F186: 5.420531868e-06 | G186: -4.696828497e-06 | H186: 1.926970798e-06 | J186: 9.846422474e-05 | K186: 0.005170699704 | L186: -1.78129621e-05 | M186: -0.005657102375 | N186: 7.496528015e-07
A187: 90.45734 | B187: ='DF raw data'!J192 -> 5.2859414e-06 | C187: ='DF raw data'!K192 -> -3.6960989e-06 | D187: ='DF raw data'!L192 -> 1.0527947e-07 | F187: 5.293003418e-06 | G187: -3.709290301e-06 | H187: 1.054201234e-07 | J187: 0.0001011114675 | K187: 0.005221269594 | L187: -1.966812656e-05 | M187: -0.005666939191 | N187: 7.54959469e-07
A188: 90.95748 | B188: ='DF raw data'!J193 -> 5.1425613e-06 | C188: ='DF raw data'!K193 -> 9.6773056e-06 | D188: ='DF raw data'!L193 -> 4.8424045e-07 | F188: 5.149431762e-06 | G188: 9.711843967e-06 | H188: 4.848873952e-07 | J188: 0.0001036869043 | K188: 0.005273127562 | L188: -1.481084491e-05 | M188: -0.005674346687 | N188: 7.604461725e-07
A189: 91.45762 | B189: ='DF raw data'!J194 -> 1.766837e-06 | C189: ='DF raw data'!K194 -> 8.5737292e-06 | D189: ='DF raw data'!L194 -> 2.1705164e-06 | F189: 1.769197494e-06 | G189: 8.604328895e-06 | H189: 2.17341621e-06 | J189: 0.0001045717507 | K189: 0.005325428077 | L189: -1.050747586e-05 | M189: -0.005679601896 | N189: 7.659705479e-07
A190: 91.95776 | B190: ='DF raw data'!J195 -> -3.065752e-06 | C190: ='DF raw data'!K195 -> 7.3173796e-06 | D190: ='DF raw data'!L195 -> 1.2707715e-06 | F190: -3.069847845e-06 | G190: 7.343495376e-06 | H190: 1.272469251e-06 | J190: 0.000103036397 | K190: 0.005376960701 | L190: -6.834700083e-06 | M190: -0.005683020203 | N190: 7.713036469e-07
A191: 92.4579 | B191: ='DF raw data'!J196 -> -3.5145767e-06 | C191: ='DF raw data'!K196 -> 5.4856919e-06 | D191: ='DF raw data'!L196 -> -4.1990461e-06 | F191: -3.519272174e-06 | G191: 5.50527037e-06 | H191: -4.204656026e-06 | J191: 0.0001012762682 | K191: 0.005427613014 | L191: -4.08129416e-06 | M191: -0.005685061422 | N191: 7.764418549e-07
A192: 92.95804 | B192: ='DF raw data'!J197 -> -1.1612557e-06 | C192: ='DF raw data'!K197 -> 3.4035604e-06 | D192: ='DF raw data'!L197 -> -5.4236334e-06 | F192: -1.162807138e-06 | G192: 3.415707729e-06 | H192: -5.430879374e-06 | J192: 0.0001006947019 | K192: 0.005477974462 | L192: -2.372962096e-06 | M192: -0.005686248235 | N192: 7.815158022e-07
A193: 93.45818 | B193: ='DF raw data'!J198 -> -1.4528906e-06 | C193: ='DF raw data'!K198 -> 3.9979786e-06 | D193: ='DF raw data'!L198 -> -1.9238978e-06 | F193: -1.454831662e-06 | G193: 4.012247412e-06 | H193: -1.926468127e-06 | J193: 9.996708235e-05 | K193: 0.005527971998 | L193: -3.662766755e-07 | M193: -0.005686431425 | N193: 7.865139771e-07
A194: 93.95832 | B194: ='DF raw data'!J199 -> -9.0767395e-07 | C194: ='DF raw data'!K199 -> 4.9461123e-06 | D194: ='DF raw data'!L199 -> -3.990026e-07 | F194: -9.088866024e-07 | G194: 4.963765007e-06 | H194: -3.995356675e-07 | J194: 9.951251181e-05 | K194: 0.005577742186 | L194: 2.116300755e-06 | M194: -0.005685372978 | N194: 7.914689735e-07
A195: 94.45846 | B195: ='DF raw data'!J200 -> 4.9726981e-07 | C195: ='DF raw data'!K200 -> 1.0149371e-05 | D195: ='DF raw data'!L200 -> -1.1482662e-06 | F195: 4.979341625e-07 | G195: 1.018559417e-05 | H195: -1.149800284e-06 | J195: 9.97615486e-05 | K195: 0.005627636927 | L195: 7.210523824e-06 | M195: -0.005681766707 | N195: 7.964725532e-07
A196: 94.9586 | B196: ='DF raw data'!J201 -> -1.1598587e-06 | C196: ='DF raw data'!K201 -> 1.0902834e-05 | D196: ='DF raw data'!L201 -> -1.3233694e-06 | F196: -1.161408271e-06 | G196: 1.094174629e-05 | H196: -1.325137422e-06 | J196: 9.918068187e-05 | K196: 0.005677241153 | L196: 1.268292881e-05 | M196: -0.005675423466 | N196: 8.014727851e-07
A197: 95.45874 | B197: ='DF raw data'!J202 -> -3.4875393e-06 | C197: ='DF raw data'!K202 -> 7.8159965e-06 | D197: ='DF raw data'!L202 -> -4.1305648e-06 | F197: -3.492198653e-06 | G197: 7.843891842e-06 | H197: -4.136083235e-06 | J197: 9.743409363e-05 | K197: 0.005725971841 | L197: 1.660597288e-05 | M197: -0.005667118155 | N197: 8.063587332e-07
A198: 95.95888 | B198: ='DF raw data'!J203 -> -6.671964e-06 | C198: ='DF raw data'!K203 -> 5.5350592e-06 | D198: ='DF raw data'!L203 -> -1.0263717e-05 | F198: -6.680877744e-06 | G198: 5.554813862e-06 | H198: -1.027742933e-05 | J198: 9.409271944e-05 | K198: 0.005773031373 | L198: 1.938415748e-05 | M198: -0.005657423363 | N198: 8.10974618e-07
A199: 96.45902 | B199: ='DF raw data'!J204 -> -1.2482573e-05 | C199: ='DF raw data'!K204 -> 7.4809614e-06 | D199: ='DF raw data'!L204 -> -1.4249035e-05 | F199: -1.249924972e-05 | G199: =(1-$G$1*($B$2-$G$2))*C199*$M$2/$M$1 -> 7.507661e-06 | H199: -1.426807171e-05 | J199: 8.784134468e-05 | K199: 0.005816964344 | L199: 2.313903906e-05 | M199: -0.005645850604 | N199: 8.151015317e-07
A200: =A199+$B$1 -> 96.95916 | B200: ='DF raw data'!J205 -> -1.3660827e-05 | C200: ='DF raw data'!K205 -> 1.7304137e-05 | D200: ='DF raw data'!L205 -> -1.117311e-05 | F200: -1.367907786e-05 | G200: 1.736589558e-05 | H200: -1.118803727e-05 | J200: =F200*$B$1+J199 -> 8.099989068e-05 | K200: =J200*$B$1+K199 -> 0.005857475629 | L200: =G200*$B$1+L199 -> 3.182441807e-05 | M200: =L200*$B$1+M199 -> -0.005629933939 | N200: =(J200^2+L200^2)*$B$1+N199 -> 8.1888948e-07
A201: 97.4593 | B201: ='DF raw data'!J206 -> -8.726578e-06 | C201: ='DF raw data'!K206 -> 1.8445206e-05 | D201: ='DF raw data'!L206 -> -4.4261287e-06 | F201: -8.738236708e-06 | G201: 1.851103706e-05 | H201: -4.432042008e-06 | J201: 7.662954897e-05 | K201: 0.005895801132 | L201: 4.108252814e-05 | M201: -0.005609386924 | N201: 8.226704693e-07
... 1002 more rows

Sheet 30 mm
A1: dz | B1: ='DF raw data'!N7 -> 0.50013 | C1: mm | F1: T_coeff | G1: -0.0008 | H1: /degC | L1: Hallref | M1: ='PI vs gap'!B50 -> 0.505375 | N1: T | P1: IBy total | Q1: =L1203*1000 -> 7.28529025 | R1: muTm | X1: DF ref | Y1: 22
A2: Tref | B2: ='DF raw data'!N8 -> 21.68 | C2: degC | F2: Tcorr | G2: 20 | H2: degC | L2: NMRref | M2: ='PI vs gap'!B51 -> 0.506502 | N2: T | P2: JBy total | Q2: =M1203 -> 0.6032320346 | R2: muTm^2
A3: Encoder | B3: ='DF raw data'!N9 -> 17859593 | P3: PI total | Q3: =N1203 -> 69.25627813 | R3: T^2mm^3
A5: z [mm] | B5: Bx | C5: By | D5: Bz | F5: Bx_corr | G5: By_corr | H5: Bz_corr | J5: Ix | K5: Jx | L5: Iy | M5: Jy | N5: PI
A6: -0.068 | B6: ='DF raw data'!M11 -> -1.2099839e-06 | C6: ='DF raw data'!N11 -> -8.8745273e-06 | D6: ='DF raw data'!O11 -> -5.9688846e-06 | F6: =(1-$G$1*($B$2-$G$2))*B6 -> -1.211610118e-06 | G6: =(1-$G$1*($B$2-$G$2))*C6*$M$2/$M$1 -> -8.9062717e-06 | H6: =(1-$G$1*($B$2-$G$2))*D6 -> -5.976906781e-06 | J6: =F6*$B$1 -> -6.059625685e-07 | K6: =J6*$B$1 -> -3.030600594e-07 | L6: =G6*$B$1 -> -4.454293666e-06 | M6: =L6*$B$1 -> -2.227725891e-06 | N6: =(J6^2+L6)^2*$B$1 -> 9.922943688e-12
A7: =A6+$B$1 -> 0.43213 | B7: ='DF raw data'!M12 -> -1.8701315e-06 | C7: ='DF raw data'!N12 -> 8.7912294e-06 | D7: ='DF raw data'!O12 -> -7.265824e-06 | F7: =(1-$G$1*($B$2-$G$2))*B7 -> -1.872644957e-06 | G7: =(1-$G$1*($B$2-$G$2))*C7*$M$2/$M$1 -> 8.822675842e-06 | H7: -7.275589267e-06 | J7: =F7*$B$1+J6 -> -1.542528491e-06 | K7: =J7*$B$1+K6 -> -1.074524833e-06 | L7: =G7*$B$1+L6 -> -4.180879677e-08 | M7: =L7*$B$1+M6 -> -2.248635724e-06 | N7: =(J7^2+L7^2)*$B$1+N6 -> 1.11138243e-11
A8: =A7+$B$1 -> 0.93226 | B8: ='DF raw data'!M13 -> -1.695785e-06 | C8: ='DF raw data'!N13 -> 4.2884622e-06 | D8: ='DF raw data'!O13 -> -4.5146098e-06 | F8: -1.698064135e-06 | G8: 4.303802134e-06 | H8: -4.520677436e-06 | J8: =F8*$B$1+J7 -> -2.391781307e-06 | K8: =J8*$B$1+K7 -> -2.270726418e-06 | L8: =G8*$B$1+L7 -> 2.110651764e-06 | M8: =L8*$B$1+M7 -> -1.193035458e-06 | N8: =(J8^2+L8^2)*$B$1+N7 -> 1.620288145e-11
A9: 1.43239 | B9: ='DF raw data'!M14 -> -1.4742321e-06 | C9: ='DF raw data'!N14 -> -7.3293467e-07 | D9: ='DF raw data'!O14 -> 1.9742054e-06 | F9: -1.476213468e-06 | G9: -7.355563952e-07 | H9: 1.976858732e-06 | J9: -3.130079948e-06 | K9: -3.836173303e-06 | L9: 1.742777944e-06 | M9: -3.214199242e-07 | N9: 2.262188768e-11
A10: 1.93252 | B10: ='DF raw data'!M15 -> -1.4449973e-06 | C10: ='DF raw data'!N15 -> -1.2614403e-06 | D10: ='DF raw data'!O15 -> 3.159066e-06 | F10: -1.446939376e-06 | G10: -1.265952503e-06 | H10: 3.163311785e-06 | J10: -3.853737739e-06 | K10: -5.763543158e-06 | L10: 1.109637119e-06 | M10: 2.335428883e-07 | N10: 3.066527297e-11
A11: 2.43265 | B11: ='DF raw data'!M16 -> -1.5035397e-06 | C11: ='DF raw data'!N16 -> -2.2471085e-07 | D11: ='DF raw data'!O16 -> -5.5171608e-07 | F11: -1.505560457e-06 | G11: -2.255146462e-07 | H11: -5.524575864e-07 | J11: -4.60671369e-06 | K11: -8.067498876e-06 | L11: 9.968504793e-07 | M11: 7.320977185e-07 | N11: 4.177592194e-11
A12: 2.93278 | B12: ='DF raw data'!M17 -> -1.8137283e-06 | C12: ='DF raw data'!N17 -> 8.5470583e-06 | D12: ='DF raw data'!O17 -> 1.4900922e-06 | F12: -1.816165951e-06 | G12: 8.577631336e-06 | H12: 1.492094884e-06 | J12: -5.515032767e-06 | K12: -1.082573221e-05 | L12: 5.286781239e-06 | M12: 3.37617562e-06 | N12: 7.096633062e-11
A13: 3.43291 | B13: ='DF raw data'!M18 -> -1.6691405e-06 | C13: ='DF raw data'!N18 -> 4.4369681e-06 | D13: ='DF raw data'!O18 -> 9.556004e-07 | F13: -1.671383825e-06 | G13: 4.452839243e-06 | H13: 9.568847269e-07 | J13: -6.350941959e-06 | K13: -1.400202882e-05 | L13: 7.51377973e-06 | M13: 7.134042276e-06 | N13: 1.193745883e-10
A14: 3.93304 | B14: ='DF raw data'!M19 -> -1.5848412e-06 | C14: ='DF raw data'!N19 -> 1.9892448e-06 | D14: ='DF raw data'!O19 -> 4.5889988e-07 | F14: -1.586971227e-06 | G14: 1.996360377e-06 | H14: 4.595166414e-07 | J14: -7.144633879e-06 | K14: -1.757527456e-05 | L14: 8.512219445e-06 | M14: 1.139125859e-05 | N14: 1.811424803e-10
A15: 4.43317 | B15: ='DF raw data'!M20 -> -1.6090702e-06 | C15: ='DF raw data'!N20 -> 2.6755949e-06 | D15: ='DF raw data'!O20 -> 9.6219242e-07 | F15: -1.61123279e-06 | G15: 2.685165568e-06 | H15: 9.634856066e-07 | J15: -7.950459734e-06 | K15: -2.155153798e-05 | L15: 9.855151301e-06 | M15: 1.632011541e-05 | N15: 2.613302323e-10
A16: 4.9333 | B16: ='DF raw data'!M21 -> -1.2628365e-06 | C16: ='DF raw data'!N21 -> -6.3857115e-06 | D16: ='DF raw data'!O21 -> 3.2441219e-06 | F16: -1.264533752e-06 | G16: -6.408553346e-06 | H16: 3.248482e-06 | J16: -8.582891e-06 | K16: -2.584409926e-05 | L16: 6.650041516e-06 | M16: 1.964600067e-05 | N16: 3.202900929e-10
A17: 5.43343 | B17: ='DF raw data'!M22 -> -1.0300931e-06 | C17: ='DF raw data'!N22 -> -1.3885918e-05 | D17: ='DF raw data'!O22 -> -4.433221e-06 | F17: -1.031477545e-06 | G17: -1.393558827e-05 | H17: -4.439179249e-06 | J17: -9.098763865e-06 | K17: -3.039466403e-05 | L17: -3.195642438e-07 | M17: 1.948617701e-05 | N17: 3.617456812e-10
A18: 5.93356 | B18: ='DF raw data'!M23 -> -1.2048325e-06 | C18: ='DF raw data'!N23 -> -1.0178112e-05 | D18: ='DF raw data'!O23 -> -1.189326e-05 | F18: -1.206451795e-06 | G18: -1.021451935e-05 | H18: -1.190924454e-05 | J18: -9.702146601e-06 | K18: -3.524699861e-05 | L18: -5.428151809e-06 | M18: 1.677139544e-05 | N18: 4.235599891e-10
A19: 6.43369 | B19: ='DF raw data'!M24 -> -1.6371117e-06 | C19: ='DF raw data'!N24 -> 1.8491462e-06 | D19: ='DF raw data'!O24 -> -1.0989994e-05 | F19: -1.639311978e-06 | G19: 1.855760641e-06 | H19: -1.100476455e-05 | J19: -1.05220157e-05 | K19: -4.050937432e-05 | L19: -4.500030239e-06 | M19: 1.452079532e-05 | N19: 4.890585576e-10
A20: 6.93382 | B20: ='DF raw data'!M25 -> -1.8219356e-06 | C20: ='DF raw data'!N25 -> 8.0902037e-06 | D20: ='DF raw data'!O25 -> -3.3619674e-06 | F20: -1.824384281e-06 | G20: 8.119142556e-06 | H20: -3.366485884e-06 | J20: -1.143444501e-05 | K20: -4.622808331e-05 | L20: -4.394034729e-07 | M20: 1.430103646e-05 | N20: 5.545453838e-10
A21: 7.43395 | B21: ='DF raw data'!M26 -> -2.0653745e-06 | C21: ='DF raw data'!N26 -> 1.4391969e-05 | D21: ='DF raw data'!O26 -> -4.2395495e-06 | F21: -2.068150363e-06 | G21: 1.444344942e-05 | H21: -4.245247455e-06 | J21: -1.246878905e-05 | K21: -5.246409878e-05 | L21: 6.784198887e-06 | M21: 1.769401785e-05 | N21: 6.553196057e-10
A22: 7.93408 | B22: ='DF raw data'!M27 -> -4.3100949e-06 | C22: ='DF raw data'!N27 -> 1.1149555e-05 | D22: ='DF raw data'!O27 -> -3.9012466e-06 | F22: -4.315887668e-06 | G22: 1.118943723e-05 | H22: -3.906489875e-06 | J22: -1.462729395e-05 | K22: -5.97796473e-05 | L22: 1.238037213e-05 | M22: 2.388581336e-05 | N22: 8.38983017e-10
A23: 8.43421 | B23: ='DF raw data'!M28 -> -7.7090435e-06 | C23: ='DF raw data'!N28 -> -6.7275505e-06 | D23: ='DF raw data'!O28 -> -3.8565868e-06 | F23: =(1-$G$1*($B$2-$G$2))*B23 -> -7.719404454e-06 | G23: -6.751615112e-06 | H23: -3.861770053e-06 | J23: -1.84879997e-05 | K23: -6.902605059e-05 | L23: 9.003686863e-06 | M23: 2.838882727e-05 | N23: 1.050474245e-09
A24: 8.93434 | B24: ='DF raw data'!M29 -> -5.8238288e-06 | C24: ='DF raw data'!N29 -> -3.4707284e-06 | D24: ='DF raw data'!O29 -> -1.1877224e-05 | F24: -5.831656026e-06 | G24: -3.48314328e-06 | H24: -1.189318699e-05 | J24: -2.140458583e-05 | K24: -7.97311261e-05 | L24: 7.261662415e-06 | M24: 3.20206025e-05 | N24: 1.305984679e-09
A25: 9.43447 | B25: ='DF raw data'!M30 -> -2.1596272e-06 | C25: ='DF raw data'!N30 -> -4.5325414e-06 | D25: ='DF raw data'!O30 -> -5.4266075e-06 | F25: -2.162529739e-06 | G25: -4.548754411e-06 | H25: -5.43390086e-06 | J25: -2.248613183e-05 | K25: -9.097711521e-05 | L25: 4.986693871e-06 | M25: 3.45145977e-05 | N25: 1.571300263e-09
A26: 9.9346 | B26: ='DF raw data'!M31 -> -7.9486142e-07 | C26: ='DF raw data'!N31 -> -6.4995238e-06 | D26: ='DF raw data'!O31 -> 4.3978416e-06 | F26: -7.959297137e-07 | G26: -6.522772755e-06 | H26: 4.403752299e-06 | J26: -2.288420016e-05 | K26: -0.0001024221902 | L26: 1.724459533e-06 | M26: 3.537705165e-05 | N26: 1.834698918e-09
A27: 10.43473 | B27: ='DF raw data'!M32 -> 2.3685213e-06 | C27: ='DF raw data'!N32 -> -1.1085816e-05 | D27: ='DF raw data'!O32 -> 1.1014833e-06 | F27: 2.371704593e-06 | G27: -1.112547023e-05 | H27: 1.102963694e-06 | J27: -2.169803954e-05 | K27: -0.0001132740308 | L27: -3.839721895e-06 | M27: 3.345669154e-05 | N27: 2.077536231e-09
A28: 10.93486 | B28: ='DF raw data'!M33 -> 5.4823254e-06 | C28: ='DF raw data'!N33 -> -2.8799116e-06 | D28: ='DF raw data'!O33 -> -7.1839695e-06 | F28: 5.489693645e-06 | G28: -2.890213114e-06 | H28: -7.193624755e-06 | J28: -1.895247905e-05 | K28: -0.0001227527341 | L28: -5.28520418e-06 | M28: 3.081340237e-05 | N28: 2.271151481e-09
A29: 11.43499 | B29: ='DF raw data'!M34 -> 5.8603259e-06 | C29: ='DF raw data'!N34 -> -8.887784e-07 | D29: ='DF raw data'!O34 -> -1.0135636e-05 | F29: 5.868202178e-06 | G29: -8.91957582e-07 | H29: -1.014925829e-05 | J29: -1.60176151e-05 | K29: -0.0001307636239 | L29: -5.731298925e-06 | M29: 2.794700784e-05 | N29: 2.415894994e-09
A30: 11.93512 | B30: ='DF raw data'!M35 -> -3.0526223e-07 | C30: ='DF raw data'!N35 -> -7.2192306e-06 | D30: ='DF raw data'!O35 -> -6.0684488e-06 | F30: -3.056725024e-07 | G30: -7.245053964e-06 | H30: -6.076604795e-06 | J30: -1.617049109e-05 | K30: -0.0001388509716 | L30: -9.354767764e-06 | M30: 2.326840784e-05 | N30: 2.590438595e-09
A31: 12.43525 | B31: ='DF raw data'!M36 -> -7.0815945e-06 | C31: ='DF raw data'!N36 -> 1.6796946e-06 | D31: ='DF raw data'!O36 -> -6.9297912e-06 | F31: -7.091112163e-06 | G31: 1.685702909e-06 | H31: -6.939104839e-06 | J31: -1.971696901e-05 | K31: -0.0001487120194 | L31: -8.511697168e-06 | M31: 1.901145273e-05 | N31: 2.82110248e-09
A32: 12.93538 | B32: ='DF raw data'!M37 -> -8.9780142e-06 | C32: ='DF raw data'!N37 -> 3.8844446e-06 | D32: ='DF raw data'!O37 -> -7.5168591e-06 | F32: -8.990080651e-06 | G32: 3.898339353e-06 | H32: -7.526961759e-06 | J32: -2.421317805e-05 | K32: -0.0001608217561 | L32: -6.562020708e-06 | M32: 1.572958932e-05 | N32: 3.135853347e-09
A33: 13.43551 | B33: ='DF raw data'!M38 -> -1.1201707e-05 | C33: ='DF raw data'!N38 -> -2.0410555e-06 | D33: ='DF raw data'!O38 -> 1.5232997e-06 | F33: -1.121676209e-05 | G33: -2.048356405e-06 | H33: 1.525347015e-06 | J33: -2.982301728e-05 | K33: -0.0001757371417 | L33: -7.586465197e-06 | M33: 1.193537048e-05 | N33: 3.60945986e-09
A34: 13.93564 | B34: ='DF raw data'!M39 -> -1.2127325e-05 | C34: ='DF raw data'!N39 -> -5.6700082e-06 | D34: ='DF raw data'!O39 -> 2.3640803e-06 | F34: -1.214362412e-05 | G34: -5.690289957e-06 | H34: 2.367257624e-06 | J34: -3.589640801e-05 | K34: -0.0001936900123 | L34: -1.043234991e-05 | M34: 6.717839314e-06 | N34: 4.308334536e-09
A35: 14.43577 | B35: ='DF raw data'!M40 -> -7.5456987e-06 | C35: ='DF raw data'!N40 -> -8.7286917e-06 | D35: ='DF raw data'!O40 -> -7.1630002e-06 | F35: -7.555840119e-06 | G35: -8.759914443e-06 | H35: -7.172627272e-06 | J35: -3.967531033e-05 | K35: -0.0002135328252 | L35: -1.481344592e-05 | M35: -6.908093955e-07 | N35: 5.205351915e-09
A36: 14.9359 | B36: ='DF raw data'!M41 -> -1.5613419e-07 | C36: ='DF raw data'!N41 -> -7.7807449e-08 | D36: ='DF raw data'!O41 -> -5.7610978e-06 | F36: -1.563440344e-07 | G36: -7.808576814e-08 | H36: -5.768840715e-06 | J36: -3.975350267e-05 | K36: -0.0002334147445 | L36: -1.485249896e-05 | M36: -8.1189897e-06 | N36: 6.106054887e-09
A37: 15.43603 | B37: ='DF raw data'!M42 -> 1.8518264e-06 | C37: ='DF raw data'!N42 -> -4.5362776e-06 | D37: ='DF raw data'!O42 -> 4.2516854e-07 | F37: 1.854315255e-06 | G37: -4.552503975e-06 | H37: 4.257399665e-07 | J37: -3.882610398e-05 | K37: -0.0002528328439 | L37: -1.712934277e-05 | M37: -1.66858879e-05 | N37: 7.006729369e-09
A38: 15.93616 | B38: ='DF raw data'!M43 -> -3.1623997e-06 | C38: ='DF raw data'!N43 -> 1.3381211e-06 | D38: ='DF raw data'!O43 -> 5.2952032e-07 | F38: -3.166649965e-06 | G38: 1.342907592e-06 | H38: 5.302319953e-07 | J38: -4.040984063e-05 | K38: -0.0002730430175 | L38: -1.64577144e-05 | M38: -2.49168846e-05 | N38: 7.958882656e-09
A39: 16.43629 | B39: ='DF raw data'!M44 -> -4.862573e-06 | C39: ='DF raw data'!N44 -> 1.4493996e-06 | D39: ='DF raw data'!O44 -> -2.4248095e-06 | F39: -4.869108298e-06 | G39: 1.454584138e-06 | H39: -2.428068444e-06 | J39: -4.284502776e-05 | K39: -0.0002944711012 | L39: -1.573023323e-05 | M39: -3.278404615e-05 | N39: 9.000721784e-09
A40: 16.93642 | B40: ='DF raw data'!M45 -> -3.5413316e-06 | C40: ='DF raw data'!N45 -> -3.0668436e-06 | D40: ='DF raw data'!O45 -> -2.2939732e-06 | F40: -3.54609115e-06 | G40: -3.077813774e-06 | H40: -2.2970563e-06 | J40: -4.461853433e-05 | K40: -0.0003167861688 | L40: -1.726954024e-05 | M40: -4.142106131e-05 | N40: 1.014554467e-08
A41: 17.43655 | B41: ='DF raw data'!M46 -> -3.8696812e-06 | C41: ='DF raw data'!N46 -> -2.7538229e-06 | D41: ='DF raw data'!O46 -> 2.4299713e-06 | F41: -3.874882052e-06 | G41: -2.763673392e-06 | H41: 2.433237181e-06 | J41: -4.655647909e-05 | K41: -0.0003400704607 | L41: -1.865173621e-05 | M41: -5.074935414e-05 | N41: 1.140356818e-08
A42: 17.93668 | B42: ='DF raw data'!M47 -> -1.5164909e-06 | C42: ='DF raw data'!N47 -> -1.2051335e-06 | D42: ='DF raw data'!O47 -> -1.7501536e-06 | F42: -1.518529064e-06 | G42: -1.209444292e-06 | H42: -1.752505806e-06 | J42: -4.731594103e-05 | K42: -0.0003637345823 | L42: -1.925661558e-05 | M42: -6.038016529e-05 | N42: 1.270871519e-08
A43: 18.43681 | B43: ='DF raw data'!M48 -> 2.4189292e-06 | C43: ='DF raw data'!N48 -> 5.50185e-06 | D43: ='DF raw data'!O48 -> -7.2127823e-06 | F43: 2.422180241e-06 | G43: 5.521530251e-06 | H43: -7.222476279e-06 | J43: -4.610453603e-05 | K43: -0.0003867928439 | L43: -1.649513266e-05 | M43: -6.862987599e-05 | N43: 1.390788571e-08
A44: 18.93694 | B44: ='DF raw data'!M49 -> 3.4931224e-06 | C44: ='DF raw data'!N49 -> -5.0669169e-06 | D44: ='DF raw data'!O49 -> -3.5305334e-07 | F44: 3.497817157e-06 | G44: -5.085041385e-06 | H44: -3.535278437e-07 | J44: -4.435517273e-05 | K44: -0.0004089761964 | L44: -1.903831441e-05 | M44: -7.815150817e-05 | N44: 1.507310797e-08
A45: 19.43707 | B45: ='DF raw data'!M50 -> -2.6134578e-06 | C45: ='DF raw data'!N50 -> -1.0667522e-05 | D45: ='DF raw data'!O50 -> 2.0242639e-06 | F45: -2.616970287e-06 | G45: -1.070567999e-05 | H45: 2.026984511e-06 | J45: -4.566399808e-05 | K45: -0.0004318141318 | L45: -2.439254614e-05 | M45: -9.035095227e-05 | N45: 1.641355491e-08
A46: 19.9372 | B46: ='DF raw data'!M51 -> -5.6705098e-06 | C46: ='DF raw data'!N51 -> -7.949744e-06 | D46: ='DF raw data'!O51 -> 6.4871037e-06 | F46: -5.678130965e-06 | G46: -7.978180428e-06 | H46: 6.495822367e-06 | J46: -4.850380172e-05 | K46: -0.0004560723381 | L46: -2.838267352e-05 | M46: -0.0001045459788 | N46: 1.799306295e-08
A47: 20.43733 | B47: ='DF raw data'!M52 -> -1.0089346e-06 | C47: ='DF raw data'!N52 -> 2.0459518e-06 | D47: ='DF raw data'!O52 -> 6.1455557e-06 | F47: -1.010290608e-06 | G47: 2.053270219e-06 | H47: 6.153815327e-06 | J47: -4.900907836e-05 | K47: -0.0004805832485 | L47: -2.735577148e-05 | M47: -0.0001182274208 | N47: 1.956858648e-08
A48: 20.93746 | B48: ='DF raw data'!M53 -> 3.3668264e-06 | C48: ='DF raw data'!N53 -> 7.9934199e-07 | D48: ='DF raw data'!O53 -> -2.8590823e-06 | F48: 3.371351415e-06 | G48: 8.022012558e-07 | H48: -2.862924907e-06 | J48: -4.732296438e-05 | K48: -0.0005042508827 | L48: -2.695456657e-05 | M48: -0.0001317082081 | N48: 2.105197787e-08
A49: 21.43759 | B49: ='DF raw data'!M54 -> 2.7871072e-06 | C49: ='DF raw data'!N54 -> 3.2780188e-06 | D49: ='DF raw data'!O54 -> -2.2237602e-06 | F49: 2.790853072e-06 | G49: 3.289744353e-06 | H49: -2.226748934e-06 | J49: -4.592717503e-05 | K49: -0.0005272204407 | L49: -2.530926672e-05 | M49: -0.0001443661317 | N49: 2.242726754e-08
A50: 21.93772 | B50: ='DF raw data'!M55 -> 1.6957571e-06 | C50: ='DF raw data'!N55 -> -4.9052032e-06 | D50: ='DF raw data'!O55 -> 6.6178236e-06 | F50: 1.698036198e-06 | G50: -4.922749231e-06 | H50: 6.626717955e-06 | J50: -4.507793619e-05 | K50: -0.0005497652689 | L50: -2.77712813e-05 | M50: -0.0001582553826 | N50: 2.382926416e-08
A51: 22.43785 | B51: ='DF raw data'!M56 -> -4.2019326e-07 | C51: ='DF raw data'!N56 -> -3.8267117e-06 | D51: ='DF raw data'!O56 -> 8.0513328e-06 | F51: -4.207579997e-07 | G51: -3.840399941e-06 | H51: 8.062153791e-06 | J51: -4.528836989e-05 | K51: -0.0005724153414 | L51: -2.969198052e-05 | M51: -0.0001731052328 | N51: 2.529597049e-08
A52: 22.93798 | B52: ='DF raw data'!M57 -> 4.7316135e-08 | C52: ='DF raw data'!N57 -> 3.4999082e-06 | D52: ='DF raw data'!O57 -> 1.9819324e-06 | F52: 4.737972789e-08 | G52: 3.512427457e-06 | H52: 1.984596117e-06 | J52: -4.526467386e-05 | K52: -0.0005950535627 | L52: -2.793531017e-05 | M52: -0.0001870765195 | N52: 2.671097442e-08
A53: 23.43811 | B53: ='DF raw data'!M58 -> 4.0152304e-06 | C53: ='DF raw data'!N58 -> -1.2440944e-06 | D53: ='DF raw data'!O58 -> 1.9475171e-06 | F53: 4.02062687e-06 | G53: -1.248544556e-06 | H53: 1.950134563e-06 | J53: -4.325383775e-05 | K53: -0.0006166861046 | L53: -2.855974476e-05 | M53: -0.0002013601047 | N53: 2.805460042e-08
A54: 23.93824 | B54: ='DF raw data'!M59 -> 1.1575545e-06 | C54: ='DF raw data'!N59 -> 6.8301169e-06 | D54: ='DF raw data'!O59 -> 1.4059676e-06 | F54: 1.159110253e-06 | G54: 6.854548395e-06 | H54: 1.40785722e-06 | J54: -4.267413194e-05 | K54: -0.0006380287182 | L54: -2.513157948e-05 | M54: -0.0002139291615 | N54: 2.928125818e-08
A55: 24.43837 | B55: ='DF raw data'!M60 -> -3.751403e-06 | C55: ='DF raw data'!N60 -> 4.4369681e-06 | D55: ='DF raw data'!O60 -> 1.0040583e-06 | F55: -3.756444886e-06 | G55: 4.452839243e-06 | H55: 1.005407754e-06 | J55: -4.455284272e-05 | K55: -0.0006603109314 | L55: -2.290458098e-05 | M55: -0.0002253844296 | N55: 3.053637224e-08
A56: 24.9385 | B56: ='DF raw data'!M61 -> -3.22247e-06 | C56: ='DF raw data'!N61 -> 2.209361e-07 | D56: ='DF raw data'!O61 -> 1.4441664e-06 | F56: -3.226801e-06 | G56: 2.217263938e-07 | H56: 1.44610736e-06 | J56: -4.61666627e-05 | K56: -0.0006834002644 | L56: -2.279368896e-05 | M56: -0.0002367842373 | N56: 3.186217336e-08
A57: 25.43863 | B57: ='DF raw data'!M62 -> -2.5196707e-06 | C57: ='DF raw data'!N62 -> -4.6698369e-06 | D57: ='DF raw data'!O62 -> 3.8339258e-06 | F57: -2.523057137e-06 | G57: -4.68654102e-06 | H57: 3.839078596e-06 | J57: -4.742851927e-05 | K57: -0.0007071206898 | L57: -2.513756872e-05 | M57: -0.0002493562895 | N57: 3.330322884e-08
A58: 25.93876 | B58: ='DF raw data'!M63 -> -2.9969881e-06 | C58: ='DF raw data'!N63 -> 3.005827e-06 | D58: ='DF raw data'!O63 -> 4.4495591e-06 | F58: -3.001016052e-06 | G58: 3.016578916e-06 | H58: 4.455539307e-06 | J58: -4.892941743e-05 | K58: -0.0007315917593 | L58: -2.362888711e-05 | M58: -0.0002611738048 | N58: 3.477981875e-08
A59: 26.43889 | B59: ='DF raw data'!M64 -> -1.1838778e-06 | C59: ='DF raw data'!N64 -> -3.2609807e-06 | D59: ='DF raw data'!O64 -> 9.2831556e-07 | F59: -1.185468932e-06 | G59: -3.272645307e-06 | H59: 9.295632161e-07 | J59: -4.9522306e-05 | K59: -0.0007563593502 | L59: -2.526563521e-05 | M59: -0.000273809907 | N59: 3.632562611e-08
A60: 26.93902 | B60: ='DF raw data'!M65 -> -1.5024774e-06 | C60: ='DF raw data'!N65 -> -5.0316921e-06 | D60: ='DF raw data'!O65 -> -1.6828074e-06 | F60: -1.50449673e-06 | G60: -5.049690585e-06 | H60: -1.685069093e-06 | J60: -5.027474995e-05 | K60: -0.0007815032609 | L60: -2.779113696e-05 | M60: -0.0002877090883 | N60: 3.797600398e-08
A61: 27.43915 | B61: ='DF raw data'!M66 -> -3.0200965e-06 | C61: ='DF raw data'!N66 -> 2.5257557e-06 | D61: ='DF raw data'!O66 -> -2.4972926e-06 | F61: -3.02415551e-06 | G61: 2.53479039e-06 | H61: -2.500648961e-06 | J61: -5.178722085e-05 | K61: -0.0008074036037 | L61: -2.652341224e-05 | M61: -0.0003009742424 | N61: 3.966914791e-08
A62: 27.93928 | B62: ='DF raw data'!M67 -> -1.3847961e-06 | C62: ='DF raw data'!N67 -> 1.7414711e-06 | D62: ='DF raw data'!O67 -> 8.0850964e-07 | F62: -1.386657266e-06 | G62: 1.747700385e-06 | H62: 8.09596277e-07 | J62: -5.248072975e-05 | K62: -0.000833650791 | L62: -2.564933485e-05 | M62: -0.0003138022443 | N62: 4.137564917e-08
A63: 28.43941 | B63: ='DF raw data'!M68 -> 8.6666171e-07 | C63: ='DF raw data'!N68 -> -1.7832738e-06 | D63: ='DF raw data'!O68 -> 1.0212877e-06 | F63: 8.678265033e-07 | G63: -1.789652614e-06 | H63: 1.022660311e-06 | J63: -5.204670368e-05 | K63: -0.000859680909 | L63: -2.654439381e-05 | M63: -0.000327077892 | N63: 4.308282502e-08
A64: 28.93954 | B64: ='DF raw data'!M69 -> 1.3100149e-06 | C64: ='DF raw data'!N69 -> 1.7753625e-06 | D64: ='DF raw data'!O69 -> 1.8914777e-06 | F64: 1.31177556e-06 | G64: 1.781713015e-06 | H64: 1.894019846e-06 | J64: -5.139064537e-05 | K64: -0.0008853829124 | L64: -2.565330568e-05 | M64: -0.0003399078797 | N64: 4.473279917e-08
A65: 29.43967 | B65: ='DF raw data'!M70 -> -2.222899e-06 | C65: ='DF raw data'!N70 -> -4.0376599e-06 | D65: ='DF raw data'!O70 -> 2.1136418e-06 | F65: -2.225886576e-06 | G65: -4.052102708e-06 | H65: 2.116482535e-06 | J65: -5.250387802e-05 | K65: -0.0009116416769 | L65: -2.767988381e-05 | M65: -0.00035375142 | N65: 4.649467372e-08
A66: 29.9398 | B66: ='DF raw data'!M71 -> -2.7964772e-06 | C66: ='DF raw data'!N71 -> -3.8456583e-06 | D66: ='DF raw data'!O71 -> -5.6415797e-07 | F66: -2.800235665e-06 | G66: -3.859414313e-06 | H66: -5.649161983e-07 | J66: -5.390435988e-05 | K66: -0.0009386008644 | L66: -2.961009269e-05 | M66: -0.0003685603157 | N66: 4.838638424e-08
A67: 30.43993 | B67: ='DF raw data'!M72 -> -2.207212e-06 | C67: ='DF raw data'!N72 -> -5.4411794e-06 | D67: ='DF raw data'!O72 -> -5.1584561e-07 | F67: -2.210178493e-06 | G67: -5.460642631e-06 | H67: -5.165389065e-07 | J67: -5.500973645e-05 | K67: -0.0009661128839 | L67: -3.234112389e-05 | M67: -0.000384735082 | N67: 5.04229233e-08
A68: 30.94006 | B68: ='DF raw data'!M73 -> 2.5253393e-09 | C68: ='DF raw data'!N73 -> -7.6856139e-07 | D68: ='DF raw data'!O73 -> -3.5627547e-06 | F68: 2.528733356e-09 | G68: -7.713105528e-07 | H68: -3.567543042e-06 | J68: -5.500847176e-05 | K68: -0.0009936242709 | L68: -3.272687943e-05 | M68: -0.0004011027762 | N68: 5.247194621e-08
A69: 31.44019 | B69: ='DF raw data'!M74 -> 2.1919775e-06 | C69: ='DF raw data'!N74 -> 4.4968765e-06 | D69: ='DF raw data'!O74 -> -7.1721097e-06 | F69: 2.194923518e-06 | G69: 4.512961937e-06 | H69: -7.181749015e-06 | J69: -5.391072466e-05 | K69: -0.001020586642 | L69: -3.046981178e-05 | M69: -0.0004163416431 | N69: 5.438983256e-08
A70: 31.94032 | B70: ='DF raw data'!M75 -> 1.2537427e-06 | C70: ='DF raw data'!N75 -> 4.4673889e-06 | D70: ='DF raw data'!O75 -> -8.2504212e-06 | F70: 1.25542773e-06 | G70: 4.483368859e-06 | H70: -8.261509766e-06 | J70: -5.328284759e-05 | K70: -0.001047234992 | L70: -2.822754451e-05 | M70: -0.000430459085 | N70: 5.620823328e-08
A71: 32.44045 | B71: ='DF raw data'!M76 -> -6.4841095e-07 | C71: ='DF raw data'!N76 -> 1.2952022e-05 | D71: ='DF raw data'!O76 -> -7.052915e-06 | F71: -6.492824143e-07 | G71: =(1-$G$1*($B$2-$G$2))*C71*$M$2/$M$1 -> 1.29983517e-05 | H71: -7.062394118e-06 | J71: -5.36075732e-05 | K71: -0.001074045748 | L71: -2.172667888e-05 | M71: -0.0004413252489 | N71: 5.788157848e-08
A72: =A71+$B$1 -> 32.94058 | B72: ='DF raw data'!M77 -> -2.9891155e-06 | C72: ='DF raw data'!N77 -> 1.2682366e-05 | D72: ='DF raw data'!O77 -> -1.1143659e-06 | F72: -2.993132871e-06 | G72: 1.272773113e-05 | H72: -1.115863608e-06 | J72: =F72*$B$1+J71 -> -5.510452874e-05 | K72: =J72*$B$1+K71 -> -0.001101605176 | L72: =G72*$B$1+L71 -> -1.536115871e-05 | M72: =L72*$B$1+M71 -> -0.0004490078252 | N72: =(J72^2+L72^2)*$B$1+N71 -> 5.951824104e-08
A73: 33.44071 | B73: ='DF raw data'!M78 -> -7.3636106e-06 | C73: ='DF raw data'!N78 -> 1.0641959e-06 | D73: ='DF raw data'!O78 -> 3.8840426e-06 | F73: -7.373507293e-06 | G73: 1.068002555e-06 | H73: 3.889262753e-06 | J73: -5.879224095e-05 | K73: -0.001131008939 | L73: -1.482701859e-05 | M73: -0.000456423262 | N73: 6.135690301e-08
A74: 33.94084 | B74: ='DF raw data'!M79 -> -1.017603e-05 | C74: ='DF raw data'!N79 -> -4.1323929e-06 | D74: ='DF raw data'!O79 -> -6.0848311e-07 | F74: -1.018970658e-05 | G74: -4.14717457e-06 | H74: -6.093009113e-07 | J74: -6.38884189e-05 | K74: -0.001162961454 | L74: -1.690114501e-05 | M74: -0.0004648760317 | N74: 6.354116015e-08
A75: 34.44097 | B75: ='DF raw data'!M80 -> -8.0724194e-06 | C75: ='DF raw data'!N80 -> 1.7601503e-06 | D75: ='DF raw data'!O80 -> -6.8535828e-06 | F75: -8.083268732e-06 | G75: 1.766446401e-06 | H75: -6.862794015e-06 | J75: -6.793110409e-05 | K75: -0.001196935837 | L75: -1.601769217e-05 | M75: -0.00047288696 | N75: 6.597739409e-08
A76: 34.9411 | B76: ='DF raw data'!M81 -> -4.2982788e-06 | C76: ='DF raw data'!N81 -> 2.6100822e-06 | D76: ='DF raw data'!O81 -> -3.7306693e-06 | F76: -4.304055687e-06 | G76: 2.619418528e-06 | H76: -3.73568332e-06 | J76: -7.008369146e-05 | K76: -0.001231986794 | L76: -1.470764238e-05 | M76: -0.0004802426932 | N76: 6.854208002e-08
A77: 35.44123 | B77: ='DF raw data'!M82 -> -2.0485525e-06 | C77: ='DF raw data'!N82 -> -3.6176318e-06 | D77: ='DF raw data'!O82 -> -1.800998e-06 | F77: -2.051305755e-06 | G77: -3.630572157e-06 | H77: -1.803418541e-06 | J77: -7.110961101e-05 | K77: -0.001267550844 | L77: -1.652340043e-05 | M77: -0.0004885065415 | N77: 7.120757263e-08
A78: 35.94136 | B78: ='DF raw data'!M83 -> 3.1337484e-06 | C78: ='DF raw data'!N83 -> -2.7452845e-06 | D78: ='DF raw data'!O83 -> -5.5892542e-06 | F78: 3.137960158e-06 | G78: -2.75510445e-06 | H78: -5.596766158e-06 | J78: -6.9540223e-05 | K78: -0.001302329995 | L78: -1.790131082e-05 | M78: -0.0004974595241 | N78: 7.378639272e-08
A79: 36.44149 | B79: ='DF raw data'!M84 -> 5.9302188e-06 | C79: ='DF raw data'!N84 -> 4.4437729e-06 | D79: ='DF raw data'!O84 -> -6.6191806e-06 | F79: 5.938189014e-06 | G79: 4.459668384e-06 | H79: -6.628076779e-06 | J79: -6.657035652e-05 | K79: -0.001335623828 | L79: -1.567089687e-05 | M79: -0.0005052970097 | N79: 7.612559545e-08
A80: 36.94162 | B80: ='DF raw data'!M85 -> -3.0570729e-06 | C80: ='DF raw data'!N85 -> 5.4926431e-06 | D80: ='DF raw data'!O85 -> -3.4760399e-06 | F80: -3.061181606e-06 | G80: 5.512290418e-06 | H80: -3.480711698e-06 | J80: -6.810134528e-05 | K80: -0.001369683354 | L80: -1.291403507e-05 | M80: -0.0005117557061 | N80: 7.852850281e-08
A81: 37.44175 | B81: ='DF raw data'!M86 -> -1.2423558e-05 | C81: ='DF raw data'!N86 -> 4.2281118e-07 | D81: ='DF raw data'!O86 -> 3.1997386e-06 | F81: -1.244025526e-05 | G81: 4.243235859e-07 | H81: 3.204039049e-06 | J81: -7.432309014e-05 | K81: -0.001406854561 | L81: -1.270181811e-05 | M81: -0.0005181082664 | N81: 8.137187084e-08
A82: 37.94188 | B82: ='DF raw data'!M87 -> -1.3507836e-05 | C82: ='DF raw data'!N87 -> -3.5147589e-06 | D82: ='DF raw data'!O87 -> 6.170847e-06 | F82: -1.352599053e-05 | G82: -3.527331278e-06 | H82: 6.179140618e-06 | J82: -8.108784379e-05 | K82: -0.001447409024 | L82: -1.44659423e-05 | M82: -0.0005253431181 | N82: 8.476500378e-08
A83: 38.44201 | B83: ='DF raw data'!M88 -> -1.0137249e-05 | C83: ='DF raw data'!N88 -> 2.750048e-06 | D83: ='DF raw data'!O88 -> 2.6417454e-06 | F83: -1.015087346e-05 | G83: 2.759884989e-06 | H83: 2.645295906e-06 | J83: -8.616460013e-05 | K83: -0.001490502525 | L83: -1.308564102e-05 | M83: -0.0005318876397 | N83: 8.856377736e-08
A84: 38.94214 | B84: ='DF raw data'!M89 -> -4.0302762e-06 | C84: ='DF raw data'!N89 -> 4.843253e-06 | D84: ='DF raw data'!O89 -> 4.3502018e-07 | F84: -4.035692891e-06 | G84: 4.860577434e-06 | H84: 4.356048471e-07 | J84: -8.818297122e-05 | K84: -0.001534605475 | L84: -1.065472043e-05 | M84: -0.0005372163851 | N84: 9.250968277e-08
